Workbook

Sheet Summary
A1: 분 전
A2: minutes
A3: 일전
A4: days
A5: 시간 전
A6: hours
A7: 방금
A8: 1 minutes
A10: 브론즈
A11: Bronze
A12: 실버
A13: Silver
A14: 골드
A15: Gold
A16: 플래티넘
A17: Platinum
A18: 다이아몬드
A19: Diamond
A20: 마스터
A21: Master
A22: 그랜드마스터
A23: Grandmaster
A25: =A2&"-"&C2&"|"&F2&"-"&H2&"|"&K2&"-"&M2&"|"&P2&"-"&R2
A28: ='Analysis - 1v1'!P144 -> 40414
A29: ='Analysis - 1v1'!P145 -> 77291

Sheet Analysis - 1v1
A1: Week Start | B1: Bonus Pool Per Week (Sub-Masters) | C1: Bonus Pool Per Week (Masters+GM) | D1: Cum. Bonus Pool (Sub-Masters) | E1: Cum. Bonus Pool (Masters+GM) | F1: Week # | H1: Program Run Notes
A2: 2014-07-07 | B2: 104.4 | C2: 180 | D2: =B2 -> 104.4 | E2: =C2 -> 180 | F2: 1 | H2: 7/29/2014 runtime:
A3: 2014-07-14 | B3: 104.4 | C3: 180 | D3: =D2+B3 -> 208.8 | E3: =E2+C3 -> 360 | F3: =F2+1 -> 2 | H3: start | I3: 2014-07-21T16:36:39
A4: 2014-07-21 | B4: 104.4 | C4: 180 | D4: =D3+B4 -> 313.2 | E4: =E3+C4 -> 540 | F4: =F3+1 -> 3 | H4: end | I4: 2014-07-22T00:17:21
A5: 2014-07-28 | B5: 104.4 | C5: 180 | D5: 417.6 | E5: 720 | F5: 4
A6: 2014-08-04 | B6: 104.4 | C6: 180 | D6: =D5+B6 -> 522 | E6: =E5+C6 -> 900 | F6: 5 | H6: 2014-08-25
A7: 2014-08-11 | B7: 104.4 | C7: 180 | D7: =D6+B7 -> 626.4 | E7: =E6+C7 -> 1080 | F7: 6 | H7: start | I7: 2014-08-23T09:46:00
A8: 2014-08-18 | B8: 104.4 | C8: 180 | D8: 730.8 | E8: 1260 | F8: 7 | H8: end | I8: 2014-08-24T19:01:00
A9: 2014-08-25 | B9: 104.4 | C9: 180 | D9: 835.2 | E9: 1440 | F9: 8 | G9: <-
A10: 2014-09-01 | B10: 104.4 | C10: 180 | D10: =D9+B10 -> 939.6 | E10: =E9+C10 -> 1620 | F10: 9
A11: 2014-09-08 | B11: 104.4 | C11: 180 | D11: 1044 | E11: 1800 | F11: 10
A12: 2014-09-15 | B12: 104.4 | C12: 180 | D12: 1148.4 | E12: 1980 | F12: 11
A13: 2014-09-22 | B13: 104.4 | C13: 180 | D13: 1252.8 | E13: 2160 | F13: 12
A14: 2014-09-29 | B14: 104.4 | C14: 180 | D14: =D13+B14 -> 1357.2 | E14: =E13+C14 -> 2340 | F14: 13
A15: 2014-10-06 | B15: 104.4 | C15: 180 | F15: 14
A16: 2014-10-13 | B16: 104.4 | C16: 180 | F16: 15
A17: 2014-10-20 | B17: 104.4 | C17: 180 | F17: 16
A18: 2014-10-27 | B18: 104.4 | C18: 180 | F18: 17
A19: 11/3/2014 (season lock) | B19: 104.4 | C19: 180 | F19: 18
A20: 2014-11-10 | B20: 104.4 | C20: 180 | F20: 19
A23: Raw Counts | K23: % Distributions | R23: Weeks Behind Averager: | S23: 8
A24: Weeks Remaining | B24: Bronze | C24: Silver | D24: Gold | E24: Platinum | F24: Diamond | G24: Master | H24: Grandmaster | I24: Totals | J24: Percentages of Total | K24: Bronze | L24: Silver | M24: Gold | N24: Platinum | O24: Diamond | P24: Master | R24: Bronze | S24: Silver | T24: Gold | U24: Platinum | V24: Diamond | W24: Master
A25: 1 | B25: 272 | C25: 504 | D25: 3048 | E25: 2477 | F25: 2820 | G25: 472 | H25: 199 | I25: =SUM(B25:H25) -> 9792 | J25: =I25/$I$44 -> 0.0809985855 | K25: =B25/$I25 -> 0.02777777778 | L25: =C25/$I25 -> 0.05147058824 | M25: =D25/$I25 -> 0.3112745098 | N25: =E25/$I25 -> 0.2529616013 | O25: =F25/$I25 -> 0.2879901961 | P25: =G25/$I25 -> 0.04820261438 | R25: =AVERAGEIFS(K25:K43,$A$25:$A$43,"<=8") -> 0.02870130203 | S25: =AVERAGEIFS(L25:L43,$A$25:$A$43,"<=8") -> 0.08225205432 | T25: =AVERAGEIFS(M25:M43,$A$25:$A$43,"<=8") -> 0.3875963364 | U25: =AVERAGEIFS(N25:N43,$A$25:$A$43,"<=8") -> 0.2467580902 | V25: =AVERAGEIFS(O25:O43,$A$25:$A$43,"<=8") -> 0.2169746151 | W25: =AVERAGEIFS(P25:P43,$A$25:$A$43,"<=8") -> 0.03517726287
A26: 2 | B26: 91 | C26: 224 | D26: 1139 | E26: 886 | F26: 926 | G26: 141 | I26: =SUM(B26:H26) -> 3407 | J26: =I26/$I$44 -> 0.02818241226 | K26: =B26/$I26 -> 0.02670971529 | L26: =C26/$I26 -> 0.06574699149 | M26: =D26/$I26 -> 0.3343117112 | N26: =E26/$I26 -> 0.2600528324 | O26: =F26/$I26 -> 0.2717933666 | P26: =G26/$I26 -> 0.04138538303
A27: 3 | B27: 73 | C27: 246 | D27: 1168 | E27: 880 | F27: 807 | G27: 123 | I27: 3297 | J27: 0.02727250168 | K27: 0.02214134061 | L27: 0.0746132848 | M27: 0.3542614498 | N27: 0.2669093115 | O27: 0.2447679709 | P27: 0.0373066424
A28: 4 | B28: 106 | C28: 296 | D28: 1335 | E28: 899 | F28: 770 | G28: 119 | I28: 3525 | J28: 0.02915849815 | K28: 0.03007092199 | L28: 0.08397163121 | M28: 0.3787234043 | N28: 0.255035461 | O28: 0.2184397163 | P28: 0.03375886525
A29: 5 | B29: 119 | C29: 352 | D29: 1470 | E29: 928 | F29: 822 | G29: 136 | I29: 3827 | J29: 0.03165661629 | K29: 0.03109485236 | L29: 0.09197805069 | M29: 0.3841128822 | N29: 0.2424875882 | O29: 0.2147896525 | P29: 0.03553697413
A30: 6 | B30: 139 | C30: 376 | D30: 1859 | E30: 1171 | F30: 858 | G30: 158 | I30: 4561 | J30: 0.03772820144 | K30: 0.03047577286 | L30: 0.08243806183 | M30: 0.4075860557 | N30: 0.2567419426 | O30: 0.1881166411 | P30: 0.03464152598
A31: 7 | B31: 172 | C31: 536 | D31: 2424 | E31: 1238 | F31: 919 | G31: 152 | I31: 5441 | J31: 0.04500748608 | K31: 0.03161183606 | L31: 0.09851130307 | M31: 0.4455063407 | N31: 0.2275317037 | O31: 0.1689027752 | P31: 0.02793604117
A32: 8 | B32: 210 | C32: 772 | D32: 3426 | E32: 1500 | F32: 996 | G32: 160 | I32: =SUM(B32:H32) -> 7064 | J32: =I32/$I$44 -> 0.0584328031 | K32: =B32/$I32 -> 0.02972819932 | L32: =C32/$I32 -> 0.1092865232 | M32: =D32/$I32 -> 0.4849943375 | N32: =E32/$I32 -> 0.2123442809 | O32: =F32/$I32 -> 0.1409966025 | P32: =G32/$I32 -> 0.02265005663
A33: 9 | B33: 365 | C33: 1291 | D33: 4895 | E33: 1695 | F33: 1045 | G33: 175 | I33: =SUM(B33:H33) -> 9466 | J33: =I33/$I$44 -> 0.07830194142 | K33: =B33/$I33 -> 0.03855905345 | L33: =C33/$I33 -> 0.1363828439 | M33: =D33/$I33 -> 0.5171138813 | N33: =E33/$I33 -> 0.1790619058 | O33: =F33/$I33 -> 0.1103950982 | P33: =G33/$I33 -> 0.01848721741
A34: 10 | B34: 735 | C34: 3133 | D34: 8173 | E34: 2082 | F34: 1180 | G34: 186 | I34: 15489 | J34: 0.1281236817 | K34: 0.04745303118 | L34: 0.2022725805 | M34: 0.5276647944 | N34: 0.134417974 | O34: 0.07618309768 | P34: 0.01200852218
A35: 11 | B35: 5893 | C35: 22238 | D35: 19317 | E35: 5104 | F35: 2136 | G35: 334 | I35: 55022 | J35: 0.4551372724 | K35: 0.1071026135 | L35: 0.4041656065 | M35: 0.3510777507 | N35: 0.09276289484 | O35: 0.0388208353 | P35: 0.006070299153
A36: =A35+1 -> 12
A37: =A36+1 -> 13
A38: 14
A39: 15
A40: 16
A41: 17
A42: 18
A43: 19
A44: Totals | B44: =SUM(B25:B43) -> 8175 | C44: =SUM(C25:C43) -> 29968 | D44: 48254 | E44: 18860 | F44: 13279 | G44: 2156 | H44: 199 | I44: =SUM(I25:I43) -> 120891 | K44: =B44/$I44 -> 0.06762289997 | L44: =C44/$I44 -> 0.2478927298 | M44: =D44/$I44 -> 0.399152956 | N44: =E44/$I44 -> 0.156008305 | O44: =F44/$I44 -> 0.1098427509 | P44: =G44/$I44 -> 0.01783424738
J45: Targets: | K45: 0.08 | L45: 0.2 | M45: 0.32 | N45: 0.2 | O45: 0.18 | P45: 0.02
A47: For Reddit tables
A48: =A25&"* | "&B25&" | "&C25&" | "&D25&" | "&E25&" | "&F25&" | "&G25 -> 1* | 272 | 504 | 3048 | 2477 | 2820 | 472 | K48: =A25&"* | "&ROUNDDOWN(K25,4)*100&"% | "&ROUNDDOWN(L25,4)*100&"% | "&ROUNDDOWN(M25,4)*100&"% | "&ROUNDDOWN(N25,4)*100&"% | "&ROUNDDOWN(O25,4)*100&"% | "&ROUNDDOWN(P25,4)*100&"%" -> 1* | 2.77% | 5.14% | 31.12% | 25.29% | 28.79% | 4.82%
A49: =A26&" | "&B26&" | "&C26&" | "&D26&" | "&E26&" | "&F26&" | "&G26 -> 2 | 91 | 224 | 1139 | 886 | 926 | 141 | K49: =A26&" | "&ROUNDDOWN(K26,4)*100&"% | "&ROUNDDOWN(L26,4)*100&"% | "&ROUNDDOWN(M26,4)*100&"% | "&ROUNDDOWN(N26,4)*100&"% | "&ROUNDDOWN(O26,4)*100&"% | "&ROUNDDOWN(P26,4)*100&"%" -> 2 | 2.67% | 6.57% | 33.43% | 26% | 27.17% | 4.13%
A50: 3 | 73 | 246 | 1168 | 880 | 807 | 123 | K50: 3 | 2.21% | 7.46% | 35.42% | 26.69% | 24.47% | 3.73%
A51: 4 | 106 | 296 | 1335 | 899 | 770 | 119 | K51: 4 | 3% | 8.39% | 37.87% | 25.5% | 21.84% | 3.37%
A52: 5 | 119 | 352 | 1470 | 928 | 822 | 136 | K52: 5 | 3.1% | 9.19% | 38.41% | 24.24% | 21.47% | 3.55%
A53: 6 | 139 | 376 | 1859 | 1171 | 858 | 158 | K53: 6 | 3.04% | 8.24% | 40.75% | 25.67% | 18.81% | 3.46%
A54: 7 | 172 | 536 | 2424 | 1238 | 919 | 152 | K54: 7 | 3.16% | 9.85% | 44.55% | 22.75% | 16.89% | 2.79%
A55: 8 | 210 | 772 | 3426 | 1500 | 996 | 160 | K55: 8 | 2.97% | 10.92% | 48.49% | 21.23% | 14.09% | 2.26%
A56: 9 | 365 | 1291 | 4895 | 1695 | 1045 | 175 | K56: 9 | 3.85% | 13.63% | 51.71% | 17.9% | 11.03% | 1.84%
A57: 10 | 735 | 3133 | 8173 | 2082 | 1180 | 186 | K57: 10 | 4.74% | 20.22% | 52.76% | 13.44% | 7.61% | 1.2%
A58: =A35&" | "&B35&" | "&C35&" | "&D35&" | "&E35&" | "&F35&" | "&G35 -> 11 | 5893 | 22238 | 19317 | 5104 | 2136 | 334 | K58: =A35&" | "&ROUNDDOWN(K35,4)*100&"% | "&ROUNDDOWN(L35,4)*100&"% | "&ROUNDDOWN(M35,4)*100&"% | "&ROUNDDOWN(N35,4)*100&"% | "&ROUNDDOWN(O35,4)*100&"% | "&ROUNDDOWN(P35,4)*100&"%" -> 11 | 10.71% | 40.41% | 35.1% | 9.27% | 3.88% | 0.6%
A59: =A36&" | "&B36&" | "&C36&" | "&D36&" | "&E36&" | "&F36&" | "&G36 -> 12 | | | | | | | K59: =A36&" | "&ROUNDDOWN(K36,4)*100&"% | "&ROUNDDOWN(L36,4)*100&"% | "&ROUNDDOWN(M36,4)*100&"% | "&ROUNDDOWN(N36,4)*100&"% | "&ROUNDDOWN(O36,4)*100&"% | "&ROUNDDOWN(P36,4)*100&"%" -> 12 | 0% | 0% | 0% | 0% | 0% | 0%
A60: 13 | | | | | | | K60: 13 | 0% | 0% | 0% | 0% | 0% | 0%
A61: 14 | | | | | | | K61: 14 | 0% | 0% | 0% | 0% | 0% | 0%
A62: 15 | | | | | | | K62: 15 | 0% | 0% | 0% | 0% | 0% | 0%
A63: 16 | | | | | | | K63: 16 | 0% | 0% | 0% | 0% | 0% | 0%
A64: 17 | | | | | | | K64: 17 | 0% | 0% | 0% | 0% | 0% | 0%
A65: 18 | | | | | | | K65: 18 | 0% | 0% | 0% | 0% | 0% | 0%
A66: 19 | | | | | | | K66: 19 | 0% | 0% | 0% | 0% | 0% | 0%
A70: Race Stats
B71: Bronze | F71: Silver | J71: Gold | N71: Platinum | R71: Diamond | V71: Master | Z71: Grandmaster | AD71: Totals | AH71: Totals Overall
A72: Weeks Remaining | B72: Z | C72: T | D72: P | E72: R | F72: Z | G72: T | H72: P | I72: R | J72: Z | K72: T | L72: P | M72: R | N72: Z | O72: T | P72: P | Q72: R | R72: Z | S72: T | T72: P | U72: R | V72: Z | W72: T | X72: P | Y72: R | Z72: Z | AA72: T | AB72: P | AC72: R | AD72: Z | AE72: T | AF72: P | AG72: R
A73: 1 | B73: 29 | C73: 130 | D73: 80 | E73: 33 | F73: 94 | G73: 211 | H73: 151 | I73: 48 | J73: 871 | K73: 1111 | L73: 758 | M73: 308 | N73: 886 | O73: 812 | P73: 619 | Q73: 160 | R73: 1011 | S73: 972 | T73: 715 | U73: 122 | V73: 178 | W73: 127 | X73: 160 | Y73: 7 | Z73: 75 | AA73: 51 | AB73: 73 | AD73: =B73+F73+J73+N73+R73+V73+Z73 -> 3144 | AE73: =C73+G73+K73+O73+S73+W73+AA73 -> 3414 | AF73: 2556 | AG73: 678 | AH73: =SUM(AD73:AG73) -> 9792
A74: 2 | B74: 12 | C74: 38 | D74: 36 | E74: 5 | F74: 42 | G74: 92 | H74: 63 | I74: 27 | J74: 317 | K74: 398 | L74: 322 | M74: 102 | N74: 322 | O74: 278 | P74: 223 | Q74: 63 | R74: 348 | S74: 298 | T74: 226 | U74: 54 | V74: 54 | W74: 49 | X74: 34 | Y74: 4 | AD74: =B74+F74+J74+N74+R74+V74+Z74 -> 1095 | AE74: 1153 | AF74: 904 | AG74: 255 | AH74: =SUM(AD74:AG74) -> 3407
A75: 3 | B75: 13 | C75: 31 | D75: 22 | E75: 7 | F75: 60 | G75: 95 | H75: 66 | I75: 25 | J75: 364 | K75: 376 | L75: 308 | M75: 120 | N75: 325 | O75: 284 | P75: 203 | Q75: 68 | R75: 330 | S75: 246 | T75: 206 | U75: 25 | V75: 56 | W75: 42 | X75: 24 | Y75: 1 | AD75: 1148 | AE75: 1074 | AF75: 829 | AG75: 246 | AH75: 3297
A76: 4 | B76: 26 | C76: 39 | D76: 32 | E76: 9 | F76: 56 | G76: 138 | H76: 80 | I76: 22 | J76: 412 | K76: 406 | L76: 385 | M76: 132 | N76: 334 | O76: 271 | P76: 225 | Q76: 69 | R76: 278 | S76: 240 | T76: 212 | U76: 40 | V76: 38 | W76: 35 | X76: 38 | Y76: 8 | AD76: 1144 | AE76: 1129 | AF76: 972 | AG76: 280 | AH76: 3525
A77: 5 | B77: 21 | C77: 56 | D77: 32 | E77: 10 | F77: 80 | G77: 139 | H77: 88 | I77: 45 | J77: 483 | K77: 456 | L77: 379 | M77: 152 | N77: 320 | O77: 265 | P77: 267 | Q77: 76 | R77: 314 | S77: 268 | T77: 212 | U77: 28 | V77: 55 | W77: 44 | X77: 36 | Y77: 1 | AD77: 1273 | AE77: 1228 | AF77: 1014 | AG77: 312 | AH77: 3827
A78: 6 | B78: 20 | C78: 62 | D78: 50 | E78: 7 | F78: 95 | G78: 142 | H78: 114 | I78: 25 | J78: 568 | K78: 562 | L78: 534 | M78: 195 | N78: 463 | O78: 323 | P78: 291 | Q78: 94 | R78: 345 | S78: 246 | T78: 222 | U78: 45 | V78: 58 | W78: 50 | X78: 50 | AD78: 1549 | AE78: 1385 | AF78: 1261 | AG78: 366 | AH78: 4561
A79: 7 | B79: 40 | C79: 68 | D79: 51 | E79: 13 | F79: 110 | G79: 227 | H79: 158 | I79: 41 | J79: 810 | K79: 726 | L79: 659 | M79: 229 | N79: 475 | O79: 337 | P79: 302 | Q79: 124 | R79: 331 | S79: 263 | T79: 270 | U79: 55 | V79: 58 | W79: 48 | X79: 42 | Y79: 4 | AD79: 1824 | AE79: 1669 | AF79: 1482 | AG79: 466 | AH79: 5441
A80: 8 | B80: 52 | C80: 80 | D80: 65 | E80: 13 | F80: 181 | G80: 290 | H80: 234 | I80: 67 | J80: 1118 | K80: 1010 | L80: 955 | M80: 343 | N80: 576 | O80: 400 | P80: 386 | Q80: 138 | R80: 362 | S80: 298 | T80: 278 | U80: 58 | V80: 62 | W80: 41 | X80: 53 | Y80: 4 | AD80: =B80+F80+J80+N80+R80+V80+Z80 -> 2351 | AE80: =C80+G80+K80+O80+S80+W80+AA80 -> 2119 | AF80: =D80+H80+L80+P80+T80+X80+AB80 -> 1971 | AG80: =E80+I80+M80+Q80+U80+Y80+AC80 -> 623 | AH80: =SUM(AD80:AG80) -> 7064
A81: 9 | B81: 89 | C81: 145 | D81: 108 | E81: 23 | F81: 280 | G81: 492 | H81: 423 | I81: 96 | J81: 1617 | K81: 1385 | L81: 1368 | M81: 525 | N81: 621 | O81: 465 | P81: 464 | Q81: 145 | R81: 383 | S81: 321 | T81: 286 | U81: 55 | V81: 60 | W81: 51 | X81: 63 | Y81: 1 | AD81: 3050 | AE81: 2859 | AF81: 2712 | AG81: 845 | AH81: 9466
A82: 10 | B82: 160 | C82: 275 | D82: 255 | E82: 45 | F82: 790 | G82: 1099 | H82: 930 | I82: 314 | J82: 2758 | K82: 2342 | L82: 2269 | M82: 804 | N82: 771 | O82: 566 | P82: 537 | Q82: 208 | R82: 423 | S82: 364 | T82: 326 | U82: 67 | V82: 67 | W82: 49 | X82: 66 | Y82: 4 | AD82: 4969 | AE82: 4695 | AF82: 4383 | AG82: 1442 | AH82: 15489
A83: 11 | B83: 1424 | C83: 2116 | D83: 1747 | E83: 606 | F83: 6066 | G83: 7387 | H83: 6583 | I83: 2202 | J83: 6198 | K83: 5470 | L83: 5633 | M83: 2016 | N83: 1782 | O83: 1416 | P83: 1428 | Q83: 478 | R83: 768 | S83: 598 | T83: 631 | U83: 139 | V83: 116 | W83: 82 | X83: 122 | Y83: 14 | AD83: 16354 | AE83: 17069 | AF83: 16144 | AG83: 5455 | AH83: 55022
A84: =A83+1 -> 12
A85: =A84+1 -> 13
A86: 14
A87: 15
A88: 16
A89: 17
A90: 18
A91: 19
A92: Totals | B92: =SUM(B73:B83) -> 1886 | C92: =SUM(C73:C83) -> 3040 | D92: 2478 | E92: 771 | F92: 7854 | G92: 10312 | H92: 8890 | I92: 2912 | J92: 15516 | K92: 14242 | L92: 13570 | M92: 4926 | N92: 6875 | O92: 5417 | P92: 4945 | Q92: 1623 | R92: 4893 | S92: 4114 | T92: 3584 | U92: 688 | V92: 802 | W92: 618 | X92: 688 | Y92: 48 | Z92: 75 | AA92: 51 | AB92: 73 | AC92: 0 | AD92: =SUM(AD73:AD83) -> 37901 | AE92: 37794 | AF92: 34228 | AG92: 10968
A96: Percentages Race Stats
B97: Bronze | F97: Silver | J97: Gold | N97: Platinum | R97: Diamond | V97: Master | Z97: Grandmaster | AD97: Totals
A98: Weeks Remaining | B98: Z | C98: T | D98: P | E98: R | F98: Z | G98: T | H98: P | I98: R | J98: Z | K98: T | L98: P | M98: R | N98: Z | O98: T | P98: P | Q98: R | R98: Z | S98: T | T98: P | U98: R | V98: Z | W98: T | X98: P | Y98: R | Z98: Z | AA98: T | AB98: P | AC98: R | AD98: Z | AE98: T | AF98: P | AG98: R
A99: 1 | B99: =B73/$B25 -> 0.1066176471 | C99: 0.4779411765 | D99: 0.2941176471 | E99: 0.1213235294 | F99: =F73/$C25 -> 0.1865079365 | G99: 0.4186507937 | H99: 0.2996031746 | I99: 0.09523809524 | J99: =J73/$D25 -> 0.2857611549 | K99: 0.3645013123 | L99: 0.248687664 | M99: 0.1010498688 | N99: =N73/$E25 -> 0.3576907549 | O99: 0.3278159063 | P99: 0.2498990715 | Q99: 0.06459426726 | R99: =R73/$F25 -> 0.3585106383 | S99: 0.3446808511 | T99: 0.2535460993 | U99: 0.04326241135 | V99: =V73/$G25 -> 0.3771186441 | W99: 0.2690677966 | X99: 0.3389830508 | Y99: 0.01483050847 | Z99: =Z73/$H25 -> 0.3768844221 | AA99: 0.256281407 | AB99: =AB73/$H25 -> 0.3668341709 | AC99: =AC73/$H25 -> 0 | AD99: =AD73/$I25 -> 0.3210784314 | AE99: 0.3486519608 | AF99: 0.2610294118 | AG99: 0.06924019608
A100: 2 | B100: 0.1318681319 | C100: 0.4175824176 | D100: 0.3956043956 | E100: 0.05494505495 | F100: 0.1875 | G100: 0.4107142857 | H100: 0.28125 | I100: 0.1205357143 | J100: 0.2783143108 | K100: 0.349429324 | L100: 0.2827041264 | M100: 0.08955223881 | N100: 0.3634311512 | O100: 0.3137697517 | P100: 0.2516930023 | Q100: 0.07110609481 | R100: 0.3758099352 | S100: 0.3218142549 | T100: 0.2440604752 | U100: 0.05831533477 | V100: 0.3829787234 | W100: 0.3475177305 | X100: 0.2411347518 | Y100: 0.02836879433 | AB100: =AH74/$H26 ->  | AD100: 0.3213971236 | AE100: 0.3384208982 | AF100: 0.2653360728 | AG100: 0.07484590549
A101: 3 | B101: 0.1780821918 | C101: 0.4246575342 | D101: 0.301369863 | E101: 0.09589041096 | F101: 0.243902439 | G101: 0.3861788618 | H101: 0.2682926829 | I101: 0.1016260163 | J101: 0.3116438356 | K101: 0.3219178082 | L101: 0.2636986301 | M101: 0.102739726 | N101: 0.3693181818 | O101: 0.3227272727 | P101: 0.2306818182 | Q101: 0.07727272727 | R101: 0.4089219331 | S101: 0.3048327138 | T101: 0.2552664188 | U101: 0.03097893432 | V101: 0.4552845528 | W101: 0.3414634146 | X101: 0.1951219512 | Y101: 0.008130081301 | AD101: 0.3481953291 | AE101: 0.3257506824 | AF101: 0.2514407037 | AG101: 0.0746132848
A102: 4 | B102: 0.2452830189 | C102: 0.3679245283 | D102: 0.3018867925 | E102: 0.08490566038 | F102: 0.1891891892 | G102: 0.4662162162 | H102: 0.2702702703 | I102: 0.07432432432 | J102: 0.3086142322 | K102: 0.3041198502 | L102: 0.2883895131 | M102: 0.09887640449 | N102: 0.3715239155 | O102: 0.3014460512 | P102: 0.2502780868 | Q102: 0.07675194661 | R102: 0.361038961 | S102: 0.3116883117 | T102: 0.2753246753 | U102: 0.05194805195 | V102: 0.3193277311 | W102: 0.2941176471 | X102: 0.3193277311 | Y102: 0.06722689076 | AD102: 0.3245390071 | AE102: 0.3202836879 | AF102: 0.2757446809 | AG102: 0.07943262411
A103: 5 | B103: 0.1764705882 | C103: 0.4705882353 | D103: 0.268907563 | E103: 0.08403361345 | F103: 0.2272727273 | G103: 0.3948863636 | H103: 0.25 | I103: 0.1278409091 | J103: 0.3285714286 | K103: 0.3102040816 | L103: 0.2578231293 | M103: 0.1034013605 | N103: 0.3448275862 | O103: 0.2855603448 | P103: 0.2877155172 | Q103: 0.08189655172 | R103: 0.3819951338 | S103: 0.3260340633 | T103: 0.2579075426 | U103: 0.03406326034 | V103: 0.4044117647 | W103: 0.3235294118 | X103: 0.2647058824 | Y103: 0.007352941176 | AD103: 0.3326365299 | AE103: 0.3208779723 | AF103: 0.2649594983 | AG103: 0.08152599948
A104: 6 | B104: 0.1438848921 | C104: 0.4460431655 | D104: 0.3597122302 | E104: 0.05035971223 | F104: 0.2526595745 | G104: 0.3776595745 | H104: 0.3031914894 | I104: 0.0664893617 | J104: 0.3055406132 | K104: 0.3023130715 | L104: 0.2872512103 | M104: 0.1048951049 | N104: 0.3953885568 | O104: 0.2758326217 | P104: 0.2485055508 | Q104: 0.08027327071 | R104: 0.4020979021 | S104: 0.2867132867 | T104: 0.2587412587 | U104: 0.05244755245 | V104: 0.3670886076 | W104: 0.3164556962 | X104: 0.3164556962 | Y104: 0 | AD104: 0.3396185047 | AE104: 0.3036614777 | AF104: 0.2764744574 | AG104: 0.08024556018
A105: 7 | B105: 0.2325581395 | C105: 0.3953488372 | D105: 0.2965116279 | E105: 0.07558139535 | F105: 0.2052238806 | G105: 0.4235074627 | H105: 0.2947761194 | I105: 0.07649253731 | J105: 0.3341584158 | K105: 0.2995049505 | L105: 0.2718646865 | M105: 0.09447194719 | N105: 0.3836833603 | O105: 0.2722132472 | P105: 0.2439418417 | Q105: 0.1001615509 | R105: 0.3601741023 | S105: 0.2861806311 | T105: 0.2937976061 | U105: 0.0598476605 | V105: 0.3815789474 | W105: 0.3157894737 | X105: 0.2763157895 | Y105: 0.02631578947 | AD105: 0.335232494 | AE105: 0.3067450836 | AF105: 0.2723764014 | AG105: 0.08564602095
A106: 8 | B106: 0.2476190476 | C106: 0.380952381 | D106: 0.3095238095 | E106: 0.0619047619 | F106: 0.2344559585 | G106: 0.3756476684 | H106: 0.3031088083 | I106: 0.08678756477 | J106: 0.3263280794 | K106: 0.2948044367 | L106: 0.2787507297 | M106: 0.1001167542 | N106: 0.384 | O106: 0.2666666667 | P106: 0.2573333333 | Q106: 0.092 | R106: 0.3634538153 | S106: 0.2991967871 | T106: 0.2791164659 | U106: 0.05823293173 | V106: 0.3875 | W106: 0.25625 | X106: 0.33125 | Y106: 0.025 | AD106: 0.3328142695 | AE106: 0.2999716874 | AF106: 0.2790203851 | AG106: 0.08819365798
A107: 9 | B107: 0.2438356164 | C107: 0.397260274 | D107: 0.295890411 | E107: 0.06301369863 | F107: 0.2168861348 | G107: 0.3810999225 | H107: 0.3276529822 | I107: 0.0743609605 | J107: 0.3303370787 | K107: 0.2829417773 | L107: 0.2794688458 | M107: 0.1072522983 | N107: 0.3663716814 | O107: 0.2743362832 | P107: 0.2737463127 | Q107: 0.08554572271 | R107: 0.366507177 | S107: 0.3071770335 | T107: 0.2736842105 | U107: 0.05263157895 | V107: 0.3428571429 | W107: 0.2914285714 | X107: 0.36 | Y107: 0.005714285714 | AD107: 0.3222057891 | AE107: 0.3020283119 | AF107: 0.2864990492 | AG107: 0.08926684978
A108: 10 | B108: 0.2176870748 | C108: 0.3741496599 | D108: 0.3469387755 | E108: 0.0612244898 | F108: 0.2521544845 | G108: 0.3507819981 | H108: 0.2968400894 | I108: 0.100223428 | J108: 0.3374525878 | K108: 0.2865532852 | L108: 0.2776214364 | M108: 0.09837269057 | N108: 0.3703170029 | O108: 0.2718539866 | P108: 0.257925072 | Q108: 0.09990393852 | R108: 0.3584745763 | S108: 0.3084745763 | T108: 0.2762711864 | U108: 0.05677966102 | V108: 0.3602150538 | W108: 0.2634408602 | X108: 0.3548387097 | Y108: 0.02150537634 | AD108: 0.3208083156 | AE108: 0.303118342 | AF108: 0.2829750145 | AG108: 0.09309832785
A109: 11 | B109: 0.2416426268 | C109: 0.3590700831 | D109: 0.2964534193 | E109: 0.1028338707 | F109: 0.2727763288 | G109: 0.3321791528 | H109: 0.2960248224 | I109: 0.09901969602 | J109: 0.320857276 | K109: 0.2831702645 | L109: 0.2916084278 | M109: 0.1043640317 | N109: 0.349137931 | O109: 0.2774294671 | P109: 0.2797805643 | Q109: 0.09365203762 | R109: 0.3595505618 | S109: 0.2799625468 | T109: 0.295411985 | U109: 0.06507490637 | V109: 0.3473053892 | W109: 0.245508982 | X109: 0.3652694611 | Y109: 0.04191616766 | AD109: 0.2972265639 | AE109: 0.310221366 | AF109: 0.2934099088 | AG109: 0.09914216132
A110: =A109+1 -> 12
A111: =A110+1 -> 13
A112: 14
A113: 15
A114: 16
A115: 17
A116: 18
A117: 19
A122: Most Recent Games
B123: Bronze | D123: Silver | F123: Gold | H123: Platinum | J123: Diamond | L123: Master | N123: Grandmaster | P123: Totals
A124: Weeks Remaining | B124: Last Week | C124: Last Month | D124: Last Week | E124: Last Month | F124: Last Week | G124: Last Month | H124: Last Week | I124: Last Month | J124: Last Week | K124: Last Month | L124: Last Week | M124: Last Month | N124: Last Week | O124: Last Month | P124: Last Week | Q124: Last Month
A125: 1 | B125: 271 | C125: 1 | D125: 503 | E125: 1 | F125: 3039 | G125: 9 | H125: 2476 | I125: 1 | J125: 2820 | L125: 472 | N125: 199 | P125: =B125+D125+F125+H125+J125+L125+N125 -> 9780 | Q125: =C125+E125+G125+I125+K125+M125+O125 -> 12
A126: 2 | B126: 77 | C126: 14 | D126: 184 | E126: 40 | F126: 874 | G126: 265 | H126: 638 | I126: 248 | J126: 624 | K126: 302 | L126: 119 | M126: 22 | P126: =B126+D126+F126+H126+J126+L126+N126 -> 2516 | Q126: 891
A127: 3 | B127: 50 | C127: 23 | D127: 165 | E127: 81 | F127: 735 | G127: 433 | H127: 490 | I127: 390 | J127: 422 | K127: 385 | L127: 96 | M127: 27 | P127: 1958 | Q127: 1339
A128: 4 | B128: 50 | C128: 56 | D128: 177 | E128: 119 | F128: 764 | G128: 571 | H128: 446 | I128: 453 | J128: 350 | K128: 420 | L128: 77 | M128: 42 | P128: 1864 | Q128: 1661
A129: 5 | B129: 61 | C129: 54 | D129: 201 | E129: 138 | F129: 777 | G129: 636 | H129: 449 | I129: 420 | J129: 337 | K129: 409 | L129: 87 | M129: 48 | P129: 1912 | Q129: 1705
A130: 6 | B130: 71 | C130: 41 | D130: 197 | E130: 128 | F130: 925 | G130: 647 | H130: 474 | I130: 449 | J130: 333 | K130: 312 | L130: 79 | M130: 60 | P130: 2079 | Q130: 1637
A131: 7 | B131: 72 | C131: 57 | D131: 244 | E131: 173 | F131: 1093 | G131: 835 | H131: 476 | I131: 435 | J131: 313 | K131: 314 | L131: 73 | M131: 63 | P131: 2271 | Q131: 1877
A132: 8 | B132: 77 | C132: 71 | D132: 325 | E132: 242 | F132: 1382 | G132: 1232 | H132: 533 | I132: 489 | J132: 277 | K132: 334 | L132: 63 | M132: 57 | P132: 2657 | Q132: 2425
A133: 9 | B133: 108 | C133: 112 | D133: 465 | E133: 451 | F133: 1692 | G133: 1789 | H133: 486 | I133: 557 | J133: 253 | K133: 339 | L133: 71 | M133: 43 | P133: 3075 | Q133: 3291
A134: 10 | B134: 213 | C134: 219 | D134: 861 | E134: 1106 | F134: 2212 | G134: 2933 | H134: 443 | I134: 663 | J134: 249 | K134: 324 | L134: 55 | M134: 61 | P134: 4033 | Q134: 5306
A135: 11 | B135: 852 | C135: 1687 | D135: 3356 | E135: 6836 | F135: 2984 | G135: 6094 | H135: 717 | I135: 1509 | J135: 307 | K135: 519 | L135: 53 | M135: 88 | P135: 8269 | Q135: 16733
A136: 12
A137: 13
A138: 14
A139: 15
A140: 16
A141: 17
A142: 18
A143: 19
A144: Totals | B144: =SUM(B125:B135) -> 1902 | C144: =SUM(C125:C135) -> 2335 | D144: 6678 | E144: 9315 | F144: 16477 | G144: 15444 | H144: 7628 | I144: 5614 | J144: 6285 | K144: 3658 | L144: 1245 | M144: 511 | N144: 199 | O144: 0 | P144: 40414 | Q144: 36877
A145: At least 1 game in the last month | B145: =SUM(B144:C144) -> 4237 | D145: =SUM(D144:E144) -> 15993 | F145: =SUM(F144:G144) -> 31921 | H145: =SUM(H144:I144) -> 13242 | J145: =SUM(J144:K144) -> 9943 | L145: =SUM(L144:M144) -> 1756 | N145: =SUM(N144:O144) -> 199 | P145: =SUM(P144:Q144) -> 77291
A149: Percentages - Most Recent Games
B150: Bronze | D150: Silver | F150: Gold | H150: Platinum | J150: Diamond | L150: Master | N150: Grandmaster | P150: Totals
A151: Weeks Remaining | B151: Last Week | C151: Last Month | D151: Last Week | E151: Last Month | F151: Last Week | G151: Last Month | H151: Last Week | I151: Last Month | J151: Last Week | K151: Last Month | L151: Last Week | M151: Last Month | N151: Last Week | O151: Last Month | P151: Last Week | Q151: Last Month
A152: 1 | B152: =B125/$I25 -> 0.02767565359 | C152: 0.000102124183 | D152: 0.05136846405 | E152: 0.000102124183 | F152: 0.3103553922 | G152: 0.0009191176471 | H152: 0.2528594771 | I152: 0.000102124183 | J152: 0.2879901961 | K152: 0 | L152: 0.04820261438 | M152: 0 | N152: 0.02032271242 | O152: 0 | P152: 0.9987745098 | Q152: 0.001225490196
A153: 2 | B153: =B126/$I26 -> 0.02260052832 | C153: 0.004109186968 | D153: 0.05400645729 | E153: 0.01174053419 | F153: 0.2565306721 | G153: 0.07778103904 | H153: 0.1872615204 | I153: 0.072791312 | J153: 0.1831523334 | K153: 0.08864103317 | L153: 0.03492808923 | M153: 0.006457293807 | N153: 0 | O153: 0 | P153: 0.7384796008 | Q153: 0.2615203992
A154: 3 | B154: =B127/$I27 -> 0.01516530179 | C154: 0.006976038823 | D154: 0.05004549591 | E154: 0.0245677889 | F154: 0.2229299363 | G154: 0.1313315135 | H154: 0.1486199575 | I154: 0.118289354 | J154: 0.1279951471 | K154: 0.1167728238 | L154: 0.02911737944 | M154: 0.008189262966 | N154: 0 | O154: 0 | P154: 0.5938732181 | Q154: 0.4061267819
A155: 4 | B155: =B128/$I28 -> 0.01418439716 | C155: 0.01588652482 | D155: 0.05021276596 | E155: 0.03375886525 | F155: 0.2167375887 | G155: 0.1619858156 | H155: 0.1265248227 | I155: 0.1285106383 | J155: 0.09929078014 | K155: 0.1191489362 | L155: 0.02184397163 | M155: 0.01191489362 | N155: 0 | O155: 0 | P155: 0.5287943262 | Q155: 0.4712056738
A156: 5 | B156: =B129/$I29 -> 0.0159393781 | C156: 0.01411026914 | D156: 0.05252155736 | E156: 0.03605957669 | F156: 0.2030310949 | G156: 0.1661876143 | H156: 0.1173242749 | I156: 0.1097465378 | J156: 0.08805853149 | K156: 0.1068722237 | L156: 0.02273321139 | M156: 0.01254246146 | N156: 0 | O156: 0 | P156: 0.4996080481 | Q156: 0.445518683
A157: 6 | B157: =B130/$I30 -> 0.01556676168 | C157: 0.008989256742 | D157: 0.04319228239 | E157: 0.02806402105 | F157: 0.2028064021 | G157: 0.1418548564 | H157: 0.1039245779 | I157: 0.09844332383 | J157: 0.07301030476 | K157: 0.0684060513 | L157: 0.01732076299 | M157: 0.01315500987 | N157: 0 | O157: 0 | P157: 0.4558210919 | Q157: 0.3589125192
A158: 7 | B158: =B131/$I31 -> 0.01323286161 | C158: 0.01047601544 | D158: 0.04484469767 | E158: 0.0317956258 | F158: 0.2008821908 | G158: 0.1534644367 | H158: 0.0874839184 | I158: 0.07994853887 | J158: 0.05752619004 | K158: 0.05770997978 | L158: 0.01341665135 | M158: 0.01157875391 | N158: 0 | O158: 0 | P158: 0.4173865098 | Q158: 0.3449733505
A159: 8 | B159: =B132/$I32 -> 0.01090033975 | C159: 0.01005096263 | D159: 0.04600792752 | E159: 0.03425821065 | F159: 0.1956398641 | G159: 0.174405436 | H159: 0.07545300113 | I159: 0.06922423556 | J159: 0.03921291053 | K159: 0.0472819932 | L159: 0.008918459796 | M159: 0.008069082673 | N159: 0 | O159: 0 | P159: 0.3761325028 | Q159: 0.3432899207
A160: 9 | B160: =B133/$I33 -> 0.01140925417 | C160: 0.01183181914 | D160: 0.04912317769 | E160: 0.0476442003 | F160: 0.178744982 | G160: 0.1889921825 | H160: 0.05134164378 | I160: 0.05884217198 | J160: 0.02672723431 | K160: 0.03581238115 | L160: 0.007500528206 | M160: 0.004542573421 | N160: 0 | O160: 0 | P160: 0.3248468202 | Q160: 0.3476653285
A161: 10 | B161: =B134/$I34 -> 0.01375169475 | C161: 0.01413906643 | D161: 0.05558783653 | E161: 0.07140551359 | F161: 0.1428110272 | G161: 0.1893601911 | H161: 0.0286009426 | I161: 0.04280457099 | J161: 0.01607592485 | K161: 0.02091807089 | L161: 0.003550907095 | M161: 0.003938278778 | N161: 0 | O161: 0 | P161: 0.260378333 | Q161: 0.3425656918
A162: 11 | B162: =B135/$I35 -> 0.0154847152 | C162: 0.03066046309 | D162: 0.0609937843 | E162: 0.1242412126 | F162: 0.05423285231 | G162: 0.1107556977 | H162: 0.01303115118 | I162: 0.02742539348 | J162: 0.005579586347 | K162: 0.0094325906 | L162: 0.0009632510632 | M162: 0.001599360256 | N162: 0 | O162: 0 | P162: 0.1502853404 | Q162: 0.3041147177
A163: 12
A164: 13
A165: 14
A166: 15
A167: 16
A168: 17
A169: 18
A170: 19
A171: Totals | B171: =B144/$I44 -> 0.01573318113 | C171: 0.01931492005 | D171: 0.05523984416 | E171: 0.07705288235 | F171: 0.1362963331 | G171: 0.1277514455 | H171: 0.06309816281 | I171: 0.04643852727 | J171: 0.05198898181 | K171: 0.03025866276 | L171: 0.01029853339 | M171: 0.004226948243 | N171: 0.001646110959 | O171: 0 | P171: 0.3343011473 | Q171: 0.3050433862
A172: Percentage in the Last Month | B172: =SUM(B171:C171) -> 0.03504810118 | D172: =SUM(D171:E171) -> 0.1322927265 | F172: =SUM(F171:G171) -> 0.2640477786 | H172: =SUM(H171:I171) -> 0.1095366901 | J172: =SUM(J171:K171) -> 0.08224764457 | L172: =SUM(L171:M171) -> 0.01452548163 | N172: =SUM(N171:O171) -> 0.001646110959 | P172: =SUM(P171:Q171) -> 0.6393445335
A173: Percentage out of the specific league, in the last week | B173: =B144/B44 -> 0.2326605505 | D173: =D144/C44 -> 0.2228376935 | F173: =F144/D44 -> 0.3414639201 | H173: =H144/E44 -> 0.4044538706 | J173: =I144/F44 -> 0.4227727992 | L173: =L144/G44 -> 0.577458256 | N173: =N144/H44 -> 1
A174: Percentage out of the specific league, in the last month | B174: =B145/B44 -> 0.5182874618 | D174: =D145/C44 -> 0.5336692472 | F174: =F145/D44 -> 0.6615202885 | H174: =H145/E44 -> 0.7021208908 | J174: =J145/F44 -> 0.7487762633 | L174: =L145/G44 -> 0.814471243 | N174: =N145/H44 -> 1
A176: Inactive Player Analysis (Max bonus pool weeks remaining that have not played a game in the last month) | B176: Bronze | C176: Silver | D176: Gold | E176: Platinum | F176: Diamond | G176: Master | H176: Totals
A177: Total Players | B177: =AVERAGEIFS('1v1'!$S$2:$S$120892,'1v1'!$F$2:$F$120892,'Analysis - 1v1'!B176,'1v1'!$Q$2:$Q$120892,MAX('1v1'!$Q$2:$Q$120892)) -> 4.740709316 | C177: =AVERAGEIFS('1v1'!$S$2:$S$120892,'1v1'!$F$2:$F$120892,'Analysis - 1v1'!C176,'1v1'!$Q$2:$Q$120892,MAX('1v1'!$Q$2:$Q$120892)) -> 4.272596457 | D177: =AVERAGEIFS('1v1'!$S$2:$S$120892,'1v1'!$F$2:$F$120892,'Analysis - 1v1'!D176,'1v1'!$Q$2:$Q$120892,MAX('1v1'!$Q$2:$Q$120892)) -> 5.164777139 | E177: =AVERAGEIFS('1v1'!$S$2:$S$120892,'1v1'!$F$2:$F$120892,'Analysis - 1v1'!E176,'1v1'!$Q$2:$Q$120892,MAX('1v1'!$Q$2:$Q$120892)) -> 5.355407524 | F177: =AVERAGEIFS('1v1'!$S$2:$S$120892,'1v1'!$F$2:$F$120892,'Analysis - 1v1'!F176,'1v1'!$Q$2:$Q$120892,MAX('1v1'!$Q$2:$Q$120892)) -> 4.396535581 | G177: =AVERAGEIFS('1v1'!$S$2:$S$120892,'1v1'!$F$2:$F$120892,'Analysis - 1v1'!G176,'1v1'!$Q$2:$Q$120892,MAX('1v1'!$Q$2:$Q$120892)) -> 7.577844311 | H177: =AVERAGEIFS('1v1'!S2:S120892,'1v1'!Q2:Q120892,MAX('1v1'!Q2:Q120892)) -> 4.761277307

Sheet 1v1
A1: PlayerID, ServerID, SubServerID, PlayerName, Race, League, DivisionName, Wins, Losses, Score, BonusPool, JoinDate, LastGame, LastUpdate, TrueID (A+C), Duplicate Check (sort by TrueID - if O curr row = O prev row then mark as 1 and then sort by Duplicate Check and delete all 1's), Bonus Pool Weeks Remaining, Ordered ID (used to preserve ordering from nios.kr) | B1: ServerID | C1: SubServerID | D1: PlayerName | E1: Race | F1: League | G1: DivisionName | H1: Wins | I1: Losses | J1: Score | K1: BonusPool | L1: JoinDate | M1: LastGame | N1: LastUpdate | O1: TrueID (A+C) | P1: Duplicate Check (sort by TrueID - if O curr row = O prev row then mark as 1 and then sort by Duplicate Check and delete all 1's) | Q1: Bonus Pool Weeks Remaining | R1: Ordered ID (used to preserve ordering from nios.kr) | S1: Total Games Played
A2: 1775929 | B2: eu | C2: 1 | D2: EKSIL | E2: t | F2: Bronze | G2: Division Braxis Epsilon | H2: 297 | I2: 325 | J2: 1173 | K2: 1130 | L2: 2014-07-20 | M2: 5 minutes | N2: 2014-09-19T13:19:20 | O2: 1775929-1 | P2: 0 | Q2: 11 | R2: 2 | S2: 622
A3: 1519203 | B3: eu | C3: 1 | D3: Raugh | E3: r | F3: Bronze | G3: Division Araq November | H3: 391 | I3: 477 | J3: 1158 | K3: 1130 | L3: 2014-09-07 | M3: 6 minutes | N3: 2014-09-19T13:24:35 | O3: 1519203-1 | P3: 0 | Q3: 11 | R3: 3 | S3: 868
A4: 3718627 | B4: eu | C4: 1 | D4: Pudding | E4: t | F4: Bronze | G4: Division Zekrath Xi | H4: 35 | I4: 63 | J4: 920 | K4: 1115 | L4: 2014-09-07 | M4: 9 days | N4: 2014-09-19T14:15:10 | O4: 3718627-1 | P4: 0 | Q4: 11 | R4: 4 | S4: 98
A5: 957107 | B5: eu | C5: 2 | D5: Leo | E5: t | F5: Bronze | G5: Division Kaloth Victor | H5: 22 | I5: 42 | J5: 685 | K5: 1036 | L5: 2014-08-23 | M5: 1 days | N5: 2014-09-19T15:10:03 | O5: 957107-2 | P5: 0 | Q5: 10 | R5: 5 | S5: 64
A6: 3985197 | B6: eu | C6: 1 | D6: zentrY | E6: z | F6: Bronze | G6: Division Hive Hawk | H6: 23 | I6: 27 | J6: 584 | K6: 1077 | L6: 2014-08-29 | M6: 4 days | N6: 2014-09-19T15:45:18 | O6: 3985197-1 | P6: 0 | Q6: 11 | R6: 6 | S6: 50
A7: 4125103 | B7: eu | C7: 1 | D7: JGVQKiller | E7: z | F7: Bronze | G7: Division Araq November | H7: 18 | I7: 34 | J7: 556 | K7: 1090 | L7: 2014-08-10 | M7: 11 hours | N7: 2014-09-19T15:54:40 | O7: 4125103-1 | P7: 0 | Q7: 11 | R7: 7 | S7: 52
A8: 412621 | B8: eu | C8: 1 | D8: Modamar | E8: p | F8: Bronze | G8: Division Braxis Theta | H8: 16 | I8: 9 | J8: 414 | K8: 683 | L8: 2014-07-20 | M8: 12 hours | N8: 2014-09-19T16:56:05 | O8: 412621-1 | P8: 0 | Q8: 7 | R8: 8 | S8: 25
A9: 4644567 | B9: eu | C9: 1 | D9: RapazZ | E9: z | F9: Bronze | G9: Division Araq November | H9: 6 | I9: 5 | J9: 187 | K9: 1134 | L9: 2014-09-05 | M9: 13 days | N9: 2014-09-19T20:03:35 | O9: 4644567-1 | P9: 0 | Q9: 11 | R9: 9 | S9: 11
A10: 1488784 | B10: eu | C10: 1 | D10: gXcGhostshow | E10: t | F10: Bronze | G10: Division Araq November | H10: 4 | I10: 10 | J10: 72 | K10: 1136 | L10: 2014-09-05 | M10: 12 days | N10: 2014-09-19T22:48:55 | O10: 1488784-1 | P10: 0 | Q10: 11 | R10: 10 | S10: 14
A11: 168634 | B11: eu | C11: 1 | D11: Jeffree | E11: z | F11: Bronze | G11: Division Araq November | H11: 0 | I11: 6 | J11: 0 | K11: 1121 | L11: 2014-09-14 | M11: 4 days | N11: 2014-09-20T00:12:59 | O11: 168634-1 | P11: 0 | Q11: 11 | R11: 11 | S11: 6
A12: 1238719 | B12: eu | C12: 1 | D12: MrBanana | E12: t | F12: Bronze | G12: Division Araq November | H12: 2 | I12: 13 | J12: 0 | K12: 1137 | L12: 2014-08-18 | M12: 5 days | N12: 2014-09-20T00:52:21 | O12: 1238719-1 | P12: 0 | Q12: 11 | R12: 12 | S12: 15
A13: 4419336 | B13: eu | C13: 1 | D13: zergmaks | E13: p | F13: Bronze | G13: Division Queen Theta | H13: 0 | I13: 1 | J13: 0 | K13: 1121 | L13: 2014-09-17 | M13: 1 days | N13: 2014-09-20T01:51:07 | O13: 4419336-1 | P13: 0 | Q13: 11 | R13: 13 | S13: 1
A14: 5082727 | B14: eu | C14: 1 | D14: TWErSight | E14: t | F14: Bronze | G14: Division Tosh Juliet | H14: 0 | I14: 1 | J14: 0 | K14: 1095 | L14: 2014-08-19 | M14: 30 days | N14: 2014-09-20T02:01:23 | O14: 5082727-1 | P14: 0 | Q14: 11 | R14: 14 | S14: 1
A15: 5125848 | B15: eu | C15: 1 | D15: Tassadar | E15: p | F15: Bronze | G15: Division Araq November | H15: 1 | I15: 5 | J15: 0 | K15: 1040 | L15: 2014-08-16 | M15: 15 hours | N15: 2014-09-20T02:03:38 | O15: 5125848-1 | P15: 0 | Q15: 10 | R15: 15 | S15: 6
A16: 5192554 | B16: eu | C16: 1 | D16: Tokimoto | E16: t | F16: Bronze | G16: Division Colossus Foxtrot | H16: 1 | I16: 14 | J16: 0 | K16: 394 | L16: 2014-09-17 | M16: 8 hours | N16: 2014-09-20T02:06:42 | O16: 5192554-1 | P16: 0 | Q16: 4 | R16: 16 | S16: 15
A17: 4380746 | B17: eu | C17: 1 | D17: Psychozz | E17: z | F17: Bronze | G17: Division Colossus Foxtrot | H17: 20 | I17: 21 | J17: 542 | K17: 55 | L17: 2014-08-31 | M17: 3 days | N17: 2014-09-20T02:40:31 | O17: 4380746-1 | P17: 0 | Q17: 1 | R17: 17 | S17: 41
A18: 4961947 | B18: eu | C18: 1 | D18: IIIIIIIIIIII | E18: z | F18: Bronze | G18: Division Araq November | H18: 6 | I18: 7 | J18: 235 | K18: 1032 | L18: 2014-08-11 | M18: 21 days | N18: 2014-09-20T03:18:13 | O18: 4961947-1 | P18: 0 | Q18: 10 | R18: 18 | S18: 13
A19: 766593 | B19: eu | C19: 2 | D19: Ozerkin | E19: t | F19: Bronze | G19: Division Araq November | H19: 4 | I19: 8 | J19: 88 | K19: 1105 | L19: 2014-09-18 | M19: 38 minutes | N19: 2014-09-20T04:46:51 | O19: 766593-2 | P19: 0 | Q19: 11 | R19: 19 | S19: 12
A20: 4172685 | B20: eu | C20: 1 | D20: Staphares | E20: p | F20: Bronze | G20: Division Araq November | H20: 2 | I20: 6 | J20: 60 | K20: 1140 | L20: 2014-09-14 | M20: 16 hours | N20: 2014-09-20T05:20:34 | O20: 4172685-1 | P20: 0 | Q20: 11 | R20: 20 | S20: 8
A21: 4856987 | B21: eu | C21: 1 | D21: GnawU | E21: z | F21: Bronze | G21: Division Kaloth Victor | H21: 1 | I21: 12 | J21: 30 | K21: 1141 | L21: 2014-07-28 | M21: 16 days | N21: 2014-09-20T06:40:56 | O21: 4856987-1 | P21: 0 | Q21: 11 | R21: 21 | S21: 13
A22: 3218013 | B22: eu | C22: 1 | D22: irishboi | E22: z | F22: Bronze | G22: Division Executor Upsilon | H22: 0 | I22: 6 | J22: 0 | K22: 1142 | L22: 2014-07-13 | M22: 68 days | N22: 2014-09-20T09:04:57 | O22: 3218013-1 | P22: 0 | Q22: 11 | R22: 22 | S22: 6
A23: 4488821 | B23: eu | C23: 1 | D23: Lukasz | E23: p | F23: Bronze | G23: Division Araq November | H23: 0 | I23: 1 | J23: 0 | K23: 1143 | L23: 2014-09-18 | M23: 13 hours | N23: 2014-09-20T09:54:35 | O23: 4488821-1 | P23: 0 | Q23: 11 | R23: 23 | S23: 1
A24: 4526390 | B24: eu | C24: 1 | D24: layronne | E24: z | F24: Bronze | G24: Division Araq November | H24: 2 | I24: 8 | J24: 0 | K24: 1013 | L24: 2014-09-17 | M24: 13 hours | N24: 2014-09-20T09:56:05 | O24: 4526390-1 | P24: 0 | Q24: 10 | R24: 24 | S24: 10
A25: 1038999 | B25: eu | C25: 1 | D25: Vultyr | E25: t | F25: Bronze | G25: Division Tosh Lima | H25: 69 | I25: 70 | J25: 1331 | K25: 6 | L25: 2014-08-05 | M25: 1 days | N25: 2014-09-20T10:16:58 | O25: 1038999-1 | P25: 0 | Q25: 1 | R25: 25 | S25: 139
A26: 5112292 | B26: eu | C26: 1 | D26: youyoupsy | E26: t | F26: Bronze | G26: Division Akilae Chi | H26: 86 | I26: 96 | J26: 1280 | K26: 11 | L26: 2014-08-07 | M26: 8 hours | N26: 2014-09-20T10:17:01 | O26: 5112292-1 | P26: 0 | Q26: 1 | R26: 26 | S26: 182
A27: 4650830 | B27: eu | C27: 1 | D27: Cazzone | E27: p | F27: Bronze | G27: Division Azimar Mu | H27: 166 | I27: 155 | J27: 1277 | K27: 12 | L27: 2014-07-07 | M27: 11 hours | N27: 2014-09-20T10:17:02 | O27: 4650830-1 | P27: 0 | Q27: 1 | R27: 27 | S27: 321
A28: 1808135 | B28: eu | C28: 1 | D28: Fabonar | E28: t | F28: Bronze | G28: Division Aleksander Nu | H28: 61 | I28: 59 | J28: 1271 | K28: 10 | L28: 2014-07-12 | M28: 15 hours | N28: 2014-09-20T10:17:03 | O28: 1808135-1 | P28: 0 | Q28: 1 | R28: 28 | S28: 120
A29: 3007477 | B29: eu | C29: 1 | D29: flosam | E29: t | F29: Bronze | G29: Division Hive Hawk | H29: 100 | I29: 101 | J29: 1268 | K29: 14 | L29: 2014-07-08 | M29: 15 hours | N29: 2014-09-20T10:17:04 | O29: 3007477-1 | P29: 0 | Q29: 1 | R29: 29 | S29: 201
A30: 468941 | B30: eu | C30: 1 | D30: Flashwalker | E30: z | F30: Bronze | G30: Division Tarsonis Eta | H30: 79 | I30: 67 | J30: 1267 | K30: 20 | L30: 2014-07-20 | M30: 1 hours | N30: 2014-09-20T10:17:05 | O30: 468941-1 | P30: 0 | Q30: 1 | R30: 30 | S30: 146
A31: 5163241 | B31: eu | C31: 1 | D31: delarey | E31: t | F31: Bronze | G31: Division Akilae Chi | H31: 107 | I31: 118 | J31: 1266 | K31: 2 | L31: 2014-08-07 | M31: 1 days | N31: 2014-09-20T10:17:06 | O31: 5163241-1 | P31: 0 | Q31: 1 | R31: 31 | S31: 225
A32: 5167268 | B32: eu | C32: 1 | D32: DerWeißeHai | E32: p | F32: Bronze | G32: Division Taarim Sierra | H32: 58 | I32: 68 | J32: 1266 | K32: 30 | L32: 2014-08-17 | M32: 17 hours | N32: 2014-09-20T10:17:06 | O32: 5167268-1 | P32: 0 | Q32: 1 | R32: 32 | S32: 126
A33: 4114511 | B33: eu | C33: 1 | D33: President | E33: t | F33: Bronze | G33: Division Akilae Chi | H33: 102 | I33: 99 | J33: 1265 | K33: 18 | L33: 2014-08-08 | M33: 18 hours | N33: 2014-09-20T10:17:07 | O33: 4114511-1 | P33: 0 | Q33: 1 | R33: 33 | S33: 201
A34: 280431 | B34: eu | C34: 2 | D34: капрал | E34: p | F34: Bronze | G34: Division Hierarch Charlie | H34: 81 | I34: 75 | J34: 1262 | K34: 28 | L34: 2014-07-09 | M34: 14 hours | N34: 2014-09-20T10:17:08 | O34: 280431-2 | P34: 0 | Q34: 1 | R34: 34 | S34: 156
A35: 1830178 | B35: eu | C35: 1 | D35: Gyro | E35: t | F35: Bronze | G35: Division Duke Lambda | H35: 110 | I35: 112 | J35: 1262 | K35: 28 | L35: 2014-07-08 | M35: 14 hours | N35: 2014-09-20T10:17:09 | O35: 1830178-1 | P35: 0 | Q35: 1 | R35: 35 | S35: 222
A36: 4476215 | B36: eu | C36: 1 | D36: David | E36: t | F36: Bronze | G36: Division Hive Hawk | H36: 57 | I36: 53 | J36: 1262 | K36: 11 | L36: 2014-07-07 | M36: 10 hours | N36: 2014-09-20T10:17:10 | O36: 4476215-1 | P36: 0 | Q36: 1 | R36: 36 | S36: 110
A37: 3782614 | B37: eu | C37: 1 | D37: KingIvan | E37: t | F37: Bronze | G37: Division Amerigo Juliet | H37: 90 | I37: 97 | J37: 1260 | K37: 40 | L37: 2014-07-07 | M37: 1 days | N37: 2014-09-20T10:17:11 | O37: 3782614-1 | P37: 0 | Q37: 1 | R37: 37 | S37: 187
A38: 4991751 | B38: eu | C38: 1 | D38: BranStark | E38: p | F38: Bronze | G38: Division Hierarch Chi | H38: 70 | I38: 58 | J38: 1260 | K38: 15 | L38: 2014-07-08 | M38: 13 hours | N38: 2014-09-20T10:17:12 | O38: 4991751-1 | P38: 0 | Q38: 1 | R38: 38 | S38: 128
A39: 1694501 | B39: eu | C39: 1 | D39: Ankylos | E39: t | F39: Bronze | G39: Division Taarim Gamma | H39: 70 | I39: 77 | J39: 1258 | K39: 42 | L39: 2014-07-08 | M39: 1 days | N39: 2014-09-20T10:17:13 | O39: 1694501-1 | P39: 0 | Q39: 1 | R39: 39 | S39: 147
A40: 1805198 | B40: eu | C40: 1 | D40: Ruetzelfümpf | E40: t | F40: Bronze | G40: Division Shakuras Psi | H40: 87 | I40: 89 | J40: 1258 | K40: 2 | L40: 2014-07-07 | M40: 13 hours | N40: 2014-09-20T10:17:13 | O40: 1805198-1 | P40: 0 | Q40: 1 | R40: 40 | S40: 176
A41: 5171128 | B41: eu | C41: 1 | D41: Kevn | E41: t | F41: Bronze | G41: Division Amerigo Lima | H41: 47 | I41: 51 | J41: 1258 | K41: 33 | L41: 2014-08-31 | M41: 10 hours | N41: 2014-09-20T10:17:14 | O41: 5171128-1 | P41: 0 | Q41: 1 | R41: 41 | S41: 98
A42: 1792521 | B42: eu | C42: 1 | D42: HellfishMike | E42: p | F42: Bronze | G42: Division Warbringer Gamma | H42: 52 | I42: 59 | J42: 1256 | K42: 13 | L42: 2014-08-28 | M42: 13 hours | N42: 2014-09-20T10:17:16 | O42: 1792521-1 | P42: 0 | Q42: 1 | R42: 43 | S42: 111
A43: 1125378 | B43: eu | C43: 1 | D43: Ichiru | E43: t | F43: Bronze | G43: Division Raven Zeta | H43: 88 | I43: 84 | J43: 1253 | K43: 2 | L43: 2014-08-04 | M43: 5 hours | N43: 2014-09-20T10:17:17 | O43: 1125378-1 | P43: 0 | Q43: 1 | R43: 44 | S43: 172
A44: 5190714 | B44: eu | C44: 1 | D44: HAWAX | E44: p | F44: Bronze | G44: Division Braxis Epsilon | H44: 64 | I44: 69 | J44: 1251 | K44: 9 | L44: 2014-08-25 | M44: 14 hours | N44: 2014-09-20T10:17:18 | O44: 5190714-1 | P44: 0 | Q44: 1 | R44: 45 | S44: 133
A45: 1054015 | B45: eu | C45: 1 | D45: HoRuS | E45: r | F45: Bronze | G45: Division Hive Hawk | H45: 75 | I45: 77 | J45: 1250 | K45: 11 | L45: 2014-07-07 | M45: 10 hours | N45: 2014-09-20T10:17:19 | O45: 1054015-1 | P45: 0 | Q45: 1 | R45: 46 | S45: 152
A46: 1565632 | B46: eu | C46: 1 | D46: LawLess | E46: t | F46: Bronze | G46: Division Scimitar Alamo | H46: 61 | I46: 73 | J46: 1249 | K46: 19 | L46: 2014-07-30 | M46: 10 minutes | N46: 2014-09-20T10:17:23 | O46: 1565632-1 | P46: 0 | Q46: 1 | R46: 47 | S46: 134
A47: 4476339 | B47: eu | C47: 1 | D47: superyo | E47: p | F47: Bronze | G47: Division Khala Echo | H47: 71 | I47: 82 | J47: 1249 | K47: 4 | L47: 2014-07-08 | M47: 12 hours | N47: 2014-09-20T10:17:23 | O47: 4476339-1 | P47: 0 | Q47: 1 | R47: 48 | S47: 153
A48: 889370 | B48: eu | C48: 1 | D48: Imminent | E48: r | F48: Bronze | G48: Division Warbringer Gamma | H48: 120 | I48: 122 | J48: 1248 | K48: 66 | L48: 2014-08-28 | M48: 2 days | N48: 2014-09-20T10:17:24 | O48: 889370-1 | P48: 0 | Q48: 1 | R48: 49 | S48: 242
A49: 3472856 | B49: eu | C49: 1 | D49: PapinoPL | E49: t | F49: Bronze | G49: Division Taarim Gamma | H49: 110 | I49: 101 | J49: 1246 | K49: 94 | L49: 2014-07-12 | M49: 4 days | N49: 2014-09-20T10:17:25 | O49: 3472856-1 | P49: 0 | Q49: 1 | R49: 50 | S49: 211
A50: 5140849 | B50: eu | C50: 1 | D50: Arrighi | E50: p | F50: Bronze | G50: Division Zergling Beta | H50: 91 | I50: 95 | J50: 1246 | K50: 2 | L50: 2014-08-07 | M50: 12 hours | N50: 2014-09-20T10:17:27 | O50: 5140849-1 | P50: 0 | Q50: 1 | R50: 51 | S50: 186
A51: 5101480 | B51: eu | C51: 1 | D51: airmine | E51: t | F51: Bronze | G51: Division Tosh Lima | H51: 85 | I51: 68 | J51: 1245 | K51: 12 | L51: 2014-08-05 | M51: 1 days | N51: 2014-09-20T10:17:27 | O51: 5101480-1 | P51: 0 | Q51: 1 | R51: 52 | S51: 153
A52: 5141582 | B52: eu | C52: 1 | D52: Greye | E52: z | F52: Bronze | G52: Division Pridewater Dixie | H52: 64 | I52: 49 | J52: 1245 | K52: 42 | L52: 2014-08-06 | M52: 12 hours | N52: 2014-09-20T10:17:28 | O52: 5141582-1 | P52: 0 | Q52: 1 | R52: 53 | S52: 113
A53: 968608 | B53: eu | C53: 1 | D53: BigAl | E53: z | F53: Bronze | G53: Division Taarim Rho | H53: 158 | I53: 169 | J53: 1243 | K53: 19 | L53: 2014-07-14 | M53: 10 hours | N53: 2014-09-20T10:17:29 | O53: 968608-1 | P53: 0 | Q53: 1 | R53: 54 | S53: 327
A54: 4890047 | B54: eu | C54: 1 | D54: carmonetti | E54: t | F54: Bronze | G54: Division Shakuras Psi | H54: 101 | I54: 124 | J54: 1243 | K54: 25 | L54: 2014-07-07 | M54: 9 hours | N54: 2014-09-20T10:17:31 | O54: 4890047-1 | P54: 0 | Q54: 1 | R54: 55 | S54: 225
A55: 5016126 | B55: eu | C55: 1 | D55: Nihil | E55: r | F55: Bronze | G55: Division Medivac Romeo | H55: 66 | I55: 65 | J55: 1243 | K55: 57 | L55: 2014-07-13 | M55: 2 days | N55: 2014-09-20T10:17:31 | O55: 5016126-1 | P55: 0 | Q55: 1 | R55: 56 | S55: 131
A56: 2683676 | B56: eu | C56: 1 | D56: RudiZST | E56: t | F56: Bronze | G56: Division Azimar Mu | H56: 70 | I56: 62 | J56: 1241 | K56: 33 | L56: 2014-07-07 | M56: 1 days | N56: 2014-09-20T10:17:32 | O56: 2683676-1 | P56: 0 | Q56: 1 | R56: 57 | S56: 132
A57: 2913555 | B57: eu | C57: 1 | D57: Hypokrassus | E57: t | F57: Bronze | G57: Division Norad Gravity | H57: 74 | I57: 72 | J57: 1241 | K57: 18 | L57: 2014-07-07 | M57: 1 hours | N57: 2014-09-20T10:17:33 | O57: 2913555-1 | P57: 0 | Q57: 1 | R57: 58 | S57: 146
A58: 3403365 | B58: eu | C58: 1 | D58: darek | E58: p | F58: Bronze | G58: Division Baneling Lambda | H58: 63 | I58: 48 | J58: 1239 | K58: 0 | L58: 2014-09-04 | M58: 1 hours | N58: 2014-09-20T10:17:34 | O58: 3403365-1 | P58: 0 | Q58: 1 | R58: 59 | S58: 111
A59: 3693281 | B59: eu | C59: 1 | D59: CmdtVic | E59: p | F59: Bronze | G59: Division Tarsonis Eta | H59: 185 | I59: 201 | J59: 1239 | K59: 7 | L59: 2014-07-20 | M59: 24 minutes | N59: 2014-09-20T10:17:35 | O59: 3693281-1 | P59: 0 | Q59: 1 | R59: 60 | S59: 386
A60: 4494522 | B60: eu | C60: 1 | D60: PNR | E60: p | F60: Bronze | G60: Division Duke Foxtrot | H60: 110 | I60: 97 | J60: 1239 | K60: 62 | L60: 2014-07-07 | M60: 1 days | N60: 2014-09-20T10:17:36 | O60: 4494522-1 | P60: 0 | Q60: 1 | R60: 61 | S60: 207
A61: 5026752 | B61: eu | C61: 1 | D61: DeadJericho | E61: p | F61: Bronze | G61: Division Norad Gravity | H61: 128 | I61: 129 | J61: 1239 | K61: 16 | L61: 2014-07-07 | M61: 16 hours | N61: 2014-09-20T10:17:37 | O61: 5026752-1 | P61: 0 | Q61: 1 | R61: 62 | S61: 257
A62: 4541532 | B62: eu | C62: 1 | D62: AxelMachete | E62: r | F62: Bronze | G62: Division Azimar Xi | H62: 55 | I62: 57 | J62: 1238 | K62: 51 | L62: 2014-07-11 | M62: 2 days | N62: 2014-09-20T10:17:38 | O62: 4541532-1 | P62: 0 | Q62: 1 | R62: 63 | S62: 112
A63: 4731817 | B63: eu | C63: 1 | D63: AvioD | E63: p | F63: Bronze | G63: Division Zekrath Zed | H63: 64 | I63: 63 | J63: 1237 | K63: 5 | L63: 2014-09-11 | M63: 1 days | N63: 2014-09-20T10:17:39 | O63: 4731817-1 | P63: 0 | Q63: 1 | R63: 64 | S63: 127
A64: 163101 | B64: eu | C64: 2 | D64: Gatey | E64: t | F64: Bronze | G64: Division Khala Zeta | H64: 49 | I64: 52 | J64: 1236 | K64: 4 | L64: 2014-07-24 | M64: 1 hours | N64: 2014-09-20T10:17:40 | O64: 163101-2 | P64: 0 | Q64: 1 | R64: 65 | S64: 101
A65: 3909168 | B65: eu | C65: 1 | D65: Chacal | E65: t | F65: Bronze | G65: Division Hive Bravo | H65: 91 | I65: 83 | J65: 1235 | K65: 46 | L65: 2014-07-07 | M65: 1 days | N65: 2014-09-20T10:17:41 | O65: 3909168-1 | P65: 0 | Q65: 1 | R65: 66 | S65: 174
A66: 1216436 | B66: eu | C66: 1 | D66: BoTleBarz | E66: t | F66: Bronze | G66: Division Shakuras Phi | H66: 60 | I66: 59 | J66: 1234 | K66: 3 | L66: 2014-07-07 | M66: 2 days | N66: 2014-09-20T10:17:42 | O66: 1216436-1 | P66: 0 | Q66: 1 | R66: 67 | S66: 119
A67: 3466659 | B67: eu | C67: 1 | D67: Deadrabbit | E67: z | F67: Bronze | G67: Division Raven Tango | H67: 50 | I67: 37 | J67: 1234 | K67: 61 | L67: 2014-08-15 | M67: 14 hours | N67: 2014-09-20T10:17:42 | O67: 3466659-1 | P67: 0 | Q67: 1 | R67: 68 | S67: 87
A68: 5037918 | B68: eu | C68: 1 | D68: Invejoso | E68: t | F68: Bronze | G68: Division Khala Echo | H68: 56 | I68: 59 | J68: 1232 | K68: 19 | L68: 2014-07-08 | M68: 11 hours | N68: 2014-09-20T10:17:43 | O68: 5037918-1 | P68: 0 | Q68: 1 | R68: 69 | S68: 115
A69: 5151639 | B69: eu | C69: 1 | D69: GGnis | E69: p | F69: Bronze | G69: Division Scimitar Hawk | H69: 59 | I69: 66 | J69: 1232 | K69: 12 | L69: 2014-08-27 | M69: 10 hours | N69: 2014-09-20T10:17:44 | O69: 5151639-1 | P69: 0 | Q69: 1 | R69: 70 | S69: 125
A70: 1533759 | B70: eu | C70: 1 | D70: carstayhome | E70: t | F70: Bronze | G70: Division Zergling Beta | H70: 77 | I70: 79 | J70: 1231 | K70: 2 | L70: 2014-07-07 | M70: 1 days | N70: 2014-09-20T10:17:45 | O70: 1533759-1 | P70: 0 | Q70: 1 | R70: 71 | S70: 156
A71: 5068260 | B71: eu | C71: 1 | D71: starscream | E71: p | F71: Bronze | G71: Division Grizzly Quest | H71: 49 | I71: 65 | J71: 1231 | K71: 39 | L71: 2014-08-23 | M71: 15 hours | N71: 2014-09-20T10:17:46 | O71: 5068260-1 | P71: 0 | Q71: 1 | R71: 72 | S71: 114
A72: 1121611 | B72: eu | C72: 2 | D72: tvorec | E72: z | F72: Bronze | G72: Division Uraj Oscar | H72: 121 | I72: 115 | J72: 1229 | K72: 68 | L72: 2014-07-21 | M72: 2 minutes | N72: 2014-09-20T10:17:47 | O72: 1121611-2 | P72: 0 | Q72: 1 | R72: 73 | S72: 236
A73: 1850285 | B73: eu | C73: 1 | D73: xarisghost | E73: t | F73: Bronze | G73: Division Amerigo Lima | H73: 496 | I73: 539 | J73: 1229 | K73: 2 | L73: 2014-07-07 | M73: 13 hours | N73: 2014-09-20T10:17:48 | O73: 1850285-1 | P73: 0 | Q73: 1 | R73: 74 | S73: 1035
A74: 2920362 | B74: eu | C74: 1 | D74: chriscross | E74: p | F74: Bronze | G74: Division Scimitar Alamo | H74: 75 | I74: 66 | J74: 1228 | K74: 0 | L74: 2014-08-19 | M74: 49 minutes | N74: 2014-09-20T10:17:48 | O74: 2920362-1 | P74: 0 | Q74: 1 | R74: 75 | S74: 141
A75: 5219547 | B75: eu | C75: 1 | D75: Kitox | E75: t | F75: Bronze | G75: Division Braxis Theta | H75: 70 | I75: 74 | J75: 1228 | K75: 4 | L75: 2014-09-07 | M75: 15 hours | N75: 2014-09-20T10:17:49 | O75: 5219547-1 | P75: 0 | Q75: 1 | R75: 76 | S75: 144
A76: 5043198 | B76: eu | C76: 1 | D76: vitex | E76: t | F76: Bronze | G76: Division Dylar Psi | H76: 83 | I76: 97 | J76: 1227 | K76: 32 | L76: 2014-08-01 | M76: 2 days | N76: 2014-09-20T10:17:50 | O76: 5043198-1 | P76: 0 | Q76: 1 | R76: 77 | S76: 180
A77: 5142431 | B77: eu | C77: 1 | D77: boyscoppito | E77: t | F77: Bronze | G77: Division Scimitar Alamo | H77: 74 | I77: 84 | J77: 1225 | K77: 68 | L77: 2014-08-11 | M77: 8 hours | N77: 2014-09-20T10:17:51 | O77: 5142431-1 | P77: 0 | Q77: 1 | R77: 78 | S77: 158
A78: 2376941 | B78: eu | C78: 1 | D78: Tinécureuil | E78: z | F78: Bronze | G78: Division Queen Epsilon | H78: 319 | I78: 339 | J78: 1224 | K78: 0 | L78: 2014-07-08 | M78: 10 minutes | N78: 2014-09-20T10:17:52 | O78: 2376941-1 | P78: 0 | Q78: 1 | R78: 79 | S78: 658
A79: 4537213 | B79: eu | C79: 1 | D79: Aldur | E79: t | F79: Bronze | G79: Division Tosh Juliet | H79: 103 | I79: 113 | J79: 1224 | K79: 2 | L79: 2014-08-06 | M79: 11 hours | N79: 2014-09-20T10:17:53 | O79: 4537213-1 | P79: 0 | Q79: 1 | R79: 80 | S79: 216
A80: 2270998 | B80: eu | C80: 1 | D80: Čorčila | E80: t | F80: Bronze | G80: Division Swann Sigma | H80: 47 | I80: 61 | J80: 1223 | K80: 2 | L80: 2014-09-05 | M80: 9 hours | N80: 2014-09-20T10:17:54 | O80: 2270998-1 | P80: 0 | Q80: 1 | R80: 81 | S80: 108
A81: 2845956 | B81: eu | C81: 1 | D81: Abedulnegro | E81: r | F81: Bronze | G81: Division Tarsonis Gravity | H81: 72 | I81: 73 | J81: 1223 | K81: 5 | L81: 2014-07-29 | M81: 10 hours | N81: 2014-09-20T10:17:55 | O81: 2845956-1 | P81: 0 | Q81: 1 | R81: 82 | S81: 145
A82: 5185540 | B82: eu | C82: 1 | D82: Pike | E82: z | F82: Bronze | G82: Division Raven Tango | H82: 134 | I82: 137 | J82: 1223 | K82: 1 | L82: 2014-08-18 | M82: 12 hours | N82: 2014-09-20T10:17:56 | O82: 5185540-1 | P82: 0 | Q82: 1 | R82: 83 | S82: 271
A83: 1136361 | B83: eu | C83: 2 | D83: meiv | E83: p | F83: Bronze | G83: Division Executor Upsilon | H83: 73 | I83: 64 | J83: 1221 | K83: 18 | L83: 2014-07-14 | M83: 16 hours | N83: 2014-09-20T10:17:57 | O83: 1136361-2 | P83: 0 | Q83: 1 | R83: 84 | S83: 137
A84: 4969860 | B84: eu | C84: 1 | D84: cirdec | E84: t | F84: Bronze | G84: Division Queen Epsilon | H84: 55 | I84: 47 | J84: 1221 | K84: 29 | L84: 2014-07-08 | M84: 11 hours | N84: 2014-09-20T10:17:57 | O84: 4969860-1 | P84: 0 | Q84: 1 | R84: 85 | S84: 102
A85: 4839642 | B85: eu | C85: 1 | D85: sombra | E85: p | F85: Bronze | G85: Division Pridewater Sigma | H85: 57 | I85: 54 | J85: 1219 | K85: 1 | L85: 2014-07-13 | M85: 13 hours | N85: 2014-09-20T10:17:59 | O85: 4839642-1 | P85: 0 | Q85: 1 | R85: 86 | S85: 111
A86: 706047 | B86: eu | C86: 1 | D86: Kemanaves | E86: t | F86: Bronze | G86: Division Nahaan Whiskey | H86: 92 | I86: 102 | J86: 1217 | K86: 17 | L86: 2014-07-07 | M86: 18 hours | N86: 2014-09-20T10:18:00 | O86: 706047-1 | P86: 0 | Q86: 1 | R86: 87 | S86: 194
A87: 1817405 | B87: eu | C87: 1 | D87: PopCorn | E87: p | F87: Bronze | G87: Division Tosh Lima | H87: 95 | I87: 98 | J87: 1217 | K87: 13 | L87: 2014-07-28 | M87: 9 hours | N87: 2014-09-20T10:18:01 | O87: 1817405-1 | P87: 0 | Q87: 1 | R87: 88 | S87: 193
A88: 2006205 | B88: eu | C88: 1 | D88: Beeboy | E88: t | F88: Bronze | G88: Division Zergling Beta | H88: 381 | I88: 430 | J88: 1215 | K88: 0 | L88: 2014-07-07 | M88: 9 hours | N88: 2014-09-20T10:18:02 | O88: 2006205-1 | P88: 0 | Q88: 1 | R88: 89 | S88: 811
A89: 3798565 | B89: eu | C89: 1 | D89: bloss | E89: p | F89: Bronze | G89: Division Shakuras Phi | H89: 50 | I89: 49 | J89: 1214 | K89: 64 | L89: 2014-07-07 | M89: 2 days | N89: 2014-09-20T10:18:03 | O89: 3798565-1 | P89: 0 | Q89: 1 | R89: 90 | S89: 99
A90: 4045057 | B90: eu | C90: 1 | D90: enlitened | E90: p | F90: Bronze | G90: Division Baneling Foxtrot | H90: 92 | I90: 105 | J90: 1214 | K90: 0 | L90: 2014-07-27 | M90: 1 hours | N90: 2014-09-20T10:18:03 | O90: 4045057-1 | P90: 0 | Q90: 1 | R90: 91 | S90: 197
A91: 5165444 | B91: eu | C91: 1 | D91: Lebiez | E91: t | F91: Bronze | G91: Division Zekrath Mu | H91: 86 | I91: 75 | J91: 1214 | K91: 1 | L91: 2014-08-18 | M91: 13 hours | N91: 2014-09-20T10:18:04 | O91: 5165444-1 | P91: 0 | Q91: 1 | R91: 92 | S91: 161
A92: 1250558 | B92: eu | C92: 2 | D92: pivoWar | E92: t | F92: Bronze | G92: Division Grizzly Quest | H92: 58 | I92: 69 | J92: 1213 | K92: 6 | L92: 2014-07-23 | M92: 15 hours | N92: 2014-09-20T10:18:05 | O92: 1250558-2 | P92: 0 | Q92: 1 | R92: 93 | S92: 127
A93: 4735218 | B93: eu | C93: 1 | D93: NoSkyvisible | E93: t | F93: Bronze | G93: Division Azimar Zed | H93: 87 | I93: 93 | J93: 1213 | K93: 12 | L93: 2014-07-09 | M93: 9 hours | N93: 2014-09-20T10:18:06 | O93: 4735218-1 | P93: 0 | Q93: 1 | R93: 94 | S93: 180
A94: 5261454 | B94: eu | C94: 1 | D94: Kissmetwice | E94: t | F94: Bronze | G94: Division Zekrath Xi | H94: 47 | I94: 55 | J94: 1212 | K94: 21 | L94: 2014-09-17 | M94: 2 hours | N94: 2014-09-20T10:18:07 | O94: 5261454-1 | P94: 0 | Q94: 1 | R94: 95 | S94: 102
A95: 1064045 | B95: eu | C95: 1 | D95: SALAZOR | E95: t | F95: Bronze | G95: Division Azimar Mu | H95: 81 | I95: 90 | J95: 1210 | K95: 11 | L95: 2014-07-07 | M95: 10 hours | N95: 2014-09-20T10:18:08 | O95: 1064045-1 | P95: 0 | Q95: 1 | R95: 96 | S95: 171
A96: 3955227 | B96: eu | C96: 1 | D96: wkk | E96: t | F96: Bronze | G96: Division Pridewater Uncle | H96: 172 | I96: 193 | J96: 1210 | K96: 28 | L96: 2014-07-08 | M96: 7 hours | N96: 2014-09-20T10:18:09 | O96: 3955227-1 | P96: 0 | Q96: 1 | R96: 97 | S96: 365
A97: 866992 | B97: eu | C97: 1 | D97: CheeseStorm | E97: r | F97: Bronze | G97: Division Hierarch Charlie | H97: 152 | I97: 165 | J97: 1209 | K97: 0 | L97: 2014-09-02 | M97: 11 hours | N97: 2014-09-20T10:18:10 | O97: 866992-1 | P97: 0 | Q97: 1 | R97: 98 | S97: 317
A98: 1830032 | B98: eu | C98: 1 | D98: pix | E98: p | F98: Bronze | G98: Division Taarim Sierra | H98: 56 | I98: 56 | J98: 1209 | K98: 9 | L98: 2014-07-09 | M98: 11 hours | N98: 2014-09-20T10:18:11 | O98: 1830032-1 | P98: 0 | Q98: 1 | R98: 99 | S98: 112
A99: 2778697 | B99: eu | C99: 1 | D99: Resimilchkuh | E99: t | F99: Bronze | G99: Division Queen Pi | H99: 46 | I99: 54 | J99: 1209 | K99: 30 | L99: 2014-07-09 | M99: 17 hours | N99: 2014-09-20T10:18:12 | O99: 2778697-1 | P99: 0 | Q99: 1 | R99: 100 | S99: 100
A100: 4519761 | B100: eu | C100: 1 | D100: Heliac | E100: p | F100: Bronze | G100: Division Queen Theta | H100: 53 | I100: 48 | J100: 1209 | K100: 45 | L100: 2014-07-07 | M100: 3 days | N100: 2014-09-20T10:18:13 | O100: 4519761-1 | P100: 0 | Q100: 1 | R100: 101 | S100: 101
A101: 574124 | B101: eu | C101: 1 | D101: Ley | E101: p | F101: Bronze | G101: Division Pridewater Sigma | H101: 73 | I101: 77 | J101: 1208 | K101: 9 | L101: 2014-07-09 | M101: 11 hours | N101: 2014-09-20T10:18:14 | O101: 574124-1 | P101: 0 | Q101: 1 | R101: 102 | S101: 150
A102: 4506494 | B102: eu | C102: 1 | D102: sniper | E102: t | F102: Bronze | G102: Division Hive Bravo | H102: 59 | I102: 65 | J102: 1206 | K102: 0 | L102: 2014-07-07 | M102: 12 hours | N102: 2014-09-20T10:18:14 | O102: 4506494-1 | P102: 0 | Q102: 1 | R102: 103 | S102: 124
A103: 3015092 | B103: eu | C103: 1 | D103: DeathLegends | E103: t | F103: Bronze | G103: Division Shakuras Psi | H103: 66 | I103: 72 | J103: 1205 | K103: 10 | L103: 2014-07-07 | M103: 10 hours | N103: 2014-09-20T10:18:15 | O103: 3015092-1 | P103: 0 | Q103: 1 | R103: 104 | S103: 138
A104: 1616657 | B104: eu | C104: 1 | D104: starýotec | E104: t | F104: Bronze | G104: Division Hierarch Chi | H104: 58 | I104: 51 | J104: 1204 | K104: 77 | L104: 2014-07-07 | M104: 2 days | N104: 2014-09-20T10:18:16 | O104: 1616657-1 | P104: 0 | Q104: 1 | R104: 105 | S104: 109
A105: 2314805 | B105: eu | C105: 1 | D105: watashin | E105: r | F105: Bronze | G105: Division Uraj Iota | H105: 43 | I105: 50 | J105: 1204 | K105: 28 | L105: 2014-07-15 | M105: 49 minutes | N105: 2014-09-20T10:18:17 | O105: 2314805-1 | P105: 0 | Q105: 1 | R105: 106 | S105: 93
A106: 4897458 | B106: eu | C106: 1 | D106: Arcantiz | E106: t | F106: Bronze | G106: Division Raven Zeta | H106: 47 | I106: 42 | J106: 1204 | K106: 45 | L106: 2014-08-03 | M106: 11 hours | N106: 2014-09-20T10:18:18 | O106: 4897458-1 | P106: 0 | Q106: 1 | R106: 107 | S106: 89
A107: 707394 | B107: eu | C107: 1 | D107: MisterNuke | E107: t | F107: Bronze | G107: Division Pridewater Uncle | H107: 53 | I107: 59 | J107: 1203 | K107: 110 | L107: 2014-07-07 | M107: 4 days | N107: 2014-09-20T10:18:19 | O107: 707394-1 | P107: 0 | Q107: 2 | R107: 108 | S107: 112
A108: 4296125 | B108: eu | C108: 1 | D108: SaberRider | E108: t | F108: Bronze | G108: Division Azimar Mu | H108: 53 | I108: 62 | J108: 1203 | K108: 1 | L108: 2014-08-31 | M108: 1 days | N108: 2014-09-20T10:18:20 | O108: 4296125-1 | P108: 0 | Q108: 1 | R108: 109 | S108: 115
A109: 5134014 | B109: eu | C109: 1 | D109: Terinak | E109: p | F109: Bronze | G109: Division Ulrezaj Tau | H109: 67 | I109: 78 | J109: 1203 | K109: 0 | L109: 2014-08-03 | M109: 16 hours | N109: 2014-09-20T10:18:20 | O109: 5134014-1 | P109: 0 | Q109: 1 | R109: 110 | S109: 145
A110: 466823 | B110: eu | C110: 2 | D110: slava | E110: t | F110: Bronze | G110: Division Azimar Mu | H110: 97 | I110: 117 | J110: 1202 | K110: 14 | L110: 2014-07-09 | M110: 2 days | N110: 2014-09-20T10:18:21 | O110: 466823-2 | P110: 0 | Q110: 1 | R110: 111 | S110: 214
A111: 3560320 | B111: eu | C111: 1 | D111: Sargas | E111: p | F111: Bronze | G111: Division Hive Hawk | H111: 47 | I111: 49 | J111: 1201 | K111: 51 | L111: 2014-07-07 | M111: 1 days | N111: 2014-09-20T10:18:22 | O111: 3560320-1 | P111: 0 | Q111: 1 | R111: 112 | S111: 96
A112: 1430575 | B112: eu | C112: 1 | D112: macros | E112: p | F112: Bronze | G112: Division Queen Epsilon | H112: 135 | I112: 150 | J112: 1200 | K112: 5 | L112: 2014-07-08 | M112: 2 hours | N112: 2014-09-20T10:18:23 | O112: 1430575-1 | P112: 0 | Q112: 1 | R112: 113 | S112: 285
A113: 3771230 | B113: eu | C113: 1 | D113: Yhu | E113: t | F113: Bronze | G113: Division Hierarch Charlie | H113: 64 | I113: 56 | J113: 1200 | K113: 0 | L113: 2014-07-07 | M113: 2 days | N113: 2014-09-20T10:18:24 | O113: 3771230-1 | P113: 0 | Q113: 1 | R113: 114 | S113: 120
A114: 4224737 | B114: eu | C114: 1 | D114: Juul | E114: t | F114: Bronze | G114: Division Aleksander Indigo | H114: 85 | I114: 90 | J114: 1200 | K114: 0 | L114: 2014-07-09 | M114: 16 hours | N114: 2014-09-20T10:18:25 | O114: 4224737-1 | P114: 0 | Q114: 1 | R114: 115 | S114: 175
A115: 4411926 | B115: eu | C115: 1 | D115: jebu | E115: r | F115: Bronze | G115: Division Queen Theta | H115: 131 | I115: 139 | J115: 1200 | K115: 13 | L115: 2014-07-07 | M115: 13 hours | N115: 2014-09-20T10:18:26 | O115: 4411926-1 | P115: 0 | Q115: 1 | R115: 116 | S115: 270
A116: 3400260 | B116: eu | C116: 1 | D116: zerg | E116: z | F116: Bronze | G116: Division Pridewater Uncle | H116: 111 | I116: 124 | J116: 1199 | K116: 5 | L116: 2014-07-07 | M116: 5 hours | N116: 2014-09-20T10:18:27 | O116: 3400260-1 | P116: 0 | Q116: 1 | R116: 117 | S116: 235
A117: 199159 | B117: eu | C117: 1 | D117: mpstroker | E117: r | F117: Bronze | G117: Division Duke Foxtrot | H117: 146 | I117: 162 | J117: 1198 | K117: 0 | L117: 2014-07-07 | M117: 12 hours | N117: 2014-09-20T10:18:28 | O117: 199159-1 | P117: 0 | Q117: 1 | R117: 118 | S117: 308
A118: 4075647 | B118: eu | C118: 1 | D118: SimFx | E118: z | F118: Bronze | G118: Division Medivac Romeo | H118: 56 | I118: 68 | J118: 1197 | K118: 4 | L118: 2014-07-13 | M118: 50 minutes | N118: 2014-09-20T10:18:30 | O118: 4075647-1 | P118: 0 | Q118: 1 | R118: 119 | S118: 124
A119: 849170 | B119: eu | C119: 2 | D119: KRY | E119: t | F119: Bronze | G119: Division Hive Alamo | H119: 51 | I119: 53 | J119: 1196 | K119: 64 | L119: 2014-07-08 | M119: 14 hours | N119: 2014-09-20T10:18:31 | O119: 849170-2 | P119: 0 | Q119: 1 | R119: 120 | S119: 104
A120: 4414173 | B120: eu | C120: 1 | D120: FinalBarrage | E120: t | F120: Bronze | G120: Division Braxis Epsilon | H120: 48 | I120: 45 | J120: 1196 | K120: 14 | L120: 2014-08-25 | M120: 15 hours | N120: 2014-09-20T10:18:31 | O120: 4414173-1 | P120: 0 | Q120: 1 | R120: 121 | S120: 93
A121: 4873611 | B121: eu | C121: 1 | D121: empty | E121: t | F121: Bronze | G121: Division Khala Tango | H121: 81 | I121: 80 | J121: 1196 | K121: 21 | L121: 2014-08-09 | M121: 23 hours | N121: 2014-09-20T10:18:32 | O121: 4873611-1 | P121: 0 | Q121: 1 | R121: 122 | S121: 161
A122: 4880485 | B122: eu | C122: 1 | D122: spoka | E122: p | F122: Bronze | G122: Division Taarim Gamma | H122: 47 | I122: 47 | J122: 1196 | K122: 46 | L122: 2014-07-08 | M122: 1 days | N122: 2014-09-20T10:18:33 | O122: 4880485-1 | P122: 0 | Q122: 1 | R122: 123 | S122: 94
A123: 5165081 | B123: eu | C123: 1 | D123: OPTYMUSPRIME | E123: t | F123: Bronze | G123: Division Taarim Sierra | H123: 63 | I123: 68 | J123: 1196 | K123: 54 | L123: 2014-08-12 | M123: 1 days | N123: 2014-09-20T10:18:34 | O123: 5165081-1 | P123: 0 | Q123: 1 | R123: 124 | S123: 131
A124: 1381010 | B124: eu | C124: 1 | D124: Slo | E124: r | F124: Bronze | G124: Division Duke Foxtrot | H124: 210 | I124: 219 | J124: 1195 | K124: 3 | L124: 2014-07-07 | M124: 7 hours | N124: 2014-09-20T10:18:35 | O124: 1381010-1 | P124: 0 | Q124: 1 | R124: 125 | S124: 429
A125: 2072101 | B125: eu | C125: 1 | D125: Tuncay | E125: t | F125: Bronze | G125: Division Khala Tango | H125: 143 | I125: 160 | J125: 1195 | K125: 24 | L125: 2014-07-07 | M125: 7 hours | N125: 2014-09-20T10:18:36 | O125: 2072101-1 | P125: 0 | Q125: 1 | R125: 126 | S125: 303
A126: 4010456 | B126: eu | C126: 1 | D126: Zeichen | E126: t | F126: Bronze | G126: Division Grizzly X-Ray | H126: 151 | I126: 166 | J126: 1195 | K126: 10 | L126: 2014-07-14 | M126: 9 hours | N126: 2014-09-20T10:18:37 | O126: 4010456-1 | P126: 0 | Q126: 1 | R126: 127 | S126: 317
A127: 4882039 | B127: eu | C127: 1 | D127: Tankist | E127: t | F127: Bronze | G127: Division Nahaan Whiskey | H127: 103 | I127: 115 | J127: 1195 | K127: 14 | L127: 2014-07-07 | M127: 2 days | N127: 2014-09-20T10:18:38 | O127: 4882039-1 | P127: 0 | Q127: 1 | R127: 128 | S127: 218
A128: 5036515 | B128: eu | C128: 1 | D128: Toruckto | E128: z | F128: Bronze | G128: Division Zekrath Mu | H128: 55 | I128: 61 | J128: 1195 | K128: 43 | L128: 2014-08-24 | M128: 2 days | N128: 2014-09-20T10:18:38 | O128: 5036515-1 | P128: 0 | Q128: 1 | R128: 129 | S128: 116
A129: 4086973 | B129: eu | C129: 1 | D129: Feunarcher | E129: p | F129: Bronze | G129: Division Pridewater Dixie | H129: 45 | I129: 50 | J129: 1194 | K129: 58 | L129: 2014-07-14 | M129: 3 days | N129: 2014-09-20T10:18:39 | O129: 4086973-1 | P129: 0 | Q129: 1 | R129: 130 | S129: 95
A130: 4140232 | B130: eu | C130: 1 | D130: Cristina | E130: p | F130: Bronze | G130: Division Raven Tango | H130: 105 | I130: 117 | J130: 1194 | K130: 4 | L130: 2014-08-15 | M130: 22 hours | N130: 2014-09-20T10:18:40 | O130: 4140232-1 | P130: 0 | Q130: 1 | R130: 131 | S130: 222
A131: 4706625 | B131: eu | C131: 1 | D131: Zenk | E131: p | F131: Bronze | G131: Division Executor Upsilon | H131: 57 | I131: 65 | J131: 1194 | K131: 3 | L131: 2014-07-30 | M131: 15 hours | N131: 2014-09-20T10:18:41 | O131: 4706625-1 | P131: 0 | Q131: 1 | R131: 132 | S131: 122
A132: 686569 | B132: eu | C132: 2 | D132: kazak | E132: r | F132: Bronze | G132: Division Norad Gravity | H132: 101 | I132: 112 | J132: 1193 | K132: 2 | L132: 2014-07-07 | M132: 1 hours | N132: 2014-09-20T10:18:42 | O132: 686569-2 | P132: 0 | Q132: 1 | R132: 133 | S132: 213
A133: 1726089 | B133: eu | C133: 1 | D133: Pikkuhukka | E133: t | F133: Bronze | G133: Division Shelak Pepper | H133: 75 | I133: 65 | J133: 1193 | K133: 98 | L133: 2014-08-02 | M133: 4 days | N133: 2014-09-20T10:18:43 | O133: 1726089-1 | P133: 0 | Q133: 1 | R133: 134 | S133: 140
A134: 2564630 | B134: eu | C134: 1 | D134: rankone | E134: r | F134: Bronze | G134: Division Zergling Omega | H134: 64 | I134: 82 | J134: 1193 | K134: 8 | L134: 2014-07-07 | M134: 3 hours | N134: 2014-09-20T10:18:44 | O134: 2564630-1 | P134: 0 | Q134: 1 | R134: 135 | S134: 146
A135: 5093785 | B135: eu | C135: 1 | D135: DarkStar | E135: r | F135: Bronze | G135: Division Dylar Phi | H135: 102 | I135: 114 | J135: 1193 | K135: 11 | L135: 2014-08-11 | M135: 3 days | N135: 2014-09-20T10:18:45 | O135: 5093785-1 | P135: 0 | Q135: 1 | R135: 136 | S135: 216
A136: 4211751 | B136: eu | C136: 1 | D136: utopie | E136: t | F136: Bronze | G136: Division Aleksander Indigo | H136: 67 | I136: 75 | J136: 1192 | K136: 14 | L136: 2014-07-09 | M136: 12 hours | N136: 2014-09-20T10:18:46 | O136: 4211751-1 | P136: 0 | Q136: 1 | R136: 137 | S136: 142
A137: 484555 | B137: eu | C137: 1 | D137: Ole | E137: t | F137: Bronze | G137: Division Amerigo Juliet | H137: 200 | I137: 222 | J137: 1190 | K137: 7 | L137: 2014-07-07 | M137: 8 hours | N137: 2014-09-20T10:18:47 | O137: 484555-1 | P137: 0 | Q137: 1 | R137: 138 | S137: 422
A138: 5224617 | B138: eu | C138: 1 | D138: Hellspawn | E138: z | F138: Bronze | G138: Division Azimar Mu | H138: 44 | I138: 51 | J138: 1190 | K138: 78 | L138: 2014-09-07 | M138: 14 hours | N138: 2014-09-20T10:18:48 | O138: 5224617-1 | P138: 0 | Q138: 1 | R138: 139 | S138: 95
A139: 3567061 | B139: eu | C139: 1 | D139: Hannibal | E139: r | F139: Bronze | G139: Division Grizzly Yankee | H139: 339 | I139: 387 | J139: 1189 | K139: 60 | L139: 2014-07-26 | M139: 2 days | N139: 2014-09-20T10:18:48 | O139: 3567061-1 | P139: 0 | Q139: 1 | R139: 140 | S139: 726
A140: 4439010 | B140: eu | C140: 1 | D140: zajebioza | E140: t | F140: Bronze | G140: Division Duke Lambda | H140: 77 | I140: 117 | J140: 1189 | K140: 15 | L140: 2014-07-08 | M140: 10 hours | N140: 2014-09-20T10:18:49 | O140: 4439010-1 | P140: 0 | Q140: 1 | R140: 141 | S140: 194
A141: 5160183 | B141: eu | C141: 1 | D141: XarNJK | E141: t | F141: Bronze | G141: Division Taarim Sierra | H141: 68 | I141: 44 | J141: 1189 | K141: 3 | L141: 2014-08-14 | M141: 17 hours | N141: 2014-09-20T10:18:50 | O141: 5160183-1 | P141: 0 | Q141: 1 | R141: 142 | S141: 112
A142: 51956 | B142: eu | C142: 2 | D142: puspikt | E142: t | F142: Bronze | G142: Division Shakuras Phi | H142: 49 | I142: 45 | J142: 1188 | K142: 47 | L142: 2014-07-07 | M142: 2 days | N142: 2014-09-20T10:18:51 | O142: 51956-2 | P142: 0 | Q142: 1 | R142: 143 | S142: 94
A143: 706982 | B143: eu | C143: 1 | D143: CaX | E143: p | F143: Bronze | G143: Division Shelak Pepper | H143: 65 | I143: 74 | J143: 1188 | K143: 25 | L143: 2014-07-13 | M143: 7 hours | N143: 2014-09-20T10:18:52 | O143: 706982-1 | P143: 0 | Q143: 1 | R143: 144 | S143: 139
A144: 3423137 | B144: eu | C144: 1 | D144: Arathorn | E144: t | F144: Bronze | G144: Division Scimitar Hawk | H144: 45 | I144: 47 | J144: 1188 | K144: 89 | L144: 2014-08-21 | M144: 2 days | N144: 2014-09-20T10:18:53 | O144: 3423137-1 | P144: 0 | Q144: 1 | R144: 145 | S144: 92
A145: 4168274 | B145: eu | C145: 1 | D145: sagebeard | E145: t | F145: Bronze | G145: Division Aleksander Nu | H145: 42 | I145: 62 | J145: 1188 | K145: 31 | L145: 2014-08-07 | M145: 19 hours | N145: 2014-09-20T10:18:54 | O145: 4168274-1 | P145: 0 | Q145: 1 | R145: 146 | S145: 104
A146: 294367 | B146: eu | C146: 2 | D146: OdisseY | E146: z | F146: Bronze | G146: Division Amerigo Lima | H146: 69 | I146: 64 | J146: 1187 | K146: 48 | L146: 2014-07-27 | M146: 1 days | N146: 2014-09-20T10:18:55 | O146: 294367-2 | P146: 0 | Q146: 1 | R146: 147 | S146: 133
A147: 3422480 | B147: eu | C147: 1 | D147: Hashlael | E147: t | F147: Bronze | G147: Division Hierarch Kappa | H147: 164 | I147: 175 | J147: 1187 | K147: 2 | L147: 2014-07-08 | M147: 15 hours | N147: 2014-09-20T10:18:56 | O147: 3422480-1 | P147: 0 | Q147: 1 | R147: 148 | S147: 339
A148: 2233249 | B148: eu | C148: 1 | D148: flux | E148: t | F148: Bronze | G148: Division Zergling Beta | H148: 92 | I148: 106 | J148: 1186 | K148: 28 | L148: 2014-07-11 | M148: 13 hours | N148: 2014-09-20T10:18:57 | O148: 2233249-1 | P148: 0 | Q148: 1 | R148: 149 | S148: 198
A149: 2321848 | B149: eu | C149: 1 | D149: ITALIANSURFA | E149: p | F149: Bronze | G149: Division Shakuras Phi | H149: 80 | I149: 77 | J149: 1186 | K149: 2 | L149: 2014-07-07 | M149: 22 hours | N149: 2014-09-20T10:18:58 | O149: 2321848-1 | P149: 0 | Q149: 1 | R149: 150 | S149: 157
A150: 3953214 | B150: eu | C150: 1 | D150: IMKOR | E150: t | F150: Bronze | G150: Division Raven Echo | H150: 116 | I150: 124 | J150: 1186 | K150: 0 | L150: 2014-08-27 | M150: 18 hours | N150: 2014-09-20T10:18:59 | O150: 3953214-1 | P150: 0 | Q150: 1 | R150: 151 | S150: 240
A151: 4629748 | B151: eu | C151: 1 | D151: Robert | E151: p | F151: Bronze | G151: Division Norad Gravity | H151: 86 | I151: 100 | J151: 1186 | K151: 17 | L151: 2014-07-07 | M151: 15 hours | N151: 2014-09-20T10:19:00 | O151: 4629748-1 | P151: 0 | Q151: 1 | R151: 152 | S151: 186
A152: 66395 | B152: eu | C152: 2 | D152: Karik | E152: r | F152: Bronze | G152: Division Medivac Victor | H152: 68 | I152: 69 | J152: 1185 | K152: 3 | L152: 2014-07-11 | M152: 11 hours | N152: 2014-09-20T10:19:01 | O152: 66395-2 | P152: 0 | Q152: 1 | R152: 153 | S152: 137
A153: 4420024 | B153: eu | C153: 1 | D153: Kruxxet | E153: p | F153: Bronze | G153: Division Akilae Charlie | H153: 76 | I153: 87 | J153: 1185 | K153: 0 | L153: 2014-08-19 | M153: 1 days | N153: 2014-09-20T10:19:02 | O153: 4420024-1 | P153: 0 | Q153: 1 | R153: 154 | S153: 163
A154: 5159130 | B154: eu | C154: 1 | D154: Zirijawenjar | E154: p | F154: Bronze | G154: Division Executor Alpha | H154: 51 | I154: 70 | J154: 1185 | K154: 27 | L154: 2014-08-26 | M154: 12 hours | N154: 2014-09-20T10:19:03 | O154: 5159130-1 | P154: 0 | Q154: 1 | R154: 155 | S154: 121
A155: 2990242 | B155: eu | C155: 1 | D155: MajorTom | E155: t | F155: Bronze | G155: Division Shakuras Psi | H155: 57 | I155: 50 | J155: 1184 | K155: 11 | L155: 2014-07-07 | M155: 15 hours | N155: 2014-09-20T10:19:04 | O155: 2990242-1 | P155: 0 | Q155: 1 | R155: 156 | S155: 107
A156: 5224688 | B156: eu | C156: 1 | D156: Macambuzio | E156: t | F156: Bronze | G156: Division Shakuras Phi | H156: 45 | I156: 50 | J156: 1184 | K156: 1 | L156: 2014-09-07 | M156: 18 hours | N156: 2014-09-20T10:19:05 | O156: 5224688-1 | P156: 0 | Q156: 1 | R156: 157 | S156: 95
A157: 2080457 | B157: eu | C157: 1 | D157: goose | E157: t | F157: Bronze | G157: Division Duke Foxtrot | H157: 110 | I157: 148 | J157: 1183 | K157: 1 | L157: 2014-07-07 | M157: 3 hours | N157: 2014-09-20T10:19:06 | O157: 2080457-1 | P157: 0 | Q157: 1 | R157: 158 | S157: 258
A158: 4376617 | B158: eu | C158: 1 | D158: mindCraft | E158: z | F158: Bronze | G158: Division Duke Lambda | H158: 234 | I158: 255 | J158: 1183 | K158: 0 | L158: 2014-07-09 | M158: 16 hours | N158: 2014-09-20T10:19:07 | O158: 4376617-1 | P158: 0 | Q158: 1 | R158: 159 | S158: 489
A159: 4999982 | B159: eu | C159: 1 | D159: Mike | E159: p | F159: Bronze | G159: Division Scimitar Hawk | H159: 49 | I159: 61 | J159: 1183 | K159: 2 | L159: 2014-08-21 | M159: 9 hours | N159: 2014-09-20T10:19:07 | O159: 4999982-1 | P159: 0 | Q159: 1 | R159: 160 | S159: 110
A160: 5082293 | B160: eu | C160: 1 | D160: DemonSlayers | E160: z | F160: Bronze | G160: Division Aleksander Nu | H160: 55 | I160: 53 | J160: 1183 | K160: 44 | L160: 2014-07-15 | M160: 17 hours | N160: 2014-09-20T10:19:08 | O160: 5082293-1 | P160: 0 | Q160: 1 | R160: 161 | S160: 108
A161: 5125777 | B161: eu | C161: 1 | D161: Poltishok | E161: p | F161: Bronze | G161: Division Khala Tango | H161: 46 | I161: 47 | J161: 1182 | K161: 39 | L161: 2014-08-14 | M161: 16 hours | N161: 2014-09-20T10:19:09 | O161: 5125777-1 | P161: 0 | Q161: 1 | R161: 162 | S161: 93
A162: 5131585 | B162: eu | C162: 1 | D162: THIGGI | E162: p | F162: Bronze | G162: Division Braxis Theta | H162: 57 | I162: 62 | J162: 1182 | K162: 9 | L162: 2014-08-13 | M162: 4 days | N162: 2014-09-20T10:19:10 | O162: 5131585-1 | P162: 0 | Q162: 1 | R162: 163 | S162: 119
A163: 629067 | B163: eu | C163: 1 | D163: HUTCH | E163: t | F163: Bronze | G163: Division Amerigo Juliet | H163: 53 | I163: 73 | J163: 1181 | K163: 28 | L163: 2014-07-07 | M163: 14 hours | N163: 2014-09-20T10:19:11 | O163: 629067-1 | P163: 0 | Q163: 1 | R163: 164 | S163: 126
A164: 3226258 | B164: eu | C164: 1 | D164: Hanniball | E164: p | F164: Bronze | G164: Division Pridewater Dixie | H164: 66 | I164: 105 | J164: 1181 | K164: 12 | L164: 2014-07-11 | M164: 12 hours | N164: 2014-09-20T10:19:12 | O164: 3226258-1 | P164: 0 | Q164: 1 | R164: 165 | S164: 171
A165: 4045091 | B165: eu | C165: 1 | D165: HanSolo | E165: t | F165: Bronze | G165: Division Duke Foxtrot | H165: 86 | I165: 105 | J165: 1181 | K165: 28 | L165: 2014-07-08 | M165: 13 hours | N165: 2014-09-20T10:19:13 | O165: 4045091-1 | P165: 0 | Q165: 1 | R165: 166 | S165: 191
A166: 4587825 | B166: eu | C166: 1 | D166: Mickael | E166: z | F166: Bronze | G166: Division Amerigo Lima | H166: 130 | I166: 155 | J166: 1181 | K166: 33 | L166: 2014-07-07 | M166: 21 hours | N166: 2014-09-20T10:19:14 | O166: 4587825-1 | P166: 0 | Q166: 1 | R166: 167 | S166: 285
A167: 4930295 | B167: eu | C167: 1 | D167: tsamp | E167: r | F167: Bronze | G167: Division Shakuras Psi | H167: 130 | I167: 126 | J167: 1179 | K167: 4 | L167: 2014-07-07 | M167: 11 hours | N167: 2014-09-20T10:19:15 | O167: 4930295-1 | P167: 0 | Q167: 1 | R167: 168 | S167: 256
A168: 213634 | B168: eu | C168: 1 | D168: Imaginerium | E168: t | F168: Bronze | G168: Division Amerigo Juliet | H168: 43 | I168: 55 | J168: 1178 | K168: 54 | L168: 2014-08-27 | M168: 1 days | N168: 2014-09-20T10:19:16 | O168: 213634-1 | P168: 0 | Q168: 1 | R168: 169 | S168: 98
A169: 1142294 | B169: eu | C169: 1 | D169: Arty | E169: z | F169: Bronze | G169: Division Hierarch Kappa | H169: 61 | I169: 56 | J169: 1178 | K169: 32 | L169: 2014-07-08 | M169: 14 hours | N169: 2014-09-20T10:19:17 | O169: 1142294-1 | P169: 0 | Q169: 1 | R169: 170 | S169: 117
A170: 2855800 | B170: eu | C170: 1 | D170: Gorbs | E170: p | F170: Bronze | G170: Division Hive Hawk | H170: 52 | I170: 58 | J170: 1178 | K170: 39 | L170: 2014-07-07 | M170: 16 hours | N170: 2014-09-20T10:19:18 | O170: 2855800-1 | P170: 0 | Q170: 1 | R170: 171 | S170: 110
A171: 2697953 | B171: eu | C171: 1 | D171: Yoghy | E171: p | F171: Bronze | G171: Division Shakuras Psi | H171: 304 | I171: 343 | J171: 1176 | K171: 0 | L171: 2014-07-07 | M171: 13 hours | N171: 2014-09-20T10:19:18 | O171: 2697953-1 | P171: 0 | Q171: 1 | R171: 172 | S171: 647
A172: 4119173 | B172: eu | C172: 1 | D172: spankypanky | E172: r | F172: Bronze | G172: Division Duke Foxtrot | H172: 327 | I172: 375 | J172: 1176 | K172: 7 | L172: 2014-07-07 | M172: 1 days | N172: 2014-09-20T10:19:19 | O172: 4119173-1 | P172: 0 | Q172: 1 | R172: 173 | S172: 702
A173: 4317576 | B173: eu | C173: 1 | D173: AnXiety | E173: t | F173: Bronze | G173: Division Baneling Lambda | H173: 45 | I173: 39 | J173: 1176 | K173: 108 | L173: 2014-08-07 | M173: 5 days | N173: 2014-09-20T10:19:20 | O173: 4317576-1 | P173: 0 | Q173: 2 | R173: 174 | S173: 84
A174: 3875522 | B174: eu | C174: 1 | D174: Sicarius | E174: p | F174: Bronze | G174: Division Uraj Iota | H174: 67 | I174: 70 | J174: 1175 | K174: 45 | L174: 2014-08-11 | M174: 1 days | N174: 2014-09-20T10:19:21 | O174: 3875522-1 | P174: 0 | Q174: 1 | R174: 175 | S174: 137
A175: 1659434 | B175: eu | C175: 1 | D175: Alex | E175: z | F175: Bronze | G175: Division Duke Kilo | H175: 86 | I175: 98 | J175: 1174 | K175: 1 | L175: 2014-07-07 | M175: 13 hours | N175: 2014-09-20T10:19:22 | O175: 1659434-1 | P175: 0 | Q175: 1 | R175: 176 | S175: 184
A176: 4982283 | B176: eu | C176: 1 | D176: KoyoTTe | E176: t | F176: Bronze | G176: Division Hive Bravo | H176: 48 | I176: 54 | J176: 1174 | K176: 2 | L176: 2014-07-07 | M176: 1 days | N176: 2014-09-20T10:19:23 | O176: 4982283-1 | P176: 0 | Q176: 1 | R176: 177 | S176: 102
A177: 787004 | B177: eu | C177: 1 | D177: StormraideR | E177: t | F177: Bronze | G177: Division Shakuras Phi | H177: 89 | I177: 104 | J177: 1173 | K177: 18 | L177: 2014-07-07 | M177: 10 hours | N177: 2014-09-20T10:19:24 | O177: 787004-1 | P177: 0 | Q177: 1 | R177: 178 | S177: 193
A178: 4859156 | B178: eu | C178: 1 | D178: Ahseyo | E178: t | F178: Bronze | G178: Division Warbringer Sierra | H178: 47 | I178: 50 | J178: 1173 | K178: 0 | L178: 2014-09-12 | M178: 15 hours | N178: 2014-09-20T10:19:25 | O178: 4859156-1 | P178: 0 | Q178: 1 | R178: 179 | S178: 97
A179: 4457805 | B179: eu | C179: 1 | D179: ale | E179: t | F179: Bronze | G179: Division Executor Alpha | H179: 55 | I179: 54 | J179: 1172 | K179: 42 | L179: 2014-07-08 | M179: 2 days | N179: 2014-09-20T10:19:26 | O179: 4457805-1 | P179: 0 | Q179: 1 | R179: 180 | S179: 109
A180: 3322266 | B180: eu | C180: 1 | D180: Etienne | E180: p | F180: Bronze | G180: Division Duke Lambda | H180: 54 | I180: 52 | J180: 1171 | K180: 120 | L180: 2014-07-08 | M180: 6 days | N180: 2014-09-20T10:19:27 | O180: 3322266-1 | P180: 0 | Q180: 2 | R180: 181 | S180: 106
A181: 3591905 | B181: eu | C181: 1 | D181: malutki | E181: r | F181: Bronze | G181: Division Taarim Sierra | H181: 69 | I181: 81 | J181: 1171 | K181: 8 | L181: 2014-07-13 | M181: 21 hours | N181: 2014-09-20T10:19:28 | O181: 3591905-1 | P181: 0 | Q181: 1 | R181: 182 | S181: 150
A182: 4694240 | B182: eu | C182: 1 | D182: MuadDib | E182: t | F182: Bronze | G182: Division Zergling Omega | H182: 98 | I182: 103 | J182: 1171 | K182: 0 | L182: 2014-07-07 | M182: 1 days | N182: 2014-09-20T10:19:28 | O182: 4694240-1 | P182: 0 | Q182: 1 | R182: 183 | S182: 201
A183: 744912 | B183: eu | C183: 2 | D183: KUARD | E183: t | F183: Bronze | G183: Division Medivac Victor | H183: 41 | I183: 48 | J183: 1170 | K183: 15 | L183: 2014-07-19 | M183: 15 hours | N183: 2014-09-20T10:19:30 | O183: 744912-2 | P183: 0 | Q183: 1 | R183: 184 | S183: 89
A184: 1413500 | B184: eu | C184: 1 | D184: oljg | E184: p | F184: Bronze | G184: Division Pridewater Sigma | H184: 47 | I184: 44 | J184: 1170 | K184: 124 | L184: 2014-07-09 | M184: 11 hours | N184: 2014-09-20T10:19:31 | O184: 1413500-1 | P184: 0 | Q184: 2 | R184: 185 | S184: 91
A185: 1539451 | B185: eu | C185: 1 | D185: Niwolf | E185: p | F185: Bronze | G185: Division Amerigo Juliet | H185: 63 | I185: 70 | J185: 1170 | K185: 27 | L185: 2014-07-08 | M185: 12 hours | N185: 2014-09-20T10:19:32 | O185: 1539451-1 | P185: 0 | Q185: 1 | R185: 186 | S185: 133
A186: 1300002 | B186: eu | C186: 1 | D186: oldmole | E186: t | F186: Bronze | G186: Division Duke Lambda | H186: 62 | I186: 75 | J186: 1169 | K186: 17 | L186: 2014-07-07 | M186: 18 hours | N186: 2014-09-20T10:19:33 | O186: 1300002-1 | P186: 0 | Q186: 1 | R186: 187 | S186: 137
A187: 1419628 | B187: eu | C187: 1 | D187: caronte | E187: r | F187: Bronze | G187: Division Nahaan Whiskey | H187: 168 | I187: 168 | J187: 1169 | K187: 0 | L187: 2014-07-26 | M187: 3 days | N187: 2014-09-20T10:19:34 | O187: 1419628-1 | P187: 0 | Q187: 1 | R187: 188 | S187: 336
A188: 4860014 | B188: eu | C188: 1 | D188: Jarlaxle | E188: z | F188: Bronze | G188: Division Ulrezaj Tau | H188: 50 | I188: 32 | J188: 1168 | K188: 107 | L188: 2014-08-09 | M188: 10 hours | N188: 2014-09-20T10:19:35 | O188: 4860014-1 | P188: 0 | Q188: 2 | R188: 189 | S188: 82
A189: 1706547 | B189: eu | C189: 1 | D189: LJACK | E189: t | F189: Bronze | G189: Division Executor Alpha | H189: 80 | I189: 74 | J189: 1167 | K189: 89 | L189: 2014-07-13 | M189: 4 days | N189: 2014-09-20T10:19:36 | O189: 1706547-1 | P189: 0 | Q189: 1 | R189: 190 | S189: 154
A190: 4245080 | B190: eu | C190: 1 | D190: wallace | E190: p | F190: Bronze | G190: Division Khala Echo | H190: 71 | I190: 84 | J190: 1167 | K190: 76 | L190: 2014-07-08 | M190: 9 hours | N190: 2014-09-20T10:19:37 | O190: 4245080-1 | P190: 0 | Q190: 1 | R190: 191 | S190: 155
A191: 202191 | B191: eu | C191: 2 | D191: Voron | E191: p | F191: Bronze | G191: Division Akilae Kappa | H191: 67 | I191: 79 | J191: 1166 | K191: 32 | L191: 2014-09-01 | M191: 20 hours | N191: 2014-09-20T10:19:37 | O191: 202191-2 | P191: 0 | Q191: 1 | R191: 192 | S191: 146
A192: 869406 | B192: eu | C192: 1 | D192: PascalBelge | E192: t | F192: Bronze | G192: Division Hierarch Charlie | H192: 180 | I192: 222 | J192: 1166 | K192: 26 | L192: 2014-07-08 | M192: 10 hours | N192: 2014-09-20T10:19:38 | O192: 869406-1 | P192: 0 | Q192: 1 | R192: 193 | S192: 402
A193: 343856 | B193: eu | C193: 1 | D193: Megatron | E193: t | F193: Bronze | G193: Division Zergling Omega | H193: 79 | I193: 88 | J193: 1164 | K193: 24 | L193: 2014-07-07 | M193: 8 hours | N193: 2014-09-20T10:19:39 | O193: 343856-1 | P193: 0 | Q193: 1 | R193: 194 | S193: 167
A194: 1646007 | B194: eu | C194: 1 | D194: Nostromo | E194: t | F194: Bronze | G194: Division Scimitar Bravo | H194: 76 | I194: 89 | J194: 1164 | K194: 12 | L194: 2014-08-09 | M194: 1 days | N194: 2014-09-20T10:19:40 | O194: 1646007-1 | P194: 0 | Q194: 1 | R194: 195 | S194: 165
A195: 1189852 | B195: eu | C195: 1 | D195: Traker | E195: r | F195: Bronze | G195: Division Raven Tango | H195: 196 | I195: 255 | J195: 1162 | K195: 9 | L195: 2014-08-15 | M195: 12 hours | N195: 2014-09-20T10:19:41 | O195: 1189852-1 | P195: 0 | Q195: 1 | R195: 196 | S195: 451
A196: 2003585 | B196: eu | C196: 1 | D196: kentjai | E196: p | F196: Bronze | G196: Division Grizzly X-Ray | H196: 47 | I196: 54 | J196: 1161 | K196: 11 | L196: 2014-07-12 | M196: 12 hours | N196: 2014-09-20T10:19:42 | O196: 2003585-1 | P196: 0 | Q196: 1 | R196: 197 | S196: 101
A197: 625073 | B197: eu | C197: 2 | D197: ilia | E197: p | F197: Bronze | G197: Division Duke Kilo | H197: 83 | I197: 91 | J197: 1160 | K197: 107 | L197: 2014-07-07 | M197: 5 days | N197: 2014-09-20T10:19:43 | O197: 625073-2 | P197: 0 | Q197: 2 | R197: 198 | S197: 174
A198: 2646862 | B198: eu | C198: 1 | D198: Omar | E198: t | F198: Bronze | G198: Division Hierarch Kappa | H198: 45 | I198: 63 | J198: 1159 | K198: 44 | L198: 2014-08-10 | M198: 1 days | N198: 2014-09-20T10:19:43 | O198: 2646862-1 | P198: 0 | Q198: 1 | R198: 199 | S198: 108
A199: 1091836 | B199: eu | C199: 1 | D199: dondog | E199: p | F199: Bronze | G199: Division Medivac Victor | H199: 42 | I199: 51 | J199: 1158 | K199: 12 | L199: 2014-07-10 | M199: 12 hours | N199: 2014-09-20T10:19:44 | O199: 1091836-1 | P199: 0 | Q199: 1 | R199: 200 | S199: 93
A200: 4837849 | B200: eu | C200: 1 | D200: Fritte | E200: p | F200: Bronze | G200: Division Pridewater Uncle | H200: 102 | I200: 101 | J200: 1156 | K200: 18 | L200: 2014-07-29 | M200: 3 hours | N200: 2014-09-20T10:19:45 | O200: 4837849-1 | P200: 0 | Q200: 1 | R200: 201 | S200: 203
... 4300 more rows

Sheet Analysis - Team
A1: 2v2 - Most Recent Games
B2: Bronze | D2: Silver | F2: Gold | H2: Platinum | J2: Diamond | L2: Master | N2: Totals | P2: Total Team Count
A3: Category | B3: Last Week | C3: Last Month | D3: Last Week | E3: Last Month | F3: Last Week | G3: Last Month | H3: Last Week | I3: Last Month | J3: Last Week | K3: Last Month | L3: Last Week | M3: Last Month | N3: Last Week | O3: Last Month
A4: Totals | B4: 2994 | C4: 5190 | D4: 4102 | E4: 5520 | F4: 4294 | G4: 5585 | H4: 1873 | I4: 2376 | J4: 570 | K4: 626 | L4: 123 | M4: 112 | N4: 13956 | O4: 19409
A5: At least 1 game within the last month | B5: 8184 | D5: 9622 | F5: 9879 | H5: 4249 | J5: 1196 | L5: 235 | N5: 33365
B6: Avg Wins | C6: Avg Losses | D6: Avg Wins | E6: Avg Losses | F6: Avg Wins | G6: Avg Losses | H6: Avg Wins | I6: Avg Losses | J6: Avg Wins | K6: Avg Losses | L6: Avg Wins | M6: Avg Losses | N6: Avg Wins | O6: Avg Losses
A7: Games Count | B7: 3.916150327 | C7: 6.001216052 | D7: 8.327278269 | E7: 8.496677842 | F7: 11.73925881 | G7: 9.521000301 | H7: 14.86595174 | I7: 10.30012699 | J7: 25.34214876 | K7: 17.09366391 | L7: 38.61349693 | M7: 19.03680982 | N7: 9.4624771 | O7: 8.592903844
A8: Avg Score | B8: 93.0119868 | D8: 181.2816824 | F8: 214.8363362 | H8: 237.1893608 | J8: 366.3129477 | L8: 412.8773006 | N8: 178.5934753
A9: Total Team Count | B9: 17269 | D9: 16405 | F9: 16595 | H9: 7087 | J9: 1815 | L9: 326 | N9: 59497
A13: 3v3 - Most Recent Games
B14: Bronze | D14: Silver | F14: Gold | H14: Platinum | J14: Diamond | L14: Master | N14: Totals | P14: Total Team Count
A15: Category | B15: Last Week | C15: Last Month | D15: Last Week | E15: Last Month | F15: Last Week | G15: Last Month | H15: Last Week | I15: Last Month | J15: Last Week | K15: Last Month | L15: Last Week | M15: Last Month | N15: Last Week | O15: Last Month
A16: Totals | B16: 883 | C16: 1963 | D16: 1520 | E16: 2695 | F16: 1219 | G16: 2222 | H16: 410 | I16: 636 | J16: 71 | K16: 158 | L16: 23 | M16: 20 | N16: 4126 | O16: 7694
A17: At least 1 game within the last month | B17: 2846 | D17: 4215 | F17: 3441 | H17: 1046 | J17: 229 | L17: 43 | N17: 11820
B18: Avg Wins | C18: Avg Losses | D18: Avg Wins | E18: Avg Losses | F18: Avg Wins | G18: Avg Losses | H18: Avg Wins | I18: Avg Losses | J18: Avg Wins | K18: Avg Losses | L18: Avg Wins | M18: Avg Losses | N18: Avg Wins | O18: Avg Losses
A19: Games Count | B19: 2.703752039 | C19: 4.26639478 | D19: 5.137758297 | E19: 4.962429555 | F19: 7.650615385 | G19: 5.413538462 | H19: 10.41908714 | I19: 5.450207469 | J19: 13.5475 | K19: 6.2575 | L19: 36 | M19: 11.21052632 | N19: 6.411956522 | O19: 5.253130435
A20: Avg Score | B20: 63.35318108 | D20: 105.8182843 | F20: 117.7509231 | H20: 128.1141079 | J20: 144.6575 | L20: 293.245614 | N20: 106.7336957
A21: Total Team Count | B21: 6130 | D21: 7985 | F21: 6500 | H21: 1928 | J21: 400 | L21: 57 | N21: 23000
A25: 4v4 - Most Recent Games
B26: Bronze | D26: Silver | F26: Gold | H26: Platinum | J26: Diamond | L26: Master | N26: Totals | P26: Total Team Count
A27: Category | B27: Last Week | C27: Last Month | D27: Last Week | E27: Last Month | F27: Last Week | G27: Last Month | H27: Last Week | I27: Last Month | J27: Last Week | K27: Last Month | L27: Last Week | M27: Last Month | N27: Last Week | O27: Last Month
A28: Totals | B28: 156 | C28: 318 | D28: 392 | E28: 918 | F28: 321 | G28: 744 | H28: 122 | I28: 320 | J28: 26 | K28: 49 | L28: 3 | M28: 5 | N28: 1020 | O28: 2354
A29: At least 1 game within the last month | B29: 474 | D29: 1310 | F29: 1065 | H29: 442 | J29: 75 | L29: 8 | N29: 3374
B30: Avg Wins | C30: Avg Losses | D30: Avg Wins | E30: Avg Losses | F30: Avg Wins | G30: Avg Losses | H30: Avg Wins | I30: Avg Losses | J30: Avg Wins | K30: Avg Losses | L30: Avg Wins | M30: Avg Losses | N30: Avg Wins | O30: Avg Losses
A31: Games Count | B31: 2.198957428 | C31: 3.375325804 | D31: 3.727272727 | E31: 3.512073864 | F31: 5.432383537 | G31: 3.302578019 | H31: 5.735355649 | I31: 1.75 | J31: 8.902597403 | K31: 2.37012987 | L31: 31.08333333 | M31: 5.5 | N31: 4.700958904 | O31: 3.263013699
A32: Avg Score | B32: 48.90529974 | D32: 70.31818182 | F32: 72.17367707 | H32: 40.07845188 | J32: 92.93506494 | L32: 294.8333333 | N32: 66.67972603
A33: Total Team Count | B33: 1151 | D33: 2816 | F33: 2211 | H33: 956 | J33: 154 | L33: 12 | N33: 7300
A37: 2v2r - Most Recent Games
B38: Bronze | D38: Silver | F38: Gold | H38: Platinum | J38: Diamond | L38: Master | N38: Totals
A39: Category | B39: Last Week | C39: Last Month | D39: Last Week | E39: Last Month | F39: Last Week | G39: Last Month | H39: Last Week | I39: Last Month | J39: Last Week | K39: Last Month | L39: Last Week | M39: Last Month | N39: Last Week | O39: Last Month
A40: Totals | B40: 507 | C40: 785 | D40: 2942 | E40: 3851 | F40: 3448 | G40: 3020 | H40: 1524 | I40: 1341 | J40: 687 | K40: 474 | L40: 231 | M40: 133 | N40: 9339 | O40: 9604
A41: At least 1 game within the last month | B41: 1292 | D41: 6793 | F41: 6468 | H41: 2865 | J41: 1161 | L41: 364 | N41: 18943
B42: Avg Wins | C42: Avg Losses | D42: Avg Wins | E42: Avg Losses | F42: Avg Wins | G42: Avg Losses | H42: Avg Wins | I42: Avg Losses | J42: Avg Wins | K42: Avg Losses | L42: Avg Wins | M42: Avg Losses | N42: Avg Wins | O42: Avg Losses
A43: Games Count | B43: 0 | C43: 6.267090026 | D43: 0 | E43: 9.203064161 | F43: 0 | G43: 17.70304023 | H43: 0 | I43: 20.98642534 | J43: 0 | K43: 34.42401022 | L43: 0 | M43: 42.17336152 | N43: 0 | O43: 15.09676044
A44: Avg Score | B44: 74.4142697 | D44: 137.681141 | F44: 339.1418774 | H44: 391.3265063 | J44: 556.2145594 | L44: 697.3890063 | N44: 261.7524428
A45: Total Player Count | B45: 2677 | D45: 11814 | F45: 9769 | H45: 4199 | J45: 1566 | L45: 473 | N45: 30498
A49: 3v3r - Most Recent Games
B50: Bronze | D50: Silver | F50: Gold | H50: Platinum | J50: Diamond | L50: Master | N50: Totals
A51: Category | B51: Last Week | C51: Last Month | D51: Last Week | E51: Last Month | F51: Last Week | G51: Last Month | H51: Last Week | I51: Last Month | J51: Last Week | K51: Last Month | L51: Last Week | M51: Last Month | N51: Last Week | O51: Last Month
A52: Totals | B52: 536 | C52: 926 | D52: 3938 | E52: 4380 | F52: 3099 | G52: 2587 | H52: 852 | I52: 761 | J52: 296 | K52: 244 | L52: 187 | M52: 113 | N52: 8908 | O52: 9011
A53: At least 1 game within the last month | B53: 1462 | D53: 8318 | F53: 5686 | H53: 1613 | J53: 540 | L53: 300 | N53: 17919
B54: Avg Wins | C54: Avg Losses | D54: Avg Wins | E54: Avg Losses | F54: Avg Wins | G54: Avg Losses | H54: Avg Wins | I54: Avg Losses | J54: Avg Wins | K54: Avg Losses | L54: Avg Wins | M54: Avg Losses | N54: Avg Wins | O54: Avg Losses
A55: Games Count | B55: 0 | C55: 5.557366964 | D55: 0 | E55: 11.65031565 | F55: 0 | G55: 21.00825569 | H55: 0 | I55: 22.36635284 | J55: 0 | K55: 23.63429257 | L55: 0 | M55: 35.82352941 | N55: 0 | O55: 15.94961639
A56: Avg Score | B56: 65.02276223 | D56: 186.3727596 | F56: 390.2297441 | H56: 402.4793287 | J56: 410.9364508 | L56: 699.9754902 | N56: 275.0370941
A57: Total Player Count | B57: 3251 | D57: 13781 | F57: 8479 | H57: 2443 | J57: 834 | L57: 408 | N57: 29196
A61: 4v4r - Most Recent Games
B62: Bronze | D62: Silver | F62: Gold | H62: Platinum | J62: Diamond | L62: Master | N62: Totals
A63: Category | B63: Last Week | C63: Last Month | D63: Last Week | E63: Last Month | F63: Last Week | G63: Last Month | H63: Last Week | I63: Last Month | J63: Last Week | K63: Last Month | L63: Last Week | M63: Last Month | N63: Last Week | O63: Last Month
A64: Totals | B64: 754 | C64: 1198 | D64: 361 | E64: 254 | F64: 4895 | G64: 3445 | H64: 185 | I64: 113 | J64: 894 | K64: 743 | L64: 5665 | M64: 5952 | N64: 12754 | O64: 11705
A65: At least 1 game within the last month | B65: 1952 | D65: 615 | F65: 8340 | H65: 298 | J65: 1637 | L65: 11617 | N65: 24459
B66: Avg Wins | C66: Avg Losses | D66: Avg Wins | E66: Avg Losses | F66: Avg Wins | G66: Avg Losses | H66: Avg Wins | I66: Avg Losses | J66: Avg Wins | K66: Avg Losses | L66: Avg Wins | M66: Avg Losses | N66: Avg Wins | O66: Avg Losses
A67: Games Count | B67: 0 | C67: 7.020527175 | D67: 0 | E67: 28.91517857 | F67: 0 | G67: 29.02239449 | H67: 0 | I67: 39.50773196 | J67: 0 | K67: 24.5555097 | L67: 0 | M67: 12.43719551 | N67: 0 | O67: 18.63599044
A68: Avg Score | B68: 73.99440168 | D68: 467.5412946 | F68: 460.0694229 | H68: 722.3118557 | J68: 387.7292612 | L68: 200.2151557 | N68: 295.2534556
A69: Total Player Count | B69: 4287 | D69: 896 | F69: 11610 | H69: 388 | J69: 2423 | L69: 18884 | N69: 38488
A73: Most Recent Game Played
A74: Percentages of Total | B74: Last Week | C74: Last Month
A75: 2v2 | B75: =N4/N9 -> 0.2345664487 | C75: =N5/N9 -> 0.5607845774
A76: 3v3 | B76: =N16/N21 -> 0.1793913043 | C76: =N17/N21 -> 0.5139130435
A77: 4v4 | B77: =N28/N33 -> 0.1397260274 | C77: =N29/N33 -> 0.4621917808
A78: 2v2 Random | B78: =N40/N45 -> 0.3062168011 | C78: =N41/N45 -> 0.6211226966
A79: 3v3 Random | B79: =N52/N57 -> 0.3051102891 | C79: =N53/N57 -> 0.6137484587
A80: 4v4 Random | B80: =N64/N69 -> 0.3313760133 | C80: =N65/N69 -> 0.6354967782
A84: Unique Player Counts
A85: Team Type | B85: Counts
A86: 2v2 | B86: =N9 -> 59497
A87: 3v3 | B87: =N21 -> 23000
A88: 4v4 | B88: =N33 -> 7300
A89: 2v2 Random | B89: =N45 -> 30498
A90: 3v3 Random | B90: =N57 -> 29196
A91: 4v4 Random | B91: =N69 -> 38488
A95: League Distributions - Based on Having Played At Least 1 Game Last Month | I95: League Distributions - All Teams
A96: Team Type | B96: Bronze | C96: Silver | D96: Gold | E96: Platinum | F96: Diamond | G96: Master | I96: Team Type | J96: Bronze | K96: Silver | L96: Gold | M96: Platinum | N96: Diamond | O96: Master
A97: 2v2 | B97: =B5/N5 -> 0.2452869774 | C97: =D5/N5 -> 0.2883860333 | D97: =F5/N5 -> 0.2960887157 | E97: =H5/N5 -> 0.1273490184 | F97: =J5/N5 -> 0.03584594635 | G97: =L5/N5 -> 0.007043308857 | I97: 2v2 | J97: =B9/N9 -> 0.2902499286 | K97: =D9/N9 -> 0.275728188 | L97: =F9/N9 -> 0.2789216263 | M97: =H9/N9 -> 0.1191152495 | N97: =J9/N9 -> 0.03050573979 | O97: =L9/N9 -> 0.005479267862
A98: 3v3 | B98: =B17/N17 -> 0.2407783418 | C98: =D17/N17 -> 0.3565989848 | D98: =F17/N17 -> 0.2911167513 | E98: =H17/N17 -> 0.08849407783 | F98: =J17/N17 -> 0.01937394247 | G98: =L17/N17 -> 0.003637901861 | I98: 3v3 | J98: =B21/N21 -> 0.2665217391 | K98: =D21/N21 -> 0.347173913 | L98: =F21/N21 -> 0.2826086957 | M98: =H21/N21 -> 0.08382608696 | N98: =J21/N21 -> 0.01739130435 | O98: =L21/N21 -> 0.00247826087
A99: 4v4 | B99: =B29/N29 -> 0.1404860699 | C99: =D29/N29 -> 0.3882631891 | D99: =F29/N29 -> 0.3156490812 | E99: =H29/N29 -> 0.1310017783 | F99: =J29/N29 -> 0.02222880854 | G99: =L29/N29 -> 0.00237107291 | I99: 4v4 | J99: =B33/N33 -> 0.1576712329 | K99: =D33/N33 -> 0.3857534247 | L99: =F33/N33 -> 0.3028767123 | M99: =H33/N33 -> 0.1309589041 | N99: =J33/N33 -> 0.02109589041 | O99: =L33/N33 -> 0.001643835616
A100: 2v2 Random | B100: =B41/N41 -> 0.06820461384 | C100: =D41/N41 -> 0.3586021222 | D100: =F41/N41 -> 0.3414453888 | E100: =H41/N41 -> 0.1512432033 | F100: =J41/N41 -> 0.06128913055 | G100: =L41/N41 -> 0.01921554136 | I100: 2v2 Random | J100: =B45/N45 -> 0.08777624762 | K100: =D45/N45 -> 0.3873696636 | L100: =F45/N45 -> 0.3203160863 | M100: =H45/N45 -> 0.1376811594 | N100: =J45/N45 -> 0.05134762935 | O100: =L45/N45 -> 0.01550921372
A101: 3v3 Random | B101: =B53/N53 -> 0.08158937441 | C101: =D53/N53 -> 0.4642000112 | D101: =F53/N53 -> 0.3173168146 | E101: =H53/N53 -> 0.09001618394 | F101: =J53/N53 -> 0.03013561025 | G101: =L53/N53 -> 0.01674200569 | I101: 3v3 Random | J101: =B57/N57 -> 0.11135087 | K101: =D57/N57 -> 0.4720167146 | L101: =F57/N57 -> 0.2904164954 | M101: =H57/N57 -> 0.08367584601 | N101: =J57/N57 -> 0.02856555693 | O101: =L57/N57 -> 0.01397451706
A102: 4v4 Random | B102: =B65/N65 -> 0.079807024 | C102: =D65/N65 -> 0.02514411873 | D102: =F65/N65 -> 0.3409787808 | E102: =H65/N65 -> 0.01218365428 | F102: =J65/N65 -> 0.06692832904 | G102: =L65/N65 -> 0.4749580931 | I102: 4v4 Random | J102: =B69/N69 -> 0.1113853669 | K102: =D69/N69 -> 0.02327998337 | L102: =F69/N69 -> 0.3016524631 | M102: =H69/N69 -> 0.01008106423 | N102: =J69/N69 -> 0.06295468718 | O102: =L69/N69 -> 0.4906464353
A104: 2v2 matched | B104: =A104&": "&$B$96&": "&ROUNDDOWN(B97,2)*100 & "% | " &$C$96&": "&ROUNDDOWN(C97,2)*100 & "% | " &$D$96&": "&ROUNDDOWN(D97,2)*100 & "% | " &$E$96&": "&ROUNDDOWN(E97,2)*100 & "% | " &$F$96&": "&ROUNDDOWN(F97,2)*100 & "% | " &$G$96&": "&ROUND(G97*100,2) & "% | " -> 2v2 matched: Bronze: 24% | Silver: 28% | Gold: 29% | Platinum: 12% | Diamond: 3% | Master: 0.7% |
A105: 3v3 matched | B105: =A105&": "&$B$96&": "&ROUNDDOWN(B98,2)*100 & "% | " &$C$96&": "&ROUNDDOWN(C98,2)*100 & "% | " &$D$96&": "&ROUNDDOWN(D98,2)*100 & "% | " &$E$96&": "&ROUNDDOWN(E98,2)*100 & "% | " &$F$96&": "&ROUNDDOWN(F98,2)*100 & "% | " &$G$96&": "&ROUND(G98*100,2) & "% | " -> 3v3 matched: Bronze: 24% | Silver: 35% | Gold: 29% | Platinum: 8% | Diamond: 1% | Master: 0.36% |
A106: 4v4 matched | B106: =A106&": "&$B$96&": "&ROUNDDOWN(B99,2)*100 & "% | " &$C$96&": "&ROUNDDOWN(C99,2)*100 & "% | " &$D$96&": "&ROUNDDOWN(D99,2)*100 & "% | " &$E$96&": "&ROUNDDOWN(E99,2)*100 & "% | " &$F$96&": "&ROUNDDOWN(F99,2)*100 & "% | " &$G$96&": "&ROUND(G99*100,2) & "% | " -> 4v4 matched: Bronze: 14% | Silver: 38% | Gold: 31% | Platinum: 13% | Diamond: 2% | Master: 0.24% |
A107: 2v2 random | B107: 2v2 random: Bronze: 6% | Silver: 35% | Gold: 34% | Platinum: 15% | Diamond: 6% | Master: 1.92% |
A108: 3v3 random | B108: 3v3 random: Bronze: 8% | Silver: 46% | Gold: 31% | Platinum: 9% | Diamond: 3% | Master: 1.67% |
A109: 4v4 random | B109: =A109&": "&$B$96&": "&ROUNDDOWN(B102,2)*100 & "% | " &$C$96&": "&ROUNDDOWN(C102,2)*100 & "% | " &$D$96&": "&ROUNDDOWN(D102,2)*100 & "% | " &$E$96&": "&ROUNDDOWN(E102,2)*100 & "% | " &$F$96&": "&ROUNDDOWN(F102,2)*100 & "% | " &$G$96&": "&ROUND(G102*100,2) & "% | " -> 4v4 random: Bronze: 7% | Silver: 2% | Gold: 34% | Platinum: 1% | Diamond: 6% | Master: 47.5% |

Sheet IDs
A1: Player IDs | B1: Team Type | D1: Unique IDs | E1: # of team types | F1: Only in team games (if error) | G1: Unique 1v1 | H1: Only in 1v1 (if error) | I1: # of team types | J1: # of team-only players | K1: # of 1v1-only players
A2: 1000011-1 | B2: 2v2 Team | D2: 1000011-1 | E2: 2 | F2: 1000011-1 | G2: 1775929-1 | I2: =IF(ISERROR(H2),0,VLOOKUP(G2,$D$2:$E$131758,2,FALSE)) -> 0 | J2: =COUNTIF(F2:F120892,"#N/A") -> 65043 | K2: =COUNTIF(H2:H120892,"#N/A") -> 60353
A3: 1000011-1 | B3: 4v4r | D3: 1000020-1 | E3: 4 | F3: 1000020-1 | G3: 1519203-1 | H3: 1519203-1 | I3: =IF(ISERROR(H3),0,VLOOKUP(G3,$D$2:$E$131758,2,FALSE)) -> 1
A4: 1000020-1 | B4: 2v2 Team | D4: 1000077-1 | E4: 1 | F4: 1000077-1 | G4: 3718627-1 | I4: =IF(ISERROR(H4),0,VLOOKUP(G4,$D$2:$E$131758,2,FALSE)) -> 0 | J4: Total 1v1 players | K4: =COUNTA(G2:G120892) -> 120891
A5: 1000020-1 | B5: 2v2r | D5: 1000100-1 | E5: 1 | G5: 957107-2 | H5: 957107-2 | I5: =IF(ISERROR(H5),0,VLOOKUP(G5,$D$2:$E$131758,2,FALSE)) -> 5 | J5: 1v1 players that also placed with a team type | K5: =K4-K2 -> 60538
A6: 1000020-1 | B6: 3v3r | D6: 1000115-1 | E6: 2 | G6: 3985197-1 | H6: 3985197-1 | I6: 7 | J6: # of 1v1 players that have completed placement matches for 3 or more team types | K6: =COUNTIF(I2:I120892,">=3") -> 21074
A7: 1000020-1 | B7: 4v4r | D7: 1000150-1 | E7: 1 | F7: 1000150-1 | G7: 4125103-1 | I7: 0 | J7: Team players that only placed with 1 team | K7: =COUNTIFS(E2:E120892,1,F2:F120892,"#N/A") -> 44129
A8: 1000077-1 | B8: 2v2 Team | D8: 1000156-1 | E8: 1 | G8: 412621-1 | H8: 412621-1 | I8: 7 | J8: % of team-only with only 1 team | K8: =K7/J2 -> 0.6784588657
A9: 1000100-1 | B9: 2v2r | D9: 1000163-1 | E9: 7 | F9: 1000163-1 | G9: 4644567-1 | H9: 4644567-1 | I9: 2 | J9: Most teams placed with | K9: =MAX(E2:E120892) -> 98
A10: 1000115-1 | B10: 3v3r | D10: 1000168-1 | E10: 1 | G10: 1488784-1 | I10: 0 | J10: Average # of team types | K10: =AVERAGE(E2:E131758) -> 2.108244723
A11: 1000115-1 | B11: 4v4r | D11: 1000178-1 | E11: 10 | G11: 168634-1 | I11: 0
A12: 1000150-1 | B12: 3v3r | D12: 1000179-1 | E12: 4 | F12: 1000179-1 | G12: 1238719-1 | H12: 1238719-1 | I12: 4
A13: 1000156-1 | B13: 2v2 Team | D13: 1000190-1 | E13: 1 | G13: 4419336-1 | H13: 4419336-1 | I13: 2
A14: 1000163-1 | B14: 2v2 Team | D14: 1000202-1 | E14: 1 | G14: 5082727-1 | I14: 0
A15: 1000163-1 | B15: 2v2 Team | D15: 1000219-1 | E15: 1 | G15: 5125848-1 | H15: 5125848-1 | I15: 1
A16: 1000163-1 | B16: 2v2 Team | D16: 1000232-1 | E16: 1 | G16: 5192554-1 | H16: 5192554-1 | I16: 1
A17: 1000163-1 | B17: 3v3 Team | D17: 1000244-1 | E17: 1 | F17: 1000244-1 | G17: 4380746-1 | H17: 4380746-1 | I17: 1
A18: 1000163-1 | B18: 3v3 Team | D18: 1000325-1 | E18: 1 | F18: 1000325-1 | G18: 4961947-1 | I18: 0
A19: 1000163-1 | B19: 3v3 Team | D19: 1000346-1 | E19: 1 | G19: 766593-2 | H19: 766593-2 | I19: 2
A20: 1000163-1 | B20: 4v4 Team | D20: 1000401-1 | E20: 1 | G20: 4172685-1 | H20: 4172685-1 | I20: 1
A21: 1000168-1 | B21: 4v4r | D21: 1000434-1 | E21: 1 | G21: 4856987-1 | I21: 0
A22: 1000178-1 | B22: 2v2 Team | D22: 1000449-1 | E22: 1 | G22: 3218013-1 | I22: 0
A23: 1000178-1 | B23: 2v2 Team | D23: 1000452-1 | E23: 3 | G23: 4488821-1 | H23: 4488821-1 | I23: 21
A24: 1000178-1 | B24: 3v3 Team | D24: 1000478-2 | E24: 1 | F24: 1000478-2 | G24: 4526390-1 | I24: 0
A25: 1000178-1 | B25: 3v3 Team | D25: 1000488-1 | E25: 1 | F25: 1000488-1 | G25: 1038999-1 | I25: 0
A26: 1000178-1 | B26: 3v3 Team | D26: 1000506-1 | E26: 1 | F26: 1000506-1 | G26: 5112292-1 | H26: 5112292-1 | I26: 4
A27: 1000178-1 | B27: 3v3 Team | D27: 1000507-1 | E27: 1 | G27: 4650830-1 | I27: 0
A28: 1000178-1 | B28: 4v4 Team | D28: 1000555-1 | E28: 3 | F28: 1000555-1 | G28: 1808135-1 | H28: 1808135-1 | I28: 1
A29: 1000178-1 | B29: 4v4 Team | D29: 1000597-1 | E29: 3 | F29: 1000597-1 | G29: 3007477-1 | H29: 3007477-1 | I29: 1
A30: 1000178-1 | B30: 4v4 Team | D30: 100066-2 | E30: 1 | G30: 468941-1 | H30: 468941-1 | I30: 1
A31: 1000178-1 | B31: 4v4 Team | D31: 1000688-2 | E31: 2 | G31: 5163241-1 | H31: 5163241-1 | I31: 1
A32: 1000179-1 | B32: 2v2 Team | D32: 1000699-1 | E32: 1 | G32: 5167268-1 | I32: 0
A33: 1000179-1 | B33: 3v3 Team | D33: 1000785-1 | E33: 3 | F33: 1000785-1 | G33: 4114511-1 | H33: 4114511-1 | I33: 2
A34: 1000179-1 | B34: 4v4 Team | D34: 1000786-2 | E34: 1 | G34: 280431-2 | H34: 280431-2 | I34: 2
A35: 1000179-1 | B35: 4v4r | D35: 1000794-1 | E35: 2 | G35: 1830178-1 | I35: 0
A36: 1000190-1 | B36: 3v3 Team | D36: 1000806-1 | E36: 2 | F36: 1000806-1 | G36: 4476215-1 | H36: 4476215-1 | I36: 1
A37: 1000202-1 | B37: 2v2r | D37: 1000811-1 | E37: 2 | G37: 3782614-1 | H37: 3782614-1 | I37: 1
A38: 1000219-1 | B38: 4v4r | D38: 1000831-1 | E38: 6 | G38: 4991751-1 | H38: 4991751-1 | I38: 1
A39: 1000232-1 | B39: 4v4r | D39: 1000875-1 | E39: 1 | G39: 1694501-1 | H39: 1694501-1 | I39: 1
A40: 1000244-1 | B40: 3v3r | D40: 100093-2 | E40: 1 | F40: 100093-2 | G40: 1805198-1 | H40: 1805198-1 | I40: 3
A41: 1000325-1 | B41: 2v2 Team | D41: 1000982-1 | E41: 1 | G41: 5171128-1 | H41: 5171128-1 | I41: 3
A42: 1000346-1 | B42: 2v2 Team | D42: 1001012-1 | E42: 1 | G42: 1792521-1 | I42: 0
A43: 1000401-1 | B43: 3v3r | D43: 1001020-1 | E43: 2 | G43: 1125378-1 | H43: 1125378-1 | I43: 2
A44: 1000434-1 | B44: 4v4r | D44: 1001044-1 | E44: 6 | G44: 5190714-1 | I44: 0
A45: 1000449-1 | B45: 2v2 Team | D45: 1001123-1 | E45: 2 | G45: 1054015-1 | H45: 1054015-1 | I45: 1
A46: 1000452-1 | B46: 2v2 Team | D46: 1001145-2 | E46: 1 | F46: 1001145-2 | G46: 1565632-1 | H46: 1565632-1 | I46: 3
A47: 1000452-1 | B47: 2v2r | D47: 1001185-1 | E47: 1 | G47: 4476339-1 | I47: 0
A48: 1000452-1 | B48: 4v4r | D48: 1001252-1 | E48: 2 | G48: 889370-1 | H48: 889370-1 | I48: 3
A49: 1000478-2 | B49: 2v2 Team | D49: 1001257-1 | E49: 2 | G49: 3472856-1 | H49: 3472856-1 | I49: 3
A50: 1000488-1 | B50: 2v2r | D50: 1001292-1 | E50: 1 | G50: 5140849-1 | I50: 0
A51: 1000506-1 | B51: 2v2r | D51: 1001297-1 | E51: 1 | G51: 5101480-1 | H51: 5101480-1 | I51: 1
A52: 1000507-1 | B52: 2v2 Team | D52: 1001314-1 | E52: 1 | G52: 5141582-1 | H52: 5141582-1 | I52: 3
A53: 1000555-1 | B53: 2v2 Team | D53: 1001387-1 | E53: 2 | G53: 968608-1 | I53: 0
A54: 1000555-1 | B54: 2v2 Team | D54: 100141-2 | E54: 1 | G54: 4890047-1 | H54: 4890047-1 | I54: 9
A55: 1000555-1 | B55: 2v2 Team | D55: 1001419-1 | E55: 1 | F55: 1001419-1 | G55: 5016126-1 | H55: 5016126-1 | I55: 2
A56: 1000597-1 | B56: 2v2 Team | D56: 1001443-1 | E56: 2 | G56: 2683676-1 | I56: 0
A57: 1000597-1 | B57: 2v2 Team | D57: 1001461-1 | E57: 1 | F57: 1001461-1 | G57: 2913555-1 | I57: 0
A58: 1000597-1 | B58: 2v2 Team | D58: 1001495-1 | E58: 11 | F58: 1001495-1 | G58: 3403365-1 | I58: 0
A59: 100066-2 | B59: 2v2 Team | D59: 1001508-1 | E59: 2 | G59: 3693281-1 | I59: 0
A60: 1000688-2 | B60: 2v2r | D60: 1001510-1 | E60: 1 | F60: 1001510-1 | G60: 4494522-1 | I60: 0
A61: 1000688-2 | B61: 3v3r | D61: 1001542-1 | E61: 10 | F61: 1001542-1 | G61: 5026752-1 | H61: 5026752-1 | I61: 1
A62: 1000699-1 | B62: 3v3 Team | D62: 1001577-1 | E62: 1 | G62: 4541532-1 | I62: 0
A63: 1000785-1 | B63: 2v2r | D63: 1001608-1 | E63: 2 | F63: 1001608-1 | G63: 4731817-1 | I63: 0
A64: 1000785-1 | B64: 3v3r | D64: 1001613-1 | E64: 2 | G64: 163101-2 | H64: 163101-2 | I64: 2
A65: 1000785-1 | B65: 4v4r | D65: 1001626-1 | E65: 2 | F65: 1001626-1 | G65: 3909168-1 | H65: 3909168-1 | I65: 7
A66: 1000786-2 | B66: 4v4r | D66: 1001682-1 | E66: 1 | G66: 1216436-1 | I66: 0
A67: 1000794-1 | B67: 3v3r | D67: 1001693-1 | E67: 1 | G67: 3466659-1 | H67: 3466659-1 | I67: 1
A68: 1000794-1 | B68: 4v4r | D68: 1001726-2 | E68: 2 | G68: 5037918-1 | I68: 0
A69: 1000806-1 | B69: 2v2 Team | D69: 1001730-2 | E69: 1 | G69: 5151639-1 | I69: =IF(ISERROR(H69),0,VLOOKUP(G69,$D$2:$E$131758,2,FALSE)) -> 0
A70: 1000806-1 | B70: 2v2 Team | D70: 1001787-1 | E70: 1 | G70: 1533759-1 | H70: 1533759-1 | I70: 2
A71: 1000811-1 | B71: 3v3r | D71: 1001797-1 | E71: 1 | G71: 5068260-1 | H71: 5068260-1 | I71: 1
A72: 1000811-1 | B72: 4v4r | D72: 1001798-1 | E72: 2 | F72: 1001798-1 | G72: 1121611-2 | H72: 1121611-2 | I72: 2
A73: 1000831-1 | B73: 2v2 Team | D73: 1001835-1 | E73: 1 | G73: 1850285-1 | I73: 0
A74: 1000831-1 | B74: 2v2 Team | D74: 1001838-1 | E74: 1 | F74: 1001838-1 | G74: 2920362-1 | I74: 0
A75: 1000831-1 | B75: 3v3 Team | D75: 1001852-1 | E75: 1 | F75: 1001852-1 | G75: 5219547-1 | H75: 5219547-1 | I75: 1
A76: 1000831-1 | B76: 3v3 Team | D76: 1001907-1 | E76: 1 | G76: 5043198-1 | H76: 5043198-1 | I76: 1
A77: 1000831-1 | B77: 2v2r | D77: 1001923-1 | E77: 1 | F77: 1001923-1 | G77: 5142431-1 | I77: 0
A78: 1000831-1 | B78: 3v3r | D78: 1001927-1 | E78: 3 | G78: 2376941-1 | I78: 0
A79: 1000875-1 | B79: 2v2 Team | D79: 1001948-1 | E79: 1 | G79: 4537213-1 | I79: 0
A80: 100093-2 | B80: 2v2r | D80: 100202-2 | E80: 3 | G80: 2270998-1 | I80: 0
A81: 1000982-1 | B81: 2v2 Team | D81: 1002110-1 | E81: 1 | G81: 2845956-1 | H81: 2845956-1 | I81: 1
A82: 1001012-1 | B82: 3v3r | D82: 10021-2 | E82: 1 | G82: 5185540-1 | I82: 0
A83: 1001020-1 | B83: 2v2 Team | D83: 1002127-2 | E83: 7 | F83: 1002127-2 | G83: 1136361-2 | H83: 1136361-2 | I83: 4
A84: 1001020-1 | B84: 3v3r | D84: 1002221-1 | E84: 1 | G84: 4969860-1 | I84: 0
A85: 1001044-1 | B85: 2v2 Team | D85: 100226-2 | E85: 1 | G85: 4839642-1 | H85: 4839642-1 | I85: 4
A86: 1001044-1 | B86: 2v2 Team | D86: 1002276-1 | E86: 1 | G86: 706047-1 | I86: 0
A87: 1001044-1 | B87: 3v3 Team | D87: 1002285-1 | E87: 1 | G87: 1817405-1 | H87: 1817405-1 | I87: 1
A88: 1001044-1 | B88: 2v2r | D88: 1002316-1 | E88: 1 | G88: 2006205-1 | I88: 0
A89: 1001044-1 | B89: 3v3r | D89: 1002320-1 | E89: 1 | G89: 3798565-1 | H89: 3798565-1 | I89: 1
A90: 1001044-1 | B90: 4v4r | D90: 1002327-1 | E90: 1 | F90: 1002327-1 | G90: 4045057-1 | I90: 0
A91: 1001123-1 | B91: 2v2 Team | D91: 100236-2 | E91: 2 | F91: 100236-2 | G91: 5165444-1 | H91: 5165444-1 | I91: 1
A92: 1001123-1 | B92: 2v2r | D92: 1002373-1 | E92: 2 | G92: 1250558-2 | H92: 1250558-2 | I92: 1
A93: 1001145-2 | B93: 2v2 Team | D93: 100238-2 | E93: 1 | G93: 4735218-1 | I93: 0
A94: 1001185-1 | B94: 2v2 Team | D94: 1002395-1 | E94: 4 | F94: 1002395-1 | G94: 5261454-1 | I94: 0
A95: 1001252-1 | B95: 2v2 Team | D95: 1002414-1 | E95: 1 | F95: 1002414-1 | G95: 1064045-1 | H95: 1064045-1 | I95: 1
A96: 1001252-1 | B96: 2v2r | D96: 1002442-1 | E96: 5 | G96: 3955227-1 | I96: 0
A97: 1001257-1 | B97: 2v2 Team | D97: 1002510-1 | E97: 1 | F97: 1002510-1 | G97: 866992-1 | H97: 866992-1 | I97: 1
A98: 1001257-1 | B98: 4v4r | D98: 1002527-2 | E98: 1 | G98: 1830032-1 | H98: 1830032-1 | I98: 3
A99: 1001292-1 | B99: 3v3r | D99: 1002528-1 | E99: 7 | G99: 2778697-1 | I99: 0
A100: 1001297-1 | B100: 2v2 Team | D100: 1002536-1 | E100: 1 | G100: 4519761-1 | I100: 0
A101: 1001314-1 | B101: 4v4 Team | D101: 1002541-2 | E101: 1 | G101: 574124-1 | I101: 0
A102: 1001387-1 | B102: 3v3 Team | D102: 1002568-1 | E102: 1 | G102: 4506494-1 | H102: 4506494-1 | I102: 1
A103: 1001387-1 | B103: 3v3 Team | D103: 1002569-1 | E103: 7 | F103: 1002569-1 | G103: 3015092-1 | I103: 0
A104: 100141-2 | B104: 2v2 Team | D104: 1002581-1 | E104: 1 | F104: 1002581-1 | G104: 1616657-1 | I104: 0
A105: 1001419-1 | B105: 2v2 Team | D105: 1002594-1 | E105: 4 | F105: 1002594-1 | G105: 2314805-1 | H105: 2314805-1 | I105: 7
A106: 1001443-1 | B106: 2v2 Team | D106: 1002605-1 | E106: 3 | F106: 1002605-1 | G106: 4897458-1 | H106: 4897458-1 | I106: 1
A107: 1001443-1 | B107: 3v3r | D107: 1002625-1 | E107: 7 | G107: 707394-1 | H107: 707394-1 | I107: 3
A108: 1001461-1 | B108: 4v4r | D108: 1002636-1 | E108: 1 | G108: 4296125-1 | H108: 4296125-1 | I108: 1
A109: 1001495-1 | B109: 2v2 Team | D109: 1002650-1 | E109: 3 | G109: 5134014-1 | H109: 5134014-1 | I109: 3
A110: 1001495-1 | B110: 2v2 Team | D110: 1002651-1 | E110: 1 | F110: 1002651-1 | G110: 466823-2 | H110: 466823-2 | I110: 1
A111: 1001495-1 | B111: 3v3 Team | D111: 1002658-1 | E111: 1 | G111: 3560320-1 | I111: 0
A112: 1001495-1 | B112: 3v3 Team | D112: 1002674-1 | E112: 1 | F112: 1002674-1 | G112: 1430575-1 | H112: 1430575-1 | I112: 2
A113: 1001495-1 | B113: 3v3 Team | D113: 1002716-1 | E113: 3 | G113: 3771230-1 | H113: 3771230-1 | I113: 3
A114: 1001495-1 | B114: 3v3 Team | D114: 1002725-1 | E114: 1 | G114: 4224737-1 | H114: 4224737-1 | I114: 15
A115: 1001495-1 | B115: 3v3 Team | D115: 1002739-1 | E115: 1 | G115: 4411926-1 | I115: 0
A116: 1001495-1 | B116: 3v3 Team | D116: 1002766-1 | E116: 1 | G116: 3400260-1 | I116: 0
A117: 1001495-1 | B117: 4v4 Team | D117: 1002782-1 | E117: 1 | F117: 1002782-1 | G117: 199159-1 | H117: 199159-1 | I117: 1
A118: 1001495-1 | B118: 4v4 Team | D118: 1002786-1 | E118: 3 | G118: 4075647-1 | H118: 4075647-1 | I118: 15
A119: 1001495-1 | B119: 4v4r | D119: 1002819-1 | E119: 3 | F119: 1002819-1 | G119: 849170-2 | I119: 0
A120: 1001508-1 | B120: 2v2 Team | D120: 1002821-1 | E120: 1 | F120: 1002821-1 | G120: 4414173-1 | I120: 0
A121: 1001508-1 | B121: 3v3 Team | D121: 1002874-1 | E121: 2 | G121: 4873611-1 | H121: 4873611-1 | I121: 1
A122: 1001510-1 | B122: 2v2r | D122: 1002909-1 | E122: 1 | G122: 4880485-1 | I122: 0
A123: 1001542-1 | B123: 2v2 Team | D123: 1002934-1 | E123: 1 | G123: 5165081-1 | H123: 5165081-1 | I123: 2
A124: 1001542-1 | B124: 2v2 Team | D124: 1002952-1 | E124: 1 | F124: 1002952-1 | G124: 1381010-1 | H124: 1381010-1 | I124: 1
A125: 1001542-1 | B125: 3v3 Team | D125: 1003008-1 | E125: 1 | G125: 2072101-1 | I125: 0
A126: 1001542-1 | B126: 3v3 Team | D126: 1003050-1 | E126: 1 | G126: 4010456-1 | H126: 4010456-1 | I126: 1
A127: 1001542-1 | B127: 3v3 Team | D127: 1003051-1 | E127: 1 | G127: 4882039-1 | I127: 0
A128: 1001542-1 | B128: 3v3 Team | D128: 1003057-1 | E128: 1 | G128: 5036515-1 | I128: 0
A129: 1001542-1 | B129: 3v3 Team | D129: 100306-2 | E129: 1 | G129: 4086973-1 | I129: 0
A130: 1001542-1 | B130: 3v3 Team | D130: 1003080-1 | E130: 5 | G130: 4140232-1 | I130: 0
A131: 1001542-1 | B131: 3v3 Team | D131: 1003091-1 | E131: 4 | F131: 1003091-1 | G131: 4706625-1 | I131: 0
A132: 1001542-1 | B132: 4v4 Team | D132: 1003098-1 | E132: 1 | G132: 686569-2 | H132: 686569-2 | I132: 3
A133: 1001577-1 | B133: 3v3 Team | D133: 1003201-1 | E133: 1 | G133: 1726089-1 | I133: =IF(ISERROR(H133),0,VLOOKUP(G133,$D$2:$E$131758,2,FALSE)) -> 0
A134: 1001608-1 | B134: 2v2 Team | D134: 1003229-2 | E134: 1 | G134: 2564630-1 | H134: 2564630-1 | I134: 2
A135: 1001608-1 | B135: 2v2r | D135: 100325-2 | E135: 1 | G135: 5093785-1 | I135: 0
A136: 1001613-1 | B136: 2v2 Team | D136: 1003256-1 | E136: 2 | F136: 1003256-1 | G136: 4211751-1 | I136: 0
A137: 1001613-1 | B137: 3v3 Team | D137: 1003283-1 | E137: 1 | F137: 1003283-1 | G137: 484555-1 | I137: 0
A138: 1001626-1 | B138: 2v2 Team | D138: 1003289-2 | E138: 1 | G138: 5224617-1 | I138: 0
A139: 1001626-1 | B139: 3v3 Team | D139: 1003299-1 | E139: 1 | G139: 3567061-1 | I139: 0
A140: 1001682-1 | B140: 2v2 Team | D140: 1003301-1 | E140: 1 | G140: 4439010-1 | I140: 0
A141: 1001693-1 | B141: 4v4r | D141: 1003311-1 | E141: 4 | G141: 5160183-1 | H141: 5160183-1 | I141: 4
A142: 1001726-2 | B142: 2v2 Team | D142: 1003333-1 | E142: 1 | G142: 51956-2 | I142: 0
A143: 1001726-2 | B143: 3v3 Team | D143: 1003393-2 | E143: 1 | G143: 706982-1 | I143: 0
A144: 1001730-2 | B144: 3v3r | D144: 1003413-1 | E144: 2 | F144: 1003413-1 | G144: 3423137-1 | I144: 0
A145: 1001787-1 | B145: 2v2 Team | D145: 100342-2 | E145: 1 | F145: 100342-2 | G145: 4168274-1 | H145: 4168274-1 | I145: 2
A146: 1001797-1 | B146: 3v3 Team | D146: 1003432-1 | E146: 2 | G146: 294367-2 | I146: 0
A147: 1001798-1 | B147: 2v2 Team | D147: 1003478-1 | E147: 5 | F147: 1003478-1 | G147: 3422480-1 | I147: 0
A148: 1001798-1 | B148: 2v2 Team | D148: 1003540-1 | E148: 2 | G148: 2233249-1 | I148: 0
A149: 1001835-1 | B149: 2v2 Team | D149: 1003549-1 | E149: 2 | F149: 1003549-1 | G149: 2321848-1 | I149: 0
A150: 1001838-1 | B150: 2v2 Team | D150: 1003560-1 | E150: 3 | G150: 3953214-1 | H150: 3953214-1 | I150: 1
A151: 1001852-1 | B151: 2v2r | D151: 1003602-1 | E151: 1 | G151: 4629748-1 | H151: 4629748-1 | I151: 2
A152: 1001907-1 | B152: 2v2 Team | D152: 1003623-1 | E152: 1 | G152: 66395-2 | I152: 0
A153: 1001923-1 | B153: 2v2 Team | D153: 1003637-1 | E153: 1 | F153: 1003637-1 | G153: 4420024-1 | H153: 4420024-1 | I153: 2
A154: 1001927-1 | B154: 2v2 Team | D154: 1003662-1 | E154: 2 | G154: 5159130-1 | H154: 5159130-1 | I154: 1
A155: 1001927-1 | B155: 2v2 Team | D155: 1003675-1 | E155: 3 | F155: 1003675-1 | G155: 2990242-1 | H155: 2990242-1 | I155: 1
A156: 1001927-1 | B156: 3v3 Team | D156: 1003683-1 | E156: 5 | F156: 1003683-1 | G156: 5224688-1 | I156: 0
A157: 1001948-1 | B157: 2v2 Team | D157: 1003738-1 | E157: 1 | F157: 1003738-1 | G157: 2080457-1 | I157: 0
A158: 100202-2 | B158: 2v2 Team | D158: 1003775-1 | E158: 2 | F158: 1003775-1 | G158: 4376617-1 | I158: 0
A159: 100202-2 | B159: 2v2r | D159: 1003891-1 | E159: 1 | G159: 4999982-1 | I159: 0
A160: 100202-2 | B160: 4v4r | D160: 1003938-1 | E160: 1 | F160: 1003938-1 | G160: 5082293-1 | H160: 5082293-1 | I160: 6
A161: 1002110-1 | B161: 2v2 Team | D161: 1004052-1 | E161: 4 | F161: 1004052-1 | G161: 5125777-1 | H161: 5125777-1 | I161: 1
A162: 10021-2 | B162: 2v2r | D162: 100407-2 | E162: 1 | F162: 100407-2 | G162: 5131585-1 | H162: 5131585-1 | I162: 1
A163: 1002127-2 | B163: 2v2 Team | D163: 1004079-1 | E163: 1 | F163: 1004079-1 | G163: 629067-1 | I163: 0
A164: 1002127-2 | B164: 2v2 Team | D164: 1004194-1 | E164: 3 | G164: 3226258-1 | I164: 0
A165: 1002127-2 | B165: 3v3 Team | D165: 1004206-1 | E165: 2 | F165: 1004206-1 | G165: 4045091-1 | I165: 0
A166: 1002127-2 | B166: 3v3 Team | D166: 1004212-1 | E166: 1 | G166: 4587825-1 | H166: 4587825-1 | I166: 4
A167: 1002127-2 | B167: 4v4 Team | D167: 1004219-1 | E167: 1 | G167: 4930295-1 | H167: 4930295-1 | I167: 2
A168: 1002127-2 | B168: 2v2r | D168: 1004223-1 | E168: 14 | F168: 1004223-1 | G168: 213634-1 | H168: 213634-1 | I168: 2
A169: 1002127-2 | B169: 4v4r | D169: 1004241-2 | E169: 2 | F169: 1004241-2 | G169: 1142294-1 | I169: 0
A170: 1002221-1 | B170: 3v3r | D170: 100434-2 | E170: 2 | G170: 2855800-1 | H170: 2855800-1 | I170: 5
A171: 100226-2 | B171: 2v2 Team | D171: 1004353-1 | E171: 2 | G171: 2697953-1 | H171: 2697953-1 | I171: 2
A172: 1002276-1 | B172: 2v2 Team | D172: 1004379-2 | E172: 1 | F172: 1004379-2 | G172: 4119173-1 | I172: 0
A173: 1002285-1 | B173: 3v3 Team | D173: 1004421-1 | E173: 1 | G173: 4317576-1 | H173: 4317576-1 | I173: 3
A174: 1002316-1 | B174: 2v2 Team | D174: 1004449-1 | E174: 5 | F174: 1004449-1 | G174: 3875522-1 | H174: 3875522-1 | I174: 1
A175: 1002320-1 | B175: 4v4r | D175: 1004467-1 | E175: 1 | G175: 1659434-1 | H175: 1659434-1 | I175: 1
A176: 1002327-1 | B176: 4v4r | D176: 100450-2 | E176: 1 | G176: 4982283-1 | I176: 0
A177: 100236-2 | B177: 2v2r | D177: 1004544-1 | E177: 7 | F177: 1004544-1 | G177: 787004-1 | I177: 0
A178: 100236-2 | B178: 4v4r | D178: 1004552-1 | E178: 2 | F178: 1004552-1 | G178: 4859156-1 | I178: 0
A179: 1002373-1 | B179: 2v2 Team | D179: 1004579-2 | E179: 1 | G179: 4457805-1 | I179: 0
A180: 1002373-1 | B180: 3v3 Team | D180: 1004588-1 | E180: 2 | G180: 3322266-1 | I180: 0
A181: 100238-2 | B181: 3v3r | D181: 1004591-2 | E181: 4 | F181: 1004591-2 | G181: 3591905-1 | H181: 3591905-1 | I181: 3
A182: 1002395-1 | B182: 2v2 Team | D182: 1004626-2 | E182: 1 | F182: 1004626-2 | G182: 4694240-1 | H182: 4694240-1 | I182: 1
A183: 1002395-1 | B183: 2v2r | D183: 1004696-1 | E183: 1 | G183: 744912-2 | H183: 744912-2 | I183: 1
A184: 1002395-1 | B184: 3v3r | D184: 1004734-2 | E184: 3 | F184: 1004734-2 | G184: 1413500-1 | H184: 1413500-1 | I184: 1
A185: 1002395-1 | B185: 4v4r | D185: 100476-2 | E185: 1 | G185: 1539451-1 | I185: 0
A186: 1002414-1 | B186: 2v2 Team | D186: 100477-2 | E186: 1 | G186: 1300002-1 | I186: 0
A187: 1002442-1 | B187: 2v2 Team | D187: 1004784-1 | E187: 1 | F187: 1004784-1 | G187: 1419628-1 | H187: 1419628-1 | I187: 1
A188: 1002442-1 | B188: 2v2 Team | D188: 1004788-1 | E188: 1 | G188: 4860014-1 | H188: 4860014-1 | I188: 1
A189: 1002442-1 | B189: 3v3 Team | D189: 100484-2 | E189: 1 | G189: 1706547-1 | H189: 1706547-1 | I189: 1
A190: 1002442-1 | B190: 2v2r | D190: 1004880-1 | E190: 2 | F190: 1004880-1 | G190: 4245080-1 | H190: 4245080-1 | I190: 5
A191: 1002442-1 | B191: 3v3r | D191: 1004890-2 | E191: 1 | G191: 202191-2 | H191: 202191-2 | I191: 3
A192: 1002510-1 | B192: 2v2 Team | D192: 1004899-2 | E192: 1 | F192: 1004899-2 | G192: 869406-1 | H192: 869406-1 | I192: 1
A193: 1002527-2 | B193: 3v3r | D193: 1004902-2 | E193: 1 | G193: 343856-1 | I193: 0
A194: 1002528-1 | B194: 2v2 Team | D194: 1004913-1 | E194: 1 | G194: 1646007-1 | I194: 0
A195: 1002528-1 | B195: 2v2 Team | D195: 1004928-1 | E195: 1 | F195: 1004928-1 | G195: 1189852-1 | H195: 1189852-1 | I195: 3
A196: 1002528-1 | B196: 3v3 Team | D196: 1004946-1 | E196: 1 | G196: 2003585-1 | H196: 2003585-1 | I196: 1
A197: 1002528-1 | B197: 3v3 Team | D197: 1004975-1 | E197: 1 | G197: 625073-2 | I197: =IF(ISERROR(H197),0,VLOOKUP(G197,$D$2:$E$131758,2,FALSE)) -> 0
A198: 1002528-1 | B198: 4v4 Team | D198: 1004984-1 | E198: 1 | F198: 1004984-1 | G198: 2646862-1 | I198: 0
A199: 1002528-1 | B199: 2v2r | D199: 1005006-1 | E199: 2 | F199: 1005006-1 | G199: 1091836-1 | I199: 0
A200: 1002528-1 | B200: 4v4r | D200: 1005008-1 | E200: 1 | G200: 4837849-1 | H200: 4837849-1 | I200: 3
... 4300 more rows

Sheet 2v2Team
A1: Player ID 1 | B1: Player 1 Region | C1: Player 1 Subregion | D1: Player 1 Name | E1: Player 1 Race | F1: Player ID 2 | G1: Player 2 Region | H1: Player 2 Subregion | I1: Player 2 Name | J1: Player 2 Race | K1: League | L1: Win | M1: Loss | N1: Score | O1: Date Joined | P1: Last Game | Q1: Timestamp | R1: TrueID | S1: Duplicate Check | T1: Ordered ID
A2: 4637986 | B2: eu | C2: 1 | D2: TheDestroyer | E2: t | F2: 4306198 | G2: eu | H2: 1 | I2: Truxton | J2: t | K2: Bronze | L2: 33 | M2: 34 | N2: 936 | O2: 2014-07-18 | P2: 1 hours | Q2: 2014-09-20T12:32:34 | R2: 4637986-1|4306198-1 | S2: 0 | T2: 2
A3: 2386088 | B3: eu | C3: 1 | D3: Kermit | E3: t | F3: 2266928 | G3: eu | H3: 1 | I3: Bloody | J3: p | K3: Bronze | L3: 42 | M3: 47 | N3: 935 | O3: 2014-07-08 | P3: 18 hours | Q3: 2014-09-20T12:32:34 | R3: 2386088-1|2266928-1 | S3: 0 | T3: 3
A4: 975437 | B4: eu | C4: 2 | D4: TheLemyp | E4: p | F4: 4942774 | G4: eu | H4: 1 | I4: Morathis | J4: z | K4: Bronze | L4: 56 | M4: 62 | N4: 922 | O4: 2014-07-30 | P4: 3 hours | Q4: 2014-09-20T12:32:34 | R4: 975437-2|4942774-1 | S4: 0 | T4: 4
A5: 2512923 | B5: eu | C5: 1 | D5: LouL | E5: t | F5: 1157484 | G5: eu | H5: 1 | I5: nervgehring | J5: t | K5: Bronze | L5: 36 | M5: 38 | N5: 920 | O5: 2014-07-11 | P5: 18 hours | Q5: 2014-09-20T12:32:34 | R5: 2512923-1|1157484-1 | S5: 0 | T5: 5
A6: 3319066 | B6: eu | C6: 1 | D6: dimis | E6: p | F6: 3278939 | G6: eu | H6: 1 | I6: remi | J6: t | K6: Bronze | L6: 39 | M6: 49 | N6: 908 | O6: 2014-07-15 | P6: 2 days | Q6: 2014-09-20T12:32:34 | R6: 3319066-1|3278939-1 | S6: 0 | T6: 6
A7: 1386551 | B7: eu | C7: 1 | D7: yaRRak | E7: p | F7: 319054 | G7: eu | H7: 1 | I7: Rbgr | J7: t | K7: Bronze | L7: 38 | M7: 43 | N7: 902 | O7: 2014-09-06 | P7: 1 days | Q7: 2014-09-20T12:32:34 | R7: 1386551-1|319054-1 | S7: 0 | T7: 7
A8: 772126 | B8: eu | C8: 1 | D8: Koden | E8: r | F8: 770226 | G8: eu | H8: 1 | I8: Rachet | J8: r | K8: Bronze | L8: 50 | M8: 65 | N8: 900 | O8: 2014-08-22 | P8: 2 hours | Q8: 2014-09-20T12:32:34 | R8: 772126-1|770226-1 | S8: 0 | T8: 8
A9: 1379315 | B9: eu | C9: 1 | D9: Enrack | E9: z | F9: 1339793 | G9: eu | H9: 1 | I9: Playermafiou | J9: t | K9: Bronze | L9: 41 | M9: 49 | N9: 899 | O9: 2014-07-10 | P9: 20 hours | Q9: 2014-09-20T12:32:34 | R9: 1379315-1|1339793-1 | S9: 0 | T9: 9
A10: 5157579 | B10: eu | C10: 1 | D10: freakblood | E10: t | F10: 5117638 | G10: eu | H10: 1 | I10: Hason | J10: t | K10: Bronze | L10: 53 | M10: 75 | N10: 895 | O10: 2014-08-26 | P10: 6 hours | Q10: 2014-09-20T12:32:34 | R10: 5157579-1|5117638-1 | S10: 0 | T10: 10
A11: 5168051 | B11: eu | C11: 1 | D11: bisounours | E11: t | F11: 3128695 | G11: eu | H11: 1 | I11: Hiro | J11: t | K11: Bronze | L11: 61 | M11: 74 | N11: 894 | O11: 2014-08-11 | P11: 1 hours | Q11: 2014-09-20T12:32:34 | R11: 5168051-1|3128695-1 | S11: 0 | T11: 11
A12: 5167906 | B12: eu | C12: 1 | D12: kasper | E12: t | F12: 1758846 | G12: eu | H12: 1 | I12: stefan | J12: p | K12: Bronze | L12: 38 | M12: 44 | N12: 893 | O12: 2014-08-15 | P12: 22 hours | Q12: 2014-09-20T12:32:34 | R12: 5167906-1|1758846-1 | S12: 0 | T12: 12
A13: 749221 | B13: eu | C13: 2 | D13: Loki | E13: t | F13: 4049591 | G13: eu | H13: 1 | I13: BrightHeart | J13: p | K13: Bronze | L13: 38 | M13: 47 | N13: 891 | O13: 2014-08-12 | P13: 3 days | Q13: 2014-09-20T12:32:34 | R13: 749221-2|4049591-1 | S13: 0 | T13: 13
A14: 5152388 | B14: eu | C14: 1 | D14: Manto | E14: p | F14: 4703144 | G14: eu | H14: 1 | I14: Remy | J14: p | K14: Bronze | L14: 109 | M14: 139 | N14: 890 | O14: 2014-08-12 | P14: 19 hours | Q14: 2014-09-20T12:32:34 | R14: 5152388-1|4703144-1 | S14: 0 | T14: 14
A15: 4552983 | B15: eu | C15: 1 | D15: Frederik | E15: z | F15: 3623419 | G15: eu | H15: 1 | I15: Frost | J15: t | K15: Bronze | L15: 63 | M15: 80 | N15: 889 | O15: 2014-07-07 | P15: 19 hours | Q15: 2014-09-20T12:32:34 | R15: 4552983-1|3623419-1 | S15: 0 | T15: 15
A16: 3559635 | B16: eu | C16: 1 | D16: bozan | E16: z | F16: 3354828 | G16: eu | H16: 1 | I16: BadRock | J16: z | K16: Bronze | L16: 49 | M16: 55 | N16: 888 | O16: 2014-07-08 | P16: 1 days | Q16: 2014-09-20T12:32:34 | R16: 3559635-1|3354828-1 | S16: 0 | T16: 16
A17: 3474866 | B17: eu | C17: 1 | D17: kamil | E17: z | F17: 2475000 | G17: eu | H17: 1 | I17: Mihi | J17: t | K17: Bronze | L17: 37 | M17: 53 | N17: 888 | O17: 2014-07-11 | P17: 6 hours | Q17: 2014-09-20T12:32:34 | R17: 3474866-1|2475000-1 | S17: 0 | T17: 17
A18: 4985981 | B18: eu | C18: 1 | D18: Ovidiu | E18: t | F18: 1699557 | G18: eu | H18: 1 | I18: Vladut | J18: t | K18: Bronze | L18: 72 | M18: 89 | N18: 887 | O18: 2014-07-21 | P18: 1 hours | Q18: 2014-09-20T12:32:34 | R18: 4985981-1|1699557-1 | S18: 0 | T18: 18
A19: 5132516 | B19: eu | C19: 1 | D19: JÃ©JÃ© | E19: p | F19: 5041777 | G19: eu | H19: 1 | I19: Tarainn | J19: p | K19: Bronze | L19: 32 | M19: 37 | N19: 886 | O19: 2014-08-29 | P19: 2 days | Q19: 2014-09-20T12:32:34 | R19: 5132516-1|5041777-1 | S19: 0 | T19: 19
A20: 823788 | B20: eu | C20: 2 | D20: swan | E20: r | F20: 693671 | G20: eu | H20: 2 | I20: NiceSpirit | J20: z | K20: Bronze | L20: 67 | M20: 78 | N20: 885 | O20: 2014-07-11 | P20: 2 hours | Q20: 2014-09-20T12:32:34 | R20: 823788-2|693671-2 | S20: 0 | T20: 20
A21: 71765 | B21: eu | C21: 2 | D21: ALN | E21: t | F21: 47011 | G21: eu | H21: 2 | I21: LNW | J21: z | K21: Bronze | L21: 37 | M21: 41 | N21: 884 | O21: 2014-08-17 | P21: 19 hours | Q21: 2014-09-20T12:32:34 | R21: 71765-2|47011-2 | S21: 0 | T21: 21
A22: 4552067 | B22: eu | C22: 1 | D22: Deva | E22: p | F22: 4036769 | G22: eu | H22: 1 | I22: huntersxt | J22: r | K22: Bronze | L22: 83 | M22: 105 | N22: 882 | O22: 2014-08-23 | P22: 2 days | Q22: 2014-09-20T12:32:34 | R22: 4552067-1|4036769-1 | S22: 0 | T22: 22
A23: 3915006 | B23: eu | C23: 1 | D23: Immelmann | E23: t | F23: 3913911 | G23: eu | H23: 1 | I23: Greavous | J23: p | K23: Bronze | L23: 67 | M23: 85 | N23: 882 | O23: 2014-07-12 | P23: 19 hours | Q23: 2014-09-20T12:32:34 | R23: 3915006-1|3913911-1 | S23: 0 | T23: 23
A24: 1905054 | B24: eu | C24: 1 | D24: Ellie | E24: p | F24: 554350 | G24: eu | H24: 1 | I24: Aaron | J24: z | K24: Bronze | L24: 60 | M24: 67 | N24: 880 | O24: 2014-07-14 | P24: 20 hours | Q24: 2014-09-20T12:32:34 | R24: 1905054-1|554350-1 | S24: 0 | T24: 24
A25: 3283878 | B25: eu | C25: 1 | D25: DHAM | E25: p | F25: 3169294 | G25: eu | H25: 1 | I25: Rocco | J25: t | K25: Bronze | L25: 132 | M25: 160 | N25: 879 | O25: 2014-07-07 | P25: 1 hours | Q25: 2014-09-20T12:32:34 | R25: 3283878-1|3169294-1 | S25: 0 | T25: 25
A26: 729810 | B26: eu | C26: 1 | D26: DarC | E26: r | F26: 233666 | G26: eu | H26: 1 | I26: squishy | J26: r | K26: Bronze | L26: 85 | M26: 104 | N26: 877 | O26: 2014-07-07 | P26: 5 days | Q26: 2014-09-20T12:32:34 | R26: 729810-1|233666-1 | S26: 0 | T26: 26
A27: 4400052 | B27: eu | C27: 1 | D27: sosotrib | E27: p | F27: 4392647 | G27: eu | H27: 1 | I27: Aikinono | J27: t | K27: Bronze | L27: 60 | M27: 75 | N27: 877 | O27: 2014-07-07 | P27: 16 hours | Q27: 2014-09-20T12:32:34 | R27: 4400052-1|4392647-1 | S27: 0 | T27: 27
A28: 416494 | B28: eu | C28: 1 | D28: Egon | E28: t | F28: 249119 | G28: eu | H28: 1 | I28: SiLentmuse | J28: t | K28: Bronze | L28: 31 | M28: 40 | N28: 877 | O28: 2014-08-03 | P28: 2 days | Q28: 2014-09-20T12:32:34 | R28: 416494-1|249119-1 | S28: 0 | T28: 28
A29: 3326801 | B29: eu | C29: 1 | D29: CHiLLiPiPS | E29: t | F29: 3132879 | G29: eu | H29: 1 | I29: JouBliksem | J29: p | K29: Bronze | L29: 29 | M29: 35 | N29: 876 | O29: 2014-07-26 | P29: 10 hours | Q29: 2014-09-20T12:32:34 | R29: 3326801-1|3132879-1 | S29: 0 | T29: 29
A30: 3433877 | B30: eu | C30: 1 | D30: xSIRxTx | E30: p | F30: 1136184 | G30: eu | H30: 1 | I30: GeneralGrull | J30: z | K30: Bronze | L30: 52 | M30: 65 | N30: 874 | O30: 2014-07-11 | P30: 2 days | Q30: 2014-09-20T12:32:34 | R30: 3433877-1|1136184-1 | S30: 0 | T30: 30
A31: 2316060 | B31: eu | C31: 1 | D31: chalumeau | E31: t | F31: 489950 | G31: eu | H31: 1 | I31: phoenix | J31: r | K31: Bronze | L31: 52 | M31: 65 | N31: 872 | O31: 2014-07-07 | P31: 1 days | Q31: 2014-09-20T12:32:34 | R31: 2316060-1|489950-1 | S31: 0 | T31: 31
A32: 1171627 | B32: eu | C32: 1 | D32: Arutha | E32: r | F32: 992803 | G32: eu | H32: 1 | I32: Elvince | J32: r | K32: Bronze | L32: 51 | M32: 54 | N32: 871 | O32: 2014-07-13 | P32: 6 days | Q32: 2014-09-20T12:32:34 | R32: 1171627-1|992803-1 | S32: 0 | T32: 32
A33: 3458090 | B33: eu | C33: 1 | D33: Itrom | E33: t | F33: 3435097 | G33: eu | H33: 1 | I33: Vali | J33: p | K33: Bronze | L33: 30 | M33: 29 | N33: 870 | O33: 2014-08-19 | P33: 1 days | Q33: 2014-09-20T12:32:34 | R33: 3458090-1|3435097-1 | S33: 0 | T33: 33
A34: 621436 | B34: eu | C34: 1 | D34: Twister | E34: p | F34: 408762 | G34: eu | H34: 1 | I34: KaimArgonar | J34: r | K34: Bronze | L34: 48 | M34: 55 | N34: 868 | O34: 2014-07-11 | P34: 19 hours | Q34: 2014-09-20T12:32:34 | R34: 621436-1|408762-1 | S34: 0 | T34: 34
A35: 2411894 | B35: eu | C35: 1 | D35: cmdcafÃ© | E35: t | F35: 2076148 | G35: eu | H35: 1 | I35: HÃ¤gen | J35: t | K35: Bronze | L35: 60 | M35: 65 | N35: 867 | O35: 2014-07-10 | P35: 5 days | Q35: 2014-09-20T12:32:34 | R35: 2411894-1|2076148-1 | S35: 0 | T35: 35
A36: 2005201 | B36: eu | C36: 1 | D36: Inspiration | E36: t | F36: 707105 | G36: eu | H36: 1 | I36: flashscorer | J36: t | K36: Bronze | L36: 36 | M36: 41 | N36: 867 | O36: 2014-08-02 | P36: 5 days | Q36: 2014-09-20T12:32:34 | R36: 2005201-1|707105-1 | S36: 0 | T36: 36
A37: 2132181 | B37: eu | C37: 1 | D37: Qwerty | E37: r | F37: 1451085 | G37: eu | H37: 1 | I37: Karnos | J37: p | K37: Bronze | L37: 60 | M37: 74 | N37: 867 | O37: 2014-07-09 | P37: 1 days | Q37: 2014-09-20T12:32:34 | R37: 2132181-1|1451085-1 | S37: 0 | T37: 37
A38: 5147794 | B38: eu | C38: 1 | D38: Pedro | E38: t | F38: 1824552 | G38: eu | H38: 1 | I38: Dani | J38: p | K38: Bronze | L38: 58 | M38: 65 | N38: 863 | O38: 2014-08-06 | P38: 6 hours | Q38: 2014-09-20T12:32:34 | R38: 5147794-1|1824552-1 | S38: 0 | T38: 38
A39: 4965515 | B39: eu | C39: 1 | D39: coldjuice | E39: p | F39: 498333 | G39: eu | H39: 1 | I39: Soonio | J39: t | K39: Bronze | L39: 126 | M39: 152 | N39: 863 | O39: 2014-07-09 | P39: 19 hours | Q39: 2014-09-20T12:32:34 | R39: 4965515-1|498333-1 | S39: 0 | T39: 39
A40: 4783856 | B40: eu | C40: 1 | D40: Elwray | E40: t | F40: 1859879 | G40: eu | H40: 1 | I40: JohnnyBgoode | J40: z | K40: Bronze | L40: 62 | M40: 72 | N40: 862 | O40: 2014-08-14 | P40: 6 days | Q40: 2014-09-20T12:32:34 | R40: 4783856-1|1859879-1 | S40: 0 | T40: 40
A41: 1270207 | B41: eu | C41: 2 | D41: Dmitrii | E41: t | F41: 3752805 | G41: eu | H41: 1 | I41: Madro | J41: t | K41: Bronze | L41: 37 | M41: 52 | N41: 860 | O41: 2014-08-12 | P41: 1 days | Q41: 2014-09-20T12:32:34 | R41: 1270207-2|3752805-1 | S41: 0 | T41: 41
A42: 747833 | B42: eu | C42: 2 | D42: Dragos | E42: p | F42: 21330 | G42: eu | H42: 2 | I42: DRAGOS | J42: r | K42: Bronze | L42: 39 | M42: 48 | N42: 856 | O42: 2014-09-09 | P42: 8 days | Q42: 2014-09-20T12:32:34 | R42: 747833-2|21330-2 | S42: 0 | T42: 42
A43: 2974713 | B43: eu | C43: 1 | D43: ODIN | E43: t | F43: 2185563 | G43: eu | H43: 1 | I43: David | J43: r | K43: Bronze | L43: 50 | M43: 64 | N43: 856 | O43: 2014-08-26 | P43: 3 days | Q43: 2014-09-20T12:32:34 | R43: 2974713-1|2185563-1 | S43: 0 | T43: 43
A44: 1216679 | B44: eu | C44: 2 | D44: JetBoy | E44: t | F44: 1212546 | G44: eu | H44: 2 | I44: Ð”Ð¸Ð¼Ð° | J44: z | K44: Bronze | L44: 45 | M44: 58 | N44: 856 | O44: 2014-07-07 | P44: 1 days | Q44: 2014-09-20T12:32:34 | R44: 1216679-2|1212546-2 | S44: 0 | T44: 44
A45: 3023039 | B45: eu | C45: 1 | D45: Everflame | E45: p | F45: 2134264 | G45: eu | H45: 1 | I45: Frozan | J45: z | K45: Bronze | L45: 45 | M45: 52 | N45: 855 | O45: 2014-07-20 | P45: 1 days | Q45: 2014-09-20T12:32:34 | R45: 3023039-1|2134264-1 | S45: 0 | T45: 45
A46: 3610207 | B46: eu | C46: 1 | D46: Massero | E46: t | F46: 417009 | G46: eu | H46: 1 | I46: Bufu | J46: p | K46: Bronze | L46: 36 | M46: 44 | N46: 850 | O46: 2014-07-31 | P46: 1 hours | Q46: 2014-09-20T12:32:34 | R46: 3610207-1|417009-1 | S46: 0 | T46: 46
A47: 3492491 | B47: eu | C47: 1 | D47: temyraz | E47: r | F47: 2050715 | G47: eu | H47: 1 | I47: stosem | J47: r | K47: Bronze | L47: 43 | M47: 53 | N47: 847 | O47: 2014-07-21 | P47: 8 days | Q47: 2014-09-20T12:32:34 | R47: 3492491-1|2050715-1 | S47: 0 | T47: 47
A48: 3282187 | B48: eu | C48: 1 | D48: Mutxo | E48: t | F48: 2471249 | G48: eu | H48: 1 | I48: Hugo | J48: z | K48: Bronze | L48: 50 | M48: 60 | N48: 846 | O48: 2014-08-11 | P48: 8 days | Q48: 2014-09-20T12:32:34 | R48: 3282187-1|2471249-1 | S48: 0 | T48: 48
A49: 4975508 | B49: eu | C49: 1 | D49: TiDoooG | E49: z | F49: 4935362 | G49: eu | H49: 1 | I49: IntooDarknes | J49: p | K49: Bronze | L49: 31 | M49: 43 | N49: 846 | O49: 2014-09-07 | P49: 1 days | Q49: 2014-09-20T12:32:34 | R49: 4975508-1|4935362-1 | S49: 0 | T49: 49
A50: 1060010 | B50: eu | C50: 2 | D50: Jimi | E50: r | F50: 4286831 | G50: eu | H50: 1 | I50: znoy | J50: r | K50: Bronze | L50: 41 | M50: 50 | N50: 839 | O50: 2014-07-21 | P50: 18 hours | Q50: 2014-09-20T12:32:34 | R50: 1060010-2|4286831-1 | S50: 0 | T50: 50
A51: 2590761 | B51: eu | C51: 1 | D51: DarkAngel | E51: t | F51: 1274753 | G51: eu | H51: 1 | I51: Chuck | J51: p | K51: Bronze | L51: 63 | M51: 75 | N51: 836 | O51: 2014-07-12 | P51: 6 minutes | Q51: 2014-09-20T12:32:34 | R51: 2590761-1|1274753-1 | S51: 0 | T51: 51
A52: 4881611 | B52: eu | C52: 1 | D52: Maxtron | E52: p | F52: 4519495 | G52: eu | H52: 1 | I52: Ranschez | J52: t | K52: Bronze | L52: 50 | M52: 60 | N52: 836 | O52: 2014-07-07 | P52: 22 hours | Q52: 2014-09-20T12:32:34 | R52: 4881611-1|4519495-1 | S52: 0 | T52: 52
A53: 693653 | B53: eu | C53: 2 | D53: Mishenko | E53: t | F53: 1829415 | G53: eu | H53: 1 | I53: VlaDimiR | J53: z | K53: Bronze | L53: 35 | M53: 35 | N53: 834 | O53: 2014-08-23 | P53: 5 days | Q53: 2014-09-20T12:32:34 | R53: 693653-2|1829415-1 | S53: 0 | T53: 53
A54: 842880 | B54: eu | C54: 2 | D54: Trink | E54: z | F54: 460734 | G54: eu | H54: 2 | I54: ÐÐ»ÐºÐ°ÑˆÐ¸Ð½Ð° | J54: p | K54: Bronze | L54: 56 | M54: 66 | N54: 834 | O54: 2014-08-27 | P54: 1 days | Q54: 2014-09-20T12:32:34 | R54: 842880-2|460734-2 | S54: 0 | T54: 54
A55: 4413948 | B55: eu | C55: 1 | D55: Founet | E55: z | F55: 708106 | G55: eu | H55: 1 | I55: ScOrPiOn | J55: z | K55: Bronze | L55: 46 | M55: 62 | N55: 834 | O55: 2014-07-07 | P55: 1 days | Q55: 2014-09-20T12:32:34 | R55: 4413948-1|708106-1 | S55: 0 | T55: 55
A56: 3321601 | B56: eu | C56: 1 | D56: UltimaThule | E56: p | F56: 1500584 | G56: eu | H56: 1 | I56: Bargon | J56: p | K56: Bronze | L56: 57 | M56: 74 | N56: 831 | O56: 2014-07-07 | P56: 1 days | Q56: 2014-09-20T12:32:34 | R56: 3321601-1|1500584-1 | S56: 0 | T56: 56
A57: 1232366 | B57: eu | C57: 1 | D57: DsTTakeDown | E57: t | F57: 208249 | G57: eu | H57: 1 | I57: DsTAmarok | J57: r | K57: Bronze | L57: 31 | M57: 41 | N57: 830 | O57: 2014-07-20 | P57: 4 days | Q57: 2014-09-20T12:32:34 | R57: 1232366-1|208249-1 | S57: 0 | T57: 57
A58: 1151028 | B58: eu | C58: 2 | D58: RexOmnium | E58: z | F58: 4856854 | G58: eu | H58: 1 | I58: PiVoS | J58: t | K58: Bronze | L58: 53 | M58: 56 | N58: 829 | O58: 2014-07-10 | P58: 19 hours | Q58: 2014-09-20T12:32:34 | R58: 1151028-2|4856854-1 | S58: 0 | T58: 58
A59: 4283284 | B59: eu | C59: 1 | D59: elPadre | E59: t | F59: 724803 | G59: eu | H59: 1 | I59: DJDeepT | J59: p | K59: Bronze | L59: 61 | M59: 68 | N59: 829 | O59: 2014-08-11 | P59: 23 hours | Q59: 2014-09-20T12:32:34 | R59: 4283284-1|724803-1 | S59: 0 | T59: 59
A60: 3309998 | B60: eu | C60: 1 | D60: Joker | E60: p | F60: 3308939 | G60: eu | H60: 1 | I60: gasmann | J60: p | K60: Bronze | L60: 61 | M60: 77 | N60: 829 | O60: 2014-07-17 | P60: 2 days | Q60: 2014-09-20T12:32:34 | R60: 3309998-1|3308939-1 | S60: 0 | T60: 60
A61: 4938086 | B61: eu | C61: 1 | D61: MasterMido | E61: t | F61: 4005632 | G61: eu | H61: 1 | I61: Suuushy | J61: p | K61: Bronze | L61: 29 | M61: 37 | N61: 829 | O61: 2014-08-29 | P61: 5 days | Q61: 2014-09-20T12:32:34 | R61: 4938086-1|4005632-1 | S61: 0 | T61: 61
A62: 4478824 | B62: eu | C62: 1 | D62: Marex | E62: p | F62: 2562793 | G62: eu | H62: 1 | I62: Adrian | J62: z | K62: Bronze | L62: 47 | M62: 71 | N62: 827 | O62: 2014-07-19 | P62: 22 minutes | Q62: 2014-09-20T12:32:34 | R62: 4478824-1|2562793-1 | S62: 0 | T62: 62
A63: 1281120 | B63: eu | C63: 2 | D63: Himostor | E63: z | F63: 1269410 | G63: eu | H63: 2 | I63: GishProud | J63: p | K63: Bronze | L63: 27 | M63: 45 | N63: 827 | O63: 2014-09-04 | P63: 6 hours | Q63: 2014-09-20T12:32:34 | R63: 1281120-2|1269410-2 | S63: 0 | T63: 63
A64: 4970446 | B64: eu | C64: 1 | D64: AKHKHARU | E64: p | F64: 1138888 | G64: eu | H64: 1 | I64: Pentatox | J64: p | K64: Bronze | L64: 131 | M64: 173 | N64: 826 | O64: 2014-07-07 | P64: 12 minutes | Q64: 2014-09-20T12:32:34 | R64: 4970446-1|1138888-1 | S64: 0 | T64: 64
A65: 4021158 | B65: eu | C65: 1 | D65: tylyka | E65: t | F65: 3593465 | G65: eu | H65: 1 | I65: GhostHunter | J65: r | K65: Bronze | L65: 78 | M65: 109 | N65: 826 | O65: 2014-07-09 | P65: 22 hours | Q65: 2014-09-20T12:32:34 | R65: 4021158-1|3593465-1 | S65: 0 | T65: 65
A66: 3811231 | B66: eu | C66: 1 | D66: Titus | E66: p | F66: 3719837 | G66: eu | H66: 1 | I66: Riddickx | J66: p | K66: Bronze | L66: 34 | M66: 49 | N66: 826 | O66: 2014-08-03 | P66: 2 hours | Q66: 2014-09-20T12:32:34 | R66: 3811231-1|3719837-1 | S66: 0 | T66: 66
A67: 768884 | B67: eu | C67: 2 | D67: Datocraft | E67: t | F67: 581380 | G67: eu | H67: 2 | I67: ILLIA | J67: p | K67: Bronze | L67: 34 | M67: 35 | N67: 825 | O67: 2014-07-09 | P67: 22 hours | Q67: 2014-09-20T12:32:34 | R67: 768884-2|581380-2 | S67: 0 | T67: 67
A68: 5070995 | B68: eu | C68: 1 | D68: Cloud | E68: t | F68: 2293749 | G68: eu | H68: 1 | I68: ToBeY | J68: r | K68: Bronze | L68: 32 | M68: 37 | N68: 823 | O68: 2014-07-07 | P68: 2 days | Q68: 2014-09-20T12:32:34 | R68: 5070995-1|2293749-1 | S68: 0 | T68: 68
A69: 3762066 | B69: eu | C69: 1 | D69: Progress | E69: p | F69: 2510270 | G69: eu | H69: 1 | I69: VoidZombi | J69: t | K69: Bronze | L69: 28 | M69: 34 | N69: 823 | O69: 2014-08-19 | P69: 3 hours | Q69: 2014-09-20T12:32:34 | R69: 3762066-1|2510270-1 | S69: 0 | T69: 69
A70: 3375855 | B70: eu | C70: 1 | D70: JusticeCZE | E70: r | F70: 3305913 | G70: eu | H70: 1 | I70: FarmhandCZ | J70: r | K70: Bronze | L70: 35 | M70: 50 | N70: 823 | O70: 2014-08-09 | P70: 4 days | Q70: 2014-09-20T12:32:34 | R70: 3375855-1|3305913-1 | S70: 0 | T70: 70
A71: 3805892 | B71: eu | C71: 1 | D71: Ardin | E71: p | F71: 3564130 | G71: eu | H71: 1 | I71: Vary | J71: t | K71: Bronze | L71: 43 | M71: 41 | N71: 821 | O71: 2014-08-06 | P71: 12 days | Q71: 2014-09-20T12:32:35 | R71: 3805892-1|3564130-1 | S71: 0 | T71: 71
A72: 2929869 | B72: eu | C72: 1 | D72: kickfist | E72: t | F72: 1681678 | G72: eu | H72: 1 | I72: riplee | J72: t | K72: Bronze | L72: 54 | M72: 67 | N72: 820 | O72: 2014-07-07 | P72: 2 days | Q72: 2014-09-20T12:32:35 | R72: 2929869-1|1681678-1 | S72: 0 | T72: 72
A73: 930309 | B73: eu | C73: 2 | D73: JohnPhoenix | E73: p | F73: 922018 | G73: eu | H73: 2 | I73: Hiten | J73: p | K73: Bronze | L73: 56 | M73: 71 | N73: 820 | O73: 2014-07-12 | P73: 2 days | Q73: 2014-09-20T12:32:35 | R73: 930309-2|922018-2 | S73: 0 | T73: 73
A74: 4457296 | B74: eu | C74: 1 | D74: AndreVW | E74: r | F74: 4055969 | G74: eu | H74: 1 | I74: Vendol | J74: r | K74: Bronze | L74: 30 | M74: 30 | N74: 818 | O74: 2014-08-26 | P74: 2 days | Q74: 2014-09-20T12:32:35 | R74: 4457296-1|4055969-1 | S74: 0 | T74: 74
A75: 5218060 | B75: eu | C75: 1 | D75: Likos | E75: t | F75: 4471334 | G75: eu | H75: 1 | I75: Goblin | J75: z | K75: Bronze | L75: 34 | M75: 39 | N75: 818 | O75: 2014-08-27 | P75: 6 days | Q75: 2014-09-20T12:32:35 | R75: 5218060-1|4471334-1 | S75: 0 | T75: 75
A76: 4769924 | B76: eu | C76: 1 | D76: Overload | E76: t | F76: 2089111 | G76: eu | H76: 1 | I76: KrulAsfaltuf | J76: r | K76: Bronze | L76: 33 | M76: 34 | N76: 816 | O76: 2014-08-24 | P76: 7 days | Q76: 2014-09-20T12:32:35 | R76: 4769924-1|2089111-1 | S76: 0 | T76: 76
A77: 5059915 | B77: eu | C77: 1 | D77: jojo | E77: p | F77: 1140552 | G77: eu | H77: 1 | I77: BattleBoy | J77: p | K77: Bronze | L77: 39 | M77: 57 | N77: 815 | O77: 2014-07-12 | P77: 6 hours | Q77: 2014-09-20T12:32:35 | R77: 5059915-1|1140552-1 | S77: 0 | T77: 77
A78: 3443271 | B78: eu | C78: 1 | D78: MGL | E78: r | F78: 1601185 | G78: eu | H78: 1 | I78: aLkaSelZer | J78: r | K78: Bronze | L78: 32 | M78: 43 | N78: 813 | O78: 2014-07-07 | P78: 20 hours | Q78: 2014-09-20T12:32:35 | R78: 3443271-1|1601185-1 | S78: 0 | T78: 78
A79: 3704953 | B79: eu | C79: 1 | D79: Elninjo | E79: t | F79: 631336 | G79: eu | H79: 1 | I79: Grinsemann | J79: z | K79: Bronze | L79: 31 | M79: 48 | N79: 812 | O79: 2014-07-20 | P79: 19 hours | Q79: 2014-09-20T12:32:35 | R79: 3704953-1|631336-1 | S79: 0 | T79: 79
A80: 5041777 | B80: eu | C80: 1 | D80: Tarainn | E80: p | F80: 3207134 | G80: eu | H80: 1 | I80: Mitch | J80: p | K80: Bronze | L80: 39 | M80: 51 | N80: 811 | O80: 2014-08-02 | P80: 2 days | Q80: 2014-09-20T12:32:35 | R80: 5041777-1|3207134-1 | S80: 0 | T80: 80
A81: 1200006 | B81: eu | C81: 2 | D81: Denis | E81: t | F81: 56811 | G81: eu | H81: 2 | I81: SergeySIR | J81: r | K81: Bronze | L81: 54 | M81: 71 | N81: 811 | O81: 2014-07-09 | P81: 6 days | Q81: 2014-09-20T12:32:35 | R81: 1200006-2|56811-2 | S81: 0 | T81: 81
A82: 4340749 | B82: eu | C82: 1 | D82: Spancer | E82: p | F82: 4340569 | G82: eu | H82: 1 | I82: NyLaSTiX | J82: t | K82: Bronze | L82: 36 | M82: 53 | N82: 809 | O82: 2014-08-27 | P82: 4 hours | Q82: 2014-09-20T12:32:35 | R82: 4340749-1|4340569-1 | S82: 0 | T82: 82
A83: 1217483 | B83: eu | C83: 2 | D83: Else | E83: t | F83: 3190607 | G83: eu | H83: 1 | I83: kedkod | J83: p | K83: Bronze | L83: 33 | M83: 36 | N83: 808 | O83: 2014-08-30 | P83: 6 days | Q83: 2014-09-20T12:32:35 | R83: 1217483-2|3190607-1 | S83: 0 | T83: 83
A84: 5125745 | B84: eu | C84: 1 | D84: Imperator | E84: z | F84: 4114511 | G84: eu | H84: 1 | I84: President | J84: t | K84: Bronze | L84: 29 | M84: 33 | N84: 808 | O84: 2014-09-01 | P84: 1 days | Q84: 2014-09-20T12:32:35 | R84: 5125745-1|4114511-1 | S84: 0 | T84: 84
A85: 4142799 | B85: eu | C85: 1 | D85: Cisza | E85: t | F85: 2452221 | G85: eu | H85: 1 | I85: Kaerol | J85: r | K85: Bronze | L85: 30 | M85: 35 | N85: 808 | O85: 2014-08-20 | P85: 17 hours | Q85: 2014-09-20T12:32:35 | R85: 4142799-1|2452221-1 | S85: 0 | T85: 85
A86: 191429 | B86: eu | C86: 1 | D86: Husker | E86: r | F86: 186280 | G86: eu | H86: 1 | I86: Harryhans | J86: r | K86: Bronze | L86: 51 | M86: 60 | N86: 808 | O86: 2014-07-13 | P86: 5 days | Q86: 2014-09-20T12:32:35 | R86: 191429-1|186280-1 | S86: 0 | T86: 86
A87: 681780 | B87: eu | C87: 1 | D87: GUNDAM | E87: p | F87: 670574 | G87: eu | H87: 1 | I87: simonzone | J87: t | K87: Bronze | L87: 31 | M87: 43 | N87: 808 | O87: 2014-07-27 | P87: 7 hours | Q87: 2014-09-20T12:32:35 | R87: 681780-1|670574-1 | S87: 0 | T87: 87
A88: 226461 | B88: eu | C88: 2 | D88: Dgonny | E88: t | F88: 5200863 | G88: eu | H88: 1 | I88: AlexKent | J88: p | K88: Bronze | L88: 67 | M88: 88 | N88: 807 | O88: 2014-08-22 | P88: 1 days | Q88: 2014-09-20T12:32:35 | R88: 226461-2|5200863-1 | S88: 0 | T88: 88
A89: 2687530 | B89: eu | C89: 1 | D89: Edkinson | E89: t | F89: 1508809 | G89: eu | H89: 1 | I89: Barktooth | J89: r | K89: Bronze | L89: 28 | M89: 32 | N89: 806 | O89: 2014-08-22 | P89: 17 hours | Q89: 2014-09-20T12:32:35 | R89: 2687530-1|1508809-1 | S89: 0 | T89: 89
A90: 5165286 | B90: eu | C90: 1 | D90: Rocky | E90: p | F90: 4410648 | G90: eu | H90: 1 | I90: ravy | J90: t | K90: Bronze | L90: 37 | M90: 67 | N90: 806 | O90: 2014-08-14 | P90: 20 hours | Q90: 2014-09-20T12:32:35 | R90: 5165286-1|4410648-1 | S90: 0 | T90: 90
A91: 5122516 | B91: eu | C91: 1 | D91: neihge | E91: t | F91: 1672547 | G91: eu | H91: 1 | I91: arthuro | J91: z | K91: Bronze | L91: 37 | M91: 48 | N91: 805 | O91: 2014-08-02 | P91: 9 days | Q91: 2014-09-20T12:32:35 | R91: 5122516-1|1672547-1 | S91: 0 | T91: 91
A92: 5058290 | B92: eu | C92: 1 | D92: Suedama | E92: t | F92: 3795597 | G92: eu | H92: 1 | I92: MrQwert | J92: t | K92: Bronze | L92: 64 | M92: 90 | N92: 805 | O92: 2014-08-01 | P92: 3 days | Q92: 2014-09-20T12:32:35 | R92: 5058290-1|3795597-1 | S92: 0 | T92: 92
A93: 620466 | B93: eu | C93: 1 | D93: Bru | E93: r | F93: 466310 | G93: eu | H93: 1 | I93: Morseleeta | J93: r | K93: Bronze | L93: 32 | M93: 42 | N93: 804 | O93: 2014-07-09 | P93: 3 days | Q93: 2014-09-20T12:32:35 | R93: 620466-1|466310-1 | S93: 0 | T93: 93
A94: 4551664 | B94: eu | C94: 1 | D94: LeChuckie | E94: t | F94: 693194 | G94: eu | H94: 1 | I94: mOkel | J94: z | K94: Bronze | L94: 40 | M94: 55 | N94: 799 | O94: 2014-07-10 | P94: 7 days | Q94: 2014-09-20T12:32:35 | R94: 4551664-1|693194-1 | S94: 0 | T94: 94
A95: 5054587 | B95: eu | C95: 1 | D95: POYETE | E95: z | F95: 3874845 | G95: eu | H95: 1 | I95: vasili | J95: p | K95: Bronze | L95: 85 | M95: 117 | N95: 799 | O95: 2014-07-29 | P95: 16 hours | Q95: 2014-09-20T12:32:35 | R95: 5054587-1|3874845-1 | S95: 0 | T95: 95
A96: 978346 | B96: eu | C96: 1 | D96: yoshi | E96: p | F96: 523560 | G96: eu | H96: 1 | I96: Necrophys | J96: t | K96: Bronze | L96: 43 | M96: 61 | N96: 799 | O96: 2014-07-09 | P96: 1 days | Q96: 2014-09-20T12:32:35 | R96: 978346-1|523560-1 | S96: 0 | T96: 96
A97: 1500272 | B97: eu | C97: 1 | D97: Bubble | E97: z | F97: 1137715 | G97: eu | H97: 1 | I97: iXtreme | J97: p | K97: Bronze | L97: 28 | M97: 36 | N97: 796 | O97: 2014-08-17 | P97: 8 days | Q97: 2014-09-20T12:32:35 | R97: 1500272-1|1137715-1 | S97: 0 | T97: 97
A98: 737248 | B98: eu | C98: 2 | D98: Tatarin | E98: p | F98: 735250 | G98: eu | H98: 2 | I98: Altair | J98: t | K98: Bronze | L98: 32 | M98: 42 | N98: 794 | O98: 2014-09-07 | P98: 1 days | Q98: 2014-09-20T12:32:35 | R98: 737248-2|735250-2 | S98: 0 | T98: 98
A99: 4853355 | B99: eu | C99: 1 | D99: FerryMan | E99: z | F99: 4137077 | G99: eu | H99: 1 | I99: FelixRVP | J99: t | K99: Bronze | L99: 52 | M99: 62 | N99: 793 | O99: 2014-07-10 | P99: 9 days | Q99: 2014-09-20T12:32:35 | R99: 4853355-1|4137077-1 | S99: 0 | T99: 99
A100: 686695 | B100: eu | C100: 2 | D100: Nedwons | E100: t | F100: 215064 | G100: eu | H100: 2 | I100: Snowden | J100: p | K100: Bronze | L100: 36 | M100: 49 | N100: 793 | O100: 2014-07-13 | P100: 17 hours | Q100: 2014-09-20T12:32:35 | R100: 686695-2|215064-2 | S100: 0 | T100: 100
A101: 4397155 | B101: eu | C101: 1 | D101: Kiasia | E101: t | F101: 4395209 | G101: eu | H101: 1 | I101: Arash | J101: t | K101: Bronze | L101: 48 | M101: 71 | N101: 793 | O101: 2014-07-13 | P101: 20 hours | Q101: 2014-09-20T12:32:35 | R101: 4397155-1|4395209-1 | S101: 0 | T101: 101
A102: 3799138 | B102: eu | C102: 1 | D102: TbS | E102: t | F102: 3769633 | G102: eu | H102: 1 | I102: FrozenMasou | J102: t | K102: Bronze | L102: 29 | M102: 26 | N102: 792 | O102: 2014-09-02 | P102: 3 days | Q102: 2014-09-20T12:32:35 | R102: 3799138-1|3769633-1 | S102: 0 | T102: 102
A103: 4380746 | B103: eu | C103: 1 | D103: Psychozz | E103: t | F103: 3847853 | G103: eu | H103: 1 | I103: Kribow | J103: z | K103: Bronze | L103: 31 | M103: 32 | N103: 792 | O103: 2014-08-31 | P103: 1 days | Q103: 2014-09-20T12:32:35 | R103: 4380746-1|3847853-1 | S103: 0 | T103: 103
A104: 5221645 | B104: eu | C104: 1 | D104: Rella | E104: z | F104: 5219994 | G104: eu | H104: 1 | I104: Null | J104: p | K104: Bronze | L104: 30 | M104: 44 | N104: 792 | O104: 2014-09-03 | P104: 4 days | Q104: 2014-09-20T12:32:35 | R104: 5221645-1|5219994-1 | S104: 0 | T104: 104
A105: 5245388 | B105: eu | C105: 1 | D105: Stark | E105: p | F105: 3531055 | G105: eu | H105: 1 | I105: xCrAzYxJohNx | J105: p | K105: Bronze | L105: 44 | M105: 73 | N105: 792 | O105: 2014-09-07 | P105: 1 minutes | Q105: 2014-09-20T12:32:35 | R105: 5245388-1|3531055-1 | S105: 0 | T105: 105
A106: 461180 | B106: eu | C106: 2 | D106: Foss | E106: p | F106: 22469 | G106: eu | H106: 2 | I106: NOISE | J106: p | K106: Bronze | L106: 65 | M106: 78 | N106: 790 | O106: 2014-07-07 | P106: 18 hours | Q106: 2014-09-20T12:32:35 | R106: 461180-2|22469-2 | S106: 0 | T106: 106
A107: 5133627 | B107: eu | C107: 1 | D107: Aremius | E107: p | F107: 2355685 | G107: eu | H107: 1 | I107: Mighty | J107: r | K107: Bronze | L107: 86 | M107: 136 | N107: 790 | O107: 2014-07-27 | P107: 4 minutes | Q107: 2014-09-20T12:32:35 | R107: 5133627-1|2355685-1 | S107: 0 | T107: 107
A108: 5159562 | B108: eu | C108: 1 | D108: SnapAndDEATH | E108: z | F108: 3269560 | G108: eu | H108: 1 | I108: SaÃ­ko | J108: t | K108: Bronze | L108: 48 | M108: 56 | N108: 789 | O108: 2014-08-22 | P108: 3 days | Q108: 2014-09-20T12:32:35 | R108: 5159562-1|3269560-1 | S108: 0 | T108: 108
A109: 1107403 | B109: eu | C109: 2 | D109: Dali | E109: z | F109: 3812548 | G109: eu | H109: 1 | I109: sphere | J109: r | K109: Bronze | L109: 31 | M109: 39 | N109: 784 | O109: 2014-08-11 | P109: 14 days | Q109: 2014-09-20T12:32:35 | R109: 1107403-2|3812548-1 | S109: 0 | T109: 109
A110: 4582398 | B110: eu | C110: 1 | D110: Pako | E110: t | F110: 3369547 | G110: eu | H110: 1 | I110: Outlander | J110: p | K110: Bronze | L110: 37 | M110: 48 | N110: 783 | O110: 2014-07-08 | P110: 2 days | Q110: 2014-09-20T12:32:35 | R110: 4582398-1|3369547-1 | S110: 0 | T110: 110
A111: 1035240 | B111: eu | C111: 2 | D111: Roman | E111: t | F111: 84415 | G111: eu | H111: 2 | I111: lorderones | J111: p | K111: Bronze | L111: 37 | M111: 46 | N111: 782 | O111: 2014-08-20 | P111: 3 days | Q111: 2014-09-20T12:32:35 | R111: 1035240-2|84415-2 | S111: 0 | T111: 111
A112: 4595498 | B112: eu | C112: 1 | D112: Birdman | E112: t | F112: 1823069 | G112: eu | H112: 1 | I112: Bigmiff | J112: z | K112: Bronze | L112: 116 | M112: 169 | N112: 782 | O112: 2014-08-10 | P112: 1 days | Q112: 2014-09-20T12:32:35 | R112: 4595498-1|1823069-1 | S112: 0 | T112: 112
A113: 5236992 | B113: eu | C113: 1 | D113: avishay | E113: p | F113: 3771979 | G113: eu | H113: 1 | I113: Lido | J113: t | K113: Bronze | L113: 26 | M113: 47 | N113: 780 | O113: 2014-09-03 | P113: 4 hours | Q113: 2014-09-20T12:32:35 | R113: 5236992-1|3771979-1 | S113: 0 | T113: 113
A114: 1583284 | B114: eu | C114: 1 | D114: HyperionEx | E114: r | F114: 1539115 | G114: eu | H114: 1 | I114: Maxwell | J114: t | K114: Bronze | L114: 32 | M114: 38 | N114: 779 | O114: 2014-07-15 | P114: 19 hours | Q114: 2014-09-20T12:32:35 | R114: 1583284-1|1539115-1 | S114: 0 | T114: 114
A115: 268439 | B115: eu | C115: 1 | D115: obstmann | E115: p | F115: 194564 | G115: eu | H115: 1 | I115: Grisu | J115: t | K115: Bronze | L115: 28 | M115: 32 | N115: 778 | O115: 2014-07-17 | P115: 12 days | Q115: 2014-09-20T12:32:35 | R115: 268439-1|194564-1 | S115: 0 | T115: 115
A116: 4281107 | B116: eu | C116: 1 | D116: letoutpetit | E116: r | F116: 3771230 | G116: eu | H116: 1 | I116: Yhu | J116: t | K116: Bronze | L116: 45 | M116: 59 | N116: 778 | O116: 2014-07-07 | P116: 3 days | Q116: 2014-09-20T12:32:35 | R116: 4281107-1|3771230-1 | S116: 0 | T116: 116
A117: 2549092 | B117: eu | C117: 1 | D117: RAGE | E117: t | F117: 2400957 | G117: eu | H117: 1 | I117: GravGrav | J117: p | K117: Bronze | L117: 44 | M117: 63 | N117: 777 | O117: 2014-07-08 | P117: 5 days | Q117: 2014-09-20T12:32:35 | R117: 2549092-1|2400957-1 | S117: 0 | T117: 117
A118: 5116796 | B118: eu | C118: 1 | D118: NilsAlmz | E118: p | F118: 3358908 | G118: eu | H118: 1 | I118: Rantzow | J118: t | K118: Bronze | L118: 57 | M118: 92 | N118: 776 | O118: 2014-07-26 | P118: 2 days | Q118: 2014-09-20T12:32:35 | R118: 5116796-1|3358908-1 | S118: 0 | T118: 118
A119: 1813857 | B119: eu | C119: 1 | D119: SohMantcho | E119: t | F119: 653515 | G119: eu | H119: 1 | I119: Menatone | J119: r | K119: Bronze | L119: 72 | M119: 96 | N119: 775 | O119: 2014-07-07 | P119: 1 days | Q119: 2014-09-20T12:32:35 | R119: 1813857-1|653515-1 | S119: 0 | T119: 119
A120: 616857 | B120: eu | C120: 1 | D120: Mushra | E120: r | F120: 594347 | G120: eu | H120: 1 | I120: Alankhan | J120: z | K120: Bronze | L120: 33 | M120: 50 | N120: 773 | O120: 2014-08-04 | P120: 9 days | Q120: 2014-09-20T12:32:35 | R120: 616857-1|594347-1 | S120: 0 | T120: 120
A121: 4991751 | B121: eu | C121: 1 | D121: BranStark | E121: p | F121: 175741 | G121: eu | H121: 1 | I121: Wannarock | J121: t | K121: Bronze | L121: 28 | M121: 30 | N121: 772 | O121: 2014-08-29 | P121: 3 days | Q121: 2014-09-20T12:32:35 | R121: 4991751-1|175741-1 | S121: 0 | T121: 121
A122: 4793743 | B122: eu | C122: 1 | D122: Tobi | E122: p | F122: 4677709 | G122: eu | H122: 1 | I122: Leandro | J122: z | K122: Bronze | L122: 37 | M122: 49 | N122: 772 | O122: 2014-08-21 | P122: 1 days | Q122: 2014-09-20T12:32:35 | R122: 4793743-1|4677709-1 | S122: 0 | T122: 122
A123: 1023989 | B123: eu | C123: 1 | D123: Arno | E123: p | F123: 819074 | G123: eu | H123: 1 | I123: Kiwandou | J123: t | K123: Bronze | L123: 46 | M123: 64 | N123: 771 | O123: 2014-07-07 | P123: 4 days | Q123: 2014-09-20T12:32:35 | R123: 1023989-1|819074-1 | S123: 0 | T123: 123
A124: 1045878 | B124: eu | C124: 2 | D124: vov | E124: z | F124: 656878 | G124: eu | H124: 2 | I124: IgVM | J124: t | K124: Bronze | L124: 25 | M124: 29 | N124: 769 | O124: 2014-07-12 | P124: 14 days | Q124: 2014-09-20T12:32:35 | R124: 1045878-2|656878-2 | S124: 0 | T124: 124
A125: 1497206 | B125: eu | C125: 1 | D125: Veritaz | E125: t | F125: 217900 | G125: eu | H125: 1 | I125: Katakis | J125: p | K125: Bronze | L125: 34 | M125: 24 | N125: 768 | O125: 2014-07-18 | P125: 21 days | Q125: 2014-09-20T12:32:35 | R125: 1497206-1|217900-1 | S125: 0 | T125: 125
A126: 4894325 | B126: eu | C126: 1 | D126: HighLee | E126: z | F126: 3170793 | G126: eu | H126: 1 | I126: Kire | J126: p | K126: Bronze | L126: 30 | M126: 28 | N126: 768 | O126: 2014-07-08 | P126: 2 days | Q126: 2014-09-20T12:32:35 | R126: 4894325-1|3170793-1 | S126: 0 | T126: 126
A127: 5048434 | B127: eu | C127: 1 | D127: romanj | E127: t | F127: 2442070 | G127: eu | H127: 1 | I127: dither | J127: p | K127: Bronze | L127: 43 | M127: 67 | N127: 768 | O127: 2014-08-12 | P127: 4 days | Q127: 2014-09-20T12:32:35 | R127: 5048434-1|2442070-1 | S127: 0 | T127: 127
A128: 3016153 | B128: eu | C128: 1 | D128: Adler | E128: r | F128: 1698822 | G128: eu | H128: 1 | I128: Creepers | J128: z | K128: Bronze | L128: 31 | M128: 34 | N128: 767 | O128: 2014-07-07 | P128: 17 hours | Q128: 2014-09-20T12:32:35 | R128: 3016153-1|1698822-1 | S128: 0 | T128: 128
A129: 5062720 | B129: eu | C129: 1 | D129: PedroUdil | E129: p | F129: 4967189 | G129: eu | H129: 1 | I129: TheSselion | J129: z | K129: Bronze | L129: 44 | M129: 67 | N129: 765 | O129: 2014-07-28 | P129: 2 days | Q129: 2014-09-20T12:32:35 | R129: 5062720-1|4967189-1 | S129: 0 | T129: 129
A130: 1185364 | B130: eu | C130: 1 | D130: Dave | E130: t | F130: 1181818 | G130: eu | H130: 1 | I130: Roland | J130: r | K130: Bronze | L130: 42 | M130: 48 | N130: 764 | O130: 2014-08-09 | P130: 7 days | Q130: 2014-09-20T12:32:35 | R130: 1185364-1|1181818-1 | S130: 0 | T130: 130
A131: 972223 | B131: eu | C131: 2 | D131: Ð¥ÐÐ¨ | E131: t | F131: 119620 | G131: eu | H131: 2 | I131: ÐÑ€Ñ…Ð°Ð½Ð³ÐµÐ» | J131: p | K131: Bronze | L131: 35 | M131: 48 | N131: 764 | O131: 2014-07-07 | P131: 3 days | Q131: 2014-09-20T12:32:35 | R131: 972223-2|119620-2 | S131: 0 | T131: 131
A132: 241114 | B132: eu | C132: 2 | D132: Sezard | E132: r | F132: 42388 | G132: eu | H132: 2 | I132: Nicopol | J132: r | K132: Bronze | L132: 25 | M132: 35 | N132: 764 | O132: 2014-08-31 | P132: 22 hours | Q132: 2014-09-20T12:32:35 | R132: 241114-2|42388-2 | S132: 0 | T132: 132
A133: 4842934 | B133: eu | C133: 1 | D133: zraloc | E133: t | F133: 577510 | G133: eu | H133: 1 | I133: Headbang | J133: t | K133: Bronze | L133: 25 | M133: 44 | N133: 764 | O133: 2014-08-10 | P133: 1 days | Q133: 2014-09-20T12:32:35 | R133: 4842934-1|577510-1 | S133: 0 | T133: 133
A134: 4215593 | B134: eu | C134: 1 | D134: GrafZero | E134: t | F134: 1260861 | G134: eu | H134: 1 | I134: Artur | J134: p | K134: Bronze | L134: 50 | M134: 66 | N134: 763 | O134: 2014-08-15 | P134: 20 hours | Q134: 2014-09-20T12:32:35 | R134: 4215593-1|1260861-1 | S134: 0 | T134: 134
A135: 5165274 | B135: eu | C135: 1 | D135: Vexoy | E135: p | F135: 3285893 | G135: eu | H135: 1 | I135: hades | J135: z | K135: Bronze | L135: 24 | M135: 47 | N135: 763 | O135: 2014-08-30 | P135: 8 hours | Q135: 2014-09-20T12:32:35 | R135: 5165274-1|3285893-1 | S135: 0 | T135: 135
A136: 1219907 | B136: eu | C136: 2 | D136: Chaya | E136: p | F136: 4494772 | G136: eu | H136: 1 | I136: Paha | J136: r | K136: Bronze | L136: 62 | M136: 80 | N136: 761 | O136: 2014-07-15 | P136: 4 days | Q136: 2014-09-20T12:32:35 | R136: 1219907-2|4494772-1 | S136: 0 | T136: 136
A137: 4819121 | B137: eu | C137: 1 | D137: WonderWoman | E137: p | F137: 320294 | G137: eu | H137: 1 | I137: Exerz | J137: z | K137: Bronze | L137: 27 | M137: 30 | N137: 760 | O137: 2014-08-04 | P137: 1 days | Q137: 2014-09-20T12:32:35 | R137: 4819121-1|320294-1 | S137: 0 | T137: 137
A138: 1946819 | B138: eu | C138: 1 | D138: Piefke | E138: p | F138: 632477 | G138: eu | H138: 1 | I138: Durgin | J138: z | K138: Bronze | L138: 78 | M138: 87 | N138: 760 | O138: 2014-07-11 | P138: 11 days | Q138: 2014-09-20T12:32:35 | R138: 1946819-1|632477-1 | S138: 0 | T138: 138
A139: 52447 | B139: eu | C139: 2 | D139: RUBIN | E139: t | F139: 4375512 | G139: eu | H139: 1 | I139: comrade | J139: t | K139: Bronze | L139: 36 | M139: 59 | N139: 759 | O139: 2014-07-11 | P139: 1 days | Q139: 2014-09-20T12:32:35 | R139: 52447-2|4375512-1 | S139: 0 | T139: 139
A140: 2660803 | B140: eu | C140: 1 | D140: Omphalos | E140: p | F140: 2660677 | G140: eu | H140: 1 | I140: halonub | J140: p | K140: Bronze | L140: 28 | M140: 26 | N140: 758 | O140: 2014-08-22 | P140: 19 hours | Q140: 2014-09-20T12:32:35 | R140: 2660803-1|2660677-1 | S140: 0 | T140: 140
A141: 811197 | B141: eu | C141: 2 | D141: cashmoney | E141: t | F141: 5154271 | G141: eu | H141: 1 | I141: pochemy | J141: p | K141: Bronze | L141: 30 | M141: 43 | N141: 757 | O141: 2014-08-06 | P141: 6 days | Q141: 2014-09-20T12:32:35 | R141: 811197-2|5154271-1 | S141: 0 | T141: 141
A142: 5100470 | B142: eu | C142: 1 | D142: Sithdeluxe | E142: p | F142: 4887871 | G142: eu | H142: 1 | I142: Sithsidius | J142: z | K142: Bronze | L142: 41 | M142: 59 | N142: 756 | O142: 2014-07-31 | P142: 1 days | Q142: 2014-09-20T12:32:35 | R142: 5100470-1|4887871-1 | S142: 0 | T142: 142
A143: 821872 | B143: eu | C143: 1 | D143: BlackMail | E143: p | F143: 692565 | G143: eu | H143: 1 | I143: Homey | J143: t | K143: Bronze | L143: 29 | M143: 37 | N143: 755 | O143: 2014-07-07 | P143: 8 days | Q143: 2014-09-20T12:32:35 | R143: 821872-1|692565-1 | S143: 0 | T143: 143
A144: 817537 | B144: eu | C144: 2 | D144: ImperatoR | E144: t | F144: 767609 | G144: eu | H144: 2 | I144: SumburON | J144: p | K144: Bronze | L144: 74 | M144: 102 | N144: 755 | O144: 2014-07-11 | P144: 6 days | Q144: 2014-09-20T12:32:35 | R144: 817537-2|767609-2 | S144: 0 | T144: 144
A145: 3792413 | B145: eu | C145: 1 | D145: TanyaBG | E145: z | F145: 3409130 | G145: eu | H145: 1 | I145: ColtBG | J145: p | K145: Bronze | L145: 39 | M145: 39 | N145: 754 | O145: 2014-07-10 | P145: 12 days | Q145: 2014-09-20T12:32:35 | R145: 3792413-1|3409130-1 | S145: 0 | T145: 145
A146: 90699 | B146: eu | C146: 2 | D146: Jeka | E146: r | F146: 5143315 | G146: eu | H146: 1 | I146: QFeuer | J146: t | K146: Bronze | L146: 28 | M146: 34 | N146: 750 | O146: 2014-08-15 | P146: 1 days | Q146: 2014-09-20T12:32:35 | R146: 90699-2|5143315-1 | S146: 0 | T146: 146
A147: 4503535 | B147: eu | C147: 1 | D147: Stormfire | E147: t | F147: 4074509 | G147: eu | H147: 1 | I147: fazermax | J147: t | K147: Bronze | L147: 24 | M147: 36 | N147: 750 | O147: 2014-09-12 | P147: 2 hours | Q147: 2014-09-20T12:32:35 | R147: 4503535-1|4074509-1 | S147: 0 | T147: 147
A148: 5082293 | B148: eu | C148: 1 | D148: DemonSlayers | E148: t | F148: 581243 | G148: eu | H148: 1 | I148: DÃ¨adBÃ©llo | J148: z | K148: Bronze | L148: 38 | M148: 61 | N148: 749 | O148: 2014-07-26 | P148: 3 days | Q148: 2014-09-20T12:32:35 | R148: 5082293-1|581243-1 | S148: 0 | T148: 148
A149: 5248933 | B149: eu | C149: 1 | D149: Thebuli | E149: p | F149: 5247668 | G149: eu | H149: 1 | I149: Ishaqt | J149: z | K149: Bronze | L149: 25 | M149: 43 | N149: 748 | O149: 2014-09-11 | P149: 2 days | Q149: 2014-09-20T12:32:35 | R149: 5248933-1|5247668-1 | S149: 0 | T149: 149
A150: 4949948 | B150: eu | C150: 1 | D150: NewUser | E150: p | F150: 4077701 | G150: eu | H150: 1 | I150: BlazzerHero | J150: p | K150: Bronze | L150: 23 | M150: 49 | N150: 748 | O150: 2014-09-01 | P150: 4 hours | Q150: 2014-09-20T12:32:35 | R150: 4949948-1|4077701-1 | S150: 0 | T150: 150
A151: 5219005 | B151: eu | C151: 1 | D151: Tyves | E151: p | F151: 5218778 | G151: eu | H151: 1 | I151: schwups | J151: t | K151: Bronze | L151: 28 | M151: 32 | N151: 746 | O151: 2014-08-28 | P151: 3 hours | Q151: 2014-09-20T12:32:35 | R151: 5219005-1|5218778-1 | S151: 0 | T151: 151
A152: 4679856 | B152: eu | C152: 1 | D152: Gazcz | E152: p | F152: 3914617 | G152: eu | H152: 1 | I152: vojaxCZ | J152: t | K152: Bronze | L152: 24 | M152: 31 | N152: 746 | O152: 2014-08-25 | P152: 4 days | Q152: 2014-09-20T12:32:35 | R152: 4679856-1|3914617-1 | S152: 0 | T152: 152
A153: 4235274 | B153: eu | C153: 1 | D153: Jeriko | E153: t | F153: 4173104 | G153: eu | H153: 1 | I153: Ludo | J153: z | K153: Bronze | L153: 34 | M153: 51 | N153: 745 | O153: 2014-07-26 | P153: 8 days | Q153: 2014-09-20T12:32:35 | R153: 4235274-1|4173104-1 | S153: 0 | T153: 153
A154: 2782210 | B154: eu | C154: 1 | D154: AnaMariaZelo | E154: z | F154: 1523843 | G154: eu | H154: 1 | I154: ioji | J154: p | K154: Bronze | L154: 64 | M154: 113 | N154: 745 | O154: 2014-07-19 | P154: 2 hours | Q154: 2014-09-20T12:32:35 | R154: 2782210-1|1523843-1 | S154: 0 | T154: 154
A155: 3968387 | B155: eu | C155: 1 | D155: metafox | E155: t | F155: 320934 | G155: eu | H155: 1 | I155: Rhino | J155: p | K155: Bronze | L155: 37 | M155: 39 | N155: 744 | O155: 2014-08-20 | P155: 21 days | Q155: 2014-09-20T12:32:35 | R155: 3968387-1|320934-1 | S155: 0 | T155: 155
A156: 5091369 | B156: eu | C156: 1 | D156: kingasamax | E156: t | F156: 2934040 | G156: eu | H156: 1 | I156: IrÃ¸nHidÃ¨ | J156: z | K156: Bronze | L156: 33 | M156: 58 | N156: 744 | O156: 2014-07-30 | P156: 5 hours | Q156: 2014-09-20T12:32:35 | R156: 5091369-1|2934040-1 | S156: 0 | T156: 156
A157: 3040650 | B157: eu | C157: 1 | D157: lepidopterus | E157: p | F157: 568356 | G157: eu | H157: 1 | I157: Champa | J157: t | K157: Bronze | L157: 46 | M157: 54 | N157: 742 | O157: 2014-07-08 | P157: 6 days | Q157: 2014-09-20T12:32:35 | R157: 3040650-1|568356-1 | S157: 0 | T157: 157
A158: 5070961 | B158: eu | C158: 1 | D158: Sormin | E158: z | F158: 3428666 | G158: eu | H158: 1 | I158: antVsar | J158: p | K158: Bronze | L158: 82 | M158: 158 | N158: 741 | O158: 2014-07-15 | P158: 17 hours | Q158: 2014-09-20T12:32:35 | R158: 5070961-1|3428666-1 | S158: 0 | T158: 158
A159: 4123217 | B159: eu | C159: 1 | D159: Mathias | E159: z | F159: 1780145 | G159: eu | H159: 1 | I159: Analking | J159: z | K159: Bronze | L159: 35 | M159: 28 | N159: 740 | O159: 2014-08-17 | P159: 18 days | Q159: 2014-09-20T12:32:35 | R159: 4123217-1|1780145-1 | S159: 0 | T159: 159
A160: 3076782 | B160: eu | C160: 1 | D160: seppel | E160: r | F160: 774656 | G160: eu | H160: 1 | I160: Sleeper | J160: z | K160: Bronze | L160: 27 | M160: 37 | N160: 740 | O160: 2014-07-07 | P160: 2 days | Q160: 2014-09-20T12:32:35 | R160: 3076782-1|774656-1 | S160: 0 | T160: 160
A161: 3863050 | B161: eu | C161: 1 | D161: Yoyochon | E161: p | F161: 1614682 | G161: eu | H161: 1 | I161: ThePsyco | J161: p | K161: Bronze | L161: 29 | M161: 47 | N161: 740 | O161: 2014-08-27 | P161: 6 days | Q161: 2014-09-20T12:32:35 | R161: 3863050-1|1614682-1 | S161: 0 | T161: 161
A162: 957665 | B162: eu | C162: 1 | D162: Canaglietta | E162: r | F162: 698711 | G162: eu | H162: 1 | I162: Memox | J162: r | K162: Bronze | L162: 26 | M162: 30 | N162: 738 | O162: 2014-07-07 | P162: 5 days | Q162: 2014-09-20T12:32:35 | R162: 957665-1|698711-1 | S162: 0 | T162: 162
A163: 4424389 | B163: eu | C163: 1 | D163: Syrious | E163: p | F163: 4420875 | G163: eu | H163: 1 | I163: Kinetik | J163: p | K163: Bronze | L163: 39 | M163: 45 | N163: 738 | O163: 2014-07-17 | P163: 6 hours | Q163: 2014-09-20T12:32:35 | R163: 4424389-1|4420875-1 | S163: 0 | T163: 163
A164: 5176571 | B164: eu | C164: 1 | D164: Rogan | E164: z | F164: 4172745 | G164: eu | H164: 1 | I164: Malcross | J164: t | K164: Bronze | L164: 28 | M164: 31 | N164: 736 | O164: 2014-09-03 | P164: 2 days | Q164: 2014-09-20T12:32:35 | R164: 5176571-1|4172745-1 | S164: 0 | T164: 164
A165: 4312152 | B165: eu | C165: 1 | D165: Bliox | E165: t | F165: 4299464 | G165: eu | H165: 1 | I165: Cryvil | J165: z | K165: Bronze | L165: 25 | M165: 60 | N165: 736 | O165: 2014-08-31 | P165: 19 hours | Q165: 2014-09-20T12:32:35 | R165: 4312152-1|4299464-1 | S165: 0 | T165: 165
A166: 5057894 | B166: eu | C166: 1 | D166: Damsbobo | E166: p | F166: 1067535 | G166: eu | H166: 1 | I166: Liac | J166: t | K166: Bronze | L166: 24 | M166: 37 | N166: 734 | O166: 2014-07-07 | P166: 1 hours | Q166: 2014-09-20T12:32:35 | R166: 5057894-1|1067535-1 | S166: 0 | T166: 166
A167: 1706459 | B167: eu | C167: 1 | D167: Vlakhaas | E167: p | F167: 1652095 | G167: eu | H167: 1 | I167: DarkMoll | J167: z | K167: Bronze | L167: 31 | M167: 44 | N167: 733 | O167: 2014-07-27 | P167: 5 days | Q167: 2014-09-20T12:32:35 | R167: 1706459-1|1652095-1 | S167: 0 | T167: 167
A168: 3326555 | B168: eu | C168: 1 | D168: Axezz | E168: p | F168: 1245348 | G168: eu | H168: 1 | I168: HKE | J168: t | K168: Bronze | L168: 23 | M168: 56 | N168: 733 | O168: 2014-07-11 | P168: 2 days | Q168: 2014-09-20T12:32:35 | R168: 3326555-1|1245348-1 | S168: 0 | T168: 168
A169: 5218902 | B169: eu | C169: 1 | D169: Fangorn | E169: p | F169: 3043321 | G169: eu | H169: 1 | I169: Perun | J169: z | K169: Bronze | L169: 23 | M169: 35 | N169: 732 | O169: 2014-08-30 | P169: 22 hours | Q169: 2014-09-20T12:32:35 | R169: 5218902-1|3043321-1 | S169: 0 | T169: 169
A170: 4599483 | B170: eu | C170: 1 | D170: DLine | E170: p | F170: 863386 | G170: eu | H170: 1 | I170: Juggernaut | J170: p | K170: Bronze | L170: 28 | M170: 49 | N170: 731 | O170: 2014-08-13 | P170: 1 days | Q170: 2014-09-20T12:32:35 | R170: 4599483-1|863386-1 | S170: 0 | T170: 170
A171: 1181368 | B171: eu | C171: 2 | D171: Shark | E171: t | F171: 1023730 | G171: eu | H171: 2 | I171: CheFirKa | J171: t | K171: Bronze | L171: 35 | M171: 43 | N171: 730 | O171: 2014-08-28 | P171: 13 days | Q171: 2014-09-20T12:32:36 | R171: 1181368-2|1023730-2 | S171: 0 | T171: 171
A172: 378502 | B172: eu | C172: 1 | D172: Mac | E172: r | F172: 200405 | G172: eu | H172: 1 | I172: DHN | J172: r | K172: Bronze | L172: 55 | M172: 72 | N172: 730 | O172: 2014-07-07 | P172: 5 days | Q172: 2014-09-20T12:32:36 | R172: 378502-1|200405-1 | S172: 0 | T172: 172
A173: 5163194 | B173: eu | C173: 1 | D173: Hacknonymous | E173: p | F173: 5052824 | G173: eu | H173: 1 | I173: Dneniss | J173: z | K173: Bronze | L173: 80 | M173: 128 | N173: 730 | O173: 2014-08-31 | P173: 16 hours | Q173: 2014-09-20T12:32:36 | R173: 5163194-1|5052824-1 | S173: 0 | T173: 173
A174: 5003999 | B174: eu | C174: 1 | D174: Tukos | E174: z | F174: 5001261 | G174: eu | H174: 1 | I174: Juanox | J174: t | K174: Bronze | L174: 28 | M174: 48 | N174: 730 | O174: 2014-08-31 | P174: 5 hours | Q174: 2014-09-20T12:32:36 | R174: 5003999-1|5001261-1 | S174: 0 | T174: 174
A175: 4618756 | B175: eu | C175: 1 | D175: Alftron | E175: r | F175: 3765254 | G175: eu | H175: 1 | I175: TrueGaMeR | J175: r | K175: Bronze | L175: 47 | M175: 50 | N175: 728 | O175: 2014-07-16 | P175: 11 days | Q175: 2014-09-20T12:32:36 | R175: 4618756-1|3765254-1 | S175: 0 | T175: 175
A176: 783101 | B176: eu | C176: 2 | D176: grizzlyD | E176: p | F176: 205336 | G176: eu | H176: 2 | I176: Poison | J176: t | K176: Bronze | L176: 24 | M176: 30 | N176: 728 | O176: 2014-07-10 | P176: 4 hours | Q176: 2014-09-20T12:32:36 | R176: 783101-2|205336-2 | S176: 0 | T176: 176
A177: 846775 | B177: eu | C177: 2 | D177: DefJam | E177: p | F177: 4143854 | G177: eu | H177: 1 | I177: wishmakker | J177: r | K177: Bronze | L177: 25 | M177: 37 | N177: 728 | O177: 2014-07-30 | P177: 7 days | Q177: 2014-09-20T12:32:36 | R177: 846775-2|4143854-1 | S177: 0 | T177: 177
A178: 5011048 | B178: eu | C178: 1 | D178: Artur | E178: p | F178: 4792027 | G178: eu | H178: 1 | I178: Pavel | J178: t | K178: Bronze | L178: 39 | M178: 50 | N178: 726 | O178: 2014-07-10 | P178: 6 days | Q178: 2014-09-20T12:32:36 | R178: 5011048-1|4792027-1 | S178: 0 | T178: 178
A179: 175702 | B179: eu | C179: 1 | D179: Roomy | E179: r | F179: 172571 | G179: eu | H179: 1 | I179: bigben | J179: r | K179: Bronze | L179: 25 | M179: 29 | N179: 724 | O179: 2014-08-03 | P179: 15 days | Q179: 2014-09-20T12:32:36 | R179: 175702-1|172571-1 | S179: 0 | T179: 179
A180: 3147586 | B180: eu | C180: 1 | D180: mouthh | E180: t | F180: 2932399 | G180: eu | H180: 1 | I180: fifofer | J180: p | K180: Bronze | L180: 25 | M180: 29 | N180: 724 | O180: 2014-09-01 | P180: 1 days | Q180: 2014-09-20T12:32:36 | R180: 3147586-1|2932399-1 | S180: 0 | T180: 180
A181: 3832517 | B181: eu | C181: 1 | D181: ShnizlMaDizl | E181: z | F181: 3799438 | G181: eu | H181: 1 | I181: NevillezHaze | J181: p | K181: Bronze | L181: 23 | M181: 31 | N181: 724 | O181: 2014-08-22 | P181: 12 days | Q181: 2014-09-20T12:32:36 | R181: 3832517-1|3799438-1 | S181: 0 | T181: 181
A182: 566429 | B182: eu | C182: 1 | D182: Borys | E182: p | F182: 382505 | G182: eu | H182: 1 | I182: Lorcan | J182: p | K182: Bronze | L182: 26 | M182: 22 | N182: 723 | O182: 2014-07-07 | P182: 4 days | Q182: 2014-09-20T12:32:36 | R182: 566429-1|382505-1 | S182: 0 | T182: 182
A183: 466661 | B183: eu | C183: 1 | D183: Rybe | E183: r | F183: 216136 | G183: eu | H183: 1 | I183: Ambivalent | J183: r | K183: Bronze | L183: 26 | M183: 45 | N183: 723 | O183: 2014-07-06 | P183: 1 days | Q183: 2014-09-20T12:32:36 | R183: 466661-1|216136-1 | S183: 0 | T183: 183
A184: 5090780 | B184: eu | C184: 1 | D184: kielo | E184: p | F184: 4667114 | G184: eu | H184: 1 | I184: binloadin | J184: z | K184: Bronze | L184: 80 | M184: 85 | N184: 721 | O184: 2014-07-20 | P184: 11 days | Q184: 2014-09-20T12:32:36 | R184: 5090780-1|4667114-1 | S184: 0 | T184: 184
A185: 947487 | B185: eu | C185: 1 | D185: Zooter | E185: r | F185: 791915 | G185: eu | H185: 1 | I185: BEAST | J185: t | K185: Bronze | L185: 42 | M185: 64 | N185: 721 | O185: 2014-07-07 | P185: 17 hours | Q185: 2014-09-20T12:32:36 | R185: 947487-1|791915-1 | S185: 0 | T185: 185
A186: 1154955 | B186: eu | C186: 2 | D186: HappyProtoss | E186: t | F186: 968498 | G186: eu | H186: 2 | I186: shur | J186: p | K186: Bronze | L186: 25 | M186: 35 | N186: 720 | O186: 2014-09-02 | P186: 1 hours | Q186: 2014-09-20T12:32:36 | R186: 1154955-2|968498-2 | S186: 0 | T186: 186
A187: 1485069 | B187: eu | C187: 1 | D187: Bonzai | E187: p | F187: 1478028 | G187: eu | H187: 1 | I187: Viper | J187: t | K187: Bronze | L187: 25 | M187: 45 | N187: 718 | O187: 2014-07-22 | P187: 18 hours | Q187: 2014-09-20T12:32:36 | R187: 1485069-1|1478028-1 | S187: 0 | T187: 187
A188: 5057265 | B188: eu | C188: 1 | D188: geget | E188: p | F188: 5024302 | G188: eu | H188: 1 | I188: MomoLBP | J188: t | K188: Bronze | L188: 26 | M188: 27 | N188: 716 | O188: 2014-08-18 | P188: 7 days | Q188: 2014-09-20T12:32:36 | R188: 5057265-1|5024302-1 | S188: 0 | T188: 188
A189: 4899078 | B189: eu | C189: 1 | D189: BestWaifuEU | E189: r | F189: 2809534 | G189: eu | H189: 1 | I189: CYBERDARK | J189: r | K189: Bronze | L189: 24 | M189: 32 | N189: 716 | O189: 2014-07-18 | P189: 18 hours | Q189: 2014-09-20T12:32:36 | R189: 4899078-1|2809534-1 | S189: 0 | T189: 189
A190: 4706727 | B190: eu | C190: 1 | D190: temart | E190: t | F190: 2837101 | G190: eu | H190: 1 | I190: IÃ±aki | J190: p | K190: Bronze | L190: 23 | M190: 39 | N190: 716 | O190: 2014-09-03 | P190: 2 days | Q190: 2014-09-20T12:32:36 | R190: 4706727-1|2837101-1 | S190: 0 | T190: 190
A191: 2581613 | B191: eu | C191: 1 | D191: Tomate | E191: t | F191: 1542837 | G191: eu | H191: 1 | I191: IvyMike | J191: p | K191: Bronze | L191: 24 | M191: 29 | N191: 714 | O191: 2014-08-26 | P191: 7 days | Q191: 2014-09-20T12:32:36 | R191: 2581613-1|1542837-1 | S191: 0 | T191: 191
A192: 3627367 | B192: eu | C192: 1 | D192: JustDoiT | E192: z | F192: 3519305 | G192: eu | H192: 1 | I192: Maciejjos | J192: z | K192: Bronze | L192: 24 | M192: 33 | N192: 714 | O192: 2014-08-14 | P192: 5 days | Q192: 2014-09-20T12:32:36 | R192: 3627367-1|3519305-1 | S192: 0 | T192: 192
A193: 3093579 | B193: eu | C193: 1 | D193: Darkkolombo | E193: z | F193: 1620711 | G193: eu | H193: 1 | I193: Prode | J193: p | K193: Bronze | L193: 24 | M193: 29 | N193: 712 | O193: 2014-08-11 | P193: 4 hours | Q193: 2014-09-20T12:32:36 | R193: 3093579-1|1620711-1 | S193: 0 | T193: 193
A194: 3976096 | B194: eu | C194: 1 | D194: Koe | E194: t | F194: 3765058 | G194: eu | H194: 1 | I194: Kevin | J194: p | K194: Bronze | L194: 30 | M194: 42 | N194: 711 | O194: 2014-08-05 | P194: 9 hours | Q194: 2014-09-20T12:32:36 | R194: 3976096-1|3765058-1 | S194: 0 | T194: 194
A195: 4429415 | B195: eu | C195: 1 | D195: Lelouch | E195: t | F195: 1846221 | G195: eu | H195: 1 | I195: TechnoÃ‰vÃªque | J195: t | K195: Bronze | L195: 24 | M195: 27 | N195: 710 | O195: 2014-07-21 | P195: 9 days | Q195: 2014-09-20T12:32:36 | R195: 4429415-1|1846221-1 | S195: 0 | T195: 195
A196: 5015953 | B196: eu | C196: 1 | D196: Demion | E196: p | F196: 4994624 | G196: eu | H196: 1 | I196: VeGa | J196: t | K196: Bronze | L196: 29 | M196: 34 | N196: 710 | O196: 2014-09-03 | P196: 1 days | Q196: 2014-09-20T12:32:36 | R196: 5015953-1|4994624-1 | S196: 0 | T196: 196
A197: 1162179 | B197: eu | C197: 2 | D197: Xart | E197: r | F197: 4401261 | G197: eu | H197: 1 | I197: immortal | J197: r | K197: Bronze | L197: 30 | M197: 28 | N197: 708 | O197: 2014-08-01 | P197: 23 days | Q197: 2014-09-20T12:32:36 | R197: 1162179-2|4401261-1 | S197: 0 | T197: 197
A198: 2421043 | B198: eu | C198: 1 | D198: DrZerg | E198: p | F198: 1051447 | G198: eu | H198: 1 | I198: GenOneill | J198: t | K198: Bronze | L198: 45 | M198: 66 | N198: 708 | O198: 2014-07-07 | P198: 1 days | Q198: 2014-09-20T12:32:36 | R198: 2421043-1|1051447-1 | S198: 0 | T198: 198
A199: 1273950 | B199: eu | C199: 2 | D199: Force | E199: t | F199: 1273871 | G199: eu | H199: 2 | I199: TwoFaced | J199: t | K199: Bronze | L199: 25 | M199: 32 | N199: 706 | O199: 2014-08-29 | P199: 7 days | Q199: 2014-09-20T12:32:36 | R199: 1273950-2|1273871-2 | S199: 0 | T199: 199
A200: 5072461 | B200: eu | C200: 1 | D200: bOtNiK | E200: t | F200: 5058435 | G200: eu | H200: 1 | I200: Condor | J200: p | K200: Bronze | L200: 26 | M200: 32 | N200: 705 | O200: 2014-07-08 | P200: 23 hours | Q200: 2014-09-20T12:32:36 | R200: 5072461-1|5058435-1 | S200: 0 | T200: 200
... 4300 more rows

Sheet 3v3Team
A1: Player ID 1 | B1: Player 1 Region | C1: Player 1 Subregion | D1: Player 1 Name | E1: Player 1 Race | F1: Player ID 2 | G1: Player 2 Region | H1: Player 2 Subregion | I1: Player 2 Name | J1: Player 2 Race | K1: Player ID 3 | L1: Player 3 Region | M1: Player 3 Subregion | N1: Player 3 Name | O1: Player 3 Race | P1: League | Q1: Win | R1: Loss | S1: Score | T1: Date Joined | U1: Last Game | V1: Timestamp | W1: TrueID | X1: Duplicate Check | Y1: Ordered ID
A2: 1560620 | B2: eu | C2: 1 | D2: lambiaki | E2: r | F2: 1359280 | G2: eu | H2: 1 | I2: Becenick | J2: r | K2: 1152757 | L2: eu | M2: 1 | N2: Balageking | O2: p | P2: Bronze | Q2: 53 | R2: 64 | S2: 512 | T2: 2014-07-07 | U2: 20 hours | V2: 2014-09-20T12:36:00 | W2: 1560620-1|1359280-1|1152757-1 | Y2: =ROW() -> 2
A3: 1788778 | B3: eu | C3: 1 | D3: coukie | E3: t | F3: 1663044 | G3: eu | H3: 1 | I3: lincha | J3: z | K3: 1591031 | L3: eu | M3: 1 | N3: JEROME | O3: p | P3: Bronze | Q3: 26 | R3: 41 | S3: 504 | T3: 2014-07-18 | U3: 18 hours | V3: 2014-09-20T12:36:00 | W3: 1788778-1|1663044-1|1591031-1 | Y3: =ROW() -> 3
A4: 3186008 | B4: eu | C4: 1 | D4: Nocturne | E4: r | F4: 1777199 | G4: eu | H4: 1 | I4: Instructor | J4: p | K4: 198833 | L4: eu | M4: 1 | N4: StarCounter | O4: r | P4: Bronze | Q4: 22 | R4: 32 | S4: 498 | T4: 2014-08-05 | U4: 18 hours | V4: 2014-09-20T12:36:00 | W4: 3186008-1|1777199-1|198833-1 | Y4: =ROW() -> 4
A5: 696435 | B5: eu | C5: 2 | D5: Mikel | E5: z | F5: 295989 | G5: eu | H5: 2 | I5: Joker | J5: p | K5: 70933 | L5: eu | M5: 2 | N5: Ð¤Ð°Ð½Ð°Ñ€ÐµÐº | O5: t | P5: Bronze | Q5: 21 | R5: 20 | S5: 493 | T5: 2014-08-25 | U5: 4 days | V5: 2014-09-20T12:36:00 | W5: 696435-2|295989-2|70933-2 | Y5: =ROW() -> 5
A6: 1219546 | B6: eu | C6: 2 | D6: Ð›ÐµÑ…Ð°Ð½ | E6: z | F6: 1218141 | G6: eu | H6: 2 | I6: RISKY | J6: p | K6: 4877965 | L6: eu | M6: 1 | N6: JackSparrow | O6: t | P6: Bronze | Q6: 27 | R6: 37 | S6: 488 | T6: 2014-07-24 | U6: 3 hours | V6: 2014-09-20T12:36:00 | W6: 1219546-2|1218141-2|4877965-1 | Y6: =ROW() -> 6
A7: 4115403 | B7: eu | C7: 1 | D7: Indio | E7: p | F7: 4041329 | G7: eu | H7: 1 | I7: Akiramatata | J7: z | K7: 3197865 | L7: eu | M7: 1 | N7: Sebastodon | O7: t | P7: Bronze | Q7: 22 | R7: 29 | S7: 487 | T7: 2014-07-20 | U7: 5 days | V7: 2014-09-20T12:36:00 | W7: 4115403-1|4041329-1|3197865-1 | Y7: =ROW() -> 7
A8: 4374031 | B8: eu | C8: 1 | D8: Kapdi | E8: t | F8: 2682562 | G8: eu | H8: 1 | I8: Zeus | J8: p | K8: 450467 | L8: eu | M8: 1 | N8: Kronos | O8: p | P8: Bronze | Q8: 18 | R8: 35 | S8: 475 | T8: 2014-07-20 | U8: 16 hours | V8: 2014-09-20T12:36:00 | W8: 4374031-1|2682562-1|450467-1 | Y8: =ROW() -> 8
A9: 2472830 | B9: eu | C9: 1 | D9: Lazarus | E9: z | F9: 2050411 | G9: eu | H9: 1 | I9: Kerrith | J9: r | K9: 1969649 | L9: eu | M9: 1 | N9: Leandros | O9: p | P9: Bronze | Q9: 37 | R9: 65 | S9: 469 | T9: 2014-07-14 | U9: 5 days | V9: 2014-09-20T12:36:00 | W9: 2472830-1|2050411-1|1969649-1 | Y9: =ROW() -> 9
A10: 1953748 | B10: eu | C10: 1 | D10: stf | E10: t | F10: 321680 | G10: eu | H10: 1 | I10: kogen | J10: p | K10: 195347 | L10: eu | M10: 1 | N10: ChE | O10: p | P10: Bronze | Q10: 20 | R10: 26 | S10: 467 | T10: 2014-07-07 | U10: 4 days | V10: 2014-09-20T12:36:00 | W10: 1953748-1|321680-1|195347-1 | Y10: =ROW() -> 10
A11: 5146549 | B11: eu | C11: 1 | D11: SeraphÃ¸ | E11: p | F11: 5141582 | G11: eu | H11: 1 | I11: Greye | J11: z | K11: 4149424 | L11: eu | M11: 1 | N11: Yoda | O11: t | P11: Bronze | Q11: 33 | R11: 47 | S11: 465 | T11: 2014-08-22 | U11: 23 hours | V11: 2014-09-20T12:36:00 | W11: 5146549-1|5141582-1|4149424-1 | Y11: =ROW() -> 11
A12: 4865063 | B12: eu | C12: 1 | D12: TastyOnion | E12: p | F12: 4712028 | G12: eu | H12: 1 | I12: Zavoc | J12: z | K12: 4702333 | L12: eu | M12: 1 | N12: Bobby | O12: z | P12: Bronze | Q12: 13 | R12: 1 | S12: 462 | T12: 2014-07-31 | U12: 5 days | V12: 2014-09-20T12:36:00 | W12: 4865063-1|4712028-1|4702333-1 | Y12: =ROW() -> 12
A13: 2950350 | B13: eu | C13: 1 | D13: spottus | E13: z | F13: 2837312 | G13: eu | H13: 1 | I13: bolentino | J13: t | K13: 1599701 | L13: eu | M13: 1 | N13: KrAtoS | O13: p | P13: Bronze | Q13: 19 | R13: 29 | S13: 462 | T13: 2014-08-13 | U13: 20 hours | V13: 2014-09-20T12:36:00 | W13: 2950350-1|2837312-1|1599701-1 | Y13: =ROW() -> 13
A14: 1822105 | B14: eu | C14: 1 | D14: Piddl | E14: p | F14: 1186816 | G14: eu | H14: 1 | I14: Confession | J14: p | K14: 440545 | L14: eu | M14: 1 | N14: Schoko | O14: r | P14: Bronze | Q14: 27 | R14: 41 | S14: 459 | T14: 2014-08-08 | U14: 17 hours | V14: 2014-09-20T12:36:00 | W14: 1822105-1|1186816-1|440545-1 | Y14: =ROW() -> 14
A15: 3678957 | B15: eu | C15: 1 | D15: Eidnev | E15: t | F15: 3317698 | G15: eu | H15: 1 | I15: Pharaoh | J15: z | K15: 2681275 | L15: eu | M15: 1 | N15: Mirobilly | O15: p | P15: Bronze | Q15: 19 | R15: 31 | S15: 457 | T15: 2014-09-13 | U15: 2 days | V15: 2014-09-20T12:36:00 | W15: 3678957-1|3317698-1|2681275-1 | Y15: =ROW() -> 15
A16: 714175 | B16: eu | C16: 1 | D16: pertica | E16: r | F16: 639826 | G16: eu | H16: 1 | I16: UglÃ¹k | J16: r | K16: 457850 | L16: eu | M16: 1 | N16: nai | O16: r | P16: Bronze | Q16: 18 | R16: 25 | S16: 453 | T16: 2014-07-11 | U16: 1 days | V16: 2014-09-20T12:36:00 | W16: 714175-1|639826-1|457850-1 | Y16: =ROW() -> 16
A17: 2533320 | B17: eu | C17: 1 | D17: BerlinerWolf | E17: t | F17: 1691889 | G17: eu | H17: 1 | I17: Marcel | J17: p | K17: 216733 | L17: eu | M17: 1 | N17: Tiberius | O17: r | P17: Bronze | Q17: 15 | R17: 11 | S17: 442 | T17: 2014-08-05 | U17: 3 days | V17: 2014-09-20T12:36:00 | W17: 2533320-1|1691889-1|216733-1 | Y17: =ROW() -> 17
A18: 2652247 | B18: eu | C18: 1 | D18: Catworm | E18: z | F18: 536539 | G18: eu | H18: 1 | I18: GrimRabid | J18: r | K18: 391680 | L18: eu | M18: 1 | N18: Flexymama | O18: t | P18: Bronze | Q18: 33 | R18: 47 | S18: 442 | T18: 2014-07-07 | U18: 11 days | V18: 2014-09-20T12:36:00 | W18: 2652247-1|536539-1|391680-1 | Y18: =ROW() -> 18
A19: 963922 | B19: eu | C19: 2 | D19: distortion | E19: p | F19: 186739 | G19: eu | H19: 2 | I19: Kimimary | J19: r | K19: 3822574 | L19: eu | M19: 1 | N19: SugarSatan | O19: z | P19: Bronze | Q19: 19 | R19: 24 | S19: 430 | T19: 2014-08-17 | U19: 11 days | V19: 2014-09-20T12:36:00 | W19: 963922-2|186739-2|3822574-1 | Y19: =ROW() -> 19
A20: 5132516 | B20: eu | C20: 1 | D20: JÃ©JÃ© | E20: t | F20: 5041777 | G20: eu | H20: 1 | I20: Tarainn | J20: p | K20: 3207134 | L20: eu | M20: 1 | N20: Mitch | O20: r | P20: Bronze | Q20: 15 | R20: 31 | S20: 424 | T20: 2014-08-15 | U20: 2 days | V20: 2014-09-20T12:36:00 | W20: 5132516-1|5041777-1|3207134-1 | Y20: =ROW() -> 20
A21: 3036622 | B21: eu | C21: 1 | D21: Eredorr | E21: p | F21: 2994782 | G21: eu | H21: 1 | I21: Peteer | J21: t | K21: 2072904 | L21: eu | M21: 1 | N21: BruceD | O21: t | P21: Bronze | Q21: 23 | R21: 31 | S21: 423 | T21: 2014-07-27 | U21: 20 hours | V21: 2014-09-20T12:36:00 | W21: 3036622-1|2994782-1|2072904-1 | Y21: =ROW() -> 21
A22: 1233340 | B22: eu | C22: 2 | D22: Nox | E22: p | F22: 4976776 | G22: eu | H22: 1 | I22: AdidaS | J22: t | K22: 3679939 | L22: eu | M22: 1 | N22: maXim | O22: z | P22: Bronze | Q22: 12 | R22: 14 | S22: 414 | T22: 2014-08-04 | U22: 22 days | V22: 2014-09-20T12:36:00 | W22: 1233340-2|4976776-1|3679939-1 | Y22: =ROW() -> 22
A23: 728258 | B23: eu | C23: 1 | D23: taese | E23: z | F23: 646848 | G23: eu | H23: 1 | I23: TheDriver | J23: t | K23: 403086 | L23: eu | M23: 1 | N23: Jinroh | O23: z | P23: Bronze | Q23: 18 | R23: 25 | S23: 410 | T23: 2014-07-08 | U23: 3 days | V23: 2014-09-20T12:36:00 | W23: 728258-1|646848-1|403086-1 | Y23: =ROW() -> 23
A24: 4207037 | B24: eu | C24: 1 | D24: Polyresin | E24: t | F24: 4203072 | G24: eu | H24: 1 | I24: LdoubleC | J24: p | K24: 1376318 | L24: eu | M24: 1 | N24: VINSANITY | O24: r | P24: Bronze | Q24: 16 | R24: 30 | S24: 410 | T24: 2014-07-11 | U24: 5 days | V24: 2014-09-20T12:36:00 | W24: 4207037-1|4203072-1|1376318-1 | Y24: =ROW() -> 24
A25: 5098355 | B25: eu | C25: 1 | D25: Pacou | E25: t | F25: 4317950 | G25: eu | H25: 1 | I25: SupremacY | J25: z | K25: 3074979 | L25: eu | M25: 1 | N25: Darkjoe | O25: p | P25: Bronze | Q25: 26 | R25: 36 | S25: 409 | T25: 2014-07-27 | U25: 21 days | V25: 2014-09-20T12:36:00 | W25: 5098355-1|4317950-1|3074979-1 | Y25: =ROW() -> 25
A26: 5099716 | B26: eu | C26: 1 | D26: Bobbll | E26: t | F26: 527180 | G26: eu | H26: 1 | I26: Grinser | J26: p | K26: 400596 | L26: eu | M26: 1 | N26: DaCasi | O26: z | P26: Bronze | Q26: 20 | R26: 32 | S26: 403 | T26: 2014-08-15 | U26: 6 days | V26: 2014-09-20T12:36:00 | W26: 5099716-1|527180-1|400596-1 | Y26: =ROW() -> 26
A27: 5125107 | B27: eu | C27: 1 | D27: imanolbarba | E27: p | F27: 2666817 | G27: eu | H27: 1 | I27: Kodyna | J27: t | K27: 1369348 | L27: eu | M27: 1 | N27: SuperJano | O27: t | P27: Bronze | Q27: 12 | R27: 25 | S27: 402 | T27: 2014-07-22 | U27: 17 hours | V27: 2014-09-20T12:36:00 | W27: 5125107-1|2666817-1|1369348-1 | Y27: =ROW() -> 27
A28: 5013881 | B28: eu | C28: 1 | D28: Alucard | E28: t | F28: 5012099 | G28: eu | H28: 1 | I28: Virturion | J28: z | K28: 3951389 | L28: eu | M28: 1 | N28: Schokokuchen | O28: p | P28: Bronze | Q28: 13 | R28: 28 | S28: 397 | T28: 2014-08-02 | U28: 13 minutes | V28: 2014-09-20T12:36:00 | W28: 5013881-1|5012099-1|3951389-1 | Y28: =ROW() -> 28
A29: 5039744 | B29: eu | C29: 1 | D29: Vladh | E29: t | F29: 3514373 | G29: eu | H29: 1 | I29: Nepenthes | J29: p | K29: 2910192 | L29: eu | M29: 1 | N29: OpossumRoyal | O29: t | P29: Bronze | Q29: 15 | R29: 20 | S29: 396 | T29: 2014-07-29 | U29: 11 days | V29: 2014-09-20T12:36:00 | W29: 5039744-1|3514373-1|2910192-1 | Y29: =ROW() -> 29
A30: 424685 | B30: eu | C30: 1 | D30: Amerzeroth | E30: z | F30: 369540 | G30: eu | H30: 1 | I30: Rolly | J30: p | K30: 192468 | L30: eu | M30: 1 | N30: marcellos | O30: t | P30: Bronze | Q30: 15 | R30: 23 | S30: 390 | T30: 2014-08-11 | U30: 6 days | V30: 2014-09-20T12:36:00 | W30: 424685-1|369540-1|192468-1 | Y30: =ROW() -> 30
A31: 5108170 | B31: eu | C31: 1 | D31: Blackmoore | E31: t | F31: 4560301 | G31: eu | H31: 1 | I31: moonlight | J31: z | K31: 4480105 | L31: eu | M31: 1 | N31: UHURU | O31: r | P31: Bronze | Q31: 26 | R31: 37 | S31: 389 | T31: 2014-07-16 | U31: 24 days | V31: 2014-09-20T12:36:00 | W31: 5108170-1|4560301-1|4480105-1 | Y31: =ROW() -> 31
A32: 5132793 | B32: eu | C32: 1 | D32: brakmar | E32: t | F32: 1891263 | G32: eu | H32: 1 | I32: VinK | J32: z | K32: 1780432 | L32: eu | M32: 1 | N32: krueger | O32: p | P32: Bronze | Q32: 20 | R32: 38 | S32: 388 | T32: 2014-07-27 | U32: 13 days | V32: 2014-09-20T12:36:01 | W32: 5132793-1|1891263-1|1780432-1 | Y32: =ROW() -> 32
A33: 3323722 | B33: eu | C33: 1 | D33: Jomaseri | E33: z | F33: 3003262 | G33: eu | H33: 1 | I33: Fleky | J33: t | K33: 397616 | L33: eu | M33: 1 | N33: Zurman | O33: p | P33: Bronze | Q33: 13 | R33: 13 | S33: 384 | T33: 2014-09-01 | U33: 1 days | V33: 2014-09-20T12:36:01 | W33: 3323722-1|3003262-1|397616-1 | Y33: =ROW() -> 33
A34: 1075604 | B34: eu | C34: 1 | D34: Tydirius | E34: z | F34: 197401 | G34: eu | H34: 1 | I34: seBoT | J34: z | K34: 189123 | L34: eu | M34: 1 | N34: YenloWang | O34: z | P34: Bronze | Q34: 11 | R34: 20 | S34: 384 | T34: 2014-07-30 | U34: 3 days | V34: 2014-09-20T12:36:01 | W34: 1075604-1|197401-1|189123-1 | Y34: =ROW() -> 34
A35: 2087948 | B35: eu | C35: 1 | D35: WeedDealer | E35: r | F35: 1721459 | G35: eu | H35: 1 | I35: ProtoJuly | J35: r | K35: 207841 | L35: eu | M35: 1 | N35: ProtoPlasma | O35: r | P35: Bronze | Q35: 26 | R35: 33 | S35: 379 | T35: 2014-08-01 | U35: 35 days | V35: 2014-09-20T12:36:01 | W35: 2087948-1|1721459-1|207841-1 | Y35: =ROW() -> 35
A36: 4084882 | B36: eu | C36: 1 | D36: Wolfcrush | E36: z | F36: 4084862 | G36: eu | H36: 1 | I36: DrCaligarius | J36: t | K36: 4083623 | L36: eu | M36: 1 | N36: NinJoDoR | O36: t | P36: Bronze | Q36: 13 | R36: 14 | S36: 374 | T36: 2014-08-19 | U36: 1 days | V36: 2014-09-20T12:36:01 | W36: 4084882-1|4084862-1|4083623-1 | Y36: =ROW() -> 36
A37: 1139338 | B37: eu | C37: 2 | D37: Vladimir | E37: p | F37: 674211 | G37: eu | H37: 2 | I37: Tilyagulov | J37: t | K37: 133607 | L37: eu | M37: 2 | N37: onik | O37: t | P37: Bronze | Q37: 10 | R37: 2 | S37: 372 | T37: 2014-08-08 | U37: 15 days | V37: 2014-09-20T12:36:01 | W37: 1139338-2|674211-2|133607-2 | Y37: =ROW() -> 37
A38: 4149008 | B38: eu | C38: 1 | D38: GloVo | E38: r | F38: 3279897 | G38: eu | H38: 1 | I38: florizard | J38: t | K38: 1782664 | L38: eu | M38: 1 | N38: Powerduck | O38: r | P38: Bronze | Q38: 14 | R38: 13 | S38: 372 | T38: 2014-07-21 | U38: 12 days | V38: 2014-09-20T12:36:01 | W38: 4149008-1|3279897-1|1782664-1 | Y38: =ROW() -> 38
A39: 157248 | B39: eu | C39: 2 | D39: Saint | E39: z | F39: 5177154 | G39: eu | H39: 1 | I39: Ramzzes | J39: t | K39: 3267448 | L39: eu | M39: 1 | N39: Samur | O39: p | P39: Bronze | Q39: 12 | R39: 16 | S39: 370 | T39: 2014-08-26 | U39: 11 days | V39: 2014-09-20T12:36:01 | W39: 157248-2|5177154-1|3267448-1 | Y39: =ROW() -> 39
A40: 3157523 | B40: eu | C40: 1 | D40: Sarcasmos | E40: t | F40: 2979360 | G40: eu | H40: 1 | I40: Snickles | J40: t | K40: 2649969 | L40: eu | M40: 1 | N40: OgAngryMob | O40: t | P40: Bronze | Q40: 22 | R40: 32 | S40: 368 | T40: 2014-07-13 | U40: 34 days | V40: 2014-09-20T12:36:01 | W40: 3157523-1|2979360-1|2649969-1 | Y40: =ROW() -> 40
A41: 5152143 | B41: eu | C41: 1 | D41: Mammouth | E41: t | F41: 1815652 | G41: eu | H41: 1 | I41: Bayushi | J41: p | K41: 904410 | L41: eu | M41: 1 | N41: Vini | O41: z | P41: Bronze | Q41: 12 | R41: 18 | S41: 368 | T41: 2014-08-09 | U41: 29 days | V41: 2014-09-20T12:36:01 | W41: 5152143-1|1815652-1|904410-1 | Y41: =ROW() -> 41
A42: 1463556 | B42: eu | C42: 1 | D42: Scorpion | E42: p | F42: 1409032 | G42: eu | H42: 1 | I42: Nightbase | J42: z | K42: 1378112 | L42: eu | M42: 1 | N42: Reptile | O42: t | P42: Bronze | Q42: 13 | R42: 10 | S42: 366 | T42: 2014-07-09 | U42: 14 days | V42: 2014-09-20T12:36:01 | W42: 1463556-1|1409032-1|1378112-1 | Y42: =ROW() -> 42
A43: 3038843 | B43: eu | C43: 1 | D43: zilman | E43: p | F43: 1500272 | G43: eu | H43: 1 | I43: Bubble | J43: z | K43: 1137715 | L43: eu | M43: 1 | N43: iXtreme | O43: p | P43: Bronze | Q43: 12 | R43: 21 | S43: 366 | T43: 2014-08-17 | U43: 1 days | V43: 2014-09-20T12:36:01 | W43: 3038843-1|1500272-1|1137715-1 | Y43: =ROW() -> 43
A44: 422703 | B44: eu | C44: 1 | D44: Lele | E44: z | F44: 385672 | G44: eu | H44: 1 | I44: Tony | J44: p | K44: 233060 | L44: eu | M44: 1 | N44: Eternal | O44: z | P44: Bronze | Q44: 12 | R44: 14 | S44: 365 | T44: 2014-07-19 | U44: 15 days | V44: 2014-09-20T12:36:01 | W44: 422703-1|385672-1|233060-1 | Y44: =ROW() -> 44
A45: 4670955 | B45: eu | C45: 1 | D45: Krueger | E45: p | F45: 4585596 | G45: eu | H45: 1 | I45: Slayerkidd | J45: z | K45: 2563351 | L45: eu | M45: 1 | N45: Adevas | O45: z | P45: Bronze | Q45: 19 | R45: 35 | S45: 360 | T45: 2014-07-11 | U45: 1 hours | V45: 2014-09-20T12:36:01 | W45: 4670955-1|4585596-1|2563351-1 | Y45: =ROW() -> 45
A46: 4487366 | B46: eu | C46: 1 | D46: BloodSky | E46: t | F46: 3357935 | G46: eu | H46: 1 | I46: iamRoyaLets | J46: t | K46: 1014241 | L46: eu | M46: 1 | N46: CreaMly | O46: z | P46: Bronze | Q46: 13 | R46: 17 | S46: 357 | T46: 2014-07-08 | U46: 26 days | V46: 2014-09-20T12:36:01 | W46: 4487366-1|3357935-1|1014241-1 | Y46: =ROW() -> 46
A47: 972358 | B47: eu | C47: 1 | D47: Gyllmeister | E47: t | F47: 530798 | G47: eu | H47: 1 | I47: McPilsner | J47: p | K47: 530045 | L47: eu | M47: 1 | N47: McCarver | O47: r | P47: Bronze | Q47: 13 | R47: 16 | S47: 356 | T47: 2014-08-20 | U47: 18 days | V47: 2014-09-20T12:36:01 | W47: 972358-1|530798-1|530045-1 | Y47: =ROW() -> 47
A48: 4246331 | B48: eu | C48: 1 | D48: darkside | E48: t | F48: 4244346 | G48: eu | H48: 1 | I48: dyfree | J48: p | K48: 3896188 | L48: eu | M48: 1 | N48: NÃ©crÃ¸zz | O48: t | P48: Bronze | Q48: 15 | R48: 21 | S48: 356 | T48: 2014-07-28 | U48: 21 days | V48: 2014-09-20T12:36:01 | W48: 4246331-1|4244346-1|3896188-1 | Y48: =ROW() -> 48
A49: 1928520 | B49: eu | C49: 1 | D49: Striker | E49: r | F49: 1596545 | G49: eu | H49: 1 | I49: docandy | J49: r | K49: 1492220 | L49: eu | M49: 1 | N49: Brexten | O49: r | P49: Bronze | Q49: 13 | R49: 19 | S49: 355 | T49: 2014-07-07 | U49: 22 days | V49: 2014-09-20T12:36:01 | W49: 1928520-1|1596545-1|1492220-1 | Y49: =ROW() -> 49
A50: 420159 | B50: eu | C50: 1 | D50: Sil | E50: z | F50: 390932 | G50: eu | H50: 1 | I50: MoRt | J50: r | K50: 370660 | L50: eu | M50: 1 | N50: NoV | O50: r | P50: Bronze | Q50: 10 | R50: 1 | S50: 354 | T50: 2014-07-25 | U50: 35 days | V50: 2014-09-20T12:36:01 | W50: 420159-1|390932-1|370660-1 | Y50: =ROW() -> 50
A51: 4280246 | B51: eu | C51: 1 | D51: gand | E51: t | F51: 3530492 | G51: eu | H51: 1 | I51: PunkyTiger | J51: p | K51: 596743 | L51: eu | M51: 1 | N51: Marcus | O51: p | P51: Bronze | Q51: 11 | R51: 11 | S51: 354 | T51: 2014-07-31 | U51: 16 days | V51: 2014-09-20T12:36:01 | W51: 4280246-1|3530492-1|596743-1 | Y51: =ROW() -> 51
A52: 3370054 | B52: eu | C52: 1 | D52: GameOver | E52: r | F52: 3294148 | G52: eu | H52: 1 | I52: Jojo | J52: r | K52: 823658 | L52: eu | M52: 1 | N52: Ghostcore | O52: r | P52: Bronze | Q52: 12 | R52: 13 | S52: 354 | T52: 2014-07-11 | U52: 6 days | V52: 2014-09-20T12:36:01 | W52: 3370054-1|3294148-1|823658-1 | Y52: =ROW() -> 52
A53: 3016153 | B53: eu | C53: 1 | D53: Adler | E53: r | F53: 2000735 | G53: eu | H53: 1 | I53: Steeler | J53: z | K53: 1698822 | L53: eu | M53: 1 | N53: Creepers | O53: p | P53: Bronze | Q53: 11 | R53: 22 | S53: 354 | T53: 2014-07-17 | U53: 7 days | V53: 2014-09-20T12:36:01 | W53: 3016153-1|2000735-1|1698822-1 | Y53: =ROW() -> 53
A54: 283686 | B54: eu | C54: 2 | D54: Omen | E54: p | F54: 3884833 | G54: eu | H54: 1 | I54: REDSOX | J54: t | K54: 1676207 | L54: eu | M54: 1 | N54: xutrix | O54: z | P54: Bronze | Q54: 10 | R54: 1 | S54: 352 | T54: 2014-08-09 | U54: 16 days | V54: 2014-09-20T12:36:01 | W54: 283686-2|3884833-1|1676207-1 | Y54: =ROW() -> 54
A55: 1387938 | B55: eu | C55: 1 | D55: tFFGladiator | E55: z | F55: 325356 | G55: eu | H55: 1 | I55: Metalking | J55: r | K55: 172605 | L55: eu | M55: 1 | N55: IlIIIlIllIll | O55: r | P55: Bronze | Q55: 20 | R55: 32 | S55: 351 | T55: 2014-07-16 | U55: 26 days | V55: 2014-09-20T12:36:01 | W55: 1387938-1|325356-1|172605-1 | Y55: =ROW() -> 55
A56: 1565763 | B56: eu | C56: 1 | D56: TontonVelu | E56: r | F56: 412501 | G56: eu | H56: 1 | I56: Gatobask | J56: r | K56: 396258 | L56: eu | M56: 1 | N56: Larve | O56: p | P56: Bronze | Q56: 10 | R56: 0 | S56: 350 | T56: 2014-07-20 | U56: 40 days | V56: 2014-09-20T12:36:01 | W56: 1565763-1|412501-1|396258-1 | Y56: =ROW() -> 56
A57: 1939332 | B57: eu | C57: 1 | D57: PudYmperator | E57: p | F57: 1867565 | G57: eu | H57: 1 | I57: BlackBird | J57: z | K57: 1574900 | L57: eu | M57: 1 | N57: ForMisK | O57: t | P57: Bronze | Q57: 10 | R57: 8 | S57: 350 | T57: 2014-07-11 | U57: 30 days | V57: 2014-09-20T12:36:01 | W57: 1939332-1|1867565-1|1574900-1 | Y57: =ROW() -> 57
A58: 2614244 | B58: eu | C58: 1 | D58: Therone | E58: z | F58: 2158824 | G58: eu | H58: 1 | I58: Greymane | J58: p | K58: 347789 | L58: eu | M58: 1 | N58: BritishBoy | O58: t | P58: Bronze | Q58: 14 | R58: 14 | S58: 350 | T58: 2014-08-07 | U58: 21 days | V58: 2014-09-20T12:36:01 | W58: 2614244-1|2158824-1|347789-1 | Y58: =ROW() -> 58
A59: 5157519 | B59: eu | C59: 1 | D59: UltraKeks | E59: p | F59: 2050411 | G59: eu | H59: 1 | I59: Kerrith | J59: r | K59: 1969649 | L59: eu | M59: 1 | N59: Leandros | O59: p | P59: Bronze | Q59: 10 | R59: 14 | S59: 350 | T59: 2014-08-11 | U59: 20 hours | V59: 2014-09-20T12:36:01 | W59: 5157519-1|2050411-1|1969649-1 | Y59: =ROW() -> 59
A60: 1002874 | B60: eu | C60: 1 | D60: Kendar | E60: z | F60: 437961 | G60: eu | H60: 1 | I60: HarryCover | J60: p | K60: 423593 | L60: eu | M60: 1 | N60: stylou | O60: r | P60: Bronze | Q60: 11 | R60: 22 | S60: 350 | T60: 2014-08-02 | U60: 13 days | V60: 2014-09-20T12:36:01 | W60: 1002874-1|437961-1|423593-1 | Y60: =ROW() -> 60
A61: 3359189 | B61: eu | C61: 1 | D61: Ragnarok | E61: p | F61: 3349748 | G61: eu | H61: 1 | I61: Hypereon | J61: p | K61: 3280492 | L61: eu | M61: 1 | N61: Kelsier | O61: z | P61: Bronze | Q61: 10 | R61: 21 | S61: 348 | T61: 2014-07-30 | U61: 27 days | V61: 2014-09-20T12:36:01 | W61: 3359189-1|3349748-1|3280492-1 | Y61: =ROW() -> 61
A62: 3656819 | B62: eu | C62: 1 | D62: Tyler | E62: p | F62: 2535589 | G62: eu | H62: 1 | I62: Virnox | J62: z | K62: 1962871 | L62: eu | M62: 1 | N62: FeroX | O62: z | P62: Bronze | Q62: 12 | R62: 12 | S62: 347 | T62: 2014-07-12 | U62: 22 days | V62: 2014-09-20T12:36:01 | W62: 3656819-1|2535589-1|1962871-1 | Y62: =ROW() -> 62
A63: 1128551 | B63: eu | C63: 1 | D63: Neo | E63: r | F63: 1121594 | G63: eu | H63: 1 | I63: Odivann | J63: r | K63: 1000434 | L63: eu | M63: 1 | N63: Brolax | O63: r | P63: Bronze | Q63: 11 | R63: 16 | S63: 347 | T63: 2014-07-15 | U63: 3 days | V63: 2014-09-20T12:36:01 | W63: 1128551-1|1121594-1|1000434-1 | Y63: =ROW() -> 63
A64: 4472500 | B64: eu | C64: 1 | D64: boerke | E64: t | F64: 3850486 | G64: eu | H64: 1 | I64: sitatunga | J64: t | K64: 771699 | L64: eu | M64: 1 | N64: Tilam | O64: p | P64: Bronze | Q64: 17 | R64: 21 | S64: 346 | T64: 2014-07-11 | U64: 21 hours | V64: 2014-09-20T12:36:01 | W64: 4472500-1|3850486-1|771699-1 | Y64: =ROW() -> 64
A65: 1200798 | B65: eu | C65: 2 | D65: ValeryL | E65: p | F65: 869738 | G65: eu | H65: 2 | I65: dron | J65: t | K65: 4641577 | L65: eu | M65: 1 | N65: Stars | O65: p | P65: Bronze | Q65: 16 | R65: 18 | S65: 345 | T65: 2014-07-21 | U65: 29 days | V65: 2014-09-20T12:36:01 | W65: 1200798-2|869738-2|4641577-1 | Y65: =ROW() -> 65
A66: 3556788 | B66: eu | C66: 1 | D66: bananajoe | E66: p | F66: 417888 | G66: eu | H66: 1 | I66: calathea | J66: z | K66: 245647 | L66: eu | M66: 1 | N66: Pulsebeater | O66: t | P66: Bronze | Q66: 11 | R66: 17 | S66: 344 | T66: 2014-07-25 | U66: 14 days | V66: 2014-09-20T12:36:01 | W66: 3556788-1|417888-1|245647-1 | Y66: =ROW() -> 66
A67: 1266942 | B67: eu | C67: 2 | D67: Kaban | E67: t | F67: 90699 | G67: eu | H67: 2 | I67: Jeka | J67: r | K67: 5143315 | L67: eu | M67: 1 | N67: QFeuer | O67: t | P67: Bronze | Q67: 12 | R67: 27 | S67: 344 | T67: 2014-08-27 | U67: 1 days | V67: 2014-09-20T12:36:01 | W67: 1266942-2|90699-2|5143315-1 | Y67: =ROW() -> 67
A68: 789591 | B68: eu | C68: 2 | D68: Versus | E68: p | F68: 5052997 | G68: eu | H68: 1 | I68: Malcolm | J68: t | K68: 4986210 | L68: eu | M68: 1 | N68: Spyker | O68: z | P68: Bronze | Q68: 12 | R68: 26 | S68: 341 | T68: 2014-07-19 | U68: 6 days | V68: 2014-09-20T12:36:01 | W68: 789591-2|5052997-1|4986210-1 | Y68: =ROW() -> 68
A69: 5145431 | B69: eu | C69: 1 | D69: Yeskis | E69: r | F69: 3829910 | G69: eu | H69: 1 | I69: gabriel | J69: r | K69: 2325467 | L69: eu | M69: 1 | N69: Chaz | O69: r | P69: Bronze | Q69: 10 | R69: 7 | S69: 338 | T69: 2014-07-31 | U69: 23 days | V69: 2014-09-20T12:36:01 | W69: 5145431-1|3829910-1|2325467-1 | Y69: =ROW() -> 69
A70: 3395696 | B70: eu | C70: 1 | D70: Watchthis | E70: z | F70: 2401705 | G70: eu | H70: 1 | I70: steve | J70: r | K70: 1780707 | L70: eu | M70: 1 | N70: Cyclone | O70: t | P70: Bronze | Q70: 10 | R70: 5 | S70: 337 | T70: 2014-07-13 | U70: 19 hours | V70: 2014-09-20T12:36:01 | W70: 3395696-1|2401705-1|1780707-1 | Y70: =ROW() -> 70
A71: 3453569 | B71: eu | C71: 1 | D71: Jimmytrius | E71: p | F71: 3315380 | G71: eu | H71: 1 | I71: Ramsey | J71: p | K71: 2862698 | L71: eu | M71: 1 | N71: Skywalker | O71: z | P71: Bronze | Q71: 12 | R71: 10 | S71: 336 | T71: 2014-08-15 | U71: 2 days | V71: 2014-09-20T12:36:01 | W71: 3453569-1|3315380-1|2862698-1 | Y71: =ROW() -> 71
A72: 2361147 | B72: eu | C72: 1 | D72: Glokta | E72: t | F72: 1713559 | G72: eu | H72: 1 | I72: Daymon | J72: r | K72: 1676201 | L72: eu | M72: 1 | N72: Rayso | O72: r | P72: Bronze | Q72: 9 | R72: 24 | S72: 336 | T72: 2014-07-10 | U72: 1 days | V72: 2014-09-20T12:36:01 | W72: 2361147-1|1713559-1|1676201-1 | Y72: =ROW() -> 72
A73: 4954414 | B73: eu | C73: 1 | D73: BoaSorte | E73: t | F73: 4580423 | G73: eu | H73: 1 | I73: Shaka | J73: p | K73: 1786566 | L73: eu | M73: 1 | N73: Pluto | O73: z | P73: Bronze | Q73: 11 | R73: 14 | S73: 332 | T73: 2014-07-29 | U73: 7 days | V73: 2014-09-20T12:36:01 | W73: 4954414-1|4580423-1|1786566-1 | Y73: =ROW() -> 73
A74: 5218279 | B74: eu | C74: 1 | D74: Okuni | E74: z | F74: 581349 | G74: eu | H74: 1 | I74: lokias | J74: t | K74: 324733 | L74: eu | M74: 1 | N74: Kitsuki | O74: p | P74: Bronze | Q74: 11 | R74: 20 | S74: 332 | T74: 2014-08-27 | U74: 1 days | V74: 2014-09-20T12:36:01 | W74: 5218279-1|581349-1|324733-1 | Y74: =ROW() -> 74
A75: 3531594 | B75: eu | C75: 1 | D75: Fatal | E75: t | F75: 2929869 | G75: eu | H75: 1 | I75: kickfist | J75: t | K75: 1681678 | L75: eu | M75: 1 | N75: riplee | O75: t | P75: Bronze | Q75: 10 | R75: 15 | S75: 330 | T75: 2014-08-04 | U75: 5 days | V75: 2014-09-20T12:36:01 | W75: 3531594-1|2929869-1|1681678-1 | Y75: =ROW() -> 75
A76: 2267620 | B76: eu | C76: 1 | D76: Aelon | E76: t | F76: 1404430 | G76: eu | H76: 1 | I76: Eribus | J76: r | K76: 1028675 | L76: eu | M76: 1 | N76: JtM | O76: p | P76: Bronze | Q76: 10 | R76: 18 | S76: 330 | T76: 2014-08-27 | U76: 15 days | V76: 2014-09-20T12:36:01 | W76: 2267620-1|1404430-1|1028675-1 | Y76: =ROW() -> 76
A77: 3988442 | B77: eu | C77: 1 | D77: SwiZzSoldier | E77: z | F77: 3971088 | G77: eu | H77: 1 | I77: SwiZzPrince | J77: t | K77: 3870146 | L77: eu | M77: 1 | N77: proRuedi | O77: p | P77: Bronze | Q77: 10 | R77: 16 | S77: 328 | T77: 2014-08-20 | U77: 20 days | V77: 2014-09-20T12:36:01 | W77: 3988442-1|3971088-1|3870146-1 | Y77: =ROW() -> 77
A78: 3757235 | B78: eu | C78: 1 | D78: HanubÃ¤r | E78: t | F78: 1377212 | G78: eu | H78: 1 | I78: Anton | J78: z | K78: 327881 | L78: eu | M78: 1 | N78: TheHollowMan | O78: p | P78: Bronze | Q78: 13 | R78: 26 | S78: 327 | T78: 2014-08-17 | U78: 25 days | V78: 2014-09-20T12:36:01 | W78: 3757235-1|1377212-1|327881-1 | Y78: =ROW() -> 78
A79: 3495411 | B79: eu | C79: 1 | D79: Mirki | E79: p | F79: 2446107 | G79: eu | H79: 1 | I79: Lenoros | J79: z | K79: 357059 | L79: eu | M79: 1 | N79: Karabela | O79: p | P79: Bronze | Q79: 12 | R79: 11 | S79: 326 | T79: 2014-07-27 | U79: 5 days | V79: 2014-09-20T12:36:01 | W79: 3495411-1|2446107-1|357059-1 | Y79: =ROW() -> 79
A80: 3366486 | B80: eu | C80: 1 | D80: Bukatan | E80: p | F80: 3237037 | G80: eu | H80: 1 | I80: Martin | J80: p | K80: 3083609 | L80: eu | M80: 1 | N80: Leon | O80: r | P80: Bronze | Q80: 18 | R80: 19 | S80: 326 | T80: 2014-07-14 | U80: 32 days | V80: 2014-09-20T12:36:01 | W80: 3366486-1|3237037-1|3083609-1 | Y80: =ROW() -> 80
A81: 4237697 | B81: eu | C81: 1 | D81: SuuShi | E81: p | F81: 2157774 | G81: eu | H81: 1 | I81: MiMi | J81: r | K81: 1696151 | L81: eu | M81: 1 | N81: porkox | O81: z | P81: Bronze | Q81: 11 | R81: 13 | S81: 322 | T81: 2014-08-17 | U81: 18 days | V81: 2014-09-20T12:36:01 | W81: 4237697-1|2157774-1|1696151-1 | Y81: =ROW() -> 81
A82: 807777 | B82: eu | C82: 1 | D82: kiuby | E82: p | F82: 392035 | G82: eu | H82: 1 | I82: Guismarok | J82: t | K82: 337370 | L82: eu | M82: 1 | N82: Matt | O82: p | P82: Bronze | Q82: 10 | R82: 13 | S82: 322 | T82: 2014-08-07 | U82: 15 days | V82: 2014-09-20T12:36:01 | W82: 807777-1|392035-1|337370-1 | Y82: =ROW() -> 82
A83: 2188117 | B83: eu | C83: 1 | D83: Morpheus | E83: p | F83: 619987 | G83: eu | H83: 1 | I83: Teie | J83: t | K83: 573882 | L83: eu | M83: 1 | N83: Baldy | O83: t | P83: Bronze | Q83: 9 | R83: 11 | S83: 320 | T83: 2014-08-13 | U83: 1 days | V83: 2014-09-20T12:36:01 | W83: 2188117-1|619987-1|573882-1 | Y83: =ROW() -> 83
A84: 537679 | B84: eu | C84: 2 | D84: Ð”Ð°ÑƒÑ€Ð¾Ñ | E84: t | F84: 201892 | G84: eu | H84: 2 | I84: Kaptri | J84: t | K84: 94686 | L84: eu | M84: 2 | N84: Waps | O84: z | P84: Bronze | Q84: 8 | R84: 8 | S84: 318 | T84: 2014-07-14 | U84: 6 days | V84: 2014-09-20T12:36:01 | W84: 537679-2|201892-2|94686-2 | Y84: =ROW() -> 84
A85: 716577 | B85: eu | C85: 2 | D85: gettingup | E85: t | F85: 316554 | G85: eu | H85: 2 | I85: Firefighter | J85: p | K85: 203179 | L85: eu | M85: 2 | N85: Demize | O85: z | P85: Bronze | Q85: 10 | R85: 11 | S85: 318 | T85: 2014-09-04 | U85: 11 days | V85: 2014-09-20T12:36:01 | W85: 716577-2|316554-2|203179-2 | Y85: =ROW() -> 85
A86: 4490181 | B86: eu | C86: 1 | D86: kalexu | E86: p | F86: 4473980 | G86: eu | H86: 1 | I86: Scattered | J86: t | K86: 481669 | L86: eu | M86: 1 | N86: Tavi | O86: p | P86: Bronze | Q86: 12 | R86: 14 | S86: 318 | T86: 2014-08-13 | U86: 25 days | V86: 2014-09-20T12:36:01 | W86: 4490181-1|4473980-1|481669-1 | Y86: =ROW() -> 86
A87: 420486 | B87: eu | C87: 1 | D87: Jelenko | E87: p | F87: 399290 | G87: eu | H87: 1 | I87: TheOutlaw | J87: t | K87: 205460 | L87: eu | M87: 1 | N87: uthar | O87: z | P87: Bronze | Q87: 10 | R87: 14 | S87: 318 | T87: 2014-08-22 | U87: 7 days | V87: 2014-09-20T12:36:01 | W87: 420486-1|399290-1|205460-1 | Y87: =ROW() -> 87
A88: 1563649 | B88: eu | C88: 1 | D88: MAXIMUS | E88: p | F88: 490613 | G88: eu | H88: 1 | I88: hanphi | J88: p | K88: 453067 | L88: eu | M88: 1 | N88: XDIABLOTIN | O88: r | P88: Bronze | Q88: 10 | R88: 15 | S88: 318 | T88: 2014-07-23 | U88: 4 days | V88: 2014-09-20T12:36:01 | W88: 1563649-1|490613-1|453067-1 | Y88: =ROW() -> 88
A89: 808099 | B89: eu | C89: 2 | D89: Yagur | E89: r | F89: 806055 | G89: eu | H89: 2 | I89: figus | J89: r | K89: 4587766 | L89: eu | M89: 1 | N89: max | O89: r | P89: Bronze | Q89: 20 | R89: 39 | S89: 317 | T89: 2014-07-20 | U89: 20 hours | V89: 2014-09-20T12:36:01 | W89: 808099-2|806055-2|4587766-1 | Y89: =ROW() -> 89
A90: 2969165 | B90: eu | C90: 1 | D90: wipeout | E90: p | F90: 2697414 | G90: eu | H90: 1 | I90: DEdoomTH | J90: p | K90: 1146067 | L90: eu | M90: 1 | N90: Snappy | O90: p | P90: Bronze | Q90: 28 | R90: 75 | S90: 316 | T90: 2014-07-12 | U90: 17 hours | V90: 2014-09-20T12:36:01 | W90: 2969165-1|2697414-1|1146067-1 | Y90: =ROW() -> 90
A91: 3547355 | B91: eu | C91: 1 | D91: syl | E91: t | F91: 2063708 | G91: eu | H91: 1 | I91: Jul | J91: r | K91: 1957903 | L91: eu | M91: 1 | N91: Apsare | O91: z | P91: Bronze | Q91: 10 | R91: 17 | S91: 315 | T91: 2014-08-16 | U91: 34 days | V91: 2014-09-20T12:36:01 | W91: 3547355-1|2063708-1|1957903-1 | Y91: =ROW() -> 91
A92: 1107142 | B92: eu | C92: 2 | D92: Zoidberg | E92: p | F92: 331976 | G92: eu | H92: 2 | I92: Assasen | J92: z | K92: 4308372 | L92: eu | M92: 1 | N92: MASTER | O92: p | P92: Bronze | Q92: 16 | R92: 31 | S92: 313 | T92: 2014-08-20 | U92: 18 days | V92: 2014-09-20T12:36:01 | W92: 1107142-2|331976-2|4308372-1 | Y92: =ROW() -> 92
A93: 5043068 | B93: eu | C93: 1 | D93: Polgara | E93: p | F93: 4981174 | G93: eu | H93: 1 | I93: Zallem | J93: r | K93: 895998 | L93: eu | M93: 1 | N93: Kwisatz | O93: z | P93: Bronze | Q93: 10 | R93: 21 | S93: 313 | T93: 2014-07-08 | U93: 24 days | V93: 2014-09-20T12:36:01 | W93: 5043068-1|4981174-1|895998-1 | Y93: =ROW() -> 93
A94: 1898835 | B94: eu | C94: 1 | D94: BloOoDyBapt | E94: t | F94: 767197 | G94: eu | H94: 1 | I94: Chmurtz | J94: r | K94: 598263 | L94: eu | M94: 1 | N94: Doursin | O94: p | P94: Bronze | Q94: 8 | R94: 2 | S94: 310 | T94: 2014-07-23 | U94: 30 days | V94: 2014-09-20T12:36:01 | W94: 1898835-1|767197-1|598263-1 | Y94: =ROW() -> 94
A95: 3099103 | B95: eu | C95: 1 | D95: MOLINARI | E95: t | F95: 1020895 | G95: eu | H95: 1 | I95: mib | J95: p | K95: 990985 | L95: eu | M95: 1 | N95: NoMaS | O95: t | P95: Bronze | Q95: 17 | R95: 31 | S95: 310 | T95: 2014-07-20 | U95: 25 days | V95: 2014-09-20T12:36:01 | W95: 3099103-1|1020895-1|990985-1 | Y95: =ROW() -> 95
A96: 3326801 | B96: eu | C96: 1 | D96: CHiLLiPiPS | E96: t | F96: 3132879 | G96: eu | H96: 1 | I96: JouBliksem | J96: z | K96: 3128490 | L96: eu | M96: 1 | N96: VaPoriZaDor | O96: p | P96: Bronze | Q96: 10 | R96: 21 | S96: 310 | T96: 2014-07-19 | U96: 7 days | V96: 2014-09-20T12:36:01 | W96: 3326801-1|3132879-1|3128490-1 | Y96: =ROW() -> 96
A97: 2613188 | B97: eu | C97: 1 | D97: TOM | E97: t | F97: 1718325 | G97: eu | H97: 1 | I97: pondus | J97: t | K97: 1226724 | L97: eu | M97: 1 | N97: BlackAdderDK | O97: z | P97: Bronze | Q97: 9 | R97: 20 | S97: 310 | T97: 2014-09-01 | U97: 3 days | V97: 2014-09-20T12:36:01 | W97: 2613188-1|1718325-1|1226724-1 | Y97: =ROW() -> 97
A98: 3471236 | B98: eu | C98: 1 | D98: Ukarly | E98: t | F98: 1511753 | G98: eu | H98: 1 | I98: JasSsoN | J98: t | K98: 563319 | L98: eu | M98: 1 | N98: Raistlin | O98: p | P98: Bronze | Q98: 9 | R98: 11 | S98: 308 | T98: 2014-08-05 | U98: 2 days | V98: 2014-09-20T12:36:01 | W98: 3471236-1|1511753-1|563319-1 | Y98: =ROW() -> 98
A99: 3090958 | B99: eu | C99: 1 | D99: LtDan | E99: p | F99: 2726139 | G99: eu | H99: 1 | I99: MrDK | J99: t | K99: 2722234 | L99: eu | M99: 1 | N99: YoGuRt | O99: z | P99: Bronze | Q99: 11 | R99: 11 | S99: 305 | T99: 2014-07-20 | U99: 40 days | V99: 2014-09-20T12:36:01 | W99: 3090958-1|2726139-1|2722234-1 | Y99: =ROW() -> 99
A100: 5248057 | B100: eu | C100: 1 | D100: lexy | E100: t | F100: 5207227 | G100: eu | H100: 1 | I100: Void | J100: z | K100: 4457765 | L100: eu | M100: 1 | N100: Swaann | O100: t | P100: Bronze | Q100: 10 | R100: 14 | S100: 304 | T100: 2014-09-08 | U100: 1 days | V100: 2014-09-20T12:36:01 | W100: 5248057-1|5207227-1|4457765-1 | Y100: =ROW() -> 100
A101: 1085647 | B101: eu | C101: 1 | D101: Picoperdigon | E101: t | F101: 1074463 | G101: eu | H101: 1 | I101: LOCOO | J101: r | K101: 404556 | L101: eu | M101: 1 | N101: Farly | O101: r | P101: Bronze | Q101: 9 | R101: 14 | S101: 304 | T101: 2014-07-11 | U101: 3 days | V101: 2014-09-20T12:36:01 | W101: 1085647-1|1074463-1|404556-1 | Y101: =ROW() -> 101
A102: 4950825 | B102: eu | C102: 1 | D102: QUASAR | E102: t | F102: 2855954 | G102: eu | H102: 1 | I102: Imotral | J102: t | K102: 2629722 | L102: eu | M102: 1 | N102: ELGreEco | O102: t | P102: Bronze | Q102: 15 | R102: 25 | S102: 304 | T102: 2014-07-15 | U102: 30 days | V102: 2014-09-20T12:36:01 | W102: 4950825-1|2855954-1|2629722-1 | Y102: =ROW() -> 102
A103: 5013118 | B103: eu | C103: 1 | D103: Sydi | E103: p | F103: 1963112 | G103: eu | H103: 1 | I103: Kappa | J103: z | K103: 707411 | L103: eu | M103: 1 | N103: Khallor | O103: z | P103: Bronze | Q103: 10 | R103: 14 | S103: 303 | T103: 2014-07-21 | U103: 20 days | V103: 2014-09-20T12:36:01 | W103: 5013118-1|1963112-1|707411-1 | Y103: =ROW() -> 103
A104: 1239600 | B104: eu | C104: 2 | D104: MOLOT | E104: p | F104: 5016448 | G104: eu | H104: 1 | I104: IgorK | J104: p | K104: 2026394 | L104: eu | M104: 1 | N104: shockeroff | O104: t | P104: Bronze | Q104: 9 | R104: 16 | S104: 302 | T104: 2014-09-14 | U104: 30 minutes | V104: 2014-09-20T12:36:01 | W104: 1239600-2|5016448-1|2026394-1 | Y104: =ROW() -> 104
A105: 4795307 | B105: eu | C105: 1 | D105: BanMeImOP | E105: t | F105: 4530936 | G105: eu | H105: 1 | I105: Sorien | J105: r | K105: 4523897 | L105: eu | M105: 1 | N105: EvilMittens | O105: t | P105: Bronze | Q105: 10 | R105: 16 | S105: 301 | T105: 2014-07-09 | U105: 17 days | V105: 2014-09-20T12:36:01 | W105: 4795307-1|4530936-1|4523897-1 | Y105: =ROW() -> 105
A106: 715739 | B106: eu | C106: 1 | D106: Sandeman | E106: z | F106: 606205 | G106: eu | H106: 1 | I106: Gohei | J106: t | K106: 237801 | L106: eu | M106: 1 | N106: JohnLoad | O106: z | P106: Bronze | Q106: 9 | R106: 1 | S106: 300 | T106: 2014-08-07 | U106: 7 days | V106: 2014-09-20T12:36:01 | W106: 715739-1|606205-1|237801-1 | Y106: =ROW() -> 106
A107: 2860101 | B107: eu | C107: 1 | D107: gaffatoi | E107: p | F107: 977456 | G107: eu | H107: 1 | I107: Axiomm | J107: r | K107: 175347 | L107: eu | M107: 1 | N107: JeanBabouin | O107: r | P107: Bronze | Q107: 10 | R107: 12 | S107: 300 | T107: 2014-08-17 | U107: 3 days | V107: 2014-09-20T12:36:01 | W107: 2860101-1|977456-1|175347-1 | Y107: =ROW() -> 107
A108: 4126558 | B108: eu | C108: 1 | D108: DANTEsQUIÃ‰ | E108: r | F108: 4107582 | G108: eu | H108: 1 | I108: Pacal | J108: t | K108: 4079837 | L108: eu | M108: 1 | N108: AgamenÃ³n | O108: t | P108: Bronze | Q108: 10 | R108: 18 | S108: 300 | T108: 2014-08-03 | U108: 20 days | V108: 2014-09-20T12:36:01 | W108: 4126558-1|4107582-1|4079837-1 | Y108: =ROW() -> 108
A109: 5137087 | B109: eu | C109: 1 | D109: Arthenus | E109: t | F109: 4183501 | G109: eu | H109: 1 | I109: Atro | J109: t | K109: 2512624 | L109: eu | M109: 1 | N109: lortinas | O109: t | P109: Bronze | Q109: 19 | R109: 44 | S109: 300 | T109: 2014-08-17 | U109: 17 days | V109: 2014-09-20T12:36:01 | W109: 5137087-1|4183501-1|2512624-1 | Y109: =ROW() -> 109
A110: 5045892 | B110: eu | C110: 1 | D110: Dezyncjusz | E110: p | F110: 4109420 | G110: eu | H110: 1 | I110: AerandirD | J110: t | K110: 2949741 | L110: eu | M110: 1 | N110: KucKuleczka | O110: z | P110: Bronze | Q110: 23 | R110: 34 | S110: 298 | T110: 2014-07-08 | U110: 35 days | V110: 2014-09-20T12:36:01 | W110: 5045892-1|4109420-1|2949741-1 | Y110: =ROW() -> 110
A111: 4921740 | B111: eu | C111: 1 | D111: IIIBAIII | E111: z | F111: 1565247 | G111: eu | H111: 1 | I111: mors | J111: r | K111: 1501224 | L111: eu | M111: 1 | N111: Paddy | O111: z | P111: Bronze | Q111: 8 | R111: 3 | S111: 297 | T111: 2014-07-18 | U111: 27 days | V111: 2014-09-20T12:36:01 | W111: 4921740-1|1565247-1|1501224-1 | Y111: =ROW() -> 111
A112: 5071184 | B112: eu | C112: 1 | D112: Apocalypse | E112: p | F112: 5065324 | G112: eu | H112: 1 | I112: Mody | J112: t | K112: 5063160 | L112: eu | M112: 1 | N112: Sevosan | O112: p | P112: Bronze | Q112: 13 | R112: 17 | S112: 297 | T112: 2014-08-07 | U112: 27 days | V112: 2014-09-20T12:36:01 | W112: 5071184-1|5065324-1|5063160-1 | Y112: =ROW() -> 112
A113: 1156021 | B113: eu | C113: 1 | D113: Horus | E113: t | F113: 1090118 | G113: eu | H113: 1 | I113: Dragon | J113: t | K113: 773780 | L113: eu | M113: 1 | N113: JimJim | O113: p | P113: Bronze | Q113: 8 | R113: 7 | S113: 296 | T113: 2014-09-10 | U113: 9 days | V113: 2014-09-20T12:36:01 | W113: 1156021-1|1090118-1|773780-1 | Y113: =ROW() -> 113
A114: 4728525 | B114: eu | C114: 1 | D114: Nielsen | E114: p | F114: 3948037 | G114: eu | H114: 1 | I114: TrueSpartan | J114: z | K114: 341323 | L114: eu | M114: 1 | N114: Jofa | O114: t | P114: Bronze | Q114: 11 | R114: 11 | S114: 296 | T114: 2014-08-30 | U114: 20 days | V114: 2014-09-20T12:36:01 | W114: 4728525-1|3948037-1|341323-1 | Y114: =ROW() -> 114
A115: 5099335 | B115: eu | C115: 1 | D115: FilleFroh | E115: z | F115: 5047495 | G115: eu | H115: 1 | I115: Furrex | J115: t | K115: 420989 | L115: eu | M115: 1 | N115: Daph | O115: p | P115: Bronze | Q115: 10 | R115: 13 | S115: 296 | T115: 2014-08-01 | U115: 27 days | V115: 2014-09-20T12:36:01 | W115: 5099335-1|5047495-1|420989-1 | Y115: =ROW() -> 115
A116: 1587828 | B116: eu | C116: 1 | D116: MamieNova | E116: r | F116: 780381 | G116: eu | H116: 1 | I116: dds | J116: r | K116: 410169 | L116: eu | M116: 1 | N116: Gabriel | O116: r | P116: Bronze | Q116: 18 | R116: 18 | S116: 295 | T116: 2014-07-08 | U116: 41 days | V116: 2014-09-20T12:36:01 | W116: 1587828-1|780381-1|410169-1 | Y116: =ROW() -> 116
A117: 3279200 | B117: eu | C117: 1 | D117: Zeus | E117: p | F117: 696728 | G117: eu | H117: 1 | I117: Drak | J117: p | K117: 203470 | L117: eu | M117: 1 | N117: Zael | O117: r | P117: Bronze | Q117: 8 | R117: 4 | S117: 294 | T117: 2014-07-15 | U117: 4 days | V117: 2014-09-20T12:36:01 | W117: 3279200-1|696728-1|203470-1 | Y117: =ROW() -> 117
A118: 624118 | B118: eu | C118: 2 | D118: NickV | E118: p | F118: 90497 | G118: eu | H118: 2 | I118: hatifnatt | J118: p | K118: 17550 | L118: eu | M118: 2 | N118: chromoi | O118: z | P118: Bronze | Q118: 7 | R118: 6 | S118: 294 | T118: 2014-08-27 | U118: 20 days | V118: 2014-09-20T12:36:01 | W118: 624118-2|90497-2|17550-2 | Y118: =ROW() -> 118
A119: 5157353 | B119: eu | C119: 1 | D119: Mulldozer | E119: p | F119: 5156458 | G119: eu | H119: 1 | I119: aRRahXe | J119: z | K119: 5155546 | L119: eu | M119: 1 | N119: MrBoss | O119: t | P119: Bronze | Q119: 16 | R119: 40 | S119: 294 | T119: 2014-08-05 | U119: 15 days | V119: 2014-09-20T12:36:01 | W119: 5157353-1|5156458-1|5155546-1 | Y119: =ROW() -> 119
A120: 3583005 | B120: eu | C120: 1 | D120: Hammerstein | E120: p | F120: 2820587 | G120: eu | H120: 1 | I120: AgentSmith | J120: p | K120: 1253540 | L120: eu | M120: 1 | N120: oronto | O120: t | P120: Bronze | Q120: 9 | R120: 20 | S120: 292 | T120: 2014-07-26 | U120: 6 days | V120: 2014-09-20T12:36:01 | W120: 3583005-1|2820587-1|1253540-1 | Y120: =ROW() -> 120
A121: 1127527 | B121: eu | C121: 2 | D121: Dan | E121: p | F121: 1035240 | G121: eu | H121: 2 | I121: Roman | J121: p | K121: 84415 | L121: eu | M121: 2 | N121: lorderones | O121: p | P121: Bronze | Q121: 11 | R121: 30 | S121: 292 | T121: 2014-07-14 | U121: 11 days | V121: 2014-09-20T12:36:01 | W121: 1127527-2|1035240-2|84415-2 | Y121: =ROW() -> 121
A122: 3057564 | B122: eu | C122: 1 | D122: crow | E122: p | F122: 1627172 | G122: eu | H122: 1 | I122: Doudouman | J122: t | K122: 447408 | L122: eu | M122: 1 | N122: Sly | O122: r | P122: Bronze | Q122: 9 | R122: 2 | S122: 290 | T122: 2014-07-21 | U122: 20 hours | V122: 2014-09-20T12:36:01 | W122: 3057564-1|1627172-1|447408-1 | Y122: =ROW() -> 122
A123: 5071077 | B123: eu | C123: 1 | D123: Remix | E123: r | F123: 4488821 | G123: eu | H123: 1 | I123: Lukasz | J123: z | K123: 2772137 | L123: eu | M123: 1 | N123: Alienik | O123: t | P123: Bronze | Q123: 7 | R123: 10 | S123: 290 | T123: 2014-08-29 | U123: 14 days | V123: 2014-09-20T12:36:01 | W123: 5071077-1|4488821-1|2772137-1 | Y123: =ROW() -> 123
A124: 3840288 | B124: eu | C124: 1 | D124: Lifty | E124: z | F124: 1571809 | G124: eu | H124: 1 | I124: Temparis | J124: t | K124: 1134402 | L124: eu | M124: 1 | N124: Shifty | O124: p | P124: Bronze | Q124: 15 | R124: 26 | S124: 289 | T124: 2014-08-07 | U124: 33 days | V124: 2014-09-20T12:36:01 | W124: 3840288-1|1571809-1|1134402-1 | Y124: =ROW() -> 124
A125: 1316526 | B125: eu | C125: 1 | D125: Teesal | E125: z | F125: 1307924 | G125: eu | H125: 1 | I125: Firewind | J125: z | K125: 759496 | L125: eu | M125: 1 | N125: cyr | O125: t | P125: Bronze | Q125: 9 | R125: 11 | S125: 288 | T125: 2014-08-23 | U125: 21 days | V125: 2014-09-20T12:36:01 | W125: 1316526-1|1307924-1|759496-1 | Y125: =ROW() -> 125
A126: 4509867 | B126: eu | C126: 1 | D126: Heero | E126: t | F126: 3739195 | G126: eu | H126: 1 | I126: Keytronics | J126: z | K126: 3453119 | L126: eu | M126: 1 | N126: elfonse | O126: t | P126: Bronze | Q126: 9 | R126: 1 | S126: 286 | T126: 2014-08-18 | U126: 5 days | V126: 2014-09-20T12:36:01 | W126: 4509867-1|3739195-1|3453119-1 | Y126: =ROW() -> 126
A127: 941858 | B127: eu | C127: 2 | D127: vituk | E127: t | F127: 941354 | G127: eu | H127: 2 | I127: echo | J127: p | K127: 336326 | L127: eu | M127: 2 | N127: XelNaga | O127: r | P127: Bronze | Q127: 9 | R127: 2 | S127: 286 | T127: 2014-07-25 | U127: 24 days | V127: 2014-09-20T12:36:01 | W127: 941858-2|941354-2|336326-2 | Y127: =ROW() -> 127
A128: 4879093 | B128: eu | C128: 1 | D128: Broly | E128: p | F128: 4874655 | G128: eu | H128: 1 | I128: blaba | J128: t | K128: 4859012 | L128: eu | M128: 1 | N128: Brkln | O128: z | P128: Bronze | Q128: 7 | R128: 4 | S128: 286 | T128: 2014-08-25 | U128: 2 days | V128: 2014-09-20T12:36:01 | W128: 4879093-1|4874655-1|4859012-1 | Y128: =ROW() -> 128
A129: 4786376 | B129: eu | C129: 1 | D129: Cancoyotte | E129: p | F129: 3401931 | G129: eu | H129: 1 | I129: BriedeMeaux | J129: t | K129: 3400512 | L129: eu | M129: 1 | N129: Maroilles | O129: z | P129: Bronze | Q129: 9 | R129: 9 | S129: 286 | T129: 2014-08-19 | U129: 3 days | V129: 2014-09-20T12:36:01 | W129: 4786376-1|3401931-1|3400512-1 | Y129: =ROW() -> 129
A130: 3270883 | B130: eu | C130: 1 | D130: HypnoZ | E130: p | F130: 843582 | G130: eu | H130: 1 | I130: Slow | J130: r | K130: 539408 | L130: eu | M130: 1 | N130: Kartes | O130: p | P130: Bronze | Q130: 15 | R130: 22 | S130: 286 | T130: 2014-07-12 | U130: 13 days | V130: 2014-09-20T12:36:01 | W130: 3270883-1|843582-1|539408-1 | Y130: =ROW() -> 130
A131: 5187002 | B131: eu | C131: 1 | D131: Jakub | E131: t | F131: 929558 | G131: eu | H131: 1 | I131: Antkoff | J131: t | K131: 855613 | L131: eu | M131: 1 | N131: stasmy | O131: z | P131: Bronze | Q131: 11 | R131: 17 | S131: 286 | T131: 2014-08-18 | U131: 30 days | V131: 2014-09-20T12:36:01 | W131: 5187002-1|929558-1|855613-1 | Y131: =ROW() -> 131
A132: 5124874 | B132: eu | C132: 1 | D132: AznSushy | E132: p | F132: 2230901 | G132: eu | H132: 1 | I132: ZakVador | J132: p | K132: 1773818 | L132: eu | M132: 1 | N132: Lom | O132: t | P132: Bronze | Q132: 12 | R132: 22 | S132: 286 | T132: 2014-08-07 | U132: 10 days | V132: 2014-09-20T12:36:01 | W132: 5124874-1|2230901-1|1773818-1 | Y132: =ROW() -> 132
A133: 2540341 | B133: eu | C133: 1 | D133: Azrael | E133: z | F133: 2042934 | G133: eu | H133: 1 | I133: Rupft | J133: t | K133: 1820287 | L133: eu | M133: 1 | N133: KleiderbÃ¼gel | O133: t | P133: Bronze | Q133: 12 | R133: 29 | S133: 286 | T133: 2014-07-14 | U133: 2 days | V133: 2014-09-20T12:36:01 | W133: 2540341-1|2042934-1|1820287-1 | Y133: =ROW() -> 133
A134: 4557241 | B134: eu | C134: 1 | D134: Jorockeur | E134: t | F134: 3213380 | G134: eu | H134: 1 | I134: Ulre | J134: z | K134: 2246218 | L134: eu | M134: 1 | N134: Muream | O134: r | P134: Bronze | Q134: 8 | R134: 2 | S134: 284 | T134: 2014-07-08 | U134: 2 hours | V134: 2014-09-20T12:36:01 | W134: 4557241-1|3213380-1|2246218-1 | Y134: =ROW() -> 134
A135: 4527195 | B135: eu | C135: 1 | D135: Ust | E135: r | F135: 1161624 | G135: eu | H135: 1 | I135: Manesskuggen | J135: r | K135: 704020 | L135: eu | M135: 1 | N135: NeroZrG | O135: r | P135: Bronze | Q135: 8 | R135: 3 | S135: 284 | T135: 2014-07-31 | U135: 37 days | V135: 2014-09-20T12:36:01 | W135: 4527195-1|1161624-1|704020-1 | Y135: =ROW() -> 135
A136: 3886644 | B136: eu | C136: 1 | D136: FoCuZz | E136: t | F136: 1619122 | G136: eu | H136: 1 | I136: trice | J136: z | K136: 494837 | L136: eu | M136: 1 | N136: ForeverGold | O136: r | P136: Bronze | Q136: 7 | R136: 3 | S136: 284 | T136: 2014-08-04 | U136: 11 days | V136: 2014-09-20T12:36:01 | W136: 3886644-1|1619122-1|494837-1 | Y136: =ROW() -> 136
A137: 2045142 | B137: eu | C137: 1 | D137: Eaque | E137: t | F137: 582302 | G137: eu | H137: 1 | I137: Bonabab | J137: z | K137: 565909 | L137: eu | M137: 1 | N137: DeadWan | O137: t | P137: Bronze | Q137: 10 | R137: 12 | S137: 284 | T137: 2014-08-01 | U137: 14 days | V137: 2014-09-20T12:36:01 | W137: 2045142-1|582302-1|565909-1 | Y137: =ROW() -> 137
A138: 3558729 | B138: eu | C138: 1 | D138: Imran | E138: p | F138: 2487575 | G138: eu | H138: 1 | I138: Chapi | J138: t | K138: 1779988 | L138: eu | M138: 1 | N138: ImRAIN | O138: p | P138: Bronze | Q138: 9 | R138: 17 | S138: 284 | T138: 2014-07-11 | U138: 14 days | V138: 2014-09-20T12:36:01 | W138: 3558729-1|2487575-1|1779988-1 | Y138: =ROW() -> 138
A139: 2943474 | B139: eu | C139: 1 | D139: Nosturas | E139: p | F139: 2132563 | G139: eu | H139: 1 | I139: cogizio | J139: z | K139: 492214 | L139: eu | M139: 1 | N139: Elmuchacho | O139: t | P139: Bronze | Q139: 9 | R139: 10 | S139: 282 | T139: 2014-08-24 | U139: 12 days | V139: 2014-09-20T12:36:01 | W139: 2943474-1|2132563-1|492214-1 | Y139: =ROW() -> 139
A140: 2593753 | B140: eu | C140: 1 | D140: MuffinMunch | E140: t | F140: 2362342 | G140: eu | H140: 1 | I140: muffinman | J140: p | K140: 1489019 | L140: eu | M140: 1 | N140: Legacy | O140: z | P140: Bronze | Q140: 10 | R140: 12 | S140: 282 | T140: 2014-09-16 | U140: 1 days | V140: 2014-09-20T12:36:01 | W140: 2593753-1|2362342-1|1489019-1 | Y140: =ROW() -> 140
A141: 5097141 | B141: eu | C141: 1 | D141: Rabyan | E141: t | F141: 1162992 | G141: eu | H141: 1 | I141: Ashiku | J141: r | K141: 853854 | L141: eu | M141: 1 | N141: Societ | O141: z | P141: Bronze | Q141: 8 | R141: 10 | S141: 282 | T141: 2014-07-30 | U141: 38 days | V141: 2014-09-20T12:36:01 | W141: 5097141-1|1162992-1|853854-1 | Y141: =ROW() -> 141
A142: 102388 | B142: eu | C142: 2 | D142: Neocortex | E142: r | F142: 23108 | G142: eu | H142: 2 | I142: ZeroOne | J142: p | K142: 6696 | L142: eu | M142: 2 | N142: FanOFF | O142: z | P142: Bronze | Q142: 8 | R142: 13 | S142: 282 | T142: 2014-08-31 | U142: 8 days | V142: 2014-09-20T12:36:01 | W142: 102388-2|23108-2|6696-2 | Y142: =ROW() -> 142
A143: 5047352 | B143: eu | C143: 1 | D143: dadatore | E143: t | F143: 4525125 | G143: eu | H143: 1 | I143: grosmalin | J143: p | K143: 4477470 | L143: eu | M143: 1 | N143: Spirit | O143: p | P143: Bronze | Q143: 9 | R143: 23 | S143: 281 | T143: 2014-08-02 | U143: 19 days | V143: 2014-09-20T12:36:01 | W143: 5047352-1|4525125-1|4477470-1 | Y143: =ROW() -> 143
A144: 1366204 | B144: eu | C144: 1 | D144: Weemee | E144: r | F144: 665596 | G144: eu | H144: 1 | I144: BaronTwunty | J144: z | K144: 408399 | L144: eu | M144: 1 | N144: Scarab | O144: z | P144: Bronze | Q144: 8 | R144: 4 | S144: 280 | T144: 2014-08-20 | U144: 1 days | V144: 2014-09-20T12:36:01 | W144: 1366204-1|665596-1|408399-1 | Y144: =ROW() -> 144
A145: 2599237 | B145: eu | C145: 1 | D145: Reini | E145: p | F145: 621591 | G145: eu | H145: 1 | I145: Tyler | J145: z | K145: 360556 | L145: eu | M145: 1 | N145: eBB | O145: t | P145: Bronze | Q145: 8 | R145: 13 | S145: 280 | T145: 2014-07-27 | U145: 4 days | V145: 2014-09-20T12:36:01 | W145: 2599237-1|621591-1|360556-1 | Y145: =ROW() -> 145
A146: 1245993 | B146: eu | C146: 2 | D146: Lex | E146: t | F146: 5027153 | G146: eu | H146: 1 | I146: Mar | J146: p | K146: 3608829 | L146: eu | M146: 1 | N146: Son | O146: r | P146: Bronze | Q146: 11 | R146: 14 | S146: 278 | T146: 2014-08-16 | U146: 13 days | V146: 2014-09-20T12:36:01 | W146: 1245993-2|5027153-1|3608829-1 | Y146: =ROW() -> 146
A147: 3129290 | B147: eu | C147: 1 | D147: imOK | E147: z | F147: 3053389 | G147: eu | H147: 1 | I147: TERMINELSON | J147: p | K147: 3044745 | L147: eu | M147: 1 | N147: ArdeTroya | O147: t | P147: Bronze | Q147: 9 | R147: 16 | S147: 278 | T147: 2014-07-25 | U147: 16 days | V147: 2014-09-20T12:36:01 | W147: 3129290-1|3053389-1|3044745-1 | Y147: =ROW() -> 147
A148: 2436407 | B148: eu | C148: 1 | D148: Svebsiboy | E148: z | F148: 2429384 | G148: eu | H148: 1 | I148: Axemax | J148: z | K148: 2429383 | L148: eu | M148: 1 | N148: Hunter | O148: p | P148: Bronze | Q148: 8 | R148: 15 | S148: 278 | T148: 2014-09-04 | U148: 14 days | V148: 2014-09-20T12:36:01 | W148: 2436407-1|2429384-1|2429383-1 | Y148: =ROW() -> 148
A149: 3556870 | B149: eu | C149: 1 | D149: Barocco | E149: r | F149: 933801 | G149: eu | H149: 1 | I149: Michele | J149: r | K149: 292947 | L149: eu | M149: 1 | N149: Terran | O149: z | P149: Bronze | Q149: 8 | R149: 1 | S149: 277 | T149: 2014-07-12 | U149: 25 days | V149: 2014-09-20T12:36:01 | W149: 3556870-1|933801-1|292947-1 | Y149: =ROW() -> 149
A150: 2186951 | B150: eu | C150: 1 | D150: BigWars | E150: t | F150: 767223 | G150: eu | H150: 1 | I150: MacHin | J150: r | K150: 395953 | L150: eu | M150: 1 | N150: RodeoRex | O150: r | P150: Bronze | Q150: 8 | R150: 9 | S150: 277 | T150: 2014-07-07 | U150: 4 days | V150: 2014-09-20T12:36:01 | W150: 2186951-1|767223-1|395953-1 | Y150: =ROW() -> 150
A151: 1687121 | B151: eu | C151: 1 | D151: Knuthansen | E151: t | F151: 234365 | G151: eu | H151: 1 | I151: takkemi | J151: p | K151: 195416 | L151: eu | M151: 1 | N151: IIIIIIIII | O151: z | P151: Bronze | Q151: 7 | R151: 2 | S151: 276 | T151: 2014-08-24 | U151: 2 days | V151: 2014-09-20T12:36:01 | W151: 1687121-1|234365-1|195416-1 | Y151: =ROW() -> 151
A152: 297339 | B152: eu | C152: 2 | D152: Ð‘ÐµÑ€ÑÐµÑ€Ðº | E152: r | F152: 1802679 | G152: eu | H152: 1 | I152: Hakb | J152: r | K152: 1771921 | L152: eu | M152: 1 | N152: CaptainBlood | O152: r | P152: Bronze | Q152: 8 | R152: 8 | S152: 276 | T152: 2014-08-30 | U152: 19 days | V152: 2014-09-20T12:36:01 | W152: 297339-2|1802679-1|1771921-1 | Y152: =ROW() -> 152
A153: 4670955 | B153: eu | C153: 1 | D153: Krueger | E153: p | F153: 4585596 | G153: eu | H153: 1 | I153: Slayerkidd | J153: z | K153: 2518901 | L153: eu | M153: 1 | N153: nash | O153: t | P153: Bronze | Q153: 11 | R153: 24 | S153: 276 | T153: 2014-07-10 | U153: 9 days | V153: 2014-09-20T12:36:01 | W153: 4670955-1|4585596-1|2518901-1 | Y153: =ROW() -> 153
A154: 3170290 | B154: eu | C154: 1 | D154: Aldarion | E154: t | F154: 1773692 | G154: eu | H154: 1 | I154: Messia | J154: z | K154: 1755678 | L154: eu | M154: 1 | N154: Sofferenzo | O154: p | P154: Bronze | Q154: 11 | R154: 16 | S154: 274 | T154: 2014-07-23 | U154: 18 days | V154: 2014-09-20T12:36:01 | W154: 3170290-1|1773692-1|1755678-1 | Y154: =ROW() -> 154
A155: 4918877 | B155: eu | C155: 1 | D155: Beuzor | E155: z | F155: 4917799 | G155: eu | H155: 1 | I155: Nodal | J155: t | K155: 4296416 | L155: eu | M155: 1 | N155: Peclesh | O155: p | P155: Bronze | Q155: 10 | R155: 19 | S155: 274 | T155: 2014-07-07 | U155: 10 days | V155: 2014-09-20T12:36:01 | W155: 4918877-1|4917799-1|4296416-1 | Y155: =ROW() -> 155
A156: 4566276 | B156: eu | C156: 1 | D156: Andy | E156: z | F156: 3273931 | G156: eu | H156: 1 | I156: jenold | J156: t | K156: 2405128 | L156: eu | M156: 1 | N156: chris | O156: t | P156: Bronze | Q156: 10 | R156: 25 | S156: 274 | T156: 2014-09-12 | U156: 3 days | V156: 2014-09-20T12:36:01 | W156: 4566276-1|3273931-1|2405128-1 | Y156: =ROW() -> 156
A157: 4564722 | B157: eu | C157: 1 | D157: arifin | E157: z | F157: 4447908 | G157: eu | H157: 1 | I157: AKAYoung | J157: t | K157: 4004146 | L157: eu | M157: 1 | N157: Wartron | O157: t | P157: Bronze | Q157: 11 | R157: 26 | S157: 273 | T157: 2014-07-25 | U157: 7 days | V157: 2014-09-20T12:36:01 | W157: 4564722-1|4447908-1|4004146-1 | Y157: =ROW() -> 157
A158: 1998620 | B158: eu | C158: 1 | D158: Haribold | E158: z | F158: 578770 | G158: eu | H158: 1 | I158: Swift | J158: r | K158: 503659 | L158: eu | M158: 1 | N158: Quick | O158: z | P158: Bronze | Q158: 9 | R158: 1 | S158: 272 | T158: 2014-08-07 | U158: 39 days | V158: 2014-09-20T12:36:01 | W158: 1998620-1|578770-1|503659-1 | Y158: =ROW() -> 158
A159: 225744 | B159: eu | C159: 1 | D159: drnsoong | E159: p | F159: 219024 | G159: eu | H159: 1 | I159: MieserSpiele | J159: p | K159: 180165 | L159: eu | M159: 1 | N159: rizzo | O159: t | P159: Bronze | Q159: 7 | R159: 10 | S159: 272 | T159: 2014-08-15 | U159: 15 days | V159: 2014-09-20T12:36:01 | W159: 225744-1|219024-1|180165-1 | Y159: =ROW() -> 159
A160: 2376279 | B160: eu | C160: 1 | D160: Steven | E160: p | F160: 1835101 | G160: eu | H160: 1 | I160: Nukeface | J160: t | K160: 1183810 | L160: eu | M160: 1 | N160: Gennesis | O160: z | P160: Bronze | Q160: 9 | R160: 0 | S160: 270 | T160: 2014-07-27 | U160: 41 days | V160: 2014-09-20T12:36:01 | W160: 2376279-1|1835101-1|1183810-1 | Y160: =ROW() -> 160
A161: 3021446 | B161: eu | C161: 1 | D161: Satorius | E161: r | F161: 1755541 | G161: eu | H161: 1 | I161: Sylvester | J161: t | K161: 1565785 | L161: eu | M161: 1 | N161: SirUlrich | O161: r | P161: Bronze | Q161: 7 | R161: 5 | S161: 270 | T161: 2014-08-14 | U161: 29 days | V161: 2014-09-20T12:36:01 | W161: 3021446-1|1755541-1|1565785-1 | Y161: =ROW() -> 161
A162: 744215 | B162: eu | C162: 1 | D162: Vaya | E162: r | F162: 311794 | G162: eu | H162: 1 | I162: Gonzo | J162: z | K162: 309229 | L162: eu | M162: 1 | N162: GOLDFIT | O162: r | P162: Bronze | Q162: 9 | R162: 8 | S162: 270 | T162: 2014-07-20 | U162: 23 days | V162: 2014-09-20T12:36:01 | W162: 744215-1|311794-1|309229-1 | Y162: =ROW() -> 162
A163: 1282336 | B163: eu | C163: 2 | D163: Goposha | E163: z | F163: 1228873 | G163: eu | H163: 2 | I163: Raccoon | J163: z | K163: 1080801 | L163: eu | M163: 2 | N163: SYSQL | O163: p | P163: Bronze | Q163: 13 | R163: 12 | S163: 270 | T163: 2014-09-06 | U163: 3 days | V163: 2014-09-20T12:36:01 | W163: 1282336-2|1228873-2|1080801-2 | Y163: =ROW() -> 163
A164: 4435092 | B164: eu | C164: 1 | D164: ansii | E164: t | F164: 1310986 | G164: eu | H164: 1 | I164: stx | J164: p | K164: 280585 | L164: eu | M164: 1 | N164: andy | O164: z | P164: Bronze | Q164: 8 | R164: 9 | S164: 270 | T164: 2014-08-25 | U164: 8 days | V164: 2014-09-20T12:36:01 | W164: 4435092-1|1310986-1|280585-1 | Y164: =ROW() -> 164
A165: 5166012 | B165: eu | C165: 1 | D165: Morenon | E165: p | F165: 5121020 | G165: eu | H165: 1 | I165: Chelendil | J165: z | K165: 5011513 | L165: eu | M165: 1 | N165: Tergeist | O165: t | P165: Bronze | Q165: 7 | R165: 13 | S165: 270 | T165: 2014-08-17 | U165: 5 days | V165: 2014-09-20T12:36:01 | W165: 5166012-1|5121020-1|5011513-1 | Y165: =ROW() -> 165
A166: 2509098 | B166: eu | C166: 1 | D166: Teiken | E166: r | F166: 1614227 | G166: eu | H166: 1 | I166: HellLion | J166: p | K166: 715758 | L166: eu | M166: 1 | N166: ODB | O166: z | P166: Bronze | Q166: 15 | R166: 16 | S166: 269 | T166: 2014-07-19 | U166: 45 days | V166: 2014-09-20T12:36:01 | W166: 2509098-1|1614227-1|715758-1 | Y166: =ROW() -> 166
A167: 1709409 | B167: eu | C167: 1 | D167: unclemanne | E167: t | F167: 1111013 | G167: eu | H167: 1 | I167: ElDragÃ²n | J167: r | K167: 289803 | L167: eu | M167: 1 | N167: Opgeklopter | O167: r | P167: Bronze | Q167: 8 | R167: 8 | S167: 268 | T167: 2014-08-14 | U167: 36 days | V167: 2014-09-20T12:36:01 | W167: 1709409-1|1111013-1|289803-1 | Y167: =ROW() -> 167
A168: 4520622 | B168: eu | C168: 1 | D168: xButterFlyx | E168: p | F168: 3835938 | G168: eu | H168: 1 | I168: Jason | J168: z | K168: 3640584 | L168: eu | M168: 1 | N168: NinjaToast | O168: p | P168: Bronze | Q168: 17 | R168: 27 | S168: 268 | T168: 2014-07-30 | U168: 40 days | V168: 2014-09-20T12:36:01 | W168: 4520622-1|3835938-1|3640584-1 | Y168: =ROW() -> 168
A169: 5030321 | B169: eu | C169: 1 | D169: KillerFisch | E169: p | F169: 3419740 | G169: eu | H169: 1 | I169: Challemannen | J169: t | K169: 2564324 | L169: eu | M169: 1 | N169: Wildrick | O169: p | P169: Bronze | Q169: 8 | R169: 14 | S169: 268 | T169: 2014-08-01 | U169: 1 days | V169: 2014-09-20T12:36:01 | W169: 5030321-1|3419740-1|2564324-1 | Y169: =ROW() -> 169
A170: 8520 | B170: eu | C170: 2 | D170: FtloAlehan | E170: r | F170: 6683 | G170: eu | H170: 2 | I170: Mokujin | J170: p | K170: 1734379 | L170: eu | M170: 1 | N170: gogabyte | O170: r | P170: Bronze | Q170: 8 | R170: 4 | S170: 266 | T170: 2014-08-15 | U170: 29 days | V170: 2014-09-20T12:36:01 | W170: 8520-2|6683-2|1734379-1 | Y170: =ROW() -> 170
A171: 4619078 | B171: eu | C171: 1 | D171: NeoRanvier | E171: t | F171: 3564186 | G171: eu | H171: 1 | I171: Rodiran | J171: z | K171: 799304 | L171: eu | M171: 1 | N171: Diem | O171: t | P171: Bronze | Q171: 9 | R171: 6 | S171: 266 | T171: 2014-07-20 | U171: 19 hours | V171: 2014-09-20T12:36:01 | W171: 4619078-1|3564186-1|799304-1 | Y171: =ROW() -> 171
A172: 4365339 | B172: eu | C172: 1 | D172: Pilot | E172: z | F172: 1198634 | G172: eu | H172: 1 | I172: Falros | J172: p | K172: 1105302 | L172: eu | M172: 1 | N172: KÃ¦lthor | O172: t | P172: Bronze | Q172: 9 | R172: 6 | S172: 266 | T172: 2014-08-01 | U172: 48 days | V172: 2014-09-20T12:36:01 | W172: 4365339-1|1198634-1|1105302-1 | Y172: =ROW() -> 172
A173: 25572 | B173: eu | C173: 2 | D173: Stranger | E173: z | F173: 4933790 | G173: eu | H173: 1 | I173: madkatran | J173: t | K173: 3085301 | L173: eu | M173: 1 | N173: Snowerest | O173: z | P173: Bronze | Q173: 12 | R173: 23 | S173: 266 | T173: 2014-07-07 | U173: 33 days | V173: 2014-09-20T12:36:01 | W173: 25572-2|4933790-1|3085301-1 | Y173: =ROW() -> 173
A174: 3333966 | B174: eu | C174: 1 | D174: AcidPrInGeLs | E174: r | F174: 2598755 | G174: eu | H174: 1 | I174: AcidOdiuM | J174: r | K174: 2498593 | L174: eu | M174: 1 | N174: VAIO | O174: r | P174: Bronze | Q174: 21 | R174: 47 | S174: 266 | T174: 2014-08-22 | U174: 7 days | V174: 2014-09-20T12:36:01 | W174: 3333966-1|2598755-1|2498593-1 | Y174: =ROW() -> 174
A175: 4672330 | B175: eu | C175: 1 | D175: StelioKontos | E175: t | F175: 4636714 | G175: eu | H175: 1 | I175: MrNegron | J175: p | K175: 4624059 | L175: eu | M175: 1 | N175: Nuffballs | O175: z | P175: Bronze | Q175: 15 | R175: 22 | S175: 265 | T175: 2014-07-08 | U175: 37 days | V175: 2014-09-20T12:36:01 | W175: 4672330-1|4636714-1|4624059-1 | Y175: =ROW() -> 175
A176: 4531825 | B176: eu | C176: 1 | D176: Madara | E176: z | F176: 2985570 | G176: eu | H176: 1 | I176: Duende | J176: t | K176: 366344 | L176: eu | M176: 1 | N176: DeLaRocK | O176: p | P176: Bronze | Q176: 8 | R176: 3 | S176: 264 | T176: 2014-08-10 | U176: 22 days | V176: 2014-09-20T12:36:01 | W176: 4531825-1|2985570-1|366344-1 | Y176: =ROW() -> 176
A177: 5099335 | B177: eu | C177: 1 | D177: FilleFroh | E177: z | F177: 5047495 | G177: eu | H177: 1 | I177: Furrex | J177: t | K177: 1799127 | L177: eu | M177: 1 | N177: BARON | O177: p | P177: Bronze | Q177: 10 | R177: 15 | S177: 264 | T177: 2014-07-14 | U177: 17 days | V177: 2014-09-20T12:36:01 | W177: 5099335-1|5047495-1|1799127-1 | Y177: =ROW() -> 177
A178: 4207209 | B178: eu | C178: 1 | D178: Alex | E178: t | F178: 4149842 | G178: eu | H178: 1 | I178: DrPolytheus | J178: t | K178: 1525736 | L178: eu | M178: 1 | N178: Chris | O178: p | P178: Bronze | Q178: 8 | R178: 15 | S178: 264 | T178: 2014-08-24 | U178: 1 days | V178: 2014-09-20T12:36:01 | W178: 4207209-1|4149842-1|1525736-1 | Y178: =ROW() -> 178
A179: 5072461 | B179: eu | C179: 1 | D179: bOtNiK | E179: t | F179: 5058435 | G179: eu | H179: 1 | I179: Condor | J179: p | K179: 4881431 | L179: eu | M179: 1 | N179: Mongoose | O179: t | P179: Bronze | Q179: 10 | R179: 19 | S179: 264 | T179: 2014-07-18 | U179: 11 days | V179: 2014-09-20T12:36:01 | W179: 5072461-1|5058435-1|4881431-1 | Y179: =ROW() -> 179
A180: 4139419 | B180: eu | C180: 1 | D180: Marko | E180: z | F180: 4130252 | G180: eu | H180: 1 | I180: Lightychan | J180: z | K180: 4130213 | L180: eu | M180: 1 | N180: SuicideSheep | O180: z | P180: Bronze | Q180: 9 | R180: 23 | S180: 264 | T180: 2014-07-23 | U180: 14 days | V180: 2014-09-20T12:36:01 | W180: 4139419-1|4130252-1|4130213-1 | Y180: =ROW() -> 180
A181: 2214857 | B181: eu | C181: 1 | D181: Wonko | E181: r | F181: 711085 | G181: eu | H181: 1 | I181: AbdulLachmal | J181: p | K181: 644914 | L181: eu | M181: 1 | N181: Elgin | O181: r | P181: Bronze | Q181: 9 | R181: 16 | S181: 263 | T181: 2014-07-17 | U181: 19 days | V181: 2014-09-20T12:36:01 | W181: 2214857-1|711085-1|644914-1 | Y181: =ROW() -> 181
A182: 3474986 | B182: eu | C182: 1 | D182: SlAvY | E182: p | F182: 548516 | G182: eu | H182: 1 | I182: Zielscheibe | J182: p | K182: 305783 | L182: eu | M182: 1 | N182: Achi | O182: t | P182: Bronze | Q182: 9 | R182: 14 | S182: 262 | T182: 2014-09-09 | U182: 18 hours | V182: 2014-09-20T12:36:01 | W182: 3474986-1|548516-1|305783-1 | Y182: =ROW() -> 182
A183: 3329245 | B183: eu | C183: 1 | D183: sebol | E183: z | F183: 3328489 | G183: eu | H183: 1 | I183: CHUDY | J183: z | K183: 3327817 | L183: eu | M183: 1 | N183: JURGEN | O183: z | P183: Bronze | Q183: 9 | R183: 16 | S183: 262 | T183: 2014-08-18 | U183: 8 days | V183: 2014-09-20T12:36:01 | W183: 3329245-1|3328489-1|3327817-1 | Y183: =ROW() -> 183
A184: 2024958 | B184: eu | C184: 1 | D184: Mrbassman | E184: t | F184: 1227811 | G184: eu | H184: 1 | I184: Fizzle | J184: p | K184: 1073368 | L184: eu | M184: 1 | N184: HINHOLE | O184: t | P184: Bronze | Q184: 8 | R184: 24 | S184: 262 | T184: 2014-08-18 | U184: 1 days | V184: 2014-09-20T12:36:01 | W184: 2024958-1|1227811-1|1073368-1 | Y184: =ROW() -> 184
A185: 4235647 | B185: eu | C185: 1 | D185: taxmarc | E185: t | F185: 2324727 | G185: eu | H185: 1 | I185: SirAnder | J185: p | K185: 1360569 | L185: eu | M185: 1 | N185: luckydriver | O185: p | P185: Bronze | Q185: 15 | R185: 46 | S185: 262 | T185: 2014-07-10 | U185: 2 days | V185: 2014-09-20T12:36:01 | W185: 4235647-1|2324727-1|1360569-1 | Y185: =ROW() -> 185
A186: 4127429 | B186: eu | C186: 1 | D186: Asver | E186: t | F186: 863236 | G186: eu | H186: 1 | I186: KptKiller | J186: t | K186: 803975 | L186: eu | M186: 1 | N186: KptWataÅ¼ka | O186: r | P186: Bronze | Q186: 8 | R186: 25 | S186: 262 | T186: 2014-07-27 | U186: 3 days | V186: 2014-09-20T12:36:01 | W186: 4127429-1|863236-1|803975-1 | Y186: =ROW() -> 186
A187: 2382105 | B187: eu | C187: 1 | D187: Michlak | E187: r | F187: 1501125 | G187: eu | H187: 1 | I187: Ç‚ÄÆMÇ¿Ä¿Ä«Å¦Ä«Ç¿ÅŠÇ‚ | J187: r | K187: 792832 | L187: eu | M187: 1 | N187: Jaws | O187: r | P187: Bronze | Q187: 7 | R187: 1 | S187: 260 | T187: 2014-07-31 | U187: 2 days | V187: 2014-09-20T12:36:01 | W187: 2382105-1|1501125-1|792832-1 | Y187: =ROW() -> 187
A188: 3093579 | B188: eu | C188: 1 | D188: Darkkolombo | E188: r | F188: 1620711 | G188: eu | H188: 1 | I188: Prode | J188: p | K188: 254704 | L188: eu | M188: 1 | N188: JohnnyCage | O188: t | P188: Bronze | Q188: 9 | R188: 9 | S188: 260 | T188: 2014-08-06 | U188: 24 days | V188: 2014-09-20T12:36:01 | W188: 3093579-1|1620711-1|254704-1 | Y188: =ROW() -> 188
A189: 4842027 | B189: eu | C189: 1 | D189: WolfManKill | E189: r | F189: 4841988 | G189: eu | H189: 1 | I189: Manyangryman | J189: r | K189: 1416138 | L189: eu | M189: 1 | N189: Bepmup | O189: r | P189: Bronze | Q189: 7 | R189: 9 | S189: 260 | T189: 2014-09-10 | U189: 4 days | V189: 2014-09-20T12:36:01 | W189: 4842027-1|4841988-1|1416138-1 | Y189: =ROW() -> 189
A190: 2617544 | B190: eu | C190: 1 | D190: Trillian | E190: t | F190: 1982451 | G190: eu | H190: 1 | I190: theknife | J190: z | K190: 615389 | L190: eu | M190: 1 | N190: Ulli | O190: t | P190: Bronze | Q190: 9 | R190: 14 | S190: 260 | T190: 2014-07-06 | U190: 17 days | V190: 2014-09-20T12:36:01 | W190: 2617544-1|1982451-1|615389-1 | Y190: =ROW() -> 190
A191: 2844985 | B191: eu | C191: 1 | D191: Olaf | E191: t | F191: 873701 | G191: eu | H191: 1 | I191: Nyetimber | J191: z | K191: 299282 | L191: eu | M191: 1 | N191: DRE | O191: r | P191: Bronze | Q191: 9 | R191: 1 | S191: 258 | T191: 2014-07-24 | U191: 7 days | V191: 2014-09-20T12:36:01 | W191: 2844985-1|873701-1|299282-1 | Y191: =ROW() -> 191
A192: 5270709 | B192: eu | C192: 1 | D192: Desna | E192: t | F192: 5238925 | G192: eu | H192: 1 | I192: Fondue | J192: z | K192: 4451257 | L192: eu | M192: 1 | N192: Stingert | O192: p | P192: Bronze | Q192: 8 | R192: 6 | S192: 258 | T192: 2014-09-20 | U192: 6 hours | V192: 2014-09-20T12:36:01 | W192: 5270709-1|5238925-1|4451257-1 | Y192: =ROW() -> 192
A193: 5049239 | B193: eu | C193: 1 | D193: MarkusKiller | E193: z | F193: 3307702 | G193: eu | H193: 1 | I193: Undertom | J193: p | K193: 582831 | L193: eu | M193: 1 | N193: Sorc | O193: p | P193: Bronze | Q193: 9 | R193: 9 | S193: 258 | T193: 2014-07-19 | U193: 43 days | V193: 2014-09-20T12:36:01 | W193: 5049239-1|3307702-1|582831-1 | Y193: =ROW() -> 193
A194: 1159665 | B194: eu | C194: 1 | D194: alexandra | E194: p | F194: 729810 | G194: eu | H194: 1 | I194: DarC | J194: r | K194: 233666 | L194: eu | M194: 1 | N194: squishy | O194: r | P194: Bronze | Q194: 9 | R194: 26 | S194: 258 | T194: 2014-07-07 | U194: 19 hours | V194: 2014-09-20T12:36:01 | W194: 1159665-1|729810-1|233666-1 | Y194: =ROW() -> 194
A195: 4453444 | B195: eu | C195: 1 | D195: sadji | E195: r | F195: 3352968 | G195: eu | H195: 1 | I195: Zburu | J195: t | K195: 3309057 | L195: eu | M195: 1 | N195: zatZ | O195: r | P195: Bronze | Q195: 10 | R195: 9 | S195: 257 | T195: 2014-07-31 | U195: 42 days | V195: 2014-09-20T12:36:01 | W195: 4453444-1|3352968-1|3309057-1 | Y195: =ROW() -> 195
A196: 3844826 | B196: eu | C196: 1 | D196: koce | E196: p | F196: 3842570 | G196: eu | H196: 1 | I196: Kokall | J196: p | K196: 2448061 | L196: eu | M196: 1 | N196: pajak | O196: z | P196: Bronze | Q196: 14 | R196: 9 | S196: 256 | T196: 2014-07-12 | U196: 14 days | V196: 2014-09-20T12:36:01 | W196: 3844826-1|3842570-1|2448061-1 | Y196: =ROW() -> 196
A197: 2673483 | B197: eu | C197: 1 | D197: MadColl | E197: z | F197: 2258582 | G197: eu | H197: 1 | I197: Shox | J197: z | K197: 547022 | L197: eu | M197: 1 | N197: Witchblade | O197: p | P197: Bronze | Q197: 8 | R197: 7 | S197: 256 | T197: 2014-07-21 | U197: 33 days | V197: 2014-09-20T12:36:01 | W197: 2673483-1|2258582-1|547022-1 | Y197: =ROW() -> 197
A198: 4965090 | B198: eu | C198: 1 | D198: trxus | E198: t | F198: 2589676 | G198: eu | H198: 1 | I198: killtya | J198: z | K198: 2516341 | L198: eu | M198: 1 | N198: zurgie | O198: p | P198: Bronze | Q198: 7 | R198: 8 | S198: 256 | T198: 2014-08-01 | U198: 3 days | V198: 2014-09-20T12:36:01 | W198: 4965090-1|2589676-1|2516341-1 | Y198: =ROW() -> 198
A199: 3424734 | B199: eu | C199: 1 | D199: Teflox | E199: r | F199: 3336214 | G199: eu | H199: 1 | I199: DopeDani | J199: r | K199: 3327695 | L199: eu | M199: 1 | N199: Gero | O199: r | P199: Bronze | Q199: 7 | R199: 9 | S199: 256 | T199: 2014-08-11 | U199: 1 days | V199: 2014-09-20T12:36:01 | W199: 3424734-1|3336214-1|3327695-1 | Y199: =ROW() -> 199
A200: 3040650 | B200: eu | C200: 1 | D200: lepidopterus | E200: p | F200: 2304250 | G200: eu | H200: 1 | I200: fbleckman | J200: z | K200: 568356 | L200: eu | M200: 1 | N200: Champa | O200: t | P200: Bronze | Q200: 7 | R200: 11 | S200: 256 | T200: 2014-07-27 | U200: 13 days | V200: 2014-09-20T12:36:01 | W200: 3040650-1|2304250-1|568356-1 | Y200: =ROW() -> 200
... 2050 more rows

Sheet 4v4Team
A1: Player ID 1 | B1: Player 1 Region | C1: Player 1 Subregion | D1: Player 1 Name | E1: Player 1 Race | F1: Player ID 2 | G1: Player 2 Region | H1: Player 2 Subregion | I1: Player 2 Name | J1: Player 2 Race | K1: Player ID 3 | L1: Player 3 Region | M1: Player 3 Subregion | N1: Player 3 Name | O1: Player 3 Race | P1: Player ID 4 | Q1: Player 4 Region | R1: Player 4 Subregion | S1: Player 4 Name | T1: Player 4 Race | U1: League | V1: Win | W1: Loss | X1: Score | Y1: Date Joined | Z1: Last Game | AA1: Timestamp | AB1: TrueID | AC1: Duplicate Check | AD1: Ordered ID
A2: 4550985 | B2: eu | C2: 1 | D2: Perleeche | E2: t | F2: 4450685 | G2: eu | H2: 1 | I2: Sato | J2: t | K2: 4366315 | L2: eu | M2: 1 | N2: falconxx | O2: p | P2: 4362069 | Q2: eu | R2: 1 | S2: Nippur | T2: t | U2: Bronze | V2: 18 | W2: 14 | X2: 388 | Y2: 2014-07-07 | Z2: 16 days | AA2: 2014-09-20T12:37:10 | AB2: 4550985-1|4450685-1|4366315-1|4362069-1 | AC2: 0 | AD2: 2
A3: 1832931 | B3: eu | C3: 1 | D3: Debbi | E3: p | F3: 1825204 | G3: eu | H3: 1 | I3: Helge | J3: t | K3: 1787864 | L3: eu | M3: 1 | N3: nanix | O3: t | P3: 1786999 | Q3: eu | R3: 1 | S3: Toddy | T3: p | U3: Bronze | V3: 13 | W3: 29 | X3: 373 | Y3: 2014-07-17 | Z3: 6 days | AA3: 2014-09-20T12:37:10 | AB3: 1832931-1|1825204-1|1787864-1|1786999-1 | AC3: 0 | AD3: 3
A4: 2237868 | B4: eu | C4: 1 | D4: EggBaby | E4: r | F4: 2134208 | G4: eu | H4: 1 | I4: Abyss | J4: r | K4: 512381 | L4: eu | M4: 1 | N4: Eggmaestro | O4: p | P4: 357182 | Q4: eu | R4: 1 | S4: NebÃ¯ros | T4: r | U4: Bronze | V4: 10 | W4: 22 | X4: 328 | Y4: 2014-08-11 | Z4: 5 days | AA4: 2014-09-20T12:37:10 | AB4: 2237868-1|2134208-1|512381-1|357182-1 | AC4: 0 | AD4: 4
A5: 4126558 | B5: eu | C5: 1 | D5: DANTEsQUIÃ‰ | E5: p | F5: 4107582 | G5: eu | H5: 1 | I5: Pacal | J5: t | K5: 4079837 | L5: eu | M5: 1 | N5: AgamenÃ³n | O5: t | P5: 4056203 | Q5: eu | R5: 1 | S5: elingeniero | T5: p | U5: Bronze | V5: 11 | W5: 10 | X5: 326 | Y5: 2014-08-09 | Z5: 21 days | AA5: 2014-09-20T12:37:10 | AB5: 4126558-1|4107582-1|4079837-1|4056203-1 | AC5: 0 | AD5: 5
A6: 4235831 | B6: eu | C6: 1 | D6: Luptatorul | E6: p | F6: 3762593 | G6: eu | H6: 1 | I6: klu | J6: r | K6: 3756574 | L6: eu | M6: 1 | N6: BALAUR | O6: t | P6: 2784920 | Q6: eu | R6: 1 | S6: Cezar | T6: t | U6: Bronze | V6: 9 | W6: 14 | X6: 306 | Y6: 2014-07-26 | Z6: 28 days | AA6: 2014-09-20T12:37:10 | AB6: 4235831-1|3762593-1|3756574-1|2784920-1 | AC6: 0 | AD6: 6
A7: 4235992 | B7: eu | C7: 1 | D7: Schneck | E7: t | F7: 4056265 | G7: eu | H7: 1 | I7: Steff | J7: z | K7: 2963520 | L7: eu | M7: 1 | N7: Sporri | O7: p | P7: 1278289 | Q7: eu | R7: 1 | S7: IgelEiOlli | T7: t | U7: Bronze | V7: 9 | W7: 17 | X7: 288 | Y7: 2014-07-14 | Z7: 18 days | AA7: 2014-09-20T12:37:10 | AB7: 4235992-1|4056265-1|2963520-1|1278289-1 | AC7: 0 | AD7: 7
A8: 5071184 | B8: eu | C8: 1 | D8: Apocalypse | E8: p | F8: 5065324 | G8: eu | H8: 1 | I8: Mody | J8: t | K8: 5063160 | L8: eu | M8: 1 | N8: Sevosan | O8: z | P8: 4819747 | Q8: eu | R8: 1 | S8: SmaczuÅ› | T8: p | U8: Bronze | V8: 11 | W8: 39 | X8: 285 | Y8: 2014-08-06 | Z8: 2 days | AA8: 2014-09-20T12:37:10 | AB8: 5071184-1|5065324-1|5063160-1|4819747-1 | AC8: 0 | AD8: 8
A9: 3279506 | B9: eu | C9: 1 | D9: DieThunDer | E9: p | F9: 3012213 | G9: eu | H9: 1 | I9: CaptainM | J9: t | K9: 1606284 | L9: eu | M9: 1 | N9: HTX | O9: t | P9: 408968 | Q9: eu | R9: 1 | S9: Unze | T9: p | U9: Bronze | V9: 8 | W9: 2 | X9: 276 | Y9: 2014-08-15 | Z9: 21 hours | AA9: 2014-09-20T12:37:10 | AB9: 3279506-1|3012213-1|1606284-1|408968-1 | AC9: 0 | AD9: 9
A10: 5139376 | B10: eu | C10: 1 | D10: Phenicks | E10: p | F10: 4827654 | G10: eu | H10: 1 | I10: Titech | J10: t | K10: 2089954 | L10: eu | M10: 1 | N10: SlayerSlip | O10: z | P10: 2089496 | Q10: eu | R10: 1 | S10: PaulBismuth | T10: p | U10: Bronze | V10: 9 | W10: 20 | X10: 264 | Y10: 2014-08-24 | Z10: 18 hours | AA10: 2014-09-20T12:37:10 | AB10: 5139376-1|4827654-1|2089954-1|2089496-1 | AC10: 0 | AD10: 10
A11: 1165648 | B11: eu | C11: 1 | D11: BlackNine | E11: r | F11: 631175 | G11: eu | H11: 1 | I11: space | J11: t | K11: 303810 | L11: eu | M11: 1 | N11: Venom | O11: r | P11: 199138 | Q11: eu | R11: 1 | S11: Smou | T11: r | U11: Bronze | V11: 7 | W11: 2 | X11: 260 | Y11: 2014-08-01 | Z11: 12 days | AA11: 2014-09-20T12:37:10 | AB11: 1165648-1|631175-1|303810-1|199138-1 | AC11: 0 | AD11: 11
A12: 5036286 | B12: eu | C12: 1 | D12: Smounder | E12: t | F12: 2472738 | G12: eu | H12: 1 | I12: OCD | J12: t | K12: 1428263 | L12: eu | M12: 1 | N12: eulus | O12: r | P12: 701447 | Q12: eu | R12: 1 | S12: BreakYaNeck | T12: z | U12: Bronze | V12: 7 | W12: 4 | X12: 258 | Y12: 2014-07-18 | Z12: 34 days | AA12: 2014-09-20T12:37:10 | AB12: 5036286-1|2472738-1|1428263-1|701447-1 | AC12: 0 | AD12: 12
A13: 849927 | B13: eu | C13: 1 | D13: GrimReefer | E13: p | F13: 495170 | G13: eu | H13: 1 | I13: Tymeheus | J13: p | K13: 342154 | L13: eu | M13: 1 | N13: FireBall | O13: z | P13: 320326 | Q13: eu | R13: 1 | S13: Dia | T13: z | U13: Bronze | V13: 8 | W13: 2 | X13: 254 | Y13: 2014-08-16 | Z13: 5 days | AA13: 2014-09-20T12:37:10 | AB13: 849927-1|495170-1|342154-1|320326-1 | AC13: 0 | AD13: 13
A14: 5251292 | B14: eu | C14: 1 | D14: Snus | E14: t | F14: 5250649 | G14: eu | H14: 1 | I14: Morghulis | J14: p | K14: 5131993 | L14: eu | M14: 1 | N14: TantAnt | O14: p | P14: 1752437 | Q14: eu | R14: 1 | S14: Dextron | T14: z | U14: Bronze | V14: 10 | W14: 21 | X14: 254 | Y14: 2014-09-12 | Z14: 2 days | AA14: 2014-09-20T12:37:10 | AB14: 5251292-1|5250649-1|5131993-1|1752437-1 | AC14: 0 | AD14: 14
A15: 5106002 | B15: eu | C15: 1 | D15: Flip | E15: t | F15: 2642126 | G15: eu | H15: 1 | I15: BobTheBuilde | J15: t | K15: 2594549 | L15: eu | M15: 1 | N15: DerLucr | O15: p | P15: 690926 | Q15: eu | R15: 1 | S15: misterdeath | T15: z | U15: Bronze | V15: 11 | W15: 23 | X15: 252 | Y15: 2014-08-07 | Z15: 8 days | AA15: 2014-09-20T12:37:10 | AB15: 5106002-1|2642126-1|2594549-1|690926-1 | AC15: 0 | AD15: 15
A16: 1273083 | B16: eu | C16: 1 | D16: BeefSurpreme | E16: z | F16: 893719 | G16: eu | H16: 1 | I16: Blonder | J16: t | K16: 780468 | L16: eu | M16: 1 | N16: Tolteca | O16: p | P16: 369085 | Q16: eu | R16: 1 | S16: SgtUlli | T16: t | U16: Bronze | V16: 8 | W16: 7 | X16: 251 | Y16: 2014-07-25 | Z16: 18 hours | AA16: 2014-09-20T12:37:10 | AB16: 1273083-1|893719-1|780468-1|369085-1 | AC16: 0 | AD16: 16
A17: 3027712 | B17: eu | C17: 1 | D17: Morbid | E17: r | F17: 1454276 | G17: eu | H17: 1 | I17: Piwey | J17: r | K17: 500805 | L17: eu | M17: 1 | N17: ICH | O17: p | P17: 399628 | Q17: eu | R17: 1 | S17: YaMaN | T17: r | U17: Bronze | V17: 8 | W17: 18 | X17: 244 | Y17: 2014-07-31 | Z17: 1 days | AA17: 2014-09-20T12:37:10 | AB17: 3027712-1|1454276-1|500805-1|399628-1 | AC17: 0 | AD17: 17
A18: 2262739 | B18: eu | C18: 1 | D18: Pungalf | E18: r | F18: 1359361 | G18: eu | H18: 1 | I18: Everlost | J18: p | K18: 1358474 | L18: eu | M18: 1 | N18: OSTRON | O18: t | P18: 879046 | Q18: eu | R18: 1 | S18: Roadkill | T18: r | U18: Bronze | V18: 7 | W18: 0 | X18: 238 | Y18: 2014-07-28 | Z18: 23 days | AA18: 2014-09-20T12:37:10 | AB18: 2262739-1|1359361-1|1358474-1|879046-1 | AC18: 0 | AD18: 18
A19: 2206776 | B19: eu | C19: 1 | D19: DerSchmi | E19: z | F19: 1778249 | G19: eu | H19: 1 | I19: Daniel | J19: p | K19: 677481 | L19: eu | M19: 1 | N19: Dirk | O19: z | P19: 604422 | Q19: eu | R19: 1 | S19: napowilson | T19: t | U19: Bronze | V19: 8 | W19: 12 | X19: 238 | Y19: 2014-07-25 | Z19: 7 days | AA19: 2014-09-20T12:37:10 | AB19: 2206776-1|1778249-1|677481-1|604422-1 | AC19: 0 | AD19: 19
A20: 4908173 | B20: eu | C20: 1 | D20: Tipi | E20: p | F20: 2294619 | G20: eu | H20: 1 | I20: Abunth | J20: t | K20: 1285724 | L20: eu | M20: 1 | N20: Kalagaan | O20: t | P20: 503269 | Q20: eu | R20: 1 | S20: Warka | T20: p | U20: Bronze | V20: 7 | W20: 22 | X20: 238 | Y20: 2014-07-10 | Z20: 2 days | AA20: 2014-09-20T12:37:10 | AB20: 4908173-1|2294619-1|1285724-1|503269-1 | AC20: 0 | AD20: 20
A21: 5064865 | B21: eu | C21: 1 | D21: CyberHydra | E21: r | F21: 5063852 | G21: eu | H21: 1 | I21: Joeman | J21: t | K21: 3287184 | L21: eu | M21: 1 | N21: Treatz | O21: r | P21: 1906570 | Q21: eu | R21: 1 | S21: Yeti | T21: t | U21: Bronze | V21: 9 | W21: 9 | X21: 236 | Y21: 2014-07-14 | Z21: 1 days | AA21: 2014-09-20T12:37:10 | AB21: 5064865-1|5063852-1|3287184-1|1906570-1 | AC21: 0 | AD21: 21
A22: 4115403 | B22: eu | C22: 1 | D22: Indio | E22: p | F22: 4041329 | G22: eu | H22: 1 | I22: Akiramatata | J22: z | K22: 4038324 | L22: eu | M22: 1 | N22: Gimenez | O22: t | P22: 3197865 | Q22: eu | R22: 1 | S22: Sebastodon | T22: t | U22: Bronze | V22: 7 | W22: 14 | X22: 232 | Y22: 2014-07-27 | Z22: 42 days | AA22: 2014-09-20T12:37:10 | AB22: 4115403-1|4041329-1|4038324-1|3197865-1 | AC22: 0 | AD22: 22
A23: 3495411 | B23: eu | C23: 1 | D23: Mirki | E23: p | F23: 2446107 | G23: eu | H23: 1 | I23: Lenoros | J23: z | K23: 2276573 | L23: eu | M23: 1 | N23: Ghost | O23: t | P23: 357059 | Q23: eu | R23: 1 | S23: Karabela | T23: p | U23: Bronze | V23: 7 | W23: 19 | X23: 232 | Y23: 2014-07-20 | Z23: 5 days | AA23: 2014-09-20T12:37:10 | AB23: 3495411-1|2446107-1|2276573-1|357059-1 | AC23: 0 | AD23: 23
A24: 3316527 | B24: eu | C24: 1 | D24: Coenmaster | E24: t | F24: 3285188 | G24: eu | H24: 1 | I24: Bazzle | J24: p | K24: 1338633 | L24: eu | M24: 1 | N24: ChuckNorris | O24: p | P24: 282729 | Q24: eu | R24: 1 | S24: Shadowman | T24: z | U24: Bronze | V24: 8 | W24: 13 | X24: 222 | Y24: 2014-07-22 | Z24: 46 days | AA24: 2014-09-20T12:37:10 | AB24: 3316527-1|3285188-1|1338633-1|282729-1 | AC24: 0 | AD24: 24
A25: 1276401 | B25: eu | C25: 1 | D25: Poesklap | E25: p | F25: 769096 | G25: eu | H25: 1 | I25: Bliksem | J25: r | K25: 638210 | L25: eu | M25: 1 | N25: Appelkoos | O25: p | P25: 448044 | Q25: eu | R25: 1 | S25: HoeLykDit | T25: z | U25: Bronze | V25: 7 | W25: 12 | X25: 222 | Y25: 2014-07-11 | Z25: 29 days | AA25: 2014-09-20T12:37:10 | AB25: 1276401-1|769096-1|638210-1|448044-1 | AC25: 0 | AD25: 25
A26: 5219595 | B26: eu | C26: 1 | D26: knuffepuffe | E26: t | F26: 5191753 | G26: eu | H26: 1 | I26: Mullmull | J26: z | K26: 5170484 | L26: eu | M26: 1 | N26: Boguz | O26: t | P26: 281796 | Q26: eu | R26: 1 | S26: Revup | T26: p | U26: Bronze | V26: 7 | W26: 14 | X26: 222 | Y26: 2014-08-30 | Z26: 11 days | AA26: 2014-09-20T12:37:10 | AB26: 5219595-1|5191753-1|5170484-1|281796-1 | AC26: 0 | AD26: 26
A27: 1914204 | B27: eu | C27: 1 | D27: eclipse | E27: r | F27: 1822105 | G27: eu | H27: 1 | I27: Piddl | J27: p | K27: 1186816 | L27: eu | M27: 1 | N27: Confession | O27: p | P27: 440545 | Q27: eu | R27: 1 | S27: Schoko | T27: r | U27: Bronze | V27: 8 | W27: 9 | X27: 220 | Y27: 2014-08-26 | Z27: 18 hours | AA27: 2014-09-20T12:37:10 | AB27: 1914204-1|1822105-1|1186816-1|440545-1 | AC27: 0 | AD27: 27
A28: 3027712 | B28: eu | C28: 1 | D28: Morbid | E28: r | F28: 1454276 | G28: eu | H28: 1 | I28: Piwey | J28: r | K28: 850228 | L28: eu | M28: 1 | N28: Olli | O28: t | P28: 500805 | Q28: eu | R28: 1 | S28: ICH | T28: p | U28: Bronze | V28: 6 | W28: 7 | X28: 220 | Y28: 2014-08-07 | Z28: 29 days | AA28: 2014-09-20T12:37:10 | AB28: 3027712-1|1454276-1|850228-1|500805-1 | AC28: 0 | AD28: 28
A29: 4580985 | B29: eu | C29: 1 | D29: bySascha | E29: t | F29: 3015145 | G29: eu | H29: 1 | I29: Purki | J29: z | K29: 1139146 | L29: eu | M29: 1 | N29: RedBalls | O29: p | P29: 279890 | Q29: eu | R29: 1 | S29: DareDevil | T29: r | U29: Bronze | V29: 9 | W29: 2 | X29: 217 | Y29: 2014-07-07 | Z29: 9 days | AA29: 2014-09-20T12:37:10 | AB29: 4580985-1|3015145-1|1139146-1|279890-1 | AC29: 0 | AD29: 29
A30: 3040650 | B30: eu | C30: 1 | D30: lepidopterus | E30: p | F30: 1407041 | G30: eu | H30: 1 | I30: winbot | J30: t | K30: 568356 | L30: eu | M30: 1 | N30: Champa | O30: t | P30: 498096 | Q30: eu | R30: 1 | S30: Soijp | T30: p | U30: Bronze | V30: 6 | W30: 6 | X30: 216 | Y30: 2014-08-08 | Z30: 41 days | AA30: 2014-09-20T12:37:10 | AB30: 3040650-1|1407041-1|568356-1|498096-1 | AC30: 0 | AD30: 30
A31: 4458300 | B31: eu | C31: 1 | D31: LEGO | E31: t | F31: 811067 | G31: eu | H31: 1 | I31: KNODLEIN | J31: t | K31: 485911 | L31: eu | M31: 1 | N31: Malachia | O31: z | P31: 482882 | Q31: eu | R31: 1 | S31: Acquasanta | T31: p | U31: Bronze | V31: 8 | W31: 9 | X31: 216 | Y31: 2014-07-26 | Z31: 5 days | AA31: 2014-09-20T12:37:10 | AB31: 4458300-1|811067-1|485911-1|482882-1 | AC31: 0 | AD31: 31
A32: 5057001 | B32: eu | C32: 1 | D32: Machete | E32: z | F32: 4207952 | G32: eu | H32: 1 | I32: daVe | J32: t | K32: 2174818 | L32: eu | M32: 1 | N32: rregg | O32: z | P32: 1368494 | Q32: eu | R32: 1 | S32: ArboRex | T32: p | U32: Bronze | V32: 13 | W32: 25 | X32: 216 | Y32: 2014-07-16 | Z32: 51 days | AA32: 2014-09-20T12:37:10 | AB32: 5057001-1|4207952-1|2174818-1|1368494-1 | AC32: 0 | AD32: 32
A33: 25572 | B33: eu | C33: 2 | D33: Stranger | E33: z | F33: 5036524 | G33: eu | H33: 1 | I33: Dima | J33: z | K33: 4933790 | L33: eu | M33: 1 | N33: madkatran | O33: t | P33: 3085301 | Q33: eu | R33: 1 | S33: Snowerest | T33: z | U33: Bronze | V33: 11 | W33: 24 | X33: 216 | Y33: 2014-07-09 | Z33: 34 days | AA33: 2014-09-20T12:37:10 | AB33: 25572-2|5036524-1|4933790-1|3085301-1 | AC33: 0 | AD33: 33
A34: 3371755 | B34: eu | C34: 1 | D34: FakinDvorka | E34: p | F34: 3088482 | G34: eu | H34: 1 | I34: StellDevil | J34: p | K34: 2675347 | L34: eu | M34: 1 | N34: Pheus | O34: t | P34: 1716318 | Q34: eu | R34: 1 | S34: Macromancer | T34: t | U34: Bronze | V34: 5 | W34: 9 | X34: 212 | Y34: 2014-09-09 | Z34: 10 days | AA34: 2014-09-20T12:37:10 | AB34: 3371755-1|3088482-1|2675347-1|1716318-1 | AC34: 0 | AD34: 34
A35: 4454174 | B35: eu | C35: 1 | D35: javjav | E35: p | F35: 4450685 | G35: eu | H35: 1 | I35: Sato | J35: t | K35: 4366315 | L35: eu | M35: 1 | N35: falconxx | O35: p | P35: 4362069 | Q35: eu | R35: 1 | S35: Nippur | T35: t | U35: Bronze | V35: 7 | W35: 9 | X35: 210 | Y35: 2014-07-30 | Z35: 20 days | AA35: 2014-09-20T12:37:10 | AB35: 4454174-1|4450685-1|4366315-1|4362069-1 | AC35: 0 | AD35: 35
A36: 4119161 | B36: eu | C36: 1 | D36: Mareshki | E36: r | F36: 2208380 | G36: eu | H36: 1 | I36: Kalkata | J36: z | K36: 2193289 | L36: eu | M36: 1 | N36: FarFromEvil | O36: p | P36: 2126006 | Q36: eu | R36: 1 | S36: Reckless | T36: t | U36: Bronze | V36: 10 | W36: 9 | X36: 209 | Y36: 2014-07-09 | Z36: 62 days | AA36: 2014-09-20T12:37:10 | AB36: 4119161-1|2208380-1|2193289-1|2126006-1 | AC36: 0 | AD36: 36
A37: 2485787 | B37: eu | C37: 1 | D37: rydl | E37: r | F37: 2318996 | G37: eu | H37: 1 | I37: Nietzsche | J37: r | K37: 663958 | L37: eu | M37: 1 | N37: smpL | O37: r | P37: 329011 | Q37: eu | R37: 1 | S37: Hagahl | T37: r | U37: Bronze | V37: 8 | W37: 9 | X37: 208 | Y37: 2014-07-10 | Z37: 54 days | AA37: 2014-09-20T12:37:10 | AB37: 2485787-1|2318996-1|663958-1|329011-1 | AC37: 0 | AD37: 37
A38: 4189098 | B38: eu | C38: 1 | D38: Nostromo | E38: t | F38: 1763608 | G38: eu | H38: 1 | I38: magetasoupe | J38: z | K38: 1357113 | L38: eu | M38: 1 | N38: MichuK | O38: p | P38: 425420 | Q38: eu | R38: 1 | S38: ben | T38: t | U38: Bronze | V38: 7 | W38: 9 | X38: 204 | Y38: 2014-07-07 | Z38: 21 days | AA38: 2014-09-20T12:37:10 | AB38: 4189098-1|1763608-1|1357113-1|425420-1 | AC38: 0 | AD38: 38
A39: 3006240 | B39: eu | C39: 1 | D39: TaviD | E39: t | F39: 1505877 | G39: eu | H39: 1 | I39: DarthVader | J39: t | K39: 1448511 | L39: eu | M39: 1 | N39: Parazitu | O39: z | P39: 356159 | Q39: eu | R39: 1 | S39: HunterArmy | T39: r | U39: Bronze | V39: 6 | W39: 0 | X39: 190 | Y39: 2014-09-08 | Z39: 11 days | AA39: 2014-09-20T12:37:10 | AB39: 3006240-1|1505877-1|1448511-1|356159-1 | AC39: 0 | AD39: 39
A40: 3583159 | B40: eu | C40: 1 | D40: VanCraM | E40: t | F40: 2217481 | G40: eu | H40: 1 | I40: Oriolete | J40: t | K40: 828518 | L40: eu | M40: 1 | N40: Satafry | O40: z | P40: 660062 | Q40: eu | R40: 1 | S40: Outfan | T40: p | U40: Bronze | V40: 6 | W40: 2 | X40: 190 | Y40: 2014-09-11 | Z40: 18 hours | AA40: 2014-09-20T12:37:10 | AB40: 3583159-1|2217481-1|828518-1|660062-1 | AC40: 0 | AD40: 40
A41: 4448936 | B41: eu | C41: 1 | D41: axel | E41: t | F41: 4436680 | G41: eu | H41: 1 | I41: Tilen | J41: p | K41: 1153002 | L41: eu | M41: 1 | N41: Chili | O41: r | P41: 276699 | Q41: eu | R41: 1 | S41: Oblacek | T41: p | U41: Bronze | V41: 6 | W41: 5 | X41: 188 | Y41: 2014-07-29 | Z41: 44 days | AA41: 2014-09-20T12:37:10 | AB41: 4448936-1|4436680-1|1153002-1|276699-1 | AC41: 0 | AD41: 41
A42: 4297005 | B42: eu | C42: 1 | D42: Killeak | E42: r | F42: 4111726 | G42: eu | H42: 1 | I42: sKullsen | J42: t | K42: 3876953 | L42: eu | M42: 1 | N42: ATEFred | O42: r | P42: 176797 | Q42: eu | R42: 1 | S42: drodle | T42: r | U42: Bronze | V42: 6 | W42: 6 | X42: 186 | Y42: 2014-07-07 | Z42: 24 days | AA42: 2014-09-20T12:37:10 | AB42: 4297005-1|4111726-1|3876953-1|176797-1 | AC42: 0 | AD42: 42
A43: 768891 | B43: eu | C43: 1 | D43: Gismo | E43: r | F43: 708729 | G43: eu | H43: 1 | I43: AshleyOlsen | J43: r | K43: 392007 | L43: eu | M43: 1 | N43: ChuckNorris | O43: r | P43: 266311 | Q43: eu | R43: 1 | S43: Raynor | T43: r | U43: Bronze | V43: 5 | W43: 6 | X43: 186 | Y43: 2014-08-12 | Z43: 38 days | AA43: 2014-09-20T12:37:10 | AB43: 768891-1|708729-1|392007-1|266311-1 | AC43: 0 | AD43: 43
A44: 1382773 | B44: eu | C44: 1 | D44: Drazak | E44: t | F44: 801147 | G44: eu | H44: 1 | I44: Tiwi | J44: z | K44: 502544 | L44: eu | M44: 1 | N44: Jonkie | O44: t | P44: 395126 | Q44: eu | R44: 1 | S44: ManLove | T44: z | U44: Bronze | V44: 5 | W44: 2 | X44: 183 | Y44: 2014-07-13 | Z44: 7 days | AA44: 2014-09-20T12:37:10 | AB44: 1382773-1|801147-1|502544-1|395126-1 | AC44: 0 | AD44: 44
A45: 5216957 | B45: eu | C45: 1 | D45: soulchicken | E45: t | F45: 5187567 | G45: eu | H45: 1 | I45: thagamersX | J45: p | K45: 4881493 | L45: eu | M45: 1 | N45: PunkPanter | O45: t | P45: 2835452 | Q45: eu | R45: 1 | S45: Devil | T45: z | U45: Bronze | V45: 8 | W45: 19 | X45: 182 | Y45: 2014-09-05 | Z45: 2 days | AA45: 2014-09-20T12:37:10 | AB45: 5216957-1|5187567-1|4881493-1|2835452-1 | AC45: 0 | AD45: 45
A46: 1358319 | B46: eu | C46: 1 | D46: krichek | E46: p | F46: 459330 | G46: eu | H46: 1 | I46: Ryu | J46: z | K46: 347675 | L46: eu | M46: 1 | N46: Grimaldus | O46: z | P46: 194199 | Q46: eu | R46: 1 | S46: stipower | T46: t | U46: Bronze | V46: 5 | W46: 3 | X46: 180 | Y46: 2014-07-18 | Z46: 17 hours | AA46: 2014-09-20T12:37:10 | AB46: 1358319-1|459330-1|347675-1|194199-1 | AC46: 0 | AD46: 46
A47: 4295227 | B47: eu | C47: 1 | D47: Artjon | E47: z | F47: 840244 | G47: eu | H47: 1 | I47: Idril | J47: t | K47: 567440 | L47: eu | M47: 1 | N47: Sarabande | O47: p | P47: 383326 | Q47: eu | R47: 1 | S47: Turin | T47: t | U47: Bronze | V47: 5 | W47: 5 | X47: 180 | Y47: 2014-07-21 | Z47: 18 days | AA47: 2014-09-20T12:37:10 | AB47: 4295227-1|840244-1|567440-1|383326-1 | AC47: 0 | AD47: 47
A48: 1232157 | B48: eu | C48: 2 | D48: just | E48: t | F48: 963405 | G48: eu | H48: 2 | I48: SuperNova | J48: z | K48: 831149 | L48: eu | M48: 2 | N48: FunnyFrank | O48: p | P48: 4588843 | Q48: eu | R48: 1 | S48: DragMyToHell | T48: p | U48: Bronze | V48: 7 | W48: 2 | X48: 178 | Y48: 2014-08-01 | Z48: 50 days | AA48: 2014-09-20T12:37:10 | AB48: 1232157-2|963405-2|831149-2|4588843-1 | AC48: 0 | AD48: 48
A49: 1526435 | B49: eu | C49: 1 | D49: OvaRated | E49: t | F49: 1070823 | G49: eu | H49: 1 | I49: Swys | J49: r | K49: 725884 | L49: eu | M49: 1 | N49: Hellbinder | O49: r | P49: 406526 | Q49: eu | R49: 1 | S49: RenegadeWolf | T49: r | U49: Bronze | V49: 5 | W49: 5 | X49: 177 | Y49: 2014-07-26 | Z49: 56 days | AA49: 2014-09-20T12:37:10 | AB49: 1526435-1|1070823-1|725884-1|406526-1 | AC49: 0 | AD49: 49
A50: 962467 | B50: eu | C50: 1 | D50: PoLkAPoLE | E50: p | F50: 822772 | G50: eu | H50: 1 | I50: newbaker | J50: p | K50: 222735 | L50: eu | M50: 1 | N50: Moryow | O50: t | P50: 178449 | Q50: eu | R50: 1 | S50: TrapperJohn | T50: z | U50: Bronze | V50: 5 | W50: 0 | X50: 176 | Y50: 2014-09-14 | Z50: 5 days | AA50: 2014-09-20T12:37:10 | AB50: 962467-1|822772-1|222735-1|178449-1 | AC50: 0 | AD50: 50
A51: 1054201 | B51: eu | C51: 1 | D51: Rico | E51: t | F51: 464352 | G51: eu | H51: 1 | I51: ggnel | J51: r | K51: 396761 | L51: eu | M51: 1 | N51: Fidgi | O51: t | P51: 193326 | Q51: eu | R51: 1 | S51: kluf | T51: r | U51: Bronze | V51: 4 | W51: 1 | X51: 176 | Y51: 2014-08-17 | Z51: 33 days | AA51: 2014-09-20T12:37:10 | AB51: 1054201-1|464352-1|396761-1|193326-1 | AC51: 0 | AD51: 51
A52: 2465488 | B52: eu | C52: 1 | D52: Schneetiger | E52: t | F52: 2417995 | G52: eu | H52: 1 | I52: Hamrabi | J52: r | K52: 1994271 | L52: eu | M52: 1 | N52: Ruwen | O52: t | P52: 1397183 | Q52: eu | R52: 1 | S52: Namir | T52: z | U52: Bronze | V52: 6 | W52: 4 | X52: 174 | Y52: 2014-08-08 | Z52: 19 hours | AA52: 2014-09-20T12:37:10 | AB52: 2465488-1|2417995-1|1994271-1|1397183-1 | AC52: 0 | AD52: 52
A53: 665566 | B53: eu | C53: 1 | D53: prosutus | E53: z | F53: 560042 | G53: eu | H53: 1 | I53: waterback | J53: p | K53: 408385 | L53: eu | M53: 1 | N53: Zekka | O53: z | P53: 225686 | Q53: eu | R53: 1 | S53: ElNaga | T53: p | U53: Bronze | V53: 5 | W53: 8 | X53: 174 | Y53: 2014-08-05 | Z53: 17 days | AA53: 2014-09-20T12:37:10 | AB53: 665566-1|560042-1|408385-1|225686-1 | AC53: 0 | AD53: 53
A54: 2767285 | B54: eu | C54: 1 | D54: Meander | E54: t | F54: 1475265 | G54: eu | H54: 1 | I54: Raa | J54: r | K54: 1122754 | L54: eu | M54: 1 | N54: Skandibal | O54: p | P54: 250875 | Q54: eu | R54: 1 | S54: Isen | T54: r | U54: Bronze | V54: 4 | W54: 4 | X54: 172 | Y54: 2014-08-10 | Z54: 7 days | AA54: 2014-09-20T12:37:10 | AB54: 2767285-1|1475265-1|1122754-1|250875-1 | AC54: 0 | AD54: 54
A55: 2000584 | B55: eu | C55: 1 | D55: Spectre | E55: r | F55: 1353039 | G55: eu | H55: 1 | I55: Phil | J55: r | K55: 1341996 | L55: eu | M55: 1 | N55: Necrodeath | O55: r | P55: 622161 | Q55: eu | R55: 1 | S55: Blade | T55: r | U55: Bronze | V55: 5 | W55: 3 | X55: 171 | Y55: 2014-07-21 | Z55: 60 days | AA55: 2014-09-20T12:37:10 | AB55: 2000584-1|1353039-1|1341996-1|622161-1 | AC55: 0 | AD55: 55
A56: 2189869 | B56: eu | C56: 1 | D56: YUDUDEIS | E56: p | F56: 1446278 | G56: eu | H56: 1 | I56: Bogs | J56: p | K56: 1306224 | L56: eu | M56: 1 | N56: DOGE | O56: r | P56: 663280 | Q56: eu | R56: 1 | S56: Phifflarn | T56: z | U56: Bronze | V56: 5 | W56: 11 | X56: 171 | Y56: 2014-07-10 | Z56: 53 days | AA56: 2014-09-20T12:37:10 | AB56: 2189869-1|1446278-1|1306224-1|663280-1 | AC56: 0 | AD56: 56
A57: 4189098 | B57: eu | C57: 1 | D57: Nostromo | E57: z | F57: 1357113 | G57: eu | H57: 1 | I57: MichuK | J57: p | K57: 1333636 | L57: eu | M57: 1 | N57: Kraz | O57: t | P57: 425420 | Q57: eu | R57: 1 | S57: ben | T57: t | U57: Bronze | V57: 6 | W57: 10 | X57: 170 | Y57: 2014-07-15 | Z57: 19 days | AA57: 2014-09-20T12:37:10 | AB57: 4189098-1|1357113-1|1333636-1|425420-1 | AC57: 0 | AD57: 57
A58: 4189098 | B58: eu | C58: 1 | D58: Nostromo | E58: z | F58: 1763608 | G58: eu | H58: 1 | I58: magetasoupe | J58: z | K58: 1357113 | L58: eu | M58: 1 | N58: MichuK | O58: p | P58: 1333636 | Q58: eu | R58: 1 | S58: Kraz | T58: t | U58: Bronze | V58: 5 | W58: 6 | X58: 168 | Y58: 2014-08-15 | Z58: 21 days | AA58: 2014-09-20T12:37:10 | AB58: 4189098-1|1763608-1|1357113-1|1333636-1 | AC58: 0 | AD58: 58
A59: 4174552 | B59: eu | C59: 1 | D59: Desbaies | E59: t | F59: 2983935 | G59: eu | H59: 1 | I59: onlooker | J59: z | K59: 2980959 | L59: eu | M59: 1 | N59: Feuraide | O59: z | P59: 2979722 | Q59: eu | R59: 1 | S59: PoSeiDÃ¸n | T59: p | U59: Bronze | V59: 6 | W59: 6 | X59: 166 | Y59: 2014-07-27 | Z59: 52 days | AA59: 2014-09-20T12:37:10 | AB59: 4174552-1|2983935-1|2980959-1|2979722-1 | AC59: 0 | AD59: 59
A60: 4691649 | B60: eu | C60: 1 | D60: Challenge | E60: p | F60: 4689998 | G60: eu | H60: 1 | I60: mishka | J60: z | K60: 4049943 | L60: eu | M60: 1 | N60: SourCherry | O60: t | P60: 1877518 | Q60: eu | R60: 1 | S60: Dille | T60: t | U60: Bronze | V60: 5 | W60: 7 | X60: 166 | Y60: 2014-08-10 | Z60: 18 days | AA60: 2014-09-20T12:37:10 | AB60: 4691649-1|4689998-1|4049943-1|1877518-1 | AC60: 0 | AD60: 60
A61: 5080577 | B61: eu | C61: 1 | D61: Goblie | E61: p | F61: 1427060 | G61: eu | H61: 1 | I61: RapTile | J61: z | K61: 952739 | L61: eu | M61: 1 | N61: SupRcoW | O61: t | P61: 252632 | Q61: eu | R61: 1 | S61: Halion | T61: p | U61: Bronze | V61: 5 | W61: 12 | X61: 166 | Y61: 2014-07-08 | Z61: 33 days | AA61: 2014-09-20T12:37:10 | AB61: 5080577-1|1427060-1|952739-1|252632-1 | AC61: 0 | AD61: 61
A62: 283686 | B62: eu | C62: 2 | D62: Omen | E62: p | F62: 3038 | G62: eu | H62: 2 | I62: Ordvik | J62: t | K62: 3884833 | L62: eu | M62: 1 | N62: REDSOX | O62: t | P62: 1676207 | Q62: eu | R62: 1 | S62: xutrix | T62: z | U62: Bronze | V62: 5 | W62: 0 | X62: 164 | Y62: 2014-08-03 | Z62: 18 days | AA62: 2014-09-20T12:37:10 | AB62: 283686-2|3038-2|3884833-1|1676207-1 | AC62: 0 | AD62: 62
A63: 3966080 | B63: eu | C63: 1 | D63: JohnEBoy | E63: p | F63: 2911319 | G63: eu | H63: 1 | I63: MaxiBurger | J63: r | K63: 2420487 | L63: eu | M63: 1 | N63: Donlar | O63: r | P63: 1262542 | Q63: eu | R63: 1 | S63: JosÃ©Vador | T63: r | U63: Bronze | V63: 5 | W63: 1 | X63: 164 | Y63: 2014-07-19 | Z63: 60 days | AA63: 2014-09-20T12:37:10 | AB63: 3966080-1|2911319-1|2420487-1|1262542-1 | AC63: 0 | AD63: 63
A64: 4587126 | B64: eu | C64: 1 | D64: pathy | E64: t | F64: 4207209 | G64: eu | H64: 1 | I64: Alex | J64: t | K64: 4149842 | L64: eu | M64: 1 | N64: DrPolytheus | O64: t | P64: 1525736 | Q64: eu | R64: 1 | S64: Chris | T64: p | U64: Bronze | V64: 5 | W64: 3 | X64: 164 | Y64: 2014-08-22 | Z64: 20 hours | AA64: 2014-09-20T12:37:10 | AB64: 4587126-1|4207209-1|4149842-1|1525736-1 | AC64: 0 | AD64: 64
A65: 2953871 | B65: eu | C65: 1 | D65: JAM | E65: p | F65: 1963443 | G65: eu | H65: 1 | I65: soragons | J65: r | K65: 562195 | L65: eu | M65: 1 | N65: Arzar | O65: r | P65: 222069 | Q65: eu | R65: 1 | S65: KingPele | T65: p | U65: Bronze | V65: 6 | W65: 11 | X65: 164 | Y65: 2014-07-10 | Z65: 1 days | AA65: 2014-09-20T12:37:10 | AB65: 2953871-1|1963443-1|562195-1|222069-1 | AC65: 0 | AD65: 65
A66: 4565154 | B66: eu | C66: 1 | D66: gifford | E66: p | F66: 2579498 | G66: eu | H66: 1 | I66: Knorke | J66: p | K66: 1551650 | L66: eu | M66: 1 | N66: xClinkZzi | O66: p | P66: 1128158 | Q66: eu | R66: 1 | S66: Maverick | T66: p | U66: Bronze | V66: 4 | W66: 3 | X66: 162 | Y66: 2014-08-19 | Z66: 30 days | AA66: 2014-09-20T12:37:10 | AB66: 4565154-1|2579498-1|1551650-1|1128158-1 | AC66: 0 | AD66: 66
A67: 2442472 | B67: eu | C67: 1 | D67: Soulkill | E67: t | F67: 2024592 | G67: eu | H67: 1 | I67: VespeneGeezr | J67: t | K67: 586492 | L67: eu | M67: 1 | N67: Cuchulainn | O67: z | P67: 275216 | Q67: eu | R67: 1 | S67: Warlock | T67: z | U67: Bronze | V67: 5 | W67: 0 | X67: 160 | Y67: 2014-07-24 | Z67: 57 days | AA67: 2014-09-20T12:37:10 | AB67: 2442472-1|2024592-1|586492-1|275216-1 | AC67: 0 | AD67: 67
A68: 3305322 | B68: eu | C68: 1 | D68: TaoPaiPai | E68: r | F68: 2257031 | G68: eu | H68: 1 | I68: cuicui | J68: r | K68: 1560617 | L68: eu | M68: 1 | N68: Bren | O68: r | P68: 532046 | Q68: eu | R68: 1 | S68: whYAsk | T68: t | U68: Bronze | V68: 5 | W68: 1 | X68: 160 | Y68: 2014-07-23 | Z68: 4 days | AA68: 2014-09-20T12:37:10 | AB68: 3305322-1|2257031-1|1560617-1|532046-1 | AC68: 0 | AD68: 68
A69: 4783952 | B69: eu | C69: 1 | D69: Sebul | E69: p | F69: 4778673 | G69: eu | H69: 1 | I69: Beethoven | J69: r | K69: 3063741 | L69: eu | M69: 1 | N69: Michal | O69: t | P69: 2664367 | Q69: eu | R69: 1 | S69: Ã„ffchen | T69: p | U69: Bronze | V69: 6 | W69: 9 | X69: 160 | Y69: 2014-07-26 | Z69: 26 days | AA69: 2014-09-20T12:37:10 | AB69: 4783952-1|4778673-1|3063741-1|2664367-1 | AC69: 0 | AD69: 69
A70: 2132152 | B70: eu | C70: 1 | D70: Benbangben | E70: p | F70: 1160771 | G70: eu | H70: 1 | I70: rambomolf | J70: t | K70: 972926 | L70: eu | M70: 1 | N70: BobPeschke | O70: r | P70: 169329 | Q70: eu | R70: 1 | S70: Musashi | T70: r | U70: Bronze | V70: 4 | W70: 1 | X70: 158 | Y70: 2014-07-25 | Z70: 56 days | AA70: 2014-09-20T12:37:10 | AB70: 2132152-1|1160771-1|972926-1|169329-1 | AC70: 0 | AD70: 70
A71: 3193134 | B71: eu | C71: 1 | D71: jtoms | E71: p | F71: 1524892 | G71: eu | H71: 1 | I71: magmano | J71: t | K71: 895413 | L71: eu | M71: 1 | N71: Anousay | O71: p | P71: 461764 | Q71: eu | R71: 1 | S71: Anousonne | T71: t | U71: Bronze | V71: 4 | W71: 2 | X71: 158 | Y71: 2014-09-14 | Z71: 5 days | AA71: 2014-09-20T12:37:10 | AB71: 3193134-1|1524892-1|895413-1|461764-1 | AC71: 0 | AD71: 71
A72: 2844985 | B72: eu | C72: 1 | D72: Olaf | E72: t | F72: 1645270 | G72: eu | H72: 1 | I72: Owen | J72: t | K72: 873701 | L72: eu | M72: 1 | N72: Nyetimber | O72: z | P72: 613806 | Q72: eu | R72: 1 | S72: Byram | T72: t | U72: Bronze | V72: 6 | W72: 6 | X72: 158 | Y72: 2014-08-15 | Z72: 4 days | AA72: 2014-09-20T12:37:10 | AB72: 2844985-1|1645270-1|873701-1|613806-1 | AC72: 0 | AD72: 72
A73: 872741 | B73: eu | C73: 1 | D73: vDc | E73: r | F73: 501910 | G73: eu | H73: 1 | I73: jorisvde | J73: t | K73: 261806 | L73: eu | M73: 1 | N73: ftbfelix | O73: p | P73: 205747 | Q73: eu | R73: 1 | S73: cadaver | T73: p | U73: Bronze | V73: 4 | W73: 6 | X73: 158 | Y73: 2014-08-23 | Z73: 27 days | AA73: 2014-09-20T12:37:10 | AB73: 872741-1|501910-1|261806-1|205747-1 | AC73: 0 | AD73: 73
A74: 4261689 | B74: eu | C74: 1 | D74: Tokaj | E74: p | F74: 4027309 | G74: eu | H74: 1 | I74: Xilosient | J74: t | K74: 1931323 | L74: eu | M74: 1 | N74: Allusion | O74: t | P74: 287311 | Q74: eu | R74: 1 | S74: Tivibs | T74: z | U74: Bronze | V74: 4 | W74: 2 | X74: 156 | Y74: 2014-09-03 | Z74: 16 days | AA74: 2014-09-20T12:37:10 | AB74: 4261689-1|4027309-1|1931323-1|287311-1 | AC74: 0 | AD74: 74
A75: 3641734 | B75: eu | C75: 1 | D75: Dehenet | E75: t | F75: 1447493 | G75: eu | H75: 1 | I75: Isfacu | J75: t | K75: 684264 | L75: eu | M75: 1 | N75: simperfive | O75: t | P75: 341252 | Q75: eu | R75: 1 | S75: Krydolph | T75: t | U75: Bronze | V75: 4 | W75: 5 | X75: 156 | Y75: 2014-09-06 | Z75: 14 days | AA75: 2014-09-20T12:37:10 | AB75: 3641734-1|1447493-1|684264-1|341252-1 | AC75: 0 | AD75: 75
A76: 5066813 | B76: eu | C76: 1 | D76: abi | E76: t | F76: 803235 | G76: eu | H76: 1 | I76: Ziado | J76: p | K76: 676769 | L76: eu | M76: 1 | N76: LtIBO | O76: p | P76: 637733 | Q76: eu | R76: 1 | S76: wissoj | T76: t | U76: Bronze | V76: 8 | W76: 11 | X76: 156 | Y76: 2014-07-11 | Z76: 58 days | AA76: 2014-09-20T12:37:10 | AB76: 5066813-1|803235-1|676769-1|637733-1 | AC76: 0 | AD76: 76
A77: 4997722 | B77: eu | C77: 1 | D77: Mirabilis | E77: t | F77: 1593700 | G77: eu | H77: 1 | I77: madScientist | J77: t | K77: 876680 | L77: eu | M77: 1 | N77: Kingmario | O77: r | P77: 572075 | Q77: eu | R77: 1 | S77: ThelightR | T77: z | U77: Bronze | V77: 5 | W77: 7 | X77: 156 | Y77: 2014-08-16 | Z77: 27 days | AA77: 2014-09-20T12:37:10 | AB77: 4997722-1|1593700-1|876680-1|572075-1 | AC77: 0 | AD77: 77
A78: 3083677 | B78: eu | C78: 1 | D78: labestia | E78: r | F78: 3022422 | G78: eu | H78: 1 | I78: IlDucaII | J78: p | K78: 3017407 | L78: eu | M78: 1 | N78: Leocorno | O78: p | P78: 1286591 | Q78: eu | R78: 1 | S78: SUPERANDRE | T78: t | U78: Bronze | V78: 6 | W78: 5 | X78: 154 | Y78: 2014-07-20 | Z78: 62 days | AA78: 2014-09-20T12:37:10 | AB78: 3083677-1|3022422-1|3017407-1|1286591-1 | AC78: 0 | AD78: 78
A79: 5260135 | B79: eu | C79: 1 | D79: Podiik | E79: p | F79: 3371755 | G79: eu | H79: 1 | I79: FakinDvorka | J79: p | K79: 2675347 | L79: eu | M79: 1 | N79: Pheus | O79: t | P79: 1716318 | Q79: eu | R79: 1 | S79: Macromancer | T79: t | U79: Bronze | V79: 4 | W79: 6 | X79: 154 | Y79: 2014-09-11 | Z79: 8 days | AA79: 2014-09-20T12:37:10 | AB79: 5260135-1|3371755-1|2675347-1|1716318-1 | AC79: 0 | AD79: 79
A80: 1725582 | B80: eu | C80: 1 | D80: ZikZak | E80: t | F80: 1135556 | G80: eu | H80: 1 | I80: DonKamillo | J80: p | K80: 555039 | L80: eu | M80: 1 | N80: KÃ¸dkussen | O80: z | P80: 209336 | Q80: eu | R80: 1 | S80: Jonathan | T80: r | U80: Bronze | V80: 4 | W80: 7 | X80: 154 | Y80: 2014-08-23 | Z80: 21 hours | AA80: 2014-09-20T12:37:10 | AB80: 1725582-1|1135556-1|555039-1|209336-1 | AC80: 0 | AD80: 80
A81: 2135515 | B81: eu | C81: 1 | D81: Barrakuda | E81: r | F81: 1506003 | G81: eu | H81: 1 | I81: Lupy | J81: r | K81: 404052 | L81: eu | M81: 1 | N81: BlackDevil | O81: p | P81: 232188 | Q81: eu | R81: 1 | S81: Patchwork | T81: r | U81: Bronze | V81: 5 | W81: 0 | X81: 152 | Y81: 2014-08-30 | Z81: 20 days | AA81: 2014-09-20T12:37:10 | AB81: 2135515-1|1506003-1|404052-1|232188-1 | AC81: 0 | AD81: 81
A82: 1141459 | B82: eu | C82: 1 | D82: floda | E82: p | F82: 911838 | G82: eu | H82: 1 | I82: Gulaschk | J82: r | K82: 873554 | L82: eu | M82: 1 | N82: Outbreaka | O82: p | P82: 688813 | Q82: eu | R82: 1 | S82: CPL | T82: p | U82: Bronze | V82: 5 | W82: 15 | X82: 152 | Y82: 2014-09-05 | Z82: 12 days | AA82: 2014-09-20T12:37:10 | AB82: 1141459-1|911838-1|873554-1|688813-1 | AC82: 0 | AD82: 82
A83: 3843127 | B83: eu | C83: 1 | D83: GAARA | E83: t | F83: 1815652 | G83: eu | H83: 1 | I83: Bayushi | J83: p | K83: 904410 | L83: eu | M83: 1 | N83: Vini | O83: z | P83: 255140 | Q83: eu | R83: 1 | S83: NaDe | T83: z | U83: Bronze | V83: 5 | W83: 2 | X83: 150 | Y83: 2014-07-27 | Z83: 7 days | AA83: 2014-09-20T12:37:10 | AB83: 3843127-1|1815652-1|904410-1|255140-1 | AC83: 0 | AD83: 83
A84: 4620076 | B84: eu | C84: 1 | D84: Nesse | E84: p | F84: 2077824 | G84: eu | H84: 1 | I84: PepoCojones | J84: r | K84: 1741148 | L84: eu | M84: 1 | N84: Aldrian | O84: z | P84: 621891 | Q84: eu | R84: 1 | S84: Fossi | T84: r | U84: Bronze | V84: 5 | W84: 2 | X84: 150 | Y84: 2014-07-29 | Z84: 24 days | AA84: 2014-09-20T12:37:10 | AB84: 4620076-1|2077824-1|1741148-1|621891-1 | AC84: 0 | AD84: 84
A85: 3605018 | B85: eu | C85: 1 | D85: SanctusEnder | E85: z | F85: 3279894 | G85: eu | H85: 1 | I85: Mondosavan | J85: t | K85: 2302174 | L85: eu | M85: 1 | N85: Sharinganeye | O85: p | P85: 2089938 | Q85: eu | R85: 1 | S85: Baahl | T85: p | U85: Bronze | V85: 4 | W85: 3 | X85: 150 | Y85: 2014-07-30 | Z85: 43 days | AA85: 2014-09-20T12:37:10 | AB85: 3605018-1|3279894-1|2302174-1|2089938-1 | AC85: 0 | AD85: 85
A86: 2599237 | B86: eu | C86: 1 | D86: Reini | E86: z | F86: 621591 | G86: eu | H86: 1 | I86: Tyler | J86: z | K86: 445822 | L86: eu | M86: 1 | N86: Marvin | O86: p | P86: 360556 | Q86: eu | R86: 1 | S86: eBB | T86: p | U86: Bronze | V86: 4 | W86: 6 | X86: 148 | Y86: 2014-07-26 | Z86: 10 days | AA86: 2014-09-20T12:37:10 | AB86: 2599237-1|621591-1|445822-1|360556-1 | AC86: 0 | AD86: 86
A87: 1790718 | B87: eu | C87: 1 | D87: Rhyfelwr | E87: z | F87: 1757472 | G87: eu | H87: 1 | I87: BasherMcGee | J87: t | K87: 1438012 | L87: eu | M87: 1 | N87: aloikis | O87: z | P87: 1036871 | Q87: eu | R87: 1 | S87: Ecnatsiser | T87: p | U87: Bronze | V87: 5 | W87: 4 | X87: 146 | Y87: 2014-07-29 | Z87: 5 days | AA87: 2014-09-20T12:37:10 | AB87: 1790718-1|1757472-1|1438012-1|1036871-1 | AC87: 0 | AD87: 87
A88: 3541963 | B88: eu | C88: 1 | D88: dOc | E88: p | F88: 3440488 | G88: eu | H88: 1 | I88: PaulStoner | J88: r | K88: 3299043 | L88: eu | M88: 1 | N88: HorrorKBH | O88: p | P88: 1089200 | Q88: eu | R88: 1 | S88: RedPrime | T88: r | U88: Bronze | V88: 4 | W88: 0 | X88: 144 | Y88: 2014-08-05 | Z88: 45 days | AA88: 2014-09-20T12:37:10 | AB88: 3541963-1|3440488-1|3299043-1|1089200-1 | AC88: 0 | AD88: 88
A89: 4555976 | B89: eu | C89: 1 | D89: cfm | E89: t | F89: 3669424 | G89: eu | H89: 1 | I89: Sokool | J89: r | K89: 2196371 | L89: eu | M89: 1 | N89: OiZ | O89: p | P89: 1202542 | Q89: eu | R89: 1 | S89: Damian | T89: z | U89: Bronze | V89: 4 | W89: 1 | X89: 144 | Y89: 2014-08-12 | Z89: 38 days | AA89: 2014-09-20T12:37:10 | AB89: 4555976-1|3669424-1|2196371-1|1202542-1 | AC89: 0 | AD89: 89
A90: 403738 | B90: eu | C90: 2 | D90: TelemetriK | E90: r | F90: 302027 | G90: eu | H90: 2 | I90: JACKAL | J90: t | K90: 299120 | L90: eu | M90: 2 | N90: Kelebra | O90: r | P90: 295735 | Q90: eu | R90: 2 | S90: Nemudreno | T90: r | U90: Bronze | V90: 5 | W90: 7 | X90: 144 | Y90: 2014-08-08 | Z90: 7 days | AA90: 2014-09-20T12:37:10 | AB90: 403738-2|302027-2|299120-2|295735-2 | AC90: 0 | AD90: 90
A91: 2568855 | B91: eu | C91: 1 | D91: Case | E91: r | F91: 799256 | G91: eu | H91: 1 | I91: Sko | J91: p | K91: 488160 | L91: eu | M91: 1 | N91: Licha | O91: t | P91: 346301 | Q91: eu | R91: 1 | S91: stephano | T91: z | U91: Bronze | V91: 5 | W91: 2 | X91: 142 | Y91: 2014-08-28 | Z91: 21 days | AA91: 2014-09-20T12:37:10 | AB91: 2568855-1|799256-1|488160-1|346301-1 | AC91: 0 | AD91: 91
A92: 2661138 | B92: eu | C92: 1 | D92: Kai | E92: p | F92: 2652472 | G92: eu | H92: 1 | I92: Nakoann | J92: t | K92: 1094692 | L92: eu | M92: 1 | N92: CaptWTF | O92: z | P92: 587057 | Q92: eu | R92: 1 | S92: AmiralKonto | T92: z | U92: Bronze | V92: 6 | W92: 6 | X92: 142 | Y92: 2014-07-18 | Z92: 63 days | AA92: 2014-09-20T12:37:10 | AB92: 2661138-1|2652472-1|1094692-1|587057-1 | AC92: 0 | AD92: 92
A93: 1267638 | B93: eu | C93: 2 | D93: Flane | E93: p | F93: 1235456 | G93: eu | H93: 2 | I93: Mixer | J93: t | K93: 889978 | L93: eu | M93: 2 | N93: Crema | O93: p | P93: 2174946 | Q93: eu | R93: 1 | S93: MinaRi | T93: z | U93: Bronze | V93: 6 | W93: 8 | X93: 142 | Y93: 2014-08-01 | Z93: 49 days | AA93: 2014-09-20T12:37:10 | AB93: 1267638-2|1235456-2|889978-2|2174946-1 | AC93: 0 | AD93: 93
A94: 2844059 | B94: eu | C94: 1 | D94: Xenzo | E94: t | F94: 1456548 | G94: eu | H94: 1 | I94: Atealance | J94: t | K94: 1124299 | L94: eu | M94: 1 | N94: Chili | O94: p | P94: 689736 | Q94: eu | R94: 1 | S94: Mibster | T94: p | U94: Bronze | V94: 5 | W94: 9 | X94: 142 | Y94: 2014-08-16 | Z94: 34 days | AA94: 2014-09-20T12:37:10 | AB94: 2844059-1|1456548-1|1124299-1|689736-1 | AC94: 0 | AD94: 94
A95: 955824 | B95: eu | C95: 2 | D95: RoRo | E95: t | F95: 101816 | G95: eu | H95: 2 | I95: Alexey | J95: p | K95: 1649214 | L95: eu | M95: 1 | N95: Choka | O95: t | P95: 1608115 | Q95: eu | R95: 1 | S95: dokonala | T95: z | U95: Bronze | V95: 3 | W95: 6 | X95: 142 | Y95: 2014-08-13 | Z95: 37 days | AA95: 2014-09-20T12:37:10 | AB95: 955824-2|101816-2|1649214-1|1608115-1 | AC95: 0 | AD95: 95
A96: 5143759 | B96: eu | C96: 1 | D96: Voodoo | E96: t | F96: 5031035 | G96: eu | H96: 1 | I96: Kuprix | J96: t | K96: 3750759 | L96: eu | M96: 1 | N96: Laaq | O96: t | P96: 2066175 | Q96: eu | R96: 1 | S96: Sotssil | T96: z | U96: Bronze | V96: 5 | W96: 5 | X96: 140 | Y96: 2014-08-02 | Z96: 45 days | AA96: 2014-09-20T12:37:10 | AB96: 5143759-1|5031035-1|3750759-1|2066175-1 | AC96: 0 | AD96: 96
A97: 2809118 | B97: eu | C97: 1 | D97: KazBonBon | E97: r | F97: 1360279 | G97: eu | H97: 1 | I97: KayaK | J97: r | K97: 642738 | L97: eu | M97: 1 | N97: Scrat | O97: r | P97: 256092 | Q97: eu | R97: 1 | S97: Broda | T97: r | U97: Bronze | V97: 6 | W97: 1 | X97: 138 | Y97: 2014-07-13 | Z97: 69 days | AA97: 2014-09-20T12:37:10 | AB97: 2809118-1|1360279-1|642738-1|256092-1 | AC97: 0 | AD97: 97
A98: 3862952 | B98: eu | C98: 1 | D98: Raymaz | E98: p | F98: 3558729 | G98: eu | H98: 1 | I98: Imran | J98: p | K98: 2487575 | L98: eu | M98: 1 | N98: Chapi | O98: t | P98: 1779988 | Q98: eu | R98: 1 | S98: ImRAIN | T98: p | U98: Bronze | V98: 5 | W98: 7 | X98: 138 | Y98: 2014-07-11 | Z98: 42 days | AA98: 2014-09-20T12:37:10 | AB98: 3862952-1|3558729-1|2487575-1|1779988-1 | AC98: 0 | AD98: 98
A99: 4344600 | B99: eu | C99: 1 | D99: MrPink | E99: t | F99: 424187 | G99: eu | H99: 1 | I99: Yumachi | J99: t | K99: 339796 | L99: eu | M99: 1 | N99: fruitknife | O99: r | P99: 277403 | Q99: eu | R99: 1 | S99: Enkor | T99: p | U99: Bronze | V99: 4 | W99: 6 | X99: 138 | Y99: 2014-08-31 | Z99: 20 days | AA99: 2014-09-20T12:37:10 | AB99: 4344600-1|424187-1|339796-1|277403-1 | AC99: 0 | AD99: 99
A100: 2253879 | B100: eu | C100: 1 | D100: Seppe | E100: p | F100: 2032399 | G100: eu | H100: 1 | I100: CPTSisko | J100: p | K100: 831462 | L100: eu | M100: 1 | N100: Neeelz | O100: t | P100: 321804 | Q100: eu | R100: 1 | S100: Hightower | T100: t | U100: Bronze | V100: 4 | W100: 7 | X100: 138 | Y100: 2014-08-11 | Z100: 39 days | AA100: 2014-09-20T12:37:10 | AB100: 2253879-1|2032399-1|831462-1|321804-1 | AC100: 0 | AD100: 100
A101: 4550985 | B101: eu | C101: 1 | D101: Perleeche | E101: t | F101: 4454569 | G101: eu | H101: 1 | I101: DestroyerX | J101: t | K101: 4366315 | L101: eu | M101: 1 | N101: falconxx | O101: p | P101: 4362069 | Q101: eu | R101: 1 | S101: Nippur | T101: t | U101: Bronze | V101: 5 | W101: 2 | X101: 136 | Y101: 2014-08-05 | Z101: 46 days | AA101: 2014-09-20T12:37:10 | AB101: 4550985-1|4454569-1|4366315-1|4362069-1 | AC101: 0 | AD101: 101
A102: 1005264 | B102: eu | C102: 1 | D102: DrZ | E102: p | F102: 855454 | G102: eu | H102: 1 | I102: Schakal | J102: r | K102: 798686 | L102: eu | M102: 1 | N102: effex | O102: r | P102: 698342 | Q102: eu | R102: 1 | S102: TheDude | T102: r | U102: Bronze | V102: 4 | W102: 6 | X102: 136 | Y102: 2014-09-19 | Z102: 17 hours | AA102: 2014-09-20T12:37:10 | AB102: 1005264-1|855454-1|798686-1|698342-1 | AC102: 0 | AD102: 102
A103: 2673483 | B103: eu | C103: 1 | D103: MadColl | E103: p | F103: 1259592 | G103: eu | H103: 1 | I103: Pico | J103: t | K103: 547022 | L103: eu | M103: 1 | N103: Witchblade | O103: r | P103: 516794 | Q103: eu | R103: 1 | S103: Loki | T103: p | U103: Bronze | V103: 4 | W103: 3 | X103: 135 | Y103: 2014-07-07 | Z103: 26 days | AA103: 2014-09-20T12:37:10 | AB103: 2673483-1|1259592-1|547022-1|516794-1 | AC103: 0 | AD103: 103
A104: 2587861 | B104: eu | C104: 1 | D104: Nadine | E104: p | F104: 1502823 | G104: eu | H104: 1 | I104: ZeroCooL | J104: r | K104: 831308 | L104: eu | M104: 1 | N104: Thylacinus | O104: t | P104: 257340 | Q104: eu | R104: 1 | S104: Darkwing | T104: r | U104: Bronze | V104: 4 | W104: 3 | X104: 135 | Y104: 2014-07-10 | Z104: 38 days | AA104: 2014-09-20T12:37:10 | AB104: 2587861-1|1502823-1|831308-1|257340-1 | AC104: 0 | AD104: 104
A105: 4142513 | B105: eu | C105: 1 | D105: Marco | E105: r | F105: 1848303 | G105: eu | H105: 1 | I105: Balou | J105: r | K105: 1790879 | L105: eu | M105: 1 | N105: HuangZhong | O105: r | P105: 1024308 | Q105: eu | R105: 1 | S105: Kira | T105: r | U105: Bronze | V105: 4 | W105: 3 | X105: 132 | Y105: 2014-07-15 | Z105: 2 days | AA105: 2014-09-20T12:37:10 | AB105: 4142513-1|1848303-1|1790879-1|1024308-1 | AC105: 0 | AD105: 105
A106: 1264870 | B106: eu | C106: 2 | D106: sharka | E106: p | F106: 908506 | G106: eu | H106: 2 | I106: nICeKiy | J106: t | K106: 5151980 | L106: eu | M106: 1 | N106: DanchikLol | O106: p | P106: 1389710 | Q106: eu | R106: 1 | S106: BiO | T106: t | U106: Bronze | V106: 5 | W106: 5 | X106: 132 | Y106: 2014-08-18 | Z106: 32 days | AA106: 2014-09-20T12:37:10 | AB106: 1264870-2|908506-2|5151980-1|1389710-1 | AC106: 0 | AD106: 106
A107: 4795307 | B107: eu | C107: 1 | D107: BanMeImOP | E107: r | F107: 4666578 | G107: eu | H107: 1 | I107: spadbanana | J107: r | K107: 4530936 | L107: eu | M107: 1 | N107: Sorien | O107: r | P107: 4523897 | Q107: eu | R107: 1 | S107: EvilMittens | T107: r | U107: Bronze | V107: 4 | W107: 5 | X107: 132 | Y107: 2014-07-21 | Z107: 19 days | AA107: 2014-09-20T12:37:10 | AB107: 4795307-1|4666578-1|4530936-1|4523897-1 | AC107: 0 | AD107: 107
A108: 4428532 | B108: eu | C108: 1 | D108: Heisenberg | E108: p | F108: 4424883 | G108: eu | H108: 1 | I108: Schissers | J108: t | K108: 3002534 | L108: eu | M108: 1 | N108: Kid | O108: z | P108: 694288 | Q108: eu | R108: 1 | S108: ArcticStyle | T108: p | U108: Bronze | V108: 3 | W108: 17 | X108: 132 | Y108: 2014-08-23 | Z108: 24 days | AA108: 2014-09-20T12:37:10 | AB108: 4428532-1|4424883-1|3002534-1|694288-1 | AC108: 0 | AD108: 108
A109: 3364372 | B109: eu | C109: 1 | D109: kirito | E109: z | F109: 3354546 | G109: eu | H109: 1 | I109: Krytarus | J109: z | K109: 2356951 | L109: eu | M109: 1 | N109: Delta | O109: t | P109: 1504879 | Q109: eu | R109: 1 | S109: vhulcroc | T109: t | U109: Bronze | V109: 5 | W109: 2 | X109: 130 | Y109: 2014-07-28 | Z109: 48 days | AA109: 2014-09-20T12:37:10 | AB109: 3364372-1|3354546-1|2356951-1|1504879-1 | AC109: 0 | AD109: 109
A110: 3273495 | B110: eu | C110: 1 | D110: FZToni | E110: p | F110: 3271008 | G110: eu | H110: 1 | I110: Tobi | J110: r | K110: 3225751 | L110: eu | M110: 1 | N110: Wasserlasser | O110: r | P110: 3198533 | Q110: eu | R110: 1 | S110: Watschnbam | T110: r | U110: Bronze | V110: 4 | W110: 3 | X110: 130 | Y110: 2014-07-11 | Z110: 63 days | AA110: 2014-09-20T12:37:10 | AB110: 3273495-1|3271008-1|3225751-1|3198533-1 | AC110: 0 | AD110: 110
A111: 2151129 | B111: eu | C111: 1 | D111: Jazz | E111: z | F111: 1774017 | G111: eu | H111: 1 | I111: iCmAZ | J111: t | K111: 866112 | L111: eu | M111: 1 | N111: Ranger | O111: p | P111: 570397 | Q111: eu | R111: 1 | S111: NivNambian | T111: t | U111: Bronze | V111: 3 | W111: 6 | X111: 130 | Y111: 2014-08-17 | Z111: 34 days | AA111: 2014-09-20T12:37:10 | AB111: 2151129-1|1774017-1|866112-1|570397-1 | AC111: 0 | AD111: 111
A112: 4864885 | B112: eu | C112: 1 | D112: HabemusWiFi | E112: t | F112: 2236857 | G112: eu | H112: 1 | I112: jogrfe | J112: p | K112: 2132688 | L112: eu | M112: 1 | N112: HÃ¢sH | O112: z | P112: 1031972 | Q112: eu | R112: 1 | S112: CruZeR | T112: z | U112: Bronze | V112: 8 | W112: 11 | X112: 129 | Y112: 2014-07-18 | Z112: 62 days | AA112: 2014-09-20T12:37:10 | AB112: 4864885-1|2236857-1|2132688-1|1031972-1 | AC112: 0 | AD112: 112
A113: 2562634 | B113: eu | C113: 1 | D113: Niewiadomix | E113: p | F113: 2554282 | G113: eu | H113: 1 | I113: LikeHell | J113: t | K113: 2492854 | L113: eu | M113: 1 | N113: Kamikadze | O113: p | P113: 1630239 | Q113: eu | R113: 1 | S113: NegativeONE | T113: r | U113: Bronze | V113: 4 | W113: 0 | X113: 128 | Y113: 2014-08-08 | Z113: 42 days | AA113: 2014-09-20T12:37:10 | AB113: 2562634-1|2554282-1|2492854-1|1630239-1 | AC113: 0 | AD113: 113
A114: 840713 | B114: eu | C114: 2 | D114: ÐŸÐµÑ‚Ñ€Ð¾Ð²Ð¸Ñ‡Ðª | E114: z | F114: 85104 | G114: eu | H114: 2 | I114: ymp | J114: z | K114: 52858 | L114: eu | M114: 2 | N114: JOnik | O114: r | P114: 26748 | Q114: eu | R114: 2 | S114: TonIQuE | T114: p | U114: Bronze | V114: 7 | W114: 1 | X114: 128 | Y114: 2014-07-23 | Z114: 20 days | AA114: 2014-09-20T12:37:10 | AB114: 840713-2|85104-2|52858-2|26748-2 | AC114: 0 | AD114: 114
A115: 4216468 | B115: eu | C115: 1 | D115: lacikex | E115: r | F115: 2091383 | G115: eu | H115: 1 | I115: Yakooza | J115: t | K115: 273738 | L115: eu | M115: 1 | N115: Kane | O115: r | P115: 215494 | Q115: eu | R115: 1 | S115: hrex | T115: z | U115: Bronze | V115: 5 | W115: 1 | X115: 128 | Y115: 2014-07-19 | Z115: 62 days | AA115: 2014-09-20T12:37:10 | AB115: 4216468-1|2091383-1|273738-1|215494-1 | AC115: 0 | AD115: 115
A116: 3756640 | B116: eu | C116: 1 | D116: Stevie | E116: t | F116: 699827 | G116: eu | H116: 1 | I116: turboPasqual | J116: z | K116: 614110 | L116: eu | M116: 1 | N116: bruesche | O116: p | P116: 350360 | Q116: eu | R116: 1 | S116: Ringrocker | T116: t | U116: Bronze | V116: 3 | W116: 2 | X116: 127 | Y116: 2014-07-18 | Z116: 63 days | AA116: 2014-09-20T12:37:10 | AB116: 3756640-1|699827-1|614110-1|350360-1 | AC116: 0 | AD116: 116
A117: 4301188 | B117: eu | C117: 1 | D117: Zworny | E117: p | F117: 3988719 | G117: eu | H117: 1 | I117: Palacio | J117: r | K117: 3984591 | L117: eu | M117: 1 | N117: Staalhaan | O117: r | P117: 3552854 | Q117: eu | R117: 1 | S117: Bauknecht | T117: t | U117: Bronze | V117: 4 | W117: 0 | X117: 126 | Y117: 2014-09-17 | Z117: 2 days | AA117: 2014-09-20T12:37:10 | AB117: 4301188-1|3988719-1|3984591-1|3552854-1 | AC117: 0 | AD117: 117
A118: 802208 | B118: eu | C118: 2 | D118: ÐžÐ¿Ð°ÑÐ½Ñ‹Ð¹Ð¢Ð°Ð¿Ð¾Ðº | E118: r | F118: 799584 | G118: eu | H118: 2 | I118: LenDumat | J118: r | K118: 490240 | L118: eu | M118: 2 | N118: DimasiwE | O118: r | P118: 3573072 | Q118: eu | R118: 1 | S118: BIGPROF | T118: r | U118: Bronze | V118: 5 | W118: 1 | X118: 126 | Y118: 2014-07-13 | Z118: 24 days | AA118: 2014-09-20T12:37:10 | AB118: 802208-2|799584-2|490240-2|3573072-1 | AC118: 0 | AD118: 118
A119: 4347533 | B119: eu | C119: 1 | D119: SonOfAiur | E119: p | F119: 2765701 | G119: eu | H119: 1 | I119: dest | J119: t | K119: 501060 | L119: eu | M119: 1 | N119: Minus | O119: r | P119: 428866 | Q119: eu | R119: 1 | S119: tartine | T119: t | U119: Bronze | V119: 5 | W119: 5 | X119: 126 | Y119: 2014-07-25 | Z119: 22 days | AA119: 2014-09-20T12:37:10 | AB119: 4347533-1|2765701-1|501060-1|428866-1 | AC119: 0 | AD119: 119
A120: 3001959 | B120: eu | C120: 1 | D120: Lvpvs | E120: z | F120: 1366281 | G120: eu | H120: 1 | I120: gdog | J120: t | K120: 1016567 | L120: eu | M120: 1 | N120: Ramschasar | O120: t | P120: 905525 | Q120: eu | R120: 1 | S120: Aldi | T120: p | U120: Bronze | V120: 4 | W120: 1 | X120: 124 | Y120: 2014-08-20 | Z120: 30 days | AA120: 2014-09-20T12:37:10 | AB120: 3001959-1|1366281-1|1016567-1|905525-1 | AC120: 0 | AD120: 120
A121: 2398015 | B121: eu | C121: 1 | D121: Psycho | E121: r | F121: 2203075 | G121: eu | H121: 1 | I121: Shorty | J121: r | K121: 2181416 | L121: eu | M121: 1 | N121: Majlo | O121: r | P121: 2176854 | Q121: eu | R121: 1 | S121: XYschneck | T121: r | U121: Bronze | V121: 4 | W121: 2 | X121: 124 | Y121: 2014-09-11 | Z121: 7 days | AA121: 2014-09-20T12:37:10 | AB121: 2398015-1|2203075-1|2181416-1|2176854-1 | AC121: 0 | AD121: 121
A122: 1451968 | B122: eu | C122: 1 | D122: Sigmart | E122: p | F122: 1233680 | G122: eu | H122: 1 | I122: Chop | J122: z | K122: 812220 | L122: eu | M122: 1 | N122: Tyoneb | O122: t | P122: 570076 | Q122: eu | R122: 1 | S122: FnAx | T122: p | U122: Bronze | V122: 3 | W122: 1 | X122: 122 | Y122: 2014-08-19 | Z122: 31 days | AA122: 2014-09-20T12:37:10 | AB122: 1451968-1|1233680-1|812220-1|570076-1 | AC122: 0 | AD122: 122
A123: 3146900 | B123: eu | C123: 1 | D123: kai | E123: z | F123: 610462 | G123: eu | H123: 1 | I123: AufDenSack | J123: t | K123: 218912 | L123: eu | M123: 1 | N123: KPO | O123: p | P123: 216614 | Q123: eu | R123: 1 | S123: Nagoroth | T123: p | U123: Bronze | V123: 3 | W123: 4 | X123: 122 | Y123: 2014-07-27 | Z123: 54 days | AA123: 2014-09-20T12:37:10 | AB123: 3146900-1|610462-1|218912-1|216614-1 | AC123: 0 | AD123: 123
A124: 5057001 | B124: eu | C124: 1 | D124: Machete | E124: z | F124: 5013432 | G124: eu | H124: 1 | I124: Brdi | J124: p | K124: 2174818 | L124: eu | M124: 1 | N124: rregg | O124: z | P124: 1368494 | Q124: eu | R124: 1 | S124: ArboRex | T124: r | U124: Bronze | V124: 4 | W124: 9 | X124: 122 | Y124: 2014-08-05 | Z124: 31 days | AA124: 2014-09-20T12:37:10 | AB124: 5057001-1|5013432-1|2174818-1|1368494-1 | AC124: 0 | AD124: 124
A125: 3843127 | B125: eu | C125: 1 | D125: GAARA | E125: t | F125: 1815652 | G125: eu | H125: 1 | I125: Bayushi | J125: p | K125: 904410 | L125: eu | M125: 1 | N125: Vini | O125: z | P125: 409064 | Q125: eu | R125: 1 | S125: Holystar | T125: p | U125: Bronze | V125: 4 | W125: 10 | X125: 122 | Y125: 2014-07-14 | Z125: 45 days | AA125: 2014-09-20T12:37:10 | AB125: 3843127-1|1815652-1|904410-1|409064-1 | AC125: 0 | AD125: 125
A126: 1849434 | B126: eu | C126: 1 | D126: Guilherme | E126: p | F126: 713520 | G126: eu | H126: 1 | I126: Itchyscrotum | J126: z | K126: 569735 | L126: eu | M126: 1 | N126: DARKBAME | O126: t | P126: 214538 | Q126: eu | R126: 1 | S126: Starscream | T126: p | U126: Bronze | V126: 4 | W126: 0 | X126: 120 | Y126: 2014-07-31 | Z126: 37 days | AA126: 2014-09-20T12:37:10 | AB126: 1849434-1|713520-1|569735-1|214538-1 | AC126: 0 | AD126: 126
A127: 1561957 | B127: eu | C127: 1 | D127: Fozzy | E127: z | F127: 1485810 | G127: eu | H127: 1 | I127: chris | J127: z | K127: 1424749 | L127: eu | M127: 1 | N127: Pandora | O127: t | P127: 332898 | Q127: eu | R127: 1 | S127: maralekos | T127: r | U127: Bronze | V127: 3 | W127: 1 | X127: 120 | Y127: 2014-09-14 | Z127: 5 days | AA127: 2014-09-20T12:37:10 | AB127: 1561957-1|1485810-1|1424749-1|332898-1 | AC127: 0 | AD127: 127
A128: 3719575 | B128: eu | C128: 1 | D128: Ezechiel | E128: t | F128: 3616889 | G128: eu | H128: 1 | I128: NightfireNES | J128: p | K128: 3615691 | L128: eu | M128: 1 | N128: FreezerNES | O128: t | P128: 662298 | Q128: eu | R128: 1 | S128: Rambo | T128: t | U128: Bronze | V128: 5 | W128: 11 | X128: 119 | Y128: 2014-07-16 | Z128: 18 days | AA128: 2014-09-20T12:37:10 | AB128: 3719575-1|3616889-1|3615691-1|662298-1 | AC128: 0 | AD128: 128
A129: 1543633 | B129: eu | C129: 1 | D129: LeChuck | E129: r | F129: 1444127 | G129: eu | H129: 1 | I129: JayJay | J129: r | K129: 1115311 | L129: eu | M129: 1 | N129: wichtel | O129: r | P129: 370749 | Q129: eu | R129: 1 | S129: Lanviper | T129: z | U129: Bronze | V129: 4 | W129: 2 | X129: 118 | Y129: 2014-07-29 | Z129: 18 days | AA129: 2014-09-20T12:37:10 | AB129: 1543633-1|1444127-1|1115311-1|370749-1 | AC129: 0 | AD129: 129
A130: 4587126 | B130: eu | C130: 1 | D130: pathy | E130: t | F130: 4207209 | G130: eu | H130: 1 | I130: Alex | J130: p | K130: 4149842 | L130: eu | M130: 1 | N130: DrPolytheus | O130: t | P130: 4064643 | Q130: eu | R130: 1 | S130: Monsun | T130: z | U130: Bronze | V130: 5 | W130: 3 | X130: 118 | Y130: 2014-07-21 | Z130: 7 days | AA130: 2014-09-20T12:37:10 | AB130: 4587126-1|4207209-1|4149842-1|4064643-1 | AC130: 0 | AD130: 130
A131: 4864885 | B131: eu | C131: 1 | D131: HabemusWiFi | E131: t | F131: 2408633 | G131: eu | H131: 1 | I131: LostViking | J131: t | K131: 2132688 | L131: eu | M131: 1 | N131: HÃ¢sH | O131: r | P131: 1031972 | Q131: eu | R131: 1 | S131: CruZeR | T131: z | U131: Bronze | V131: 6 | W131: 5 | X131: 118 | Y131: 2014-07-17 | Z131: 63 days | AA131: 2014-09-20T12:37:10 | AB131: 4864885-1|2408633-1|2132688-1|1031972-1 | AC131: 0 | AD131: 131
A132: 811373 | B132: eu | C132: 2 | D132: volter | E132: z | F132: 810861 | G132: eu | H132: 2 | I132: BornToSlow | J132: r | K132: 691630 | L132: eu | M132: 2 | N132: TonoP | O132: p | P132: 280888 | Q132: eu | R132: 2 | S132: sauron | T132: t | U132: Bronze | V132: 6 | W132: 8 | X132: 118 | Y132: 2014-08-18 | Z132: 32 days | AA132: 2014-09-20T12:37:10 | AB132: 811373-2|810861-2|691630-2|280888-2 | AC132: 0 | AD132: 132
A133: 880007 | B133: eu | C133: 2 | D133: FRED | E133: p | F133: 151920 | G133: eu | H133: 2 | I133: Altair | J133: z | K133: 118732 | L133: eu | M133: 2 | N133: ITSECURE | O133: t | P133: 14388 | Q133: eu | R133: 2 | S133: Rakal | T133: z | U133: Bronze | V133: 4 | W133: 6 | X133: 118 | Y133: 2014-07-08 | Z133: 20 days | AA133: 2014-09-20T12:37:10 | AB133: 880007-2|151920-2|118732-2|14388-2 | AC133: 0 | AD133: 133
A134: 1822105 | B134: eu | C134: 1 | D134: Piddl | E134: p | F134: 1339725 | G134: eu | H134: 1 | I134: YÃ®n | J134: t | K134: 1186816 | L134: eu | M134: 1 | N134: Confession | O134: p | P134: 440545 | Q134: eu | R134: 1 | S134: Schoko | T134: r | U134: Bronze | V134: 4 | W134: 9 | X134: 118 | Y134: 2014-08-13 | Z134: 1 days | AA134: 2014-09-20T12:37:10 | AB134: 1822105-1|1339725-1|1186816-1|440545-1 | AC134: 0 | AD134: 134
A135: 2035456 | B135: eu | C135: 1 | D135: Tanuki | E135: z | F135: 1352102 | G135: eu | H135: 1 | I135: Wyvi | J135: z | K135: 1024552 | L135: eu | M135: 1 | N135: SkaaR | O135: r | P135: 446634 | Q135: eu | R135: 1 | S135: Izanagi | T135: z | U135: Bronze | V135: 5 | W135: 1 | X135: 117 | Y135: 2014-07-09 | Z135: 69 days | AA135: 2014-09-20T12:37:10 | AB135: 2035456-1|1352102-1|1024552-1|446634-1 | AC135: 0 | AD135: 135
A136: 3625692 | B136: eu | C136: 1 | D136: Dimar | E136: r | F136: 3144685 | G136: eu | H136: 1 | I136: Darion | J136: r | K136: 3133721 | L136: eu | M136: 1 | N136: LucianESP | O136: r | P136: 2293468 | Q136: eu | R136: 1 | S136: MesRaS | T136: r | U136: Bronze | V136: 6 | W136: 11 | X136: 117 | Y136: 2014-07-10 | Z136: 67 days | AA136: 2014-09-20T12:37:10 | AB136: 3625692-1|3144685-1|3133721-1|2293468-1 | AC136: 0 | AD136: 136
A137: 1259817 | B137: eu | C137: 1 | D137: EvalataBate | E137: r | F137: 1256245 | G137: eu | H137: 1 | I137: MartineZ | J137: r | K137: 1254522 | L137: eu | M137: 1 | N137: Isolierband | O137: t | P137: 1140108 | Q137: eu | R137: 1 | S137: FackLD | T137: r | U137: Bronze | V137: 4 | W137: 3 | X137: 116 | Y137: 2014-07-27 | Z137: 7 days | AA137: 2014-09-20T12:37:10 | AB137: 1259817-1|1256245-1|1254522-1|1140108-1 | AC137: 0 | AD137: 137
